Workbook

Sheet 0 home
C2: SIMULHYDRO
B6: About this tool
B8: SIMULHYDRO is an EXCEL™ spreadsheet developed only for expert users: it could be used to calculate the water and nutrient use efficiency using different water sources, fertilization strategies and water wasting options of a semi-closed and open soilless greenhouse crop.
B10: Disclaimer
B12: This software is available free of charge. No commercial use, reproduction or distribution is permitted. The developer is not responsible for any kind of damages caused by the use of the software. The entire risk regarding uses, outputs, analyses, results and performance of the software is assumed by the user. The user raises the developer from any liability, expressed or implied, arising out of the application itself
C14: Acknowledgements: EUPHOROS, "Efficient use of inputs in protected horticulture", EU-FP7-KBBE-2007-1 (grant n° 211457)
C25: Acknowledgements: EUPHOROS, "Efficient use of inputs in protected horticulture", EU-FP7-KBBE-2007-1 (grant n° 211457)

Sheet User Manual
C4: Simulhydro Quick start guide
B377: Disclaimer
B379: This software is available free of charge. No commercial use, reproduction or distribution is permitted. The developer is not responsible for any kind of damages caused by the use of the software. The entire risk regarding uses, outputs, analyses, results and performance of the software is assumed by the user. The user raises the developer from any liability, expressed or implied, arising out of the application itself
C381: Acknowledgements: EUPHOROS, "Efficient use of inputs in protected horticulture", EU-FP7-KBBE-2007-1 (grant n° 211457)

Sheet 1 START
C3: SIMULHYDRO software
B17: Insert data in yellow cells. Click on "New simulation" button for a new simulation. Data of an experimental soilless tomato culture, conducted at the University of Pisa, are already inserted as example.
D24: Acknowledgements: EUPHOROS, "Efficient use of inputs in protected horticulture", EU-FP7-KBBE-2007-1 (grant n° 211457)

Sheet 2 date in_end
C3: SIMULHYDRO software
B7: Input 1/5: crop chronology
B11: Planting date (dd/mm/yyyy) | H11: 2006-05-06
B13: End of 1st growth stage (dd/mm/yyyy) | H13: 2006-06-29
B15: End of cultivation (dd/mm/yyyy) | H15: 2006-07-28
B17: Duration of 1st growth stage (days) | H17: =H13-H11 -> 54
B19: Growing period (days) | H19: =H15-H11+1 -> 84
B21: Duration of vegetative crop stage | H21: =H13-H11 -> 54

Sheet 3 climate date
C3: Simulhydrone software | E3: SIMULHYDRO software
D9: Input 2/5: crop transpiration (ET)
K11: Model parameters for daily crop ET simulation
K12: LAI simulation | N12: ET simulation
B13: Test | C13: Position | D13: Day | E13: Date | F13: Daily ET | G13: Global radiation | H13: Air temperature | K13: Thermal age at planting (GDD, C°) | M13: 420
B14: 0 | E14: (dd/mm/yyyy) | F14: L m-2 | G14: (MJ m-2 day-1) | H14: (°C)
B15: =IF(B14>='2 date in_end'!$H$19,0,1) -> 1 | C15: 1 | D15: 1 | E15: ='2 date in_end'!H11 -> 2006-05-06 | F15: 3 | G15: 13.703475 | H15: 20.75722222 | K15: a1 (regression coefficient) | M15: -0.3354 | O15: b1 | P15: adim. | Q15: =0.386*2.45 -> 0.9457
B16: =IF(C15>='2 date in_end'!$H$19,0,1) -> 1 | C16: 2 | D16: =IF(B16=1, D15+1,"f") -> 2 | E16: =E15+1 -> 2006-05-07 | F16: 3 | G16: 13.2840375 | H16: 20.31277778
B17: =IF(C16>='2 date in_end'!$H$19,0,1) -> 1 | C17: 3 | D17: =IF(B17=1, D16+1,"f") -> 3 | E17: =E16+1 -> 2006-05-08 | F17: 3 | G17: 11.9845875 | H17: 20.27180556 | K17: a2 (regression coefficient) | M17: 4.823 | O17: k | P17: adim. | Q17: 0.69
B18: =IF(C17>='2 date in_end'!$H$19,0,1) -> 1 | C18: 4 | D18: 4 | E18: 2006-05-09 | F18: 3 | G18: 10.676325 | H18: 19.58430556
B19: =IF(C18>='2 date in_end'!$H$19,0,1) -> 1 | C19: 5 | D19: 5 | E19: 2006-05-10 | F19: 3 | G19: 6.024 | H19: 19.55868056 | K19: a3 (regression coefficient) | M19: 755.3 | O19: b2 | P19: L*m-2 | Q19: 0.188
B20: =IF(C19>='2 date in_end'!$H$19,0,1) -> 1 | C20: 6 | D20: 6 | E20: 2006-05-11 | F20: 3 | G20: 8.896725 | H20: 20.739375
B21: =IF(C20>='2 date in_end'!$H$19,0,1) -> 1 | C21: 7 | D21: 7 | E21: 2006-05-12 | F21: 3 | G21: 15.00405 | H21: 22.26868056 | K21: a4 (regression coefficient) | M21: 134.7
B22: =IF(C21>='2 date in_end'!$H$19,0,1) -> 1 | C22: 8 | D22: 8 | E22: 2006-05-13 | F22: 3 | G22: 14.0882625 | H22: 22.19680556
B23: =IF(C22>='2 date in_end'!$H$19,0,1) -> 1 | C23: 9 | D23: 9 | E23: 2006-05-14 | F23: 3 | G23: 6.965175 | H23: 20.79395833 | K23: Basal temperature (C°) | M23: 8
B24: =IF(C23>='2 date in_end'!$H$19,0,1) -> 1 | C24: 10 | D24: 10 | E24: 2006-05-15 | F24: 3 | G24: 11.593125 | H24: 20.87208333
B25: =IF(C24>='2 date in_end'!$H$19,0,1) -> 1 | C25: 11 | D25: 11 | E25: 2006-05-16 | F25: 3 | G25: 12.120375 | H25: 20.59673611
B26: =IF(C25>='2 date in_end'!$H$19,0,1) -> 1 | C26: 12 | D26: 12 | E26: 2006-05-17 | F26: 3 | G26: 4.8707625 | H26: 19.43652778
B27: =IF(C26>='2 date in_end'!$H$19,0,1) -> 1 | C27: 13 | D27: 13 | E27: 2006-05-18 | F27: 3 | G27: 10.6268625 | H27: 19.24375
B28: =IF(C27>='2 date in_end'!$H$19,0,1) -> 1 | C28: 14 | D28: 14 | E28: 2006-05-19 | F28: 3 | G28: 15.4516125 | H28: 20.67847222
B29: =IF(C28>='2 date in_end'!$H$19,0,1) -> 1 | C29: 15 | D29: 15 | E29: 2006-05-20 | F29: 3 | G29: 15.0187125 | H29: 21.28326389
B30: =IF(C29>='2 date in_end'!$H$19,0,1) -> 1 | C30: 16 | D30: 16 | E30: 2006-05-21 | F30: 3 | G30: 15.0052125 | H30: 21.41326389
B31: =IF(C30>='2 date in_end'!$H$19,0,1) -> 1 | C31: 17 | D31: 17 | E31: 2006-05-22 | F31: 3 | G31: 9.3958125 | H31: 21.75256944
B32: =IF(C31>='2 date in_end'!$H$19,0,1) -> 1 | C32: 18 | D32: 18 | E32: 2006-05-23 | F32: 3 | G32: 8.4949125 | H32: 21.31777778
B33: =IF(C32>='2 date in_end'!$H$19,0,1) -> 1 | C33: 19 | D33: 19 | E33: 2006-05-24 | F33: 3 | G33: 14.9198625 | H33: 22.47277778
B34: =IF(C33>='2 date in_end'!$H$19,0,1) -> 1 | C34: 20 | D34: 20 | E34: 2006-05-25 | F34: 3 | G34: 14.844675 | H34: 23.65743056
B35: =IF(C34>='2 date in_end'!$H$19,0,1) -> 1 | C35: 21 | D35: 21 | E35: 2006-05-26 | F35: 3 | G35: 15.3451875 | H35: 24.99666667
B36: =IF(C35>='2 date in_end'!$H$19,0,1) -> 1 | C36: 22 | D36: 22 | E36: 2006-05-27 | F36: 3 | G36: 15.237825 | H36: 25.91048611
B37: =IF(C36>='2 date in_end'!$H$19,0,1) -> 1 | C37: 23 | D37: 23 | E37: 2006-05-28 | F37: 3 | G37: 15.1899 | H37: 25.79055556
B38: =IF(C37>='2 date in_end'!$H$19,0,1) -> 1 | C38: 24 | D38: 24 | E38: 2006-05-29 | F38: 3 | G38: 15.2011875 | H38: 26.43034722
B39: =IF(C38>='2 date in_end'!$H$19,0,1) -> 1 | C39: 25 | D39: 25 | E39: 2006-05-30 | F39: 3 | G39: 13.9636875 | H39: 26.014375
B40: =IF(C39>='2 date in_end'!$H$19,0,1) -> 1 | C40: 26 | D40: 26 | E40: 2006-05-31 | F40: 3 | G40: 14.6772 | H40: 25.50423611
B41: =IF(C40>='2 date in_end'!$H$19,0,1) -> 1 | C41: 27 | D41: 27 | E41: 2006-06-01 | F41: 3 | G41: 12.64455 | H41: 26.10701389 | BA41: 1
B42: =IF(C41>='2 date in_end'!$H$19,0,1) -> 1 | C42: 28 | D42: 28 | E42: 2006-06-02 | F42: 3 | G42: 14.5062375 | H42: 26.26125
B43: =IF(C42>='2 date in_end'!$H$19,0,1) -> 1 | C43: 29 | D43: 29 | E43: 2006-06-03 | F43: 3 | G43: 14.9453625 | H43: 26.64131944
B44: =IF(C43>='2 date in_end'!$H$19,0,1) -> 1 | C44: 30 | D44: 30 | E44: 2006-06-04 | F44: 3 | G44: 8.9205 | H44: 24.67555556
B45: =IF(C44>='2 date in_end'!$H$19,0,1) -> 1 | C45: 31 | D45: 31 | E45: 2006-06-05 | F45: 3 | G45: 13.8937875 | H45: 25.999375
B46: =IF(C45>='2 date in_end'!$H$19,0,1) -> 1 | C46: 32 | D46: 32 | E46: 2006-06-06 | F46: 3 | G46: 7.8996375 | H46: 24.04131944
B47: =IF(C46>='2 date in_end'!$H$19,0,1) -> 1 | C47: 33 | D47: 33 | E47: 2006-06-07 | F47: 3 | G47: 15.236925 | H47: 24.36701389
B48: =IF(C47>='2 date in_end'!$H$19,0,1) -> 1 | C48: 34 | D48: 34 | E48: 2006-06-08 | F48: 3 | G48: 14.2002 | H48: 23.09298611
B49: =IF(C48>='2 date in_end'!$H$19,0,1) -> 1 | C49: 35 | D49: 35 | E49: 2006-06-09 | F49: 3 | G49: 5.2158375 | H49: 21.25881944
B50: =IF(C49>='2 date in_end'!$H$19,0,1) -> 1 | C50: 36 | D50: 36 | E50: 2006-06-10 | F50: 3 | G50: 15.9081375 | H50: 20.56638889
B51: =IF(C50>='2 date in_end'!$H$19,0,1) -> 1 | C51: 37 | D51: 37 | E51: 2006-06-11 | F51: 3 | G51: 9.5535 | H51: 20.41291667
B52: =IF(C51>='2 date in_end'!$H$19,0,1) -> 1 | C52: 38 | D52: 38 | E52: 2006-06-12 | F52: 3 | G52: 7.057425 | H52: 21.42256944
B53: =IF(C52>='2 date in_end'!$H$19,0,1) -> 1 | C53: 39 | D53: 39 | E53: 2006-06-13 | F53: 3 | G53: 10.4796 | H53: 23.16486111
B54: =IF(C53>='2 date in_end'!$H$19,0,1) -> 1 | C54: 40 | D54: 40 | E54: 2006-06-14 | F54: 3 | G54: 3.3223125 | H54: 20.26263889
B55: =IF(C54>='2 date in_end'!$H$19,0,1) -> 1 | C55: 41 | D55: 41 | E55: 2006-06-15 | F55: 3 | G55: 8.2807125 | H55: 22.77333333
B56: =IF(C55>='2 date in_end'!$H$19,0,1) -> 1 | C56: 42 | D56: 42 | E56: 2006-06-16 | F56: 3 | G56: 15.0218625 | H56: 25.01118056
B57: =IF(C56>='2 date in_end'!$H$19,0,1) -> 1 | C57: 43 | D57: 43 | E57: 2006-06-17 | F57: 3 | G57: 15.1326 | H57: 26.63423611
B58: =IF(C57>='2 date in_end'!$H$19,0,1) -> 1 | C58: 44 | D58: 44 | E58: 2006-06-18 | F58: 3 | G58: 13.3788 | H58: 26.37791667
B59: =IF(C58>='2 date in_end'!$H$19,0,1) -> 1 | C59: 45 | D59: 45 | E59: 2006-06-19 | F59: 3 | G59: 15.288075 | H59: 27.09076389
B60: =IF(C59>='2 date in_end'!$H$19,0,1) -> 1 | C60: 46 | D60: 46 | E60: 2006-06-20 | F60: 3 | G60: 13.44525 | H60: 27.506875
B61: =IF(C60>='2 date in_end'!$H$19,0,1) -> 1 | C61: 47 | D61: 47 | E61: 2006-06-21 | F61: 3 | G61: 14.0280375 | H61: 27.66069444
B62: =IF(C61>='2 date in_end'!$H$19,0,1) -> 1 | C62: 48 | D62: 48 | E62: 2006-06-22 | F62: 3 | G62: 12.8100375 | H62: 28.14201389
B63: =IF(C62>='2 date in_end'!$H$19,0,1) -> 1 | C63: 49 | D63: 49 | E63: 2006-06-23 | F63: 3 | G63: 15.6161625 | H63: 29.04284722
B64: =IF(C63>='2 date in_end'!$H$19,0,1) -> 1 | C64: 50 | D64: 50 | E64: 2006-06-24 | F64: 3 | G64: 15.386475 | H64: 30.16486111
B65: =IF(C64>='2 date in_end'!$H$19,0,1) -> 1 | C65: 51 | D65: 51 | E65: 2006-06-25 | F65: 3 | G65: 15.78765 | H65: 30.25368056
B66: =IF(C65>='2 date in_end'!$H$19,0,1) -> 1 | C66: 52 | D66: 52 | E66: 2006-06-26 | F66: 3 | G66: 15.8497875 | H66: 30.08680556
B67: =IF(C66>='2 date in_end'!$H$19,0,1) -> 1 | C67: 53 | D67: 53 | E67: 2006-06-27 | F67: 3 | G67: 15.62179449 | H67: 30.28846869
B68: =IF(C67>='2 date in_end'!$H$19,0,1) -> 1 | C68: 54 | D68: 54 | E68: 2006-06-28 | F68: 3 | G68: 14.7457875 | H68: 30.20375
B69: =IF(C68>='2 date in_end'!$H$19,0,1) -> 1 | C69: 55 | D69: 55 | E69: 2006-06-29 | F69: 3 | G69: 14.2573125 | H69: 30.35479167
B70: =IF(C69>='2 date in_end'!$H$19,0,1) -> 1 | C70: 56 | D70: 56 | E70: 2006-06-30 | F70: 3 | G70: 12.4346625 | H70: 29.17784722
B71: =IF(C70>='2 date in_end'!$H$19,0,1) -> 1 | C71: 57 | D71: 57 | E71: 2006-07-01 | F71: 3 | G71: 10.7379 | H71: 27.75645833
B72: =IF(C71>='2 date in_end'!$H$19,0,1) -> 1 | C72: 58 | D72: 58 | E72: 2006-07-02 | F72: 3 | G72: 14.7183375 | H72: 28.12756944
B73: =IF(C72>='2 date in_end'!$H$19,0,1) -> 1 | C73: 59 | D73: 59 | E73: 2006-07-03 | F73: 3 | G73: 15.35985 | H73: 27.740625
B74: =IF(C73>='2 date in_end'!$H$19,0,1) -> 1 | C74: 60 | D74: 60 | E74: 2006-07-04 | F74: 3 | G74: 14.6104125 | H74: 27.73465278
B75: =IF(C74>='2 date in_end'!$H$19,0,1) -> 1 | C75: 61 | D75: 61 | E75: 2006-07-05 | F75: 3 | G75: 11.828475 | H75: 26.85465278
B76: =IF(C75>='2 date in_end'!$H$19,0,1) -> 1 | C76: 62 | D76: 62 | E76: 2006-07-06 | F76: 3 | G76: 14.8244625 | H76: 26.70541667
B77: =IF(C76>='2 date in_end'!$H$19,0,1) -> 1 | C77: 63 | D77: 63 | E77: 2006-07-07 | F77: 3 | G77: 13.2490875 | H77: 26.77298611
B78: =IF(C77>='2 date in_end'!$H$19,0,1) -> 1 | C78: 64 | D78: 64 | E78: 2006-07-08 | F78: 3 | G78: 10.4346 | H78: 25.38513889
B79: =IF(C78>='2 date in_end'!$H$19,0,1) -> 1 | C79: 65 | D79: 65 | E79: 2006-07-09 | F79: 3 | G79: 14.198475 | H79: 26.120625
B80: =IF(C79>='2 date in_end'!$H$19,0,1) -> 1 | C80: 66 | D80: 66 | E80: 2006-07-10 | F80: 3 | G80: 12.0791625 | H80: 25.30208333
B81: =IF(C80>='2 date in_end'!$H$19,0,1) -> 1 | C81: 67 | D81: =IF(B81=1, D80+1,"f") -> 67 | E81: =E80+1 -> 2006-07-11 | F81: 3 | G81: 12.330375 | H81: 25.46472222
B82: =IF(C81>='2 date in_end'!$H$19,0,1) -> 1 | C82: 68 | D82: 68 | E82: 2006-07-12 | F82: 3 | G82: 14.3609625 | H82: 26.12486111
B83: =IF(C82>='2 date in_end'!$H$19,0,1) -> 1 | C83: 69 | D83: 69 | E83: 2006-07-13 | F83: 3 | G83: 5.906775 | H83: 24.81680556
B84: =IF(C83>='2 date in_end'!$H$19,0,1) -> 1 | C84: 70 | D84: 70 | E84: 2006-07-14 | F84: 3 | G84: 14.4447375 | H84: 26.97173611
B85: =IF(C84>='2 date in_end'!$H$19,0,1) -> 1 | C85: 71 | D85: 71 | E85: 2006-07-15 | F85: 3 | G85: 14.345925 | H85: 27.37409722
B86: =IF(C85>='2 date in_end'!$H$19,0,1) -> 1 | C86: 72 | D86: 72 | E86: 2006-07-16 | F86: 3 | G86: 13.5775875 | H86: 27.62083333
B87: =IF(C86>='2 date in_end'!$H$19,0,1) -> 1 | C87: 73 | D87: 73 | E87: 2006-07-17 | F87: 3 | G87: 14.0848875 | H87: 28.05694444
B88: =IF(C87>='2 date in_end'!$H$19,0,1) -> 1 | C88: 74 | D88: 74 | E88: 2006-07-18 | F88: 3 | G88: 6.7673625 | H88: 26.90527778
B89: =IF(C88>='2 date in_end'!$H$19,0,1) -> 1 | C89: 75 | D89: 75 | E89: 2006-07-19 | F89: 3 | G89: 11.1184125 | H89: 27.74666667
B90: =IF(C89>='2 date in_end'!$H$19,0,1) -> 1 | C90: 76 | D90: 76 | E90: 2006-07-20 | F90: 3 | G90: 13.94175 | H90: 27.93319444
B91: =IF(C90>='2 date in_end'!$H$19,0,1) -> 1 | C91: 77 | D91: 77 | E91: 2006-07-21 | F91: 3 | G91: 13.952475 | H91: 27.76888889
B92: =IF(C91>='2 date in_end'!$H$19,0,1) -> 1 | C92: 78 | D92: 78 | E92: 2006-07-22 | F92: 3 | G92: 12.5090625 | H92: 27.46715278
B93: =IF(C92>='2 date in_end'!$H$19,0,1) -> 1 | C93: 79 | D93: 79 | E93: 2006-07-23 | F93: 3 | G93: 10.5775875 | H93: 27.46638889
B94: =IF(C93>='2 date in_end'!$H$19,0,1) -> 1 | C94: 80 | D94: 80 | E94: 2006-07-24 | F94: 3 | G94: 10.1560875 | H94: 27.35652778
B95: =IF(C94>='2 date in_end'!$H$19,0,1) -> 1 | C95: 81 | D95: 81 | E95: 2006-07-25 | F95: 3 | G95: 12.3167625 | H95: 27.82479167
B96: =IF(C95>='2 date in_end'!$H$19,0,1) -> 1 | C96: 82 | D96: 82 | E96: 2006-07-26 | F96: 3 | G96: 12.636 | H96: 28.03395833
B97: =IF(C96>='2 date in_end'!$H$19,0,1) -> 1 | C97: 83 | D97: 83 | E97: 2006-07-27 | F97: 3 | G97: 12.690975 | H97: 28.52222222
B98: =IF(C97>='2 date in_end'!$H$19,0,1) -> 1 | C98: 84 | D98: 84 | E98: 2006-07-28 | F98: 3 | G98: 12.1245 | H98: 29.25611111
B99: =IF(C98>='2 date in_end'!$H$19,0,1) -> 0 | C99: 85 | D99: f | E99: 2006-07-29 | G99: 11.9845875 | H99: 20.27180556
B100: =IF(C99>='2 date in_end'!$H$19,0,1) -> 0 | C100: 86 | D100: f | E100: 2006-07-30 | G100: 11.9845875 | H100: 20.27180556
B101: =IF(C100>='2 date in_end'!$H$19,0,1) -> 0 | C101: 87 | D101: f | E101: 2006-07-31 | G101: 11.9845875 | H101: 20.27180556
B102: =IF(C101>='2 date in_end'!$H$19,0,1) -> 0 | C102: 88 | D102: f | E102: 2006-08-01 | G102: 11.9845875 | H102: 20.27180556
B103: =IF(C102>='2 date in_end'!$H$19,0,1) -> 0 | C103: 89 | D103: f | E103: 2006-08-02 | G103: 11.9845875 | H103: 20.27180556
B104: =IF(C103>='2 date in_end'!$H$19,0,1) -> 0 | C104: 90 | D104: f | E104: 2006-08-03 | G104: 11.9845875 | H104: 20.27180556
B105: =IF(C104>='2 date in_end'!$H$19,0,1) -> 0 | C105: 91 | D105: f | E105: 2006-08-04 | G105: 11.9845875 | H105: 20.27180556
B106: =IF(C105>='2 date in_end'!$H$19,0,1) -> 0 | C106: 92 | D106: f | E106: 2006-08-05 | G106: 11.9845875 | H106: 20.27180556
B107: =IF(C106>='2 date in_end'!$H$19,0,1) -> 0 | C107: 93 | D107: f | E107: 2006-08-06 | G107: 11.9845875 | H107: 20.27180556
B108: =IF(C107>='2 date in_end'!$H$19,0,1) -> 0 | C108: 94 | D108: f | E108: 2006-08-07 | G108: 11.9845875 | H108: 20.27180556
B109: =IF(C108>='2 date in_end'!$H$19,0,1) -> 0 | C109: 95 | D109: f | E109: 2006-08-08 | G109: 11.9845875 | H109: 20.27180556
B110: =IF(C109>='2 date in_end'!$H$19,0,1) -> 0 | C110: 96 | D110: f | E110: 2006-08-09 | G110: 11.9845875 | H110: 20.27180556
B111: =IF(C110>='2 date in_end'!$H$19,0,1) -> 0 | C111: 97 | D111: f | E111: 2006-08-10 | G111: 11.9845875 | H111: 20.27180556
B112: =IF(C111>='2 date in_end'!$H$19,0,1) -> 0 | C112: 98 | D112: f | E112: 2006-08-11 | G112: 11.9845875 | H112: 20.27180556
B113: =IF(C112>='2 date in_end'!$H$19,0,1) -> 0 | C113: 99 | D113: f | E113: 2006-08-12 | G113: 11.9845875 | H113: 20.27180556
B114: =IF(C113>='2 date in_end'!$H$19,0,1) -> 0 | C114: 100 | D114: f | E114: 2006-08-13 | G114: 11.9845875 | H114: 20.27180556
B115: =IF(C114>='2 date in_end'!$H$19,0,1) -> 0 | C115: 101 | D115: f | E115: 2006-08-14 | G115: 11.9845875 | H115: 20.27180556
B116: =IF(C115>='2 date in_end'!$H$19,0,1) -> 0 | C116: 102 | D116: f | E116: 2006-08-15 | G116: 11.9845875 | H116: 20.27180556
B117: =IF(C116>='2 date in_end'!$H$19,0,1) -> 0 | C117: 103 | D117: f | E117: 2006-08-16 | G117: 11.9845875 | H117: 20.27180556
B118: =IF(C117>='2 date in_end'!$H$19,0,1) -> 0 | C118: 104 | D118: f | E118: 2006-08-17 | G118: 11.9845875 | H118: 20.27180556
B119: =IF(C118>='2 date in_end'!$H$19,0,1) -> 0 | C119: 105 | D119: f | E119: 2006-08-18 | G119: 11.9845875 | H119: 20.27180556
B120: =IF(C119>='2 date in_end'!$H$19,0,1) -> 0 | C120: 106 | D120: f | E120: 2006-08-19 | G120: 11.9845875 | H120: 20.27180556
B121: =IF(C120>='2 date in_end'!$H$19,0,1) -> 0 | C121: 107 | D121: f | E121: 2006-08-20 | G121: 11.9845875 | H121: 20.27180556
B122: =IF(C121>='2 date in_end'!$H$19,0,1) -> 0 | C122: 108 | D122: f | E122: 2006-08-21 | G122: 11.9845875 | H122: 20.27180556
B123: =IF(C122>='2 date in_end'!$H$19,0,1) -> 0 | C123: 109 | D123: f | E123: 2006-08-22 | G123: 11.9845875 | H123: 20.27180556
B124: =IF(C123>='2 date in_end'!$H$19,0,1) -> 0 | C124: 110 | D124: f | E124: 2006-08-23 | G124: 11.9845875 | H124: 20.27180556
B125: =IF(C124>='2 date in_end'!$H$19,0,1) -> 0 | C125: 111 | D125: f | E125: 2006-08-24 | G125: 11.9845875 | H125: 20.27180556
B126: =IF(C125>='2 date in_end'!$H$19,0,1) -> 0 | C126: 112 | D126: f | E126: 2006-08-25 | G126: 11.9845875 | H126: 20.27180556
B127: =IF(C126>='2 date in_end'!$H$19,0,1) -> 0 | C127: 113 | D127: f | E127: 2006-08-26 | G127: 11.9845875 | H127: 20.27180556
B128: =IF(C127>='2 date in_end'!$H$19,0,1) -> 0 | C128: 114 | D128: f | E128: 2006-08-27 | G128: 11.9845875 | H128: 20.27180556
B129: =IF(C128>='2 date in_end'!$H$19,0,1) -> 0 | C129: 115 | D129: f | E129: 2006-08-28 | G129: 11.9845875 | H129: 20.27180556
B130: =IF(C129>='2 date in_end'!$H$19,0,1) -> 0 | C130: 116 | D130: f | E130: 2006-08-29 | G130: 11.9845875 | H130: 20.27180556
B131: =IF(C130>='2 date in_end'!$H$19,0,1) -> 0 | C131: 117 | D131: f | E131: 2006-08-30 | G131: 11.9845875 | H131: 20.27180556
B132: =IF(C131>='2 date in_end'!$H$19,0,1) -> 0 | C132: 118 | D132: f | E132: 2006-08-31 | G132: 11.9845875 | H132: 20.27180556
B133: =IF(C132>='2 date in_end'!$H$19,0,1) -> 0 | C133: 119 | D133: f | E133: 2006-09-01 | G133: 11.9845875 | H133: 20.27180556
B134: =IF(C133>='2 date in_end'!$H$19,0,1) -> 0 | C134: 120 | D134: f | E134: 2006-09-02 | G134: 11.9845875 | H134: 20.27180556
B135: =IF(C134>='2 date in_end'!$H$19,0,1) -> 0 | C135: 121 | D135: f | E135: 2006-09-03 | G135: 11.9845875 | H135: 20.27180556
B136: =IF(C135>='2 date in_end'!$H$19,0,1) -> 0 | C136: 122 | D136: f | E136: 2006-09-04 | G136: 11.9845875 | H136: 20.27180556
B137: =IF(C136>='2 date in_end'!$H$19,0,1) -> 0 | C137: 123 | D137: f | E137: 2006-09-05 | G137: 11.9845875 | H137: 20.27180556
B138: =IF(C137>='2 date in_end'!$H$19,0,1) -> 0 | C138: 124 | D138: f | E138: 2006-09-06 | G138: 11.9845875 | H138: 20.27180556
B139: =IF(C138>='2 date in_end'!$H$19,0,1) -> 0 | C139: 125 | D139: f | E139: 2006-09-07 | G139: 11.9845875 | H139: 20.27180556
B140: =IF(C139>='2 date in_end'!$H$19,0,1) -> 0 | C140: 126 | D140: f | E140: 2006-09-08 | G140: 11.9845875 | H140: 20.27180556
B141: =IF(C140>='2 date in_end'!$H$19,0,1) -> 0 | C141: 127 | D141: f | E141: 2006-09-09 | G141: 11.9845875 | H141: 20.27180556
B142: =IF(C141>='2 date in_end'!$H$19,0,1) -> 0 | C142: 128 | D142: f | E142: 2006-09-10 | G142: 11.9845875 | H142: 20.27180556
B143: =IF(C142>='2 date in_end'!$H$19,0,1) -> 0 | C143: 129 | D143: f | E143: 2006-09-11 | G143: 11.9845875 | H143: 20.27180556
B144: =IF(C143>='2 date in_end'!$H$19,0,1) -> 0 | C144: 130 | D144: f | E144: 2006-09-12 | G144: 11.9845875 | H144: 20.27180556
B145: =IF(C144>='2 date in_end'!$H$19,0,1) -> 0 | C145: 131 | D145: =IF(B145=1, D144+1,"f") -> f | E145: =E144+1 -> 2006-09-13 | G145: 11.9845875 | H145: 20.27180556
B146: =IF(C145>='2 date in_end'!$H$19,0,1) -> 0 | C146: 132 | D146: f | E146: 2006-09-14 | G146: 11.9845875 | H146: 20.27180556
B147: =IF(C146>='2 date in_end'!$H$19,0,1) -> 0 | C147: 133 | D147: f | E147: 2006-09-15 | G147: 11.9845875 | H147: 20.27180556
B148: =IF(C147>='2 date in_end'!$H$19,0,1) -> 0 | C148: 134 | D148: f | E148: 2006-09-16 | G148: 11.9845875 | H148: 20.27180556
B149: =IF(C148>='2 date in_end'!$H$19,0,1) -> 0 | C149: 135 | D149: f | E149: 2006-09-17 | G149: 11.9845875 | H149: 20.27180556
B150: =IF(C149>='2 date in_end'!$H$19,0,1) -> 0 | C150: 136 | D150: f | E150: 2006-09-18 | G150: 11.9845875 | H150: 20.27180556
B151: =IF(C150>='2 date in_end'!$H$19,0,1) -> 0 | C151: 137 | D151: f | E151: 2006-09-19 | G151: 11.9845875 | H151: 20.27180556
B152: =IF(C151>='2 date in_end'!$H$19,0,1) -> 0 | C152: 138 | D152: f | E152: 2006-09-20 | G152: 11.9845875 | H152: 20.27180556
B153: =IF(C152>='2 date in_end'!$H$19,0,1) -> 0 | C153: 139 | D153: f | E153: 2006-09-21 | G153: 11.9845875 | H153: 20.27180556
B154: =IF(C153>='2 date in_end'!$H$19,0,1) -> 0 | C154: 140 | D154: f | E154: 2006-09-22 | G154: 11.9845875 | H154: 20.27180556
B155: =IF(C154>='2 date in_end'!$H$19,0,1) -> 0 | C155: 141 | D155: f | E155: 2006-09-23 | G155: 11.9845875 | H155: 20.27180556
B156: =IF(C155>='2 date in_end'!$H$19,0,1) -> 0 | C156: 142 | D156: f | E156: 2006-09-24 | G156: 11.9845875 | H156: 20.27180556
B157: =IF(C156>='2 date in_end'!$H$19,0,1) -> 0 | C157: 143 | D157: f | E157: 2006-09-25 | G157: 11.9845875 | H157: 20.27180556
B158: =IF(C157>='2 date in_end'!$H$19,0,1) -> 0 | C158: 144 | D158: f | E158: 2006-09-26 | G158: 11.9845875 | H158: 20.27180556
B159: =IF(C158>='2 date in_end'!$H$19,0,1) -> 0 | C159: 145 | D159: f | E159: 2006-09-27 | G159: 11.9845875 | H159: 20.27180556
B160: =IF(C159>='2 date in_end'!$H$19,0,1) -> 0 | C160: 146 | D160: f | E160: 2006-09-28 | G160: 11.9845875 | H160: 20.27180556
B161: =IF(C160>='2 date in_end'!$H$19,0,1) -> 0 | C161: 147 | D161: f | E161: 2006-09-29 | G161: 11.9845875 | H161: 20.27180556
B162: =IF(C161>='2 date in_end'!$H$19,0,1) -> 0 | C162: 148 | D162: f | E162: 2006-09-30 | G162: 11.9845875 | H162: 20.27180556
B163: =IF(C162>='2 date in_end'!$H$19,0,1) -> 0 | C163: 149 | D163: f | E163: 2006-10-01 | G163: 11.9845875 | H163: 20.27180556
B164: =IF(C163>='2 date in_end'!$H$19,0,1) -> 0 | C164: 150 | D164: f | E164: 2006-10-02 | G164: 11.9845875 | H164: 20.27180556
B165: =IF(C164>='2 date in_end'!$H$19,0,1) -> 0 | C165: 151 | D165: f | E165: 2006-10-03 | G165: 11.9845875 | H165: 20.27180556
B166: =IF(C165>='2 date in_end'!$H$19,0,1) -> 0 | C166: 152 | D166: f | E166: 2006-10-04 | G166: 11.9845875 | H166: 20.27180556
B167: =IF(C166>='2 date in_end'!$H$19,0,1) -> 0 | C167: 153 | D167: f | E167: 2006-10-05 | G167: 11.9845875 | H167: 20.27180556
B168: =IF(C167>='2 date in_end'!$H$19,0,1) -> 0 | C168: 154 | D168: f | E168: 2006-10-06 | G168: 11.9845875 | H168: 20.27180556
B169: =IF(C168>='2 date in_end'!$H$19,0,1) -> 0 | C169: 155 | D169: f | E169: 2006-10-07 | G169: 11.9845875 | H169: 20.27180556
B170: =IF(C169>='2 date in_end'!$H$19,0,1) -> 0 | C170: 156 | D170: f | E170: 2006-10-08 | G170: 11.9845875 | H170: 20.27180556
B171: =IF(C170>='2 date in_end'!$H$19,0,1) -> 0 | C171: 157 | D171: f | E171: 2006-10-09 | G171: 11.9845875 | H171: 20.27180556
B172: =IF(C171>='2 date in_end'!$H$19,0,1) -> 0 | C172: 158 | D172: f | E172: 2006-10-10 | G172: 11.9845875 | H172: 20.27180556
B173: =IF(C172>='2 date in_end'!$H$19,0,1) -> 0 | C173: 159 | D173: f | E173: 2006-10-11 | G173: 11.9845875 | H173: 20.27180556
B174: =IF(C173>='2 date in_end'!$H$19,0,1) -> 0 | C174: 160 | D174: f | E174: 2006-10-12 | G174: 11.9845875 | H174: 20.27180556
B175: =IF(C174>='2 date in_end'!$H$19,0,1) -> 0 | C175: 161 | D175: f | E175: 2006-10-13 | G175: 11.9845875 | H175: 20.27180556
B176: =IF(C175>='2 date in_end'!$H$19,0,1) -> 0 | C176: 162 | D176: f | E176: 2006-10-14 | G176: 11.9845875 | H176: 20.27180556
B177: =IF(C176>='2 date in_end'!$H$19,0,1) -> 0 | C177: 163 | D177: f | E177: 2006-10-15 | G177: 11.9845875 | H177: 20.27180556
B178: =IF(C177>='2 date in_end'!$H$19,0,1) -> 0 | C178: 164 | D178: f | E178: 2006-10-16 | G178: 11.9845875 | H178: 20.27180556
B179: =IF(C178>='2 date in_end'!$H$19,0,1) -> 0 | C179: 165 | D179: f | E179: 2006-10-17 | G179: 11.9845875 | H179: 20.27180556
B180: =IF(C179>='2 date in_end'!$H$19,0,1) -> 0 | C180: 166 | D180: f | E180: 2006-10-18 | G180: 11.9845875 | H180: 20.27180556
B181: =IF(C180>='2 date in_end'!$H$19,0,1) -> 0 | C181: 167 | D181: f | E181: 2006-10-19 | G181: 11.9845875 | H181: 20.27180556
B182: =IF(C181>='2 date in_end'!$H$19,0,1) -> 0 | C182: 168 | D182: f | E182: 2006-10-20 | G182: 11.9845875 | H182: 20.27180556
B183: =IF(C182>='2 date in_end'!$H$19,0,1) -> 0 | C183: 169 | D183: f | E183: 2006-10-21 | G183: 11.9845875 | H183: 20.27180556
B184: =IF(C183>='2 date in_end'!$H$19,0,1) -> 0 | C184: 170 | D184: f | E184: 2006-10-22 | G184: 11.9845875 | H184: 20.27180556
B185: =IF(C184>='2 date in_end'!$H$19,0,1) -> 0 | C185: 171 | D185: f | E185: 2006-10-23 | G185: 11.9845875 | H185: 20.27180556
B186: =IF(C185>='2 date in_end'!$H$19,0,1) -> 0 | C186: 172 | D186: f | E186: 2006-10-24 | G186: 11.9845875 | H186: 20.27180556
B187: =IF(C186>='2 date in_end'!$H$19,0,1) -> 0 | C187: 173 | D187: f | E187: 2006-10-25 | G187: 11.9845875 | H187: 20.27180556
B188: =IF(C187>='2 date in_end'!$H$19,0,1) -> 0 | C188: 174 | D188: f | E188: 2006-10-26 | G188: 11.9845875 | H188: 20.27180556
B189: =IF(C188>='2 date in_end'!$H$19,0,1) -> 0 | C189: 175 | D189: f | E189: 2006-10-27 | G189: 11.9845875 | H189: 20.27180556
B190: =IF(C189>='2 date in_end'!$H$19,0,1) -> 0 | C190: 176 | D190: f | E190: 2006-10-28 | G190: 11.9845875 | H190: 20.27180556
B191: =IF(C190>='2 date in_end'!$H$19,0,1) -> 0 | C191: 177 | D191: f | E191: 2006-10-29 | G191: 11.9845875 | H191: 20.27180556
B192: =IF(C191>='2 date in_end'!$H$19,0,1) -> 0 | C192: 178 | D192: f | E192: 2006-10-30 | G192: 11.9845875 | H192: 20.27180556
B193: =IF(C192>='2 date in_end'!$H$19,0,1) -> 0 | C193: 179 | D193: f | E193: 2006-10-31 | G193: 11.9845875 | H193: 20.27180556
B194: =IF(C193>='2 date in_end'!$H$19,0,1) -> 0 | C194: 180 | D194: f | E194: 2006-11-01 | G194: 11.9845875 | H194: 20.27180556
B195: =IF(C194>='2 date in_end'!$H$19,0,1) -> 0 | C195: 181 | D195: f | E195: 2006-11-02 | G195: 11.9845875 | H195: 20.27180556
B196: =IF(C195>='2 date in_end'!$H$19,0,1) -> 0 | C196: 182 | D196: f | E196: 2006-11-03 | G196: 11.9845875 | H196: 20.27180556
B197: =IF(C196>='2 date in_end'!$H$19,0,1) -> 0 | C197: 183 | D197: f | E197: 2006-11-04 | G197: 11.9845875 | H197: 20.27180556
B198: =IF(C197>='2 date in_end'!$H$19,0,1) -> 0 | C198: 184 | D198: f | E198: 2006-11-05 | G198: 11.9845875 | H198: 20.27180556
B199: =IF(C198>='2 date in_end'!$H$19,0,1) -> 0 | C199: 185 | D199: f | E199: 2006-11-06 | G199: 11.9845875 | H199: 20.27180556
B200: =IF(C199>='2 date in_end'!$H$19,0,1) -> 0 | C200: 186 | D200: f | E200: 2006-11-07 | G200: 11.9845875 | H200: 20.27180556
B201: =IF(C200>='2 date in_end'!$H$19,0,1) -> 0 | C201: 187 | D201: f | E201: 2006-11-08 | G201: 11.9845875 | H201: 20.27180556
B202: =IF(C201>='2 date in_end'!$H$19,0,1) -> 0 | C202: 188 | D202: f | E202: 2006-11-09 | G202: 11.9845875 | H202: 20.27180556
B203: =IF(C202>='2 date in_end'!$H$19,0,1) -> 0 | C203: 189 | D203: f | E203: 2006-11-10 | G203: 11.9845875 | H203: 20.27180556
B204: =IF(C203>='2 date in_end'!$H$19,0,1) -> 0 | C204: 190 | D204: f | E204: 2006-11-11 | G204: 11.9845875 | H204: 20.27180556
B205: =IF(C204>='2 date in_end'!$H$19,0,1) -> 0 | C205: 191 | D205: f | E205: 2006-11-12 | G205: 11.9845875 | H205: 20.27180556
B206: =IF(C205>='2 date in_end'!$H$19,0,1) -> 0 | C206: 192 | D206: f | E206: 2006-11-13 | G206: 11.9845875 | H206: 20.27180556
B207: =IF(C206>='2 date in_end'!$H$19,0,1) -> 0 | C207: 193 | D207: f | E207: 2006-11-14 | G207: 11.9845875 | H207: 20.27180556
B208: =IF(C207>='2 date in_end'!$H$19,0,1) -> 0 | C208: 194 | D208: f | E208: 2006-11-15 | G208: 11.9845875 | H208: 20.27180556
... 172 more rows

Sheet 4 Input (growing system)
C3: SIMULHYDRO software
B7: Input 3/5: growing system layout
B9: Mixing tank volume | D9: VT (L m-2) | E9: 6
B11: Substrate water content | D11: VS (L m-2) | E11: 10
B13: Total nutrient solution volume in the growing system | D13: V (L m-2) | E13: =+E11+E9 -> 16
B15: Vs/V | E15: =E11/E13 -> 0.625
B17: Mixing tank volume discharged in occasion of each flushing | D17: VT (L m-2) | E17: =E9 -> 6
B19: Water volume used to wash off the substrate in occasion of each flushing | D19: VW (L m-2) | E19: 12
B21: Total water volume used to wash the substrate in occasion of flushing in semi-closed systems | D21: VW (L m-2) | E21: =E17+E19 -> 18
B23: Dilution ratio of stock nutrient solution(s) | D23: 1: | E23: 100
B25: Cultivated area | D25: (m2) | E25: 10
B29: Nutrient solution present in the system (substrate+ mixing tank) | D29: V (L) | E29: =E13*E25 -> 160

Sheet 5 Input (water and NS)
B2: SIMULHYDRO software
B6: Input (4/5): ion composition of irrigation water and reference nutrient solution, and crop ion uptake concentration
D8: HCO3- | E8: N-NO3 | F8: N-NH4 | G8: P-H2PO4 | H8: K | I8: Ca | J8: Mg | K8: S-SO4 | L8: Na | M8: Cl | N8: Fe | O8: B | P8: Cu | Q8: Zn | R8: Mn | S8: Mo | T8: Σ C+ | U8: Σ A- | V8: EC | W8: Electro-chemical neutrality test
D9: mol m-3 | N9: μM | T9: eq m-3 | V9: dS m-1
B11: Irrigation water (1st stage) | D11: 3.7 | E11: 0 | F11: 0 | G11: 0 | H11: 0 | I11: 1.5 | J11: 0.8 | K11: 0.6 | L11: 9.5 | M11: 9.2 | T11: =SUM(F11+H11+I11*2+J11*2+L11) -> 14.1 | U11: =SUM(D11+E11+G11+K11*2+M11) -> 14.1 | V11: =IF(H11+I11*2+J11*2+L11>0,(H11+I11*2+J11*2+L11)*0.095+0.19,0) -> 1.5295 | W11: =IF(Z11>1,"[Cations] > [Anions]",IF(Z11<-1," [Cations] < [Anions]","")) ->  | Z11: =(F11+H11+I11*2+J11*2+L11)-(D11+E11+G11+K11*2+M11) -> 0
B13: Irrigation water (2nd stage) | D13: 3.7 | E13: 0 | F13: 0 | G13: 0 | H13: 0 | I13: 1.5 | J13: 0.8 | K13: 0.6 | L13: 9.5 | M13: 9.2 | T13: =SUM(F13+H13+I13*2+J13*2+L13) -> 14.1 | U13: =SUM(D13+E13+G13+K13*2+M13) -> 14.1 | V13: =IF(H13+I13*2+J13*2+L13>0,(H13+I13*2+J13*2+L13)*0.095+0.19,0) -> 1.5295 | W13: =IF(Z13>1,"[Cations] > [Anions]",IF(Z13<-1," [Cations] < [Anions]","")) ->  | Z13: =(F13+H13+I13*2+J13*2+L13)-(D13+E13+G13+K13*2+M13) -> 0
B15: Reference nutrient solution (1st stage) | D15: 0.555 | E15: 10 | F15: 0 | G15: 1 | H15: 6.7 | I15: 4 | J15: 0.8 | K15: 2.52 | L15: 9.5 | M15: 9.2 | T15: =SUM(F15+H15+I15*2+J15*2+L15) -> 25.8 | U15: =SUM(E15+G15+K15*2+M15+D15) -> 25.795 | V15: =IF(H15+I15*2+J15*2+L15>0,(H15+I15*2+J15*2+L15)*0.095+0.19,0) -> 2.641 | W15: =IF(Z15>1,"[Cations] > [Anions]",IF(Z15<-1," [Cations] < [Anions]","")) ->  | Z15: =(F15+H15+I15*2+J15*2+L15)-(D15+E15+G15+K15*2+M15) -> 0.005
B17: Reference nutrient solution (2nd stage) | D17: 0.555 | E17: 7 | F17: 0 | G17: 0.7 | H17: 4.7 | I17: 3.25 | J17: 0.8 | K17: 2.42 | L17: 9.5 | M17: 9.2 | T17: =SUM(F17+H17+I17*2+J17*2+L17) -> 22.3 | U17: =SUM(E17+G17+K17*2+M17+D17) -> 22.295 | V17: =IF(H17+I17*2+J17*2+L17>0,(H17+I17*2+J17*2+L17)*0.095+0.19,0) -> 2.3085 | W17: =IF(Z17>1,"[Cations] > [Anions]",IF(Z17<-1,"[Cations] < [Anions]","")) ->  | Z17: =(F17+H17+I17*2+J17*2+L17)-(D17+E17+G17+K17*2+M17) -> 0.005
B19: Stock nutrient solution (1st stage) | E19: =E15-E11 -> 10 | F19: =F15-F11 -> 0 | G19: 1 | H19: 6.7 | I19: 2.5 | J19: 0 | K19: 1.92 | L19: =L15-L11 -> 0 | M19: 0 | T19: =SUM(F19+H19+I19*2+J19*2+L19+(D13-D15)) -> 14.845 | U19: =SUM(E19+G19+K19*2+M19) -> 14.84 | V19: =IF(H19+I19*2+J19*2+L19>0,(H19+I19*2+J19*2+L19)*0.095+0.19,0) -> 1.3015 | W19: =IF((T19-U19)>1,"[Cations] > [Anions]",IF((T19-U19)<-1," [Cations] < [Anions]","")) ->  | Z19: =(F19+H19+I19*2+J19*2+L19+(D11-D15))-(D19+E19+G19+K19*2+M19) -> 0.005
B21: Stock nutrient solution (2nd stage) | E21: =E17-E13 -> 7 | F21: =F17-F13 -> 0 | G21: 0.7 | H21: 4.7 | I21: 1.75 | J21: 0 | K21: 1.82 | L21: =L17-L13 -> 0 | M21: 0 | N21: 0 | O21: 0 | P21: 0 | Q21: 0 | R21: 0 | S21: 0 | T21: =SUM(F21+H21+I21*2+J21*2+L21+(D13-D17)) -> 11.345 | U21: =SUM(E21+G21+K21*2+M21) -> 11.34 | V21: =IF(H21+I21*2+J21*2+L21>0,(H21+I21*2+J21*2+L21)*0.095+0.19,0) -> 0.969 | W21: =IF(Z21>1,"[Cations] > [Anions]",IF(Z21<-1,"[Cations] < [Anions]","")) ->  | Z21: =(F21+H21+I21*2+J21*2+L21+(D13-D17))-(D21+E21+G21+K21*2+M21) -> 0.005
E23: N-NO3 | F23: N-NH4 | G23: P-PO4 | H23: K | I23: Ca | J23: Mg | K23: S-SO4 | L23: Na | M23: Cl | T23: Σ C+ | U23: Σ A- | V23: EC | W23: Electro-chemical neutrality test
E24: mol m-3 | L24: p | T24: eq m-3 | V24: dS m-1
B25: Ion uptake concentration (1st stage) | E25: 10 | F25: 0 | G25: 1 | H25: 6.7 | I25: 3.55 | J25: 0.6 | K25: 1.5 | L25: 0.18 | M25: 0.18 | T25: =SUM(F25+H25+I25*2+J25*2+L25) -> 15.18 | U25: =SUM(D25+E25+G25+K25*2+M25*M11) -> 15.656 | V25: =IF(H25+I25*2+J25*2+L25>0,(H25+I25*2+J25*2+L25)*0.095+0.19,0) -> 1.6321 | W25: =IF(Z25>1,"[Cations] > [Anions]",IF(Z25<-1," [Cations] < [Anions]","")) ->  | Z25: =(F25+H25+I25*2+J25*2+L25)-(D25+E25+G25+K25*2+M25) -> 1
B27: Ion uptake concentration (2nd stage) | E27: 7 | F27: 0 | G27: 0.7 | H27: 4.7 | I27: 2.8 | J27: 0.45 | K27: 1.5 | L27: 0.18 | M27: 0.18 | T27: =SUM(F27+H27+I27*2+J27*2+L27) -> 11.38 | U27: =SUM(D27+E27+G27+K27*2+M27) -> 10.88 | V27: =IF(H27+I27*2+J27*2+L27>0,(H27+I27*2+J27*2+L27)*0.095+0.19,0) -> 1.2711 | W27: =IF(Z27>1,"[Cations] > [Anions]",IF(Z27<-1,"[Cations] < [Anions]","")) ->  | Z27: =(F27+H27+I27*2+J27*2+L27)-(D27+E27+G27+K27*2+M27) -> 0.5

Sheet 6 Input (EC and level)
B2: SIMULHYDRO software
B6: Input (5/5): fertigation set parameters
E7: Strategy A (variable EC) | G7: Strategy B (constant EC) | I7: Strategy C (variable EC and nutrient depletion) | K7: Strategy D (Free-drain system)
K8: 1st stage | M8: 2nd stage
B9: Maximum EC | D9: ECMAX (dS m-1) | E9: 4.5 | G9: 3 | I9: 4.5 | K9: 3.48 | M9: 2.59
B11: Set-point EC | D11: ECSP (dS m-1) | E11: 3 | G11: 3 | I11: 3
B13: Minimum N concentration in the recirculation nutrient solution | D13: N-NO3MIN (mol m-3) | G13: 1 | I13: 1
B15: Total fruit yield | D15: (kg m-2) | E15: 11.25 | G15: 11.25 | I15: 11.25 | K15: 11.25

Sheet 7 TOT Input VIS
C2: SIMULHYDRO software
B6: Input summary table
B8: Input 1/5: Crop chronology
B11: Planting date (dd/mm/yyyy) | H11: ='2 date in_end'!H11 -> 2006-05-06
B13: End of 1st growth stage (dd/mm/yyyy) | H13: ='2 date in_end'!H13 -> 2006-06-29
B15: End of cultivation (dd/mm/yyyy) | H15: ='2 date in_end'!H15 -> 2006-07-28
B17: Duration of 1st growth stage (days) | H17: ='2 date in_end'!H21 -> 54
B19: Growing period (days) | H19: =H15-H11+1 -> 84
B21: Input 2/5: daily crop transpiration (ET)
B23: =IF('3 climate date'!BA41=2,"Daily crop ET was been inserted by the user","Daily crop ET will be calculate from the climate data inserted") -> Daily crop ET will be calculate from the climate data inserted
A25: =IF('3 climate date'!BA41=2,"","LAI simulation") -> LAI simulation | F25: =IF('3 climate date'!BA41=2,"","ETE simulation") -> ETE simulation
B27: =IF('3 climate date'!BA41=2,"","Thermal age at planting (GDD, C°)") -> Thermal age at planting (GDD, C°) | D27: =IF('3 climate date'!BA41=2,"",'3 climate date'!M13) -> 420
B29: =IF('3 climate date'!BA41=2,"","a1 (regression coefficient) ") -> a1 (regression coefficient) | D29: =IF('3 climate date'!BA41=2,"",'3 climate date'!M15) -> -0.3354 | G29: =IF('3 climate date'!BA41=2,"","b1") -> b1 | H29: =IF('3 climate date'!BA41=2,"","adim.") -> adim. | I29: =IF('3 climate date'!BA41=2,"",'3 climate date'!Q15) -> 0.9457
B31: =IF('3 climate date'!BA41=2,"","a2 (regression coefficient)") -> a2 (regression coefficient) | D31: =IF('3 climate date'!BA41=2,"",'3 climate date'!M17) -> 4.823 | G31: =IF('3 climate date'!BA41=2,"","k") -> k | H31: =IF('3 climate date'!BA41=2,"","adim.") -> adim. | I31: =IF('3 climate date'!BA41=2,"",'3 climate date'!Q17) -> 0.69
B33: =IF('3 climate date'!BA41=2,"","a3 (regression coefficient)") -> a3 (regression coefficient) | D33: =IF('3 climate date'!BA41=2,"",'3 climate date'!M19) -> 755.3 | G33: =IF('3 climate date'!BA41=2,"","b2") -> b2 | H33: =IF('3 climate date'!BA41=2,"","L m-2") -> L m-2 | I33: =IF('3 climate date'!BA41=2,"",'3 climate date'!Q19) -> 0.188
B35: =IF('3 climate date'!BA41=2,"","a4 (regression coefficient)") -> a4 (regression coefficient) | D35: =IF('3 climate date'!BA41=2,"",'3 climate date'!M21) -> 134.7
B37: =IF('3 climate date'!BA41=2,"","Basal temperature (C°)") -> Basal temperature (C°) | D37: =IF('3 climate date'!BA41=2,"",'3 climate date'!M23) -> 8
B40: Input 3/5: growing system layout
B42: Mixing tank volume | D42: VT (L m-2) | E42: ='4 Input (growing system)'!E9 -> 6 | G42: Substrate water content | K42: VS (L m-2) | L42: ='4 Input (growing system)'!E11 -> 10
B44: Total nutrient solution volume in the growing system | D44: V (L m-2) | E44: =+L42+E42 -> 16 | G44: Water volume used to wash off the substrate in occasion of each flushing | K44: VW (L m-2) | L44: ='4 Input (growing system)'!E19 -> 12
B47: Vs/V | E47: =L42/E44 -> 0.625
B50: Input (4/5): irrigation water, nutrient solution and crop uptake concentration
D52: HCO3- | E52: N-NO3 | F52: N-NH4 | G52: P-PO4 | H52: K | I52: Ca | J52: Mg | K52: S-SO4 | L52: Na | M52: Cl
D53: mol m-3
B55: Water irrigation (I stage) | D55: ='5 Input (water and NS)'!D11 -> 3.7 | E55: ='5 Input (water and NS)'!E11 -> 0 | F55: ='5 Input (water and NS)'!F11 -> 0 | G55: ='5 Input (water and NS)'!G11 -> 0 | H55: ='5 Input (water and NS)'!H11 -> 0 | I55: ='5 Input (water and NS)'!I11 -> 1.5 | J55: ='5 Input (water and NS)'!J11 -> 0.8 | K55: ='5 Input (water and NS)'!K11 -> 0.6 | L55: ='5 Input (water and NS)'!L11 -> 9.5 | M55: ='5 Input (water and NS)'!M11 -> 9.2
B57: Water irrigation (II stage) | D57: ='5 Input (water and NS)'!D13 -> 3.7 | E57: ='5 Input (water and NS)'!E13 -> 0 | F57: ='5 Input (water and NS)'!F13 -> 0 | G57: ='5 Input (water and NS)'!G13 -> 0 | H57: ='5 Input (water and NS)'!H13 -> 0 | I57: ='5 Input (water and NS)'!I13 -> 1.5 | J57: ='5 Input (water and NS)'!J13 -> 0.8 | K57: ='5 Input (water and NS)'!K13 -> 0.6 | L57: ='5 Input (water and NS)'!L13 -> 9.5 | M57: ='5 Input (water and NS)'!M13 -> 9.2
B59: Reference Nutrient solution (I stage) | D59: ='5 Input (water and NS)'!D15 -> 0.555 | E59: ='5 Input (water and NS)'!E15 -> 10 | F59: ='5 Input (water and NS)'!F15 -> 0 | G59: ='5 Input (water and NS)'!G15 -> 1 | H59: ='5 Input (water and NS)'!H15 -> 6.7 | I59: ='5 Input (water and NS)'!I15 -> 4 | J59: ='5 Input (water and NS)'!J15 -> 0.8 | K59: ='5 Input (water and NS)'!K15 -> 2.52 | L59: ='5 Input (water and NS)'!L15 -> 9.5 | M59: ='5 Input (water and NS)'!M15 -> 9.2
B61: Reference Nutrient solution (II stage) | D61: ='5 Input (water and NS)'!D17 -> 0.555 | E61: ='5 Input (water and NS)'!E17 -> 7 | F61: ='5 Input (water and NS)'!F17 -> 0 | G61: ='5 Input (water and NS)'!G17 -> 0.7 | H61: ='5 Input (water and NS)'!H17 -> 4.7 | I61: ='5 Input (water and NS)'!I17 -> 3.25 | J61: ='5 Input (water and NS)'!J17 -> 0.8 | K61: ='5 Input (water and NS)'!K17 -> 2.42 | L61: ='5 Input (water and NS)'!L17 -> 9.5 | M61: ='5 Input (water and NS)'!M17 -> 9.2
E64: N-NO3 | F64: N-NH4 | G64: P-PO4 | H64: K | I64: Ca | J64: Mg | K64: S-SO4 | L64: Na | M64: Cl
E65: mol m-3 | L65: p
B66: Nutrient uptake concentration (I stage) | E66: ='5 Input (water and NS)'!E25 -> 10 | F66: ='5 Input (water and NS)'!F25 -> 0 | G66: ='5 Input (water and NS)'!G25 -> 1 | H66: ='5 Input (water and NS)'!H25 -> 6.7 | I66: ='5 Input (water and NS)'!I25 -> 3.55 | J66: ='5 Input (water and NS)'!J25 -> 0.6 | K66: ='5 Input (water and NS)'!K25*2 -> 3 | L66: ='5 Input (water and NS)'!L25 -> 0.18 | M66: ='5 Input (water and NS)'!M25 -> 0.18
B68: Nutrient uptake concentration (II stage) | E68: ='5 Input (water and NS)'!E27 -> 7 | F68: ='5 Input (water and NS)'!F27 -> 0 | G68: ='5 Input (water and NS)'!G27 -> 0.7 | H68: ='5 Input (water and NS)'!H27 -> 4.7 | I68: ='5 Input (water and NS)'!I27 -> 2.8 | J68: ='5 Input (water and NS)'!J27 -> 0.45 | K68: ='5 Input (water and NS)'!K27*2 -> 3 | L68: ='5 Input (water and NS)'!L27 -> 0.18 | M68: ='5 Input (water and NS)'!M27 -> 0.18
B71: Input (5/5): fertigation set parameters
E73: Strategy A (variable EC) | G73: Strategy B (constant EC) | I73: Strategy C (variable EC and nutrient depletion) | K73: Strategy D (Free-drain system)
K74: 1st stage | M74: 2nd stage
B75: Maximum EC | D75: ECMAX (dS m-1) | E75: ='6 Input (EC and level) '!E9 -> 4.5 | G75: ='6 Input (EC and level) '!G9 -> 3 | I75: ='6 Input (EC and level) '!I9 -> 4.5 | K75: ='6 Input (EC and level) '!K9 -> 3.48 | M75: ='6 Input (EC and level) '!M9 -> 2.59
B77: EC set point | D77: ECSP (dS m-1) | E77: ='6 Input (EC and level) '!E11 -> 3 | G77: ='6 Input (EC and level) '!G11 -> 3 | I77: ='6 Input (EC and level) '!I11 -> 3
B79: Minimum N concentration in the recirculation nutrient solution | D79: N-NO3MIN (mM) | G79: ='6 Input (EC and level) '!G13 -> 1 | I79: ='6 Input (EC and level) '!I13 -> 1

Sheet 7 TOT Input
C2: SIMULHYDRO software
A6: Input summary table
B8: Input 1/5: Crop chronology
B11: Planting date (dd/mm/yyyy) | H11: ='2 date in_end'!H11 -> 2006-05-06
B13: End of 1st growth stage (dd/mm/yyyy) | H13: ='2 date in_end'!H13 -> 2006-06-29
B15: End of cultivation (dd/mm/yyyy) | H15: ='2 date in_end'!H15 -> 2006-07-28
B17: Duration of 1st growth stage (days) | H17: ='2 date in_end'!H21 -> 54
B19: Growing period (days) | H19: =H15-H11+1 -> 84
B21: Input 2/5: daily crop transpiration (ET)
B23: =IF('3 climate date'!BA41=2,"Daily crop ET was been inserted by the user","Daily crop ET will be calculate from the climate data inserted") -> Daily crop ET will be calculate from the climate data inserted
A25: LAI simulation | F25: ETE simulation
B27: Thermal age at planting (GDD, C°) | D27: ='3 climate date'!M13 -> 420
B29: a1 (regression coefficient) | D29: ='3 climate date'!M15 -> -0.3354 | G29: b1 | H29: adim. | I29: ='3 climate date'!Q15 -> 0.9457
B31: a2 (regression coefficient) | D31: ='3 climate date'!M17 -> 4.823 | G31: k | H31: adim. | I31: ='3 climate date'!Q17 -> 0.69
B33: a3 (regression coefficient) | D33: ='3 climate date'!M19 -> 755.3 | G33: b2 | H33: L m-2 | I33: ='3 climate date'!Q19 -> 0.188
B35: a4 (regression coefficient) | D35: ='3 climate date'!M21 -> 134.7
B37: Basal temperature (C°) | D37: ='3 climate date'!M23 -> 8
B40: Input 3/5: growing system layout
B42: Mixing tank volume | D42: VT (L m-2) | E42: ='4 Input (growing system)'!E9 -> 6 | G42: Substrate water content | K42: VS (L m-2) | L42: ='4 Input (growing system)'!E11 -> 10
B44: Total nutrient solution volume in the growing system | D44: V (L m-2) | E44: =+L42+E42 -> 16 | G44: Water volume used to wash off the substrate in occasion of each flushing | K44: VW (L m-2) | L44: ='4 Input (growing system)'!E19 -> 12
B46: Nutrient solution present in the system (substrate+ mixing tank) | D46: V (L) | E46: =E44*E48 -> 160 | G46: Lenght of vegetative cycle (days from transplanting) | K46: day | L46: ='2 date in_end'!H21 -> 54
B48: Cultivated area | D48: (m2) | E48: ='4 Input (growing system)'!E25 -> 10 | G48: Water used to wash the substrate in occasion of the flushing in semi-closed systems | K48: VW (L m-2) | L48: ='4 Input (growing system)'!E21 -> 18
B50: Vs/V | E50: =L42/E44 -> 0.625 | G50: Dilution ratio of stock nutrient solution(s) | K50: 1: | L50: ='4 Input (growing system)'!E23 -> 100
B53: Input (4/5): ion composition of irrigation water and reference nutrient solution, and ion crop uptake concentration
D55: HCO3- | E55: N-NO3 | F55: N-NH4 | G55: P-PO4 | H55: K | I55: Ca | J55: Mg | K55: S-SO4 | L55: Na | M55: Cl
D56: mol m-3
B58: Irrigation water (1st stage) | D58: ='5 Input (water and NS)'!D11 -> 3.7 | E58: ='5 Input (water and NS)'!E11 -> 0 | F58: ='5 Input (water and NS)'!F11 -> 0 | G58: ='5 Input (water and NS)'!G11 -> 0 | H58: ='5 Input (water and NS)'!H11 -> 0 | I58: ='5 Input (water and NS)'!I11 -> 1.5 | J58: ='5 Input (water and NS)'!J11 -> 0.8 | K58: ='5 Input (water and NS)'!K11 -> 0.6 | L58: ='5 Input (water and NS)'!L11 -> 9.5 | M58: ='5 Input (water and NS)'!M11 -> 9.2
B60: Irrigation water (2nd stage) | D60: ='5 Input (water and NS)'!D13 -> 3.7 | E60: ='5 Input (water and NS)'!E13 -> 0 | F60: ='5 Input (water and NS)'!F13 -> 0 | G60: ='5 Input (water and NS)'!G13 -> 0 | H60: ='5 Input (water and NS)'!H13 -> 0 | I60: ='5 Input (water and NS)'!I13 -> 1.5 | J60: ='5 Input (water and NS)'!J13 -> 0.8 | K60: ='5 Input (water and NS)'!K13 -> 0.6 | L60: ='5 Input (water and NS)'!L13 -> 9.5 | M60: ='5 Input (water and NS)'!M13 -> 9.2
B62: Reference nutrient solution (1st stage) | D62: ='5 Input (water and NS)'!D15 -> 0.555 | E62: ='5 Input (water and NS)'!E15 -> 10 | F62: ='5 Input (water and NS)'!F15 -> 0 | G62: ='5 Input (water and NS)'!G15 -> 1 | H62: ='5 Input (water and NS)'!H15 -> 6.7 | I62: ='5 Input (water and NS)'!I15 -> 4 | J62: ='5 Input (water and NS)'!J15 -> 0.8 | K62: ='5 Input (water and NS)'!K15 -> 2.52 | L62: ='5 Input (water and NS)'!L15 -> 9.5 | M62: ='5 Input (water and NS)'!M15 -> 9.2
B64: Reference nutrient solution (2nd stage) | D64: ='5 Input (water and NS)'!D17 -> 0.555 | E64: ='5 Input (water and NS)'!E17 -> 7 | F64: ='5 Input (water and NS)'!F17 -> 0 | G64: ='5 Input (water and NS)'!G17 -> 0.7 | H64: ='5 Input (water and NS)'!H17 -> 4.7 | I64: ='5 Input (water and NS)'!I17 -> 3.25 | J64: ='5 Input (water and NS)'!J17 -> 0.8 | K64: ='5 Input (water and NS)'!K17 -> 2.42 | L64: ='5 Input (water and NS)'!L17 -> 9.5 | M64: ='5 Input (water and NS)'!M17 -> 9.2
B66: Stock nutrient solution (1st stage) | E66: ='5 Input (water and NS)'!E19 -> 10 | F66: ='5 Input (water and NS)'!F19 -> 0 | G66: ='5 Input (water and NS)'!G19 -> 1 | H66: ='5 Input (water and NS)'!H19 -> 6.7 | I66: ='5 Input (water and NS)'!I19 -> 2.5 | J66: ='5 Input (water and NS)'!J19 -> 0 | K66: ='5 Input (water and NS)'!K19 -> 1.92 | L66: ='5 Input (water and NS)'!L19 -> 0 | M66: ='5 Input (water and NS)'!M19 -> 0
B68: Stock nutrient solution (2nd stage) | E68: ='5 Input (water and NS)'!E21 -> 7 | F68: ='5 Input (water and NS)'!F21 -> 0 | G68: ='5 Input (water and NS)'!G21 -> 0.7 | H68: ='5 Input (water and NS)'!H21 -> 4.7 | I68: ='5 Input (water and NS)'!I21 -> 1.75 | J68: ='5 Input (water and NS)'!J21 -> 0 | K68: ='5 Input (water and NS)'!K21 -> 1.82 | L68: ='5 Input (water and NS)'!L21 -> 0 | M68: ='5 Input (water and NS)'!M21 -> 0
E70: N-NO3 | F70: N-NH4 | G70: P-PO4 | H70: K | I70: Ca | J70: Mg | K70: S-SO4 | L70: Na | M70: Cl
E71: mol m-3 | L71: p
B72: Ion uptake concentration (1st stage) | E72: ='5 Input (water and NS)'!E25 -> 10 | F72: ='5 Input (water and NS)'!F25 -> 0 | G72: ='5 Input (water and NS)'!G25 -> 1 | H72: ='5 Input (water and NS)'!H25 -> 6.7 | I72: ='5 Input (water and NS)'!I25 -> 3.55 | J72: ='5 Input (water and NS)'!J25 -> 0.6 | K72: ='5 Input (water and NS)'!K25 -> 1.5 | L72: ='5 Input (water and NS)'!L25 -> 0.18 | M72: ='5 Input (water and NS)'!M25 -> 0.18
B74: Ion uptake concentration (2nd stage) | E74: ='5 Input (water and NS)'!E27 -> 7 | F74: ='5 Input (water and NS)'!F27 -> 0 | G74: ='5 Input (water and NS)'!G27 -> 0.7 | H74: ='5 Input (water and NS)'!H27 -> 4.7 | I74: ='5 Input (water and NS)'!I27 -> 2.8 | J74: ='5 Input (water and NS)'!J27 -> 0.45 | K74: ='5 Input (water and NS)'!K27 -> 1.5 | L74: ='5 Input (water and NS)'!L27 -> 0.18 | M74: ='5 Input (water and NS)'!M27 -> 0.18
B77: Input (5/5): fertigation set parameters
E79: Strategy A (variable EC) | G79: Strategy B (constant EC) | I79: Strategy C (variable EC and nutrient depletion) | K79: Strategy D (Free-drain system)
K80: 1st stage | M80: 2nd stage
B81: Maximum EC | D81: ECMAX (dS m-1) | E81: ='6 Input (EC and level) '!E9 -> 4.5 | G81: ='6 Input (EC and level) '!G9 -> 3 | I81: ='6 Input (EC and level) '!I9 -> 4.5 | K81: ='6 Input (EC and level) '!K9 -> 3.48 | M81: ='6 Input (EC and level) '!M9 -> 2.59
B83: EC set point | D83: ECSP (dS m-1) | E83: ='6 Input (EC and level) '!E11 -> 3 | G83: ='6 Input (EC and level) '!G11 -> 3 | I83: ='6 Input (EC and level) '!I11 -> 3
B85: Delta EC | E85: 0.08 | G85: 0 | I85: 0.1 | K85: 0
B87: Minimum N concentration in the recirculation nutrient solution | D87: N-NO3MIN (mM) | G87: ='6 Input (EC and level) '!G13 -> 1 | I87: ='6 Input (EC and level) '!I13 -> 1
B89: delta nutrienti | E89: - | G89: 0 | I89: 0 | K89: -
B91: Total fruit yield | D91: (kg m-2) | E91: ='6 Input (EC and level) '!E15 -> 11.25 | G91: ='6 Input (EC and level) '!G15 -> 11.25 | I91: ='6 Input (EC and level) '!I15 -> 11.25 | K91: ='6 Input (EC and level) '!K15 -> 11.25

Sheet 8 ETE
F20: Simulazione LAI
A21: Thermal age at planting (GDD, C°) | D21: ='3 climate date'!M13 -> 420
A23: a1 (regression coefficient) | D23: ='3 climate date'!M15 -> -0.3354 | F23: b1 | G23: adim. | H23: ='3 climate date'!Q15 -> 0.9457
A25: a2 (regression coefficient) | D25: ='3 climate date'!M17 -> 4.823 | F25: k | G25: adim. | H25: ='3 climate date'!Q17 -> 0.69
A27: a3 (regression coefficient) | D27: ='3 climate date'!M19 -> 755.3 | F27: b2 | G27: L m-2 | H27: ='3 climate date'!Q19 -> 0.188
A29: a4 (regression coefficient) | D29: ='3 climate date'!M21 -> 134.7
A31: Basal temperature (C°) | D31: ='3 climate date'!M23 -> 8
A34: Number day to simulate | D34: ='2 date in_end'!H19 -> 84 | F34: =MAX(F38:F122) -> 4.821607283
A36: Day | C36: RG | D36: T | E36: GDD | G36: E | H36: E cum.
C37: MJ/m2 day | D37: °C | E37: =D21 -> 420 | F37: LAI | G37: mm | H37: mm
A38: =IF('3 climate date'!B15=1, '3 climate date'!D15, "") -> 1 | B38: =IF('3 climate date'!$B15=1, '3 climate date'!E15, "") -> 2006-05-06 | C38: =IF('3 climate date'!B15=1, '3 climate date'!G15, "") -> 13.703475 | D38: =IF('3 climate date'!B15=1, '3 climate date'!H15, "") -> 20.75722222 | E38: =IF(('3 climate date'!B15=1),(D38-$D$31)+E37,"") -> 432.7572222 | F38: =IF(('3 climate date'!B15=1),($D$23+($D$25-$D$23)/(1+EXP(($D$27-E38)/$D$29))),"") -> 0.09579580669 | G38: =IF(('3 climate date'!$BA$41=1),$H$23*((1-EXP(-$H$25*F38))*C38/2.45)+$H$27,'3 climate date'!F15) -> 0.5263291565 | H38: =IF(('3 climate date'!B15=1),G38, "") -> 0.5263291565
A39: =IF('3 climate date'!B16=1, '3 climate date'!D16, "") -> 2 | B39: =IF('3 climate date'!$B16=1, '3 climate date'!E16, "") -> 2006-05-07 | C39: =IF('3 climate date'!B16=1, '3 climate date'!G16, "") -> 13.2840375 | D39: =IF('3 climate date'!B16=1, '3 climate date'!H16, "") -> 20.31277778 | E39: =IF(('3 climate date'!B16=1),(D39-$D$31)+E38,"") -> 445.07 | F39: =IF(('3 climate date'!B16=1),($D$23+($D$25-$D$23)/(1+EXP(($D$27-E39)/$D$29))),"") -> 0.1333183012 | G39: =IF(('3 climate date'!$BA$41=1),$H$23*((1-EXP(-$H$25*F39))*C39/2.45)+$H$27,'3 climate date'!F16) -> 0.6386445067 | H39: =IF(('3 climate date'!B16=1),G39+H38, "") -> 1.164973663
A40: =IF('3 climate date'!B17=1, '3 climate date'!D17, "") -> 3 | B40: =IF('3 climate date'!$B17=1, '3 climate date'!E17, "") -> 2006-05-08 | C40: =IF('3 climate date'!B17=1, '3 climate date'!G17, "") -> 11.9845875 | D40: =IF('3 climate date'!B17=1, '3 climate date'!H17, "") -> 20.27180556 | E40: =IF(('3 climate date'!B17=1),(D40-$D$31)+E39,"") -> 457.3418056 | F40: =IF(('3 climate date'!B17=1),($D$23+($D$25-$D$23)/(1+EXP(($D$27-E40)/$D$29))),"") -> 0.1736147359 | G40: =IF(('3 climate date'!$BA$41=1),$H$23*((1-EXP(-$H$25*F40))*C40/2.45)+$H$27,'3 climate date'!F17) -> 0.7102671973 | H40: =IF(('3 climate date'!B17=1),G40+H39, "") -> 1.875240861
A41: =IF('3 climate date'!B18=1, '3 climate date'!D18, "") -> 4 | B41: =IF('3 climate date'!$B18=1, '3 climate date'!E18, "") -> 2006-05-09 | C41: =IF('3 climate date'!B18=1, '3 climate date'!G18, "") -> 10.676325 | D41: =IF('3 climate date'!B18=1, '3 climate date'!H18, "") -> 19.58430556 | E41: =IF(('3 climate date'!B18=1),(D41-$D$31)+E40,"") -> 468.9261111 | F41: =IF(('3 climate date'!B18=1),($D$23+($D$25-$D$23)/(1+EXP(($D$27-E41)/$D$29))),"") -> 0.2144551585 | G41: =IF(('3 climate date'!$BA$41=1),$H$23*((1-EXP(-$H$25*F41))*C41/2.45)+$H$27,'3 climate date'!F18) -> 0.7548376314 | H41: =IF(('3 climate date'!B18=1),G41+H40, "") -> 2.630078492
A42: =IF('3 climate date'!B19=1, '3 climate date'!D19, "") -> 5 | B42: =IF('3 climate date'!$B19=1, '3 climate date'!E19, "") -> 2006-05-10 | C42: =IF('3 climate date'!B19=1, '3 climate date'!G19, "") -> 6.024 | D42: =IF('3 climate date'!B19=1, '3 climate date'!H19, "") -> 19.55868056 | E42: =IF(('3 climate date'!B19=1),(D42-$D$31)+E41,"") -> 480.4847917 | F42: =IF(('3 climate date'!B19=1),($D$23+($D$25-$D$23)/(1+EXP(($D$27-E42)/$D$29))),"") -> 0.2580541402 | G42: =IF(('3 climate date'!$BA$41=1),$H$23*((1-EXP(-$H$25*F42))*C42/2.45)+$H$27,'3 climate date'!F19) -> 0.5672635321 | H42: =IF(('3 climate date'!B19=1),G42+H41, "") -> 3.197342024
A43: =IF('3 climate date'!B20=1, '3 climate date'!D20, "") -> 6 | B43: =IF('3 climate date'!$B20=1, '3 climate date'!E20, "") -> 2006-05-11 | C43: =IF('3 climate date'!B20=1, '3 climate date'!G20, "") -> 8.896725 | D43: =IF('3 climate date'!B20=1, '3 climate date'!H20, "") -> 20.739375 | E43: =IF(('3 climate date'!B20=1),(D43-$D$31)+E42,"") -> 493.2241667 | F43: =IF(('3 climate date'!B20=1),($D$23+($D$25-$D$23)/(1+EXP(($D$27-E43)/$D$29))),"") -> 0.3095602873 | G43: =IF(('3 climate date'!$BA$41=1),$H$23*((1-EXP(-$H$25*F43))*C43/2.45)+$H$27,'3 climate date'!F20) -> 0.8484731429 | H43: =IF(('3 climate date'!B20=1),G43+H42, "") -> 4.045815167
A44: =IF('3 climate date'!B21=1, '3 climate date'!D21, "") -> 7 | B44: =IF('3 climate date'!$B21=1, '3 climate date'!E21, "") -> 2006-05-12 | C44: =IF('3 climate date'!B21=1, '3 climate date'!G21, "") -> 15.00405 | D44: =IF('3 climate date'!B21=1, '3 climate date'!H21, "") -> 22.26868056 | E44: =IF(('3 climate date'!B21=1),(D44-$D$31)+E43,"") -> 507.4928472 | F44: =IF(('3 climate date'!B21=1),($D$23+($D$25-$D$23)/(1+EXP(($D$27-E44)/$D$29))),"") -> 0.3717504107 | G44: =IF(('3 climate date'!$BA$41=1),$H$23*((1-EXP(-$H$25*F44))*C44/2.45)+$H$27,'3 climate date'!F21) -> 1.498347149 | H44: =IF(('3 climate date'!B21=1),G44+H43, "") -> 5.544162316
A45: =IF('3 climate date'!B22=1, '3 climate date'!D22, "") -> 8 | B45: =IF('3 climate date'!$B22=1, '3 climate date'!E22, "") -> 2006-05-13 | C45: =IF('3 climate date'!B22=1, '3 climate date'!G22, "") -> 14.0882625 | D45: =IF('3 climate date'!B22=1, '3 climate date'!H22, "") -> 22.19680556 | E45: =IF(('3 climate date'!B22=1),(D45-$D$31)+E44,"") -> 521.6896528 | F45: =IF(('3 climate date'!B22=1),($D$23+($D$25-$D$23)/(1+EXP(($D$27-E45)/$D$29))),"") -> 0.4385573536 | G45: =IF(('3 climate date'!$BA$41=1),$H$23*((1-EXP(-$H$25*F45))*C45/2.45)+$H$27,'3 climate date'!F22) -> 1.607927672 | H45: =IF(('3 climate date'!B22=1),G45+H44, "") -> 7.152089988
A46: =IF('3 climate date'!B23=1, '3 climate date'!D23, "") -> 9 | B46: =IF('3 climate date'!$B23=1, '3 climate date'!E23, "") -> 2006-05-14 | C46: =IF('3 climate date'!B23=1, '3 climate date'!G23, "") -> 6.965175 | D46: =IF('3 climate date'!B23=1, '3 climate date'!H23, "") -> 20.79395833 | E46: =IF(('3 climate date'!B23=1),(D46-$D$31)+E45,"") -> 534.4836111 | F46: =IF(('3 climate date'!B23=1),($D$23+($D$25-$D$23)/(1+EXP(($D$27-E46)/$D$29))),"") -> 0.5031372621 | G46: =IF(('3 climate date'!$BA$41=1),$H$23*((1-EXP(-$H$25*F46))*C46/2.45)+$H$27,'3 climate date'!F23) -> 0.9765837204 | H46: =IF(('3 climate date'!B23=1),G46+H45, "") -> 8.128673709
A47: =IF('3 climate date'!B24=1, '3 climate date'!D24, "") -> 10 | B47: =IF('3 climate date'!$B24=1, '3 climate date'!E24, "") -> 2006-05-15 | C47: =IF('3 climate date'!B24=1, '3 climate date'!G24, "") -> 11.593125 | D47: =IF('3 climate date'!B24=1, '3 climate date'!H24, "") -> 20.87208333 | E47: =IF(('3 climate date'!B24=1),(D47-$D$31)+E46,"") -> 547.3556944 | F47: =IF(('3 climate date'!B24=1),($D$23+($D$25-$D$23)/(1+EXP(($D$27-E47)/$D$29))),"") -> 0.572424367 | G47: =IF(('3 climate date'!$BA$41=1),$H$23*((1-EXP(-$H$25*F47))*C47/2.45)+$H$27,'3 climate date'!F24) -> 1.648182324 | H47: =IF(('3 climate date'!B24=1),G47+H46, "") -> 9.776856033
A48: =IF('3 climate date'!B25=1, '3 climate date'!D25, "") -> 11 | B48: =IF('3 climate date'!$B25=1, '3 climate date'!E25, "") -> 2006-05-16 | C48: =IF('3 climate date'!B25=1, '3 climate date'!G25, "") -> 12.120375 | D48: =IF('3 climate date'!B25=1, '3 climate date'!H25, "") -> 20.59673611 | E48: =IF(('3 climate date'!B25=1),(D48-$D$31)+E47,"") -> 559.9524306 | F48: =IF(('3 climate date'!B25=1),($D$23+($D$25-$D$23)/(1+EXP(($D$27-E48)/$D$29))),"") -> 0.6445121377 | G48: =IF(('3 climate date'!$BA$41=1),$H$23*((1-EXP(-$H$25*F48))*C48/2.45)+$H$27,'3 climate date'!F25) -> 1.867531518 | H48: =IF(('3 climate date'!B25=1),G48+H47, "") -> 11.64438755
A49: =IF('3 climate date'!B26=1, '3 climate date'!D26, "") -> 12 | B49: =IF('3 climate date'!$B26=1, '3 climate date'!E26, "") -> 2006-05-17 | C49: =IF('3 climate date'!B26=1, '3 climate date'!G26, "") -> 4.8707625 | D49: =IF('3 climate date'!B26=1, '3 climate date'!H26, "") -> 19.43652778 | E49: =IF(('3 climate date'!B26=1),(D49-$D$31)+E48,"") -> 571.3889583 | F49: =IF(('3 climate date'!B26=1),($D$23+($D$25-$D$23)/(1+EXP(($D$27-E49)/$D$29))),"") -> 0.7136849125 | G49: =IF(('3 climate date'!$BA$41=1),$H$23*((1-EXP(-$H$25*F49))*C49/2.45)+$H$27,'3 climate date'!F26) -> 0.9191166256 | H49: =IF(('3 climate date'!B26=1),G49+H48, "") -> 12.56350418
A50: =IF('3 climate date'!B27=1, '3 climate date'!D27, "") -> 13 | B50: =IF('3 climate date'!$B27=1, '3 climate date'!E27, "") -> 2006-05-18 | C50: =IF('3 climate date'!B27=1, '3 climate date'!G27, "") -> 10.6268625 | D50: =IF('3 climate date'!B27=1, '3 climate date'!H27, "") -> 19.24375 | E50: =IF(('3 climate date'!B27=1),(D50-$D$31)+E49,"") -> 582.6327083 | F50: =IF(('3 climate date'!B27=1),($D$23+($D$25-$D$23)/(1+EXP(($D$27-E50)/$D$29))),"") -> 0.7851738323 | G50: =IF(('3 climate date'!$BA$41=1),$H$23*((1-EXP(-$H$25*F50))*C50/2.45)+$H$27,'3 climate date'!F27) -> 1.903780862 | H50: =IF(('3 climate date'!B27=1),G50+H49, "") -> 14.46728504
A51: =IF('3 climate date'!B28=1, '3 climate date'!D28, "") -> 14 | B51: =IF('3 climate date'!$B28=1, '3 climate date'!E28, "") -> 2006-05-19 | C51: =IF('3 climate date'!B28=1, '3 climate date'!G28, "") -> 15.4516125 | D51: =IF('3 climate date'!B28=1, '3 climate date'!H28, "") -> 20.67847222 | E51: =IF(('3 climate date'!B28=1),(D51-$D$31)+E50,"") -> 595.3111806 | F51: =IF(('3 climate date'!B28=1),($D$23+($D$25-$D$23)/(1+EXP(($D$27-E51)/$D$29))),"") -> 0.8699275166 | G51: =IF(('3 climate date'!$BA$41=1),$H$23*((1-EXP(-$H$25*F51))*C51/2.45)+$H$27,'3 climate date'!F28) -> 2.879851052 | H51: =IF(('3 climate date'!B28=1),G51+H50, "") -> 17.34713609
A52: =IF('3 climate date'!B29=1, '3 climate date'!D29, "") -> 15 | B52: =IF('3 climate date'!$B29=1, '3 climate date'!E29, "") -> 2006-05-20 | C52: =IF('3 climate date'!B29=1, '3 climate date'!G29, "") -> 15.0187125 | D52: =IF('3 climate date'!B29=1, '3 climate date'!H29, "") -> 21.28326389 | E52: =IF(('3 climate date'!B29=1),(D52-$D$31)+E51,"") -> 608.5944444 | F52: =IF(('3 climate date'!B29=1),($D$23+($D$25-$D$23)/(1+EXP(($D$27-E52)/$D$29))),"") -> 0.9633948363 | G52: =IF(('3 climate date'!$BA$41=1),$H$23*((1-EXP(-$H$25*F52))*C52/2.45)+$H$27,'3 climate date'!F29) -> 3.003096703 | H52: =IF(('3 climate date'!B29=1),G52+H51, "") -> 20.35023279
A53: =IF('3 climate date'!B30=1, '3 climate date'!D30, "") -> 16 | B53: =IF('3 climate date'!$B30=1, '3 climate date'!E30, "") -> 2006-05-21 | C53: =IF('3 climate date'!B30=1, '3 climate date'!G30, "") -> 15.0052125 | D53: =IF('3 climate date'!B30=1, '3 climate date'!H30, "") -> 21.41326389 | E53: =IF(('3 climate date'!B30=1),(D53-$D$31)+E52,"") -> 622.0077083 | F53: =IF(('3 climate date'!B30=1),($D$23+($D$25-$D$23)/(1+EXP(($D$27-E53)/$D$29))),"") -> 1.062532111 | G53: =IF(('3 climate date'!$BA$41=1),$H$23*((1-EXP(-$H$25*F53))*C53/2.45)+$H$27,'3 climate date'!F30) -> 3.197559966 | H53: =IF(('3 climate date'!B30=1),G53+H52, "") -> 23.54779276
A54: =IF('3 climate date'!B31=1, '3 climate date'!D31, "") -> 17 | B54: =IF('3 climate date'!$B31=1, '3 climate date'!E31, "") -> 2006-05-22 | C54: =IF('3 climate date'!B31=1, '3 climate date'!G31, "") -> 9.3958125 | D54: =IF('3 climate date'!B31=1, '3 climate date'!H31, "") -> 21.75256944 | E54: =IF(('3 climate date'!B31=1),(D54-$D$31)+E53,"") -> 635.7602778 | F54: =IF(('3 climate date'!B31=1),($D$23+($D$25-$D$23)/(1+EXP(($D$27-E54)/$D$29))),"") -> 1.168975247 | G54: =IF(('3 climate date'!$BA$41=1),$H$23*((1-EXP(-$H$25*F54))*C54/2.45)+$H$27,'3 climate date'!F31) -> 2.195873304 | H54: =IF(('3 climate date'!B31=1),G54+H53, "") -> 25.74366606
A55: =IF('3 climate date'!B32=1, '3 climate date'!D32, "") -> 18 | B55: =IF('3 climate date'!$B32=1, '3 climate date'!E32, "") -> 2006-05-23 | C55: =IF('3 climate date'!B32=1, '3 climate date'!G32, "") -> 8.4949125 | D55: =IF('3 climate date'!B32=1, '3 climate date'!H32, "") -> 21.31777778 | E55: =IF(('3 climate date'!B32=1),(D55-$D$31)+E54,"") -> 649.0780556 | F55: =IF(('3 climate date'!B32=1),($D$23+($D$25-$D$23)/(1+EXP(($D$27-E55)/$D$29))),"") -> 1.276462291 | G55: =IF(('3 climate date'!$BA$41=1),$H$23*((1-EXP(-$H$25*F55))*C55/2.45)+$H$27,'3 climate date'!F32) -> 2.107979921 | H55: =IF(('3 climate date'!B32=1),G55+H54, "") -> 27.85164598
A56: =IF('3 climate date'!B33=1, '3 climate date'!D33, "") -> 19 | B56: =IF('3 climate date'!$B33=1, '3 climate date'!E33, "") -> 2006-05-24 | C56: =IF('3 climate date'!B33=1, '3 climate date'!G33, "") -> 14.9198625 | D56: =IF('3 climate date'!B33=1, '3 climate date'!H33, "") -> 22.47277778 | E56: =IF(('3 climate date'!B33=1),(D56-$D$31)+E55,"") -> 663.5508333 | F56: =IF(('3 climate date'!B33=1),($D$23+($D$25-$D$23)/(1+EXP(($D$27-E56)/$D$29))),"") -> 1.397861408 | G56: =IF(('3 climate date'!$BA$41=1),$H$23*((1-EXP(-$H$25*F56))*C56/2.45)+$H$27,'3 climate date'!F33) -> 3.751915353 | H56: =IF(('3 climate date'!B33=1),G56+H55, "") -> 31.60356134
A57: =IF('3 climate date'!B34=1, '3 climate date'!D34, "") -> 20 | B57: =IF('3 climate date'!$B34=1, '3 climate date'!E34, "") -> 2006-05-25 | C57: =IF('3 climate date'!B34=1, '3 climate date'!G34, "") -> 14.844675 | D57: =IF('3 climate date'!B34=1, '3 climate date'!H34, "") -> 23.65743056 | E57: =IF(('3 climate date'!B34=1),(D57-$D$31)+E56,"") -> 679.2082639 | F57: =IF(('3 climate date'!B34=1),($D$23+($D$25-$D$23)/(1+EXP(($D$27-E57)/$D$29))),"") -> 1.534081321 | G57: =IF(('3 climate date'!$BA$41=1),$H$23*((1-EXP(-$H$25*F57))*C57/2.45)+$H$27,'3 climate date'!F34) -> 3.929889309 | H57: =IF(('3 climate date'!B34=1),G57+H56, "") -> 35.53345065
A58: =IF('3 climate date'!B35=1, '3 climate date'!D35, "") -> 21 | B58: =IF('3 climate date'!$B35=1, '3 climate date'!E35, "") -> 2006-05-26 | C58: =IF('3 climate date'!B35=1, '3 climate date'!G35, "") -> 15.3451875 | D58: =IF('3 climate date'!B35=1, '3 climate date'!H35, "") -> 24.99666667 | E58: =IF(('3 climate date'!B35=1),(D58-$D$31)+E57,"") -> 696.2049306 | F58: =IF(('3 climate date'!B35=1),($D$23+($D$25-$D$23)/(1+EXP(($D$27-E58)/$D$29))),"") -> 1.686934834 | G58: =IF(('3 climate date'!$BA$41=1),$H$23*((1-EXP(-$H$25*F58))*C58/2.45)+$H$27,'3 climate date'!F35) -> 4.261772652 | H58: =IF(('3 climate date'!B35=1),G58+H57, "") -> 39.7952233
A59: =IF('3 climate date'!B36=1, '3 climate date'!D36, "") -> 22 | B59: =IF('3 climate date'!$B36=1, '3 climate date'!E36, "") -> 2006-05-27 | C59: =IF('3 climate date'!B36=1, '3 climate date'!G36, "") -> 15.237825 | D59: =IF('3 climate date'!B36=1, '3 climate date'!H36, "") -> 25.91048611 | E59: =IF(('3 climate date'!B36=1),(D59-$D$31)+E58,"") -> 714.1154167 | F59: =IF(('3 climate date'!B36=1),($D$23+($D$25-$D$23)/(1+EXP(($D$27-E59)/$D$29))),"") -> 1.852547469 | G59: =IF(('3 climate date'!$BA$41=1),$H$23*((1-EXP(-$H$25*F59))*C59/2.45)+$H$27,'3 climate date'!F36) -> 4.431588848 | H59: =IF(('3 climate date'!B36=1),G59+H58, "") -> 44.22681214
A60: =IF('3 climate date'!B37=1, '3 climate date'!D37, "") -> 23 | B60: =IF('3 climate date'!$B37=1, '3 climate date'!E37, "") -> 2006-05-28 | C60: =IF('3 climate date'!B37=1, '3 climate date'!G37, "") -> 15.1899 | D60: =IF('3 climate date'!B37=1, '3 climate date'!H37, "") -> 25.79055556 | E60: =IF(('3 climate date'!B37=1),(D60-$D$31)+E59,"") -> 731.9059722 | F60: =IF(('3 climate date'!B37=1),($D$23+($D$25-$D$23)/(1+EXP(($D$27-E60)/$D$29))),"") -> 2.020389948 | G60: =IF(('3 climate date'!$BA$41=1),$H$23*((1-EXP(-$H$25*F60))*C60/2.45)+$H$27,'3 climate date'!F37) -> 4.596828219 | H60: =IF(('3 climate date'!B37=1),G60+H59, "") -> 48.82364036
A61: =IF('3 climate date'!B38=1, '3 climate date'!D38, "") -> 24 | B61: =IF('3 climate date'!$B38=1, '3 climate date'!E38, "") -> 2006-05-29 | C61: =IF('3 climate date'!B38=1, '3 climate date'!G38, "") -> 15.2011875 | D61: =IF('3 climate date'!B38=1, '3 climate date'!H38, "") -> 26.43034722 | E61: =IF(('3 climate date'!B38=1),(D61-$D$31)+E60,"") -> 750.3363194 | F61: =IF(('3 climate date'!B38=1),($D$23+($D$25-$D$23)/(1+EXP(($D$27-E61)/$D$29))),"") -> 2.196283755 | G61: =IF(('3 climate date'!$BA$41=1),$H$23*((1-EXP(-$H$25*F61))*C61/2.45)+$H$27,'3 climate date'!F38) -> 4.766460981 | H61: =IF(('3 climate date'!B38=1),G61+H60, "") -> 53.59010135
A62: =IF('3 climate date'!B39=1, '3 climate date'!D39, "") -> 25 | B62: =IF('3 climate date'!$B39=1, '3 climate date'!E39, "") -> 2006-05-30 | C62: =IF('3 climate date'!B39=1, '3 climate date'!G39, "") -> 13.9636875 | D62: =IF('3 climate date'!B39=1, '3 climate date'!H39, "") -> 26.014375 | E62: =IF(('3 climate date'!B39=1),(D62-$D$31)+E61,"") -> 768.3506944 | F62: =IF(('3 climate date'!B39=1),($D$23+($D$25-$D$23)/(1+EXP(($D$27-E62)/$D$29))),"") -> 2.368647976 | G62: =IF(('3 climate date'!$BA$41=1),$H$23*((1-EXP(-$H$25*F62))*C62/2.45)+$H$27,'3 climate date'!F39) -> 4.526528083 | H62: =IF(('3 climate date'!B39=1),G62+H61, "") -> 58.11662943
A63: =IF('3 climate date'!B40=1, '3 climate date'!D40, "") -> 26 | B63: =IF('3 climate date'!$B40=1, '3 climate date'!E40, "") -> 2006-05-31 | C63: =IF('3 climate date'!B40=1, '3 climate date'!G40, "") -> 14.6772 | D63: =IF('3 climate date'!B40=1, '3 climate date'!H40, "") -> 25.50423611 | E63: =IF(('3 climate date'!B40=1),(D63-$D$31)+E62,"") -> 785.8549306 | F63: =IF(('3 climate date'!B40=1),($D$23+($D$25-$D$23)/(1+EXP(($D$27-E63)/$D$29))),"") -> 2.535080949 | G63: =IF(('3 climate date'!$BA$41=1),$H$23*((1-EXP(-$H$25*F63))*C63/2.45)+$H$27,'3 climate date'!F40) -> 4.868118295 | H63: =IF(('3 climate date'!B40=1),G63+H62, "") -> 62.98474772
A64: =IF('3 climate date'!B41=1, '3 climate date'!D41, "") -> 27 | B64: =IF('3 climate date'!$B41=1, '3 climate date'!E41, "") -> 2006-06-01 | C64: =IF('3 climate date'!B41=1, '3 climate date'!G41, "") -> 12.64455 | D64: =IF('3 climate date'!B41=1, '3 climate date'!H41, "") -> 26.10701389 | E64: =IF(('3 climate date'!B41=1),(D64-$D$31)+E63,"") -> 803.9619444 | F64: =IF(('3 climate date'!B41=1),($D$23+($D$25-$D$23)/(1+EXP(($D$27-E64)/$D$29))),"") -> 2.704681426 | G64: =IF(('3 climate date'!$BA$41=1),$H$23*((1-EXP(-$H$25*F64))*C64/2.45)+$H$27,'3 climate date'!F41) -> 4.31370892 | H64: =IF(('3 climate date'!B41=1),G64+H63, "") -> 67.29845664
A65: =IF('3 climate date'!B42=1, '3 climate date'!D42, "") -> 28 | B65: =IF('3 climate date'!$B42=1, '3 climate date'!E42, "") -> 2006-06-02 | C65: =IF('3 climate date'!B42=1, '3 climate date'!G42, "") -> 14.5062375 | D65: =IF('3 climate date'!B42=1, '3 climate date'!H42, "") -> 26.26125 | E65: =IF(('3 climate date'!B42=1),(D65-$D$31)+E64,"") -> 822.2231944 | F65: =IF(('3 climate date'!B42=1),($D$23+($D$25-$D$23)/(1+EXP(($D$27-E65)/$D$29))),"") -> 2.871651656 | G65: =IF(('3 climate date'!$BA$41=1),$H$23*((1-EXP(-$H$25*F65))*C65/2.45)+$H$27,'3 climate date'!F42) -> 5.015413924 | H65: =IF(('3 climate date'!B42=1),G65+H64, "") -> 72.31387057
A66: =IF('3 climate date'!B43=1, '3 climate date'!D43, "") -> 29 | B66: =IF('3 climate date'!$B43=1, '3 climate date'!E43, "") -> 2006-06-03 | C66: =IF('3 climate date'!B43=1, '3 climate date'!G43, "") -> 14.9453625 | D66: =IF('3 climate date'!B43=1, '3 climate date'!H43, "") -> 26.64131944 | E66: =IF(('3 climate date'!B43=1),(D66-$D$31)+E65,"") -> 840.8645139 | F66: =IF(('3 climate date'!B43=1),($D$23+($D$25-$D$23)/(1+EXP(($D$27-E66)/$D$29))),"") -> 3.036505646 | G66: =IF(('3 climate date'!$BA$41=1),$H$23*((1-EXP(-$H$25*F66))*C66/2.45)+$H$27,'3 climate date'!F43) -> 5.247062875 | H66: =IF(('3 climate date'!B43=1),G66+H65, "") -> 77.56093344
A67: =IF('3 climate date'!B44=1, '3 climate date'!D44, "") -> 30 | B67: =IF('3 climate date'!$B44=1, '3 climate date'!E44, "") -> 2006-06-04 | C67: =IF('3 climate date'!B44=1, '3 climate date'!G44, "") -> 8.9205 | D67: =IF('3 climate date'!B44=1, '3 climate date'!H44, "") -> 24.67555556 | E67: =IF(('3 climate date'!B44=1),(D67-$D$31)+E66,"") -> 857.5400694 | F67: =IF(('3 climate date'!B44=1),($D$23+($D$25-$D$23)/(1+EXP(($D$27-E67)/$D$29))),"") -> 3.178197987 | G67: =IF(('3 climate date'!$BA$41=1),$H$23*((1-EXP(-$H$25*F67))*C67/2.45)+$H$27,'3 climate date'!F44) -> 3.247086295 | H67: =IF(('3 climate date'!B44=1),G67+H66, "") -> 80.80801974
A68: =IF('3 climate date'!B45=1, '3 climate date'!D45, "") -> 31 | B68: =IF('3 climate date'!$B45=1, '3 climate date'!E45, "") -> 2006-06-05 | C68: =IF('3 climate date'!B45=1, '3 climate date'!G45, "") -> 13.8937875 | D68: =IF('3 climate date'!B45=1, '3 climate date'!H45, "") -> 25.999375 | E68: =IF(('3 climate date'!B45=1),(D68-$D$31)+E67,"") -> 875.5394444 | F68: =IF(('3 climate date'!B45=1),($D$23+($D$25-$D$23)/(1+EXP(($D$27-E68)/$D$29))),"") -> 3.324154432 | G68: =IF(('3 climate date'!$BA$41=1),$H$23*((1-EXP(-$H$25*F68))*C68/2.45)+$H$27,'3 climate date'!F45) -> 5.009897373 | H68: =IF(('3 climate date'!B45=1),G68+H67, "") -> 85.81791711
A69: =IF('3 climate date'!B46=1, '3 climate date'!D46, "") -> 32 | B69: =IF('3 climate date'!$B46=1, '3 climate date'!E46, "") -> 2006-06-06 | C69: =IF('3 climate date'!B46=1, '3 climate date'!G46, "") -> 7.8996375 | D69: =IF('3 climate date'!B46=1, '3 climate date'!H46, "") -> 24.04131944 | E69: =IF(('3 climate date'!B46=1),(D69-$D$31)+E68,"") -> 891.5807639 | F69: =IF(('3 climate date'!B46=1),($D$23+($D$25-$D$23)/(1+EXP(($D$27-E69)/$D$29))),"") -> 3.447562369 | G69: =IF(('3 climate date'!$BA$41=1),$H$23*((1-EXP(-$H$25*F69))*C69/2.45)+$H$27,'3 climate date'!F46) -> 2.954715534 | H69: =IF(('3 climate date'!B46=1),G69+H68, "") -> 88.77263264
A70: =IF('3 climate date'!B47=1, '3 climate date'!D47, "") -> 33 | B70: =IF('3 climate date'!$B47=1, '3 climate date'!E47, "") -> 2006-06-07 | C70: =IF('3 climate date'!B47=1, '3 climate date'!G47, "") -> 15.236925 | D70: =IF('3 climate date'!B47=1, '3 climate date'!H47, "") -> 24.36701389 | E70: =IF(('3 climate date'!B47=1),(D70-$D$31)+E69,"") -> 907.9477778 | F70: =IF(('3 climate date'!B47=1),($D$23+($D$25-$D$23)/(1+EXP(($D$27-E70)/$D$29))),"") -> 3.566603653 | G70: =IF(('3 climate date'!$BA$41=1),$H$23*((1-EXP(-$H$25*F70))*C70/2.45)+$H$27,'3 climate date'!F47) -> 5.567451801 | H70: =IF(('3 climate date'!B47=1),G70+H69, "") -> 94.34008444
A71: =IF('3 climate date'!B48=1, '3 climate date'!D48, "") -> 34 | B71: =IF('3 climate date'!$B48=1, '3 climate date'!E48, "") -> 2006-06-08 | C71: =IF('3 climate date'!B48=1, '3 climate date'!G48, "") -> 14.2002 | D71: =IF('3 climate date'!B48=1, '3 climate date'!H48, "") -> 23.09298611 | E71: =IF(('3 climate date'!B48=1),(D71-$D$31)+E70,"") -> 923.0407639 | F71: =IF(('3 climate date'!B48=1),($D$23+($D$25-$D$23)/(1+EXP(($D$27-E71)/$D$29))),"") -> 3.670013682 | G71: =IF(('3 climate date'!$BA$41=1),$H$23*((1-EXP(-$H$25*F71))*C71/2.45)+$H$27,'3 climate date'!F48) -> 5.233651243 | H71: =IF(('3 climate date'!B48=1),G71+H70, "") -> 99.57373569
A72: =IF('3 climate date'!B49=1, '3 climate date'!D49, "") -> 35 | B72: =IF('3 climate date'!$B49=1, '3 climate date'!E49, "") -> 2006-06-09 | C72: =IF('3 climate date'!B49=1, '3 climate date'!G49, "") -> 5.2158375 | D72: =IF('3 climate date'!B49=1, '3 climate date'!H49, "") -> 21.25881944 | E72: =IF(('3 climate date'!B49=1),(D72-$D$31)+E71,"") -> 936.2995833 | F72: =IF(('3 climate date'!B49=1),($D$23+($D$25-$D$23)/(1+EXP(($D$27-E72)/$D$29))),"") -> 3.755735483 | G72: =IF(('3 climate date'!$BA$41=1),$H$23*((1-EXP(-$H$25*F72))*C72/2.45)+$H$27,'3 climate date'!F49) -> 2.050494409 | H72: =IF(('3 climate date'!B49=1),G72+H71, "") -> 101.6242301
A73: =IF('3 climate date'!B50=1, '3 climate date'!D50, "") -> 36 | B73: =IF('3 climate date'!$B50=1, '3 climate date'!E50, "") -> 2006-06-10 | C73: =IF('3 climate date'!B50=1, '3 climate date'!G50, "") -> 15.9081375 | D73: =IF('3 climate date'!B50=1, '3 climate date'!H50, "") -> 20.56638889 | E73: =IF(('3 climate date'!B50=1),(D73-$D$31)+E72,"") -> 948.8659722 | F73: =IF(('3 climate date'!B50=1),($D$23+($D$25-$D$23)/(1+EXP(($D$27-E73)/$D$29))),"") -> 3.832546144 | G73: =IF(('3 climate date'!$BA$41=1),$H$23*((1-EXP(-$H$25*F73))*C73/2.45)+$H$27,'3 climate date'!F50) -> 5.892292895 | H73: =IF(('3 climate date'!B50=1),G73+H72, "") -> 107.516523
A74: =IF('3 climate date'!B51=1, '3 climate date'!D51, "") -> 37 | B74: =IF('3 climate date'!$B51=1, '3 climate date'!E51, "") -> 2006-06-11 | C74: =IF('3 climate date'!B51=1, '3 climate date'!G51, "") -> 9.5535 | D74: =IF('3 climate date'!B51=1, '3 climate date'!H51, "") -> 20.41291667 | E74: =IF(('3 climate date'!B51=1),(D74-$D$31)+E73,"") -> 961.2788889 | F74: =IF(('3 climate date'!B51=1),($D$23+($D$25-$D$23)/(1+EXP(($D$27-E74)/$D$29))),"") -> 3.904209035 | G74: =IF(('3 climate date'!$BA$41=1),$H$23*((1-EXP(-$H$25*F74))*C74/2.45)+$H$27,'3 climate date'!F51) -> 3.626305193 | H74: =IF(('3 climate date'!B51=1),G74+H73, "") -> 111.1428282
A75: =IF('3 climate date'!B52=1, '3 climate date'!D52, "") -> 38 | B75: =IF('3 climate date'!$B52=1, '3 climate date'!E52, "") -> 2006-06-12 | C75: =IF('3 climate date'!B52=1, '3 climate date'!G52, "") -> 7.057425 | D75: =IF('3 climate date'!B52=1, '3 climate date'!H52, "") -> 21.42256944 | E75: =IF(('3 climate date'!B52=1),(D75-$D$31)+E74,"") -> 974.7014583 | F75: =IF(('3 climate date'!B52=1),($D$23+($D$25-$D$23)/(1+EXP(($D$27-E75)/$D$29))),"") -> 3.977060161 | G75: =IF(('3 climate date'!$BA$41=1),$H$23*((1-EXP(-$H$25*F75))*C75/2.45)+$H$27,'3 climate date'!F52) -> 2.736997945 | H75: =IF(('3 climate date'!B52=1),G75+H74, "") -> 113.8798261
A76: =IF('3 climate date'!B53=1, '3 climate date'!D53, "") -> 39 | B76: =IF('3 climate date'!$B53=1, '3 climate date'!E53, "") -> 2006-06-13 | C76: =IF('3 climate date'!B53=1, '3 climate date'!G53, "") -> 10.4796 | D76: =IF('3 climate date'!B53=1, '3 climate date'!H53, "") -> 23.16486111 | E76: =IF(('3 climate date'!B53=1),(D76-$D$31)+E75,"") -> 989.8663194 | F76: =IF(('3 climate date'!B53=1),($D$23+($D$25-$D$23)/(1+EXP(($D$27-E76)/$D$29))),"") -> 4.05369974 | G76: =IF(('3 climate date'!$BA$41=1),$H$23*((1-EXP(-$H$25*F76))*C76/2.45)+$H$27,'3 climate date'!F53) -> 3.98641523 | H76: =IF(('3 climate date'!B53=1),G76+H75, "") -> 117.8662414
A77: =IF('3 climate date'!B54=1, '3 climate date'!D54, "") -> 40 | B77: =IF('3 climate date'!$B54=1, '3 climate date'!E54, "") -> 2006-06-14 | C77: =IF('3 climate date'!B54=1, '3 climate date'!G54, "") -> 3.3223125 | D77: =IF('3 climate date'!B54=1, '3 climate date'!H54, "") -> 20.26263889 | E77: =IF(('3 climate date'!B54=1),(D77-$D$31)+E76,"") -> 1002.128958 | F77: =IF(('3 climate date'!B54=1),($D$23+($D$25-$D$23)/(1+EXP(($D$27-E77)/$D$29))),"") -> 4.111406547 | G77: =IF(('3 climate date'!$BA$41=1),$H$23*((1-EXP(-$H$25*F77))*C77/2.45)+$H$27,'3 climate date'!F54) -> 1.395251967 | H77: =IF(('3 climate date'!B54=1),G77+H76, "") -> 119.2614933
A78: =IF('3 climate date'!B55=1, '3 climate date'!D55, "") -> 41 | B78: =IF('3 climate date'!$B55=1, '3 climate date'!E55, "") -> 2006-06-15 | C78: =IF('3 climate date'!B55=1, '3 climate date'!G55, "") -> 8.2807125 | D78: =IF('3 climate date'!B55=1, '3 climate date'!H55, "") -> 22.77333333 | E78: =IF(('3 climate date'!B55=1),(D78-$D$31)+E77,"") -> 1016.902292 | F78: =IF(('3 climate date'!B55=1),($D$23+($D$25-$D$23)/(1+EXP(($D$27-E78)/$D$29))),"") -> 4.176053212 | G78: =IF(('3 climate date'!$BA$41=1),$H$23*((1-EXP(-$H$25*F78))*C78/2.45)+$H$27,'3 climate date'!F55) -> 3.20519316 | H78: =IF(('3 climate date'!B55=1),G78+H77, "") -> 122.4666865
A79: =IF('3 climate date'!B56=1, '3 climate date'!D56, "") -> 42 | B79: =IF('3 climate date'!$B56=1, '3 climate date'!E56, "") -> 2006-06-16 | C79: =IF('3 climate date'!B56=1, '3 climate date'!G56, "") -> 15.0218625 | D79: =IF('3 climate date'!B56=1, '3 climate date'!H56, "") -> 25.01118056 | E79: =IF(('3 climate date'!B56=1),(D79-$D$31)+E78,"") -> 1033.913472 | F79: =IF(('3 climate date'!B56=1),($D$23+($D$25-$D$23)/(1+EXP(($D$27-E79)/$D$29))),"") -> 4.244194861 | G79: =IF(('3 climate date'!$BA$41=1),$H$23*((1-EXP(-$H$25*F79))*C79/2.45)+$H$27,'3 climate date'!F56) -> 5.676352963 | H79: =IF(('3 climate date'!B56=1),G79+H78, "") -> 128.1430394
A80: =IF('3 climate date'!B57=1, '3 climate date'!D57, "") -> 43 | B80: =IF('3 climate date'!$B57=1, '3 climate date'!E57, "") -> 2006-06-17 | C80: =IF('3 climate date'!B57=1, '3 climate date'!G57, "") -> 15.1326 | D80: =IF('3 climate date'!B57=1, '3 climate date'!H57, "") -> 26.63423611 | E80: =IF(('3 climate date'!B57=1),(D80-$D$31)+E79,"") -> 1052.547708 | F80: =IF(('3 climate date'!B57=1),($D$23+($D$25-$D$23)/(1+EXP(($D$27-E80)/$D$29))),"") -> 4.311560228 | G80: =IF(('3 climate date'!$BA$41=1),$H$23*((1-EXP(-$H$25*F80))*C80/2.45)+$H$27,'3 climate date'!F57) -> 5.730999176 | H80: =IF(('3 climate date'!B57=1),G80+H79, "") -> 133.8740386
A81: =IF('3 climate date'!B58=1, '3 climate date'!D58, "") -> 44 | B81: =IF('3 climate date'!$B58=1, '3 climate date'!E58, "") -> 2006-06-18 | C81: =IF('3 climate date'!B58=1, '3 climate date'!G58, "") -> 13.3788 | D81: =IF('3 climate date'!B58=1, '3 climate date'!H58, "") -> 26.37791667 | E81: =IF(('3 climate date'!B58=1),(D81-$D$31)+E80,"") -> 1070.925625 | F81: =IF(('3 climate date'!B58=1),($D$23+($D$25-$D$23)/(1+EXP(($D$27-E81)/$D$29))),"") -> 4.371073509 | G81: =IF(('3 climate date'!$BA$41=1),$H$23*((1-EXP(-$H$25*F81))*C81/2.45)+$H$27,'3 climate date'!F58) -> 5.099196933 | H81: =IF(('3 climate date'!B58=1),G81+H80, "") -> 138.9732356
A82: =IF('3 climate date'!B59=1, '3 climate date'!D59, "") -> 45 | B82: =IF('3 climate date'!$B59=1, '3 climate date'!E59, "") -> 2006-06-19 | C82: =IF('3 climate date'!B59=1, '3 climate date'!G59, "") -> 15.288075 | D82: =IF('3 climate date'!B59=1, '3 climate date'!H59, "") -> 27.09076389 | E82: =IF(('3 climate date'!B59=1),(D82-$D$31)+E81,"") -> 1090.016389 | F82: =IF(('3 climate date'!B59=1),($D$23+($D$25-$D$23)/(1+EXP(($D$27-E82)/$D$29))),"") -> 4.42619854 | G82: =IF(('3 climate date'!$BA$41=1),$H$23*((1-EXP(-$H$25*F82))*C82/2.45)+$H$27,'3 climate date'!F59) -> 5.810859705 | H82: =IF(('3 climate date'!B59=1),G82+H81, "") -> 144.7840953
A83: =IF('3 climate date'!B60=1, '3 climate date'!D60, "") -> 46 | B83: =IF('3 climate date'!$B60=1, '3 climate date'!E60, "") -> 2006-06-20 | C83: =IF('3 climate date'!B60=1, '3 climate date'!G60, "") -> 13.44525 | D83: =IF('3 climate date'!B60=1, '3 climate date'!H60, "") -> 27.506875 | E83: =IF(('3 climate date'!B60=1),(D83-$D$31)+E82,"") -> 1109.523264 | F83: =IF(('3 climate date'!B60=1),($D$23+($D$25-$D$23)/(1+EXP(($D$27-E83)/$D$29))),"") -> 4.476097489 | G83: =IF(('3 climate date'!$BA$41=1),$H$23*((1-EXP(-$H$25*F83))*C83/2.45)+$H$27,'3 climate date'!F60) -> 5.141364661 | H83: =IF(('3 climate date'!B60=1),G83+H82, "") -> 149.9254599
A84: =IF('3 climate date'!B61=1, '3 climate date'!D61, "") -> 47 | B84: =IF('3 climate date'!$B61=1, '3 climate date'!E61, "") -> 2006-06-21 | C84: =IF('3 climate date'!B61=1, '3 climate date'!G61, "") -> 14.0280375 | D84: =IF('3 climate date'!B61=1, '3 climate date'!H61, "") -> 27.66069444 | E84: =IF(('3 climate date'!B61=1),(D84-$D$31)+E83,"") -> 1129.183958 | F84: =IF(('3 climate date'!B61=1),($D$23+($D$25-$D$23)/(1+EXP(($D$27-E84)/$D$29))),"") -> 4.520446038 | G84: =IF(('3 climate date'!$BA$41=1),$H$23*((1-EXP(-$H$25*F84))*C84/2.45)+$H$27,'3 climate date'!F61) -> 5.363505816 | H84: =IF(('3 climate date'!B61=1),G84+H83, "") -> 155.2889657
A85: =IF('3 climate date'!B62=1, '3 climate date'!D62, "") -> 48 | B85: =IF('3 climate date'!$B62=1, '3 climate date'!E62, "") -> 2006-06-22 | C85: =IF('3 climate date'!B62=1, '3 climate date'!G62, "") -> 12.8100375 | D85: =IF('3 climate date'!B62=1, '3 climate date'!H62, "") -> 28.14201389 | E85: =IF(('3 climate date'!B62=1),(D85-$D$31)+E84,"") -> 1149.325972 | F85: =IF(('3 climate date'!B62=1),($D$23+($D$25-$D$23)/(1+EXP(($D$27-E85)/$D$29))),"") -> 4.560327804 | G85: =IF(('3 climate date'!$BA$41=1),$H$23*((1-EXP(-$H$25*F85))*C85/2.45)+$H$27,'3 climate date'!F62) -> 4.920068573 | H85: =IF(('3 climate date'!B62=1),G85+H84, "") -> 160.2090343
A86: =IF('3 climate date'!B63=1, '3 climate date'!D63, "") -> 49 | B86: =IF('3 climate date'!$B63=1, '3 climate date'!E63, "") -> 2006-06-23 | C86: =IF('3 climate date'!B63=1, '3 climate date'!G63, "") -> 15.6161625 | D86: =IF('3 climate date'!B63=1, '3 climate date'!H63, "") -> 29.04284722 | E86: =IF(('3 climate date'!B63=1),(D86-$D$31)+E85,"") -> 1170.368819 | F86: =IF(('3 climate date'!B63=1),($D$23+($D$25-$D$23)/(1+EXP(($D$27-E86)/$D$29))),"") -> 4.596650854 | G86: =IF(('3 climate date'!$BA$41=1),$H$23*((1-EXP(-$H$25*F86))*C86/2.45)+$H$27,'3 climate date'!F63) -> 5.963075112 | H86: =IF(('3 climate date'!B63=1),G86+H85, "") -> 166.1721094
A87: =IF('3 climate date'!B64=1, '3 climate date'!D64, "") -> 50 | B87: =IF('3 climate date'!$B64=1, '3 climate date'!E64, "") -> 2006-06-24 | C87: =IF('3 climate date'!B64=1, '3 climate date'!G64, "") -> 15.386475 | D87: =IF('3 climate date'!B64=1, '3 climate date'!H64, "") -> 30.16486111 | E87: =IF(('3 climate date'!B64=1),(D87-$D$31)+E86,"") -> 1192.533681 | F87: =IF(('3 climate date'!B64=1),($D$23+($D$25-$D$23)/(1+EXP(($D$27-E87)/$D$29))),"") -> 4.629706691 | G87: =IF(('3 climate date'!$BA$41=1),$H$23*((1-EXP(-$H$25*F87))*C87/2.45)+$H$27,'3 climate date'!F64) -> 5.883749544 | H87: =IF(('3 climate date'!B64=1),G87+H86, "") -> 172.055859
A88: =IF('3 climate date'!B65=1, '3 climate date'!D65, "") -> 51 | B88: =IF('3 climate date'!$B65=1, '3 climate date'!E65, "") -> 2006-06-25 | C88: =IF('3 climate date'!B65=1, '3 climate date'!G65, "") -> 15.78765 | D88: =IF('3 climate date'!B65=1, '3 climate date'!H65, "") -> 30.25368056 | E88: =IF(('3 climate date'!B65=1),(D88-$D$31)+E87,"") -> 1214.787361 | F88: =IF(('3 climate date'!B65=1),($D$23+($D$25-$D$23)/(1+EXP(($D$27-E88)/$D$29))),"") -> 4.658201715 | G88: =IF(('3 climate date'!$BA$41=1),$H$23*((1-EXP(-$H$25*F88))*C88/2.45)+$H$27,'3 climate date'!F65) -> 6.037119134 | H88: =IF(('3 climate date'!B65=1),G88+H87, "") -> 178.0929781
A89: =IF('3 climate date'!B66=1, '3 climate date'!D66, "") -> 52 | B89: =IF('3 climate date'!$B66=1, '3 climate date'!E66, "") -> 2006-06-26 | C89: =IF('3 climate date'!B66=1, '3 climate date'!G66, "") -> 15.8497875 | D89: =IF('3 climate date'!B66=1, '3 climate date'!H66, "") -> 30.08680556 | E89: =IF(('3 climate date'!B66=1),(D89-$D$31)+E88,"") -> 1236.874167 | F89: =IF(('3 climate date'!B66=1),($D$23+($D$25-$D$23)/(1+EXP(($D$27-E89)/$D$29))),"") -> 4.682445531 | G89: =IF(('3 climate date'!$BA$41=1),$H$23*((1-EXP(-$H$25*F89))*C89/2.45)+$H$27,'3 climate date'!F66) -> 6.064219158 | H89: =IF(('3 climate date'!B66=1),G89+H88, "") -> 184.1571973
A90: =IF('3 climate date'!B67=1, '3 climate date'!D67, "") -> 53 | B90: =IF('3 climate date'!$B67=1, '3 climate date'!E67, "") -> 2006-06-27 | C90: =IF('3 climate date'!B67=1, '3 climate date'!G67, "") -> 15.62179449 | D90: =IF('3 climate date'!B67=1, '3 climate date'!H67, "") -> 30.28846869 | E90: =IF(('3 climate date'!B67=1),(D90-$D$31)+E89,"") -> 1259.162635 | F90: =IF(('3 climate date'!B67=1),($D$23+($D$25-$D$23)/(1+EXP(($D$27-E90)/$D$29))),"") -> 4.703383401 | G90: =IF(('3 climate date'!$BA$41=1),$H$23*((1-EXP(-$H$25*F90))*C90/2.45)+$H$27,'3 climate date'!F67) -> 5.983110336 | H90: =IF(('3 climate date'!B67=1),G90+H89, "") -> 190.1403076
A91: =IF('3 climate date'!B68=1, '3 climate date'!D68, "") -> 54 | B91: =IF('3 climate date'!$B68=1, '3 climate date'!E68, "") -> 2006-06-28 | C91: =IF('3 climate date'!B68=1, '3 climate date'!G68, "") -> 14.7457875 | D91: =IF('3 climate date'!B68=1, '3 climate date'!H68, "") -> 30.20375 | E91: =IF(('3 climate date'!B68=1),(D91-$D$31)+E90,"") -> 1281.366385 | F91: =IF(('3 climate date'!B68=1),($D$23+($D$25-$D$23)/(1+EXP(($D$27-E91)/$D$29))),"") -> 4.72120273 | G91: =IF(('3 climate date'!$BA$41=1),$H$23*((1-EXP(-$H$25*F91))*C91/2.45)+$H$27,'3 climate date'!F68) -> 5.660853562 | H91: =IF(('3 climate date'!B68=1),G91+H90, "") -> 195.8011612
A92: =IF('3 climate date'!B69=1, '3 climate date'!D69, "") -> 55 | B92: =IF('3 climate date'!$B69=1, '3 climate date'!E69, "") -> 2006-06-29 | C92: =IF('3 climate date'!B69=1, '3 climate date'!G69, "") -> 14.2573125 | D92: =IF('3 climate date'!B69=1, '3 climate date'!H69, "") -> 30.35479167 | E92: =IF(('3 climate date'!B69=1),(D92-$D$31)+E91,"") -> 1303.721177 | F92: =IF(('3 climate date'!B69=1),($D$23+($D$25-$D$23)/(1+EXP(($D$27-E92)/$D$29))),"") -> 4.736508533 | G92: =IF(('3 climate date'!$BA$41=1),$H$23*((1-EXP(-$H$25*F92))*C92/2.45)+$H$27,'3 climate date'!F69) -> 5.481782256 | H92: =IF(('3 climate date'!B69=1),G92+H91, "") -> 201.2829434
A93: =IF('3 climate date'!B70=1, '3 climate date'!D70, "") -> 56 | B93: =IF('3 climate date'!$B70=1, '3 climate date'!E70, "") -> 2006-06-30 | C93: =IF('3 climate date'!B70=1, '3 climate date'!G70, "") -> 12.4346625 | D93: =IF('3 climate date'!B70=1, '3 climate date'!H70, "") -> 29.17784722 | E93: =IF(('3 climate date'!B70=1),(D93-$D$31)+E92,"") -> 1324.899024 | F93: =IF(('3 climate date'!B70=1),($D$23+($D$25-$D$23)/(1+EXP(($D$27-E93)/$D$29))),"") -> 4.748911095 | G93: =IF(('3 climate date'!$BA$41=1),$H$23*((1-EXP(-$H$25*F93))*C93/2.45)+$H$27,'3 climate date'!F70) -> 4.806584209 | H93: =IF(('3 climate date'!B70=1),G93+H92, "") -> 206.0895276
A94: =IF('3 climate date'!B71=1, '3 climate date'!D71, "") -> 57 | B94: =IF('3 climate date'!$B71=1, '3 climate date'!E71, "") -> 2006-07-01 | C94: =IF('3 climate date'!B71=1, '3 climate date'!G71, "") -> 10.7379 | D94: =IF('3 climate date'!B71=1, '3 climate date'!H71, "") -> 27.75645833 | E94: =IF(('3 climate date'!B71=1),(D94-$D$31)+E93,"") -> 1344.655483 | F94: =IF(('3 climate date'!B71=1),($D$23+($D$25-$D$23)/(1+EXP(($D$27-E94)/$D$29))),"") -> 4.758892778 | G94: =IF(('3 climate date'!$BA$41=1),$H$23*((1-EXP(-$H$25*F94))*C94/2.45)+$H$27,'3 climate date'!F71) -> 4.177432748 | H94: =IF(('3 climate date'!B71=1),G94+H93, "") -> 210.2669604
A95: =IF('3 climate date'!B72=1, '3 climate date'!D72, "") -> 58 | B95: =IF('3 climate date'!$B72=1, '3 climate date'!E72, "") -> 2006-07-02 | C95: =IF('3 climate date'!B72=1, '3 climate date'!G72, "") -> 14.7183375 | D95: =IF('3 climate date'!B72=1, '3 climate date'!H72, "") -> 28.12756944 | E95: =IF(('3 climate date'!B72=1),(D95-$D$31)+E94,"") -> 1364.783052 | F95: =IF(('3 climate date'!B72=1),($D$23+($D$25-$D$23)/(1+EXP(($D$27-E95)/$D$29))),"") -> 4.767695278 | G95: =IF(('3 climate date'!$BA$41=1),$H$23*((1-EXP(-$H$25*F95))*C95/2.45)+$H$27,'3 climate date'!F72) -> 5.657567348 | H95: =IF(('3 climate date'!B72=1),G95+H94, "") -> 215.9245277
A96: =IF('3 climate date'!B73=1, '3 climate date'!D73, "") -> 59 | B96: =IF('3 climate date'!$B73=1, '3 climate date'!E73, "") -> 2006-07-03 | C96: =IF('3 climate date'!B73=1, '3 climate date'!G73, "") -> 15.35985 | D96: =IF('3 climate date'!B73=1, '3 climate date'!H73, "") -> 27.740625 | E96: =IF(('3 climate date'!B73=1),(D96-$D$31)+E95,"") -> 1384.523677 | F96: =IF(('3 climate date'!B73=1),($D$23+($D$25-$D$23)/(1+EXP(($D$27-E96)/$D$29))),"") -> 4.775164485 | G96: =IF(('3 climate date'!$BA$41=1),$H$23*((1-EXP(-$H$25*F96))*C96/2.45)+$H$27,'3 climate date'!F73) -> 5.897099288 | H96: =IF(('3 climate date'!B73=1),G96+H95, "") -> 221.821627
A97: =IF('3 climate date'!B74=1, '3 climate date'!D74, "") -> 60 | B97: =IF('3 climate date'!$B74=1, '3 climate date'!E74, "") -> 2006-07-04 | C97: =IF('3 climate date'!B74=1, '3 climate date'!G74, "") -> 14.6104125 | D97: =IF('3 climate date'!B74=1, '3 climate date'!H74, "") -> 27.73465278 | E97: =IF(('3 climate date'!B74=1),(D97-$D$31)+E96,"") -> 1404.25833 | F97: =IF(('3 climate date'!B74=1),($D$23+($D$25-$D$23)/(1+EXP(($D$27-E97)/$D$29))),"") -> 4.781631292 | G97: =IF(('3 climate date'!$BA$41=1),$H$23*((1-EXP(-$H$25*F97))*C97/2.45)+$H$27,'3 climate date'!F74) -> 5.619471876 | H97: =IF(('3 climate date'!B74=1),G97+H96, "") -> 227.4410989
A98: =IF('3 climate date'!B75=1, '3 climate date'!D75, "") -> 61 | B98: =IF('3 climate date'!$B75=1, '3 climate date'!E75, "") -> 2006-07-05 | C98: =IF('3 climate date'!B75=1, '3 climate date'!G75, "") -> 11.828475 | D98: =IF('3 climate date'!B75=1, '3 climate date'!H75, "") -> 26.85465278 | E98: =IF(('3 climate date'!B75=1),(D98-$D$31)+E97,"") -> 1423.112983 | F98: =IF(('3 climate date'!B75=1),($D$23+($D$25-$D$23)/(1+EXP(($D$27-E98)/$D$29))),"") -> 4.786997165 | G98: =IF(('3 climate date'!$BA$41=1),$H$23*((1-EXP(-$H$25*F98))*C98/2.45)+$H$27,'3 climate date'!F75) -> 4.585899657 | H98: =IF(('3 climate date'!B75=1),G98+H97, "") -> 232.0269985
A99: =IF('3 climate date'!B76=1, '3 climate date'!D76, "") -> 62 | B99: =IF('3 climate date'!$B76=1, '3 climate date'!E76, "") -> 2006-07-06 | C99: =IF('3 climate date'!B76=1, '3 climate date'!G76, "") -> 14.8244625 | D99: =IF('3 climate date'!B76=1, '3 climate date'!H76, "") -> 26.70541667 | E99: =IF(('3 climate date'!B76=1),(D99-$D$31)+E98,"") -> 1441.818399 | F99: =IF(('3 climate date'!B76=1),($D$23+($D$25-$D$23)/(1+EXP(($D$27-E99)/$D$29))),"") -> 4.791636783 | G99: =IF(('3 climate date'!$BA$41=1),$H$23*((1-EXP(-$H$25*F99))*C99/2.45)+$H$27,'3 climate date'!F76) -> 5.700498748 | H99: =IF(('3 climate date'!B76=1),G99+H98, "") -> 237.7274973
A100: =IF('3 climate date'!B77=1, '3 climate date'!D77, "") -> 63 | B100: =IF('3 climate date'!$B77=1, '3 climate date'!E77, "") -> 2006-07-07 | C100: =IF('3 climate date'!B77=1, '3 climate date'!G77, "") -> 13.2490875 | D100: =IF('3 climate date'!B77=1, '3 climate date'!H77, "") -> 26.77298611 | E100: =IF(('3 climate date'!B77=1),(D100-$D$31)+E99,"") -> 1460.591385 | F100: =IF(('3 climate date'!B77=1),($D$23+($D$25-$D$23)/(1+EXP(($D$27-E100)/$D$29))),"") -> 4.795695318 | G100: =IF(('3 climate date'!$BA$41=1),$H$23*((1-EXP(-$H$25*F100))*C100/2.45)+$H$27,'3 climate date'!F77) -> 5.115217389 | H100: =IF(('3 climate date'!B77=1),G100+H99, "") -> 242.8427147
A101: =IF('3 climate date'!B78=1, '3 climate date'!D78, "") -> 64 | B101: =IF('3 climate date'!$B78=1, '3 climate date'!E78, "") -> 2006-07-08 | C101: =IF('3 climate date'!B78=1, '3 climate date'!G78, "") -> 10.4346 | D101: =IF('3 climate date'!B78=1, '3 climate date'!H78, "") -> 25.38513889 | E101: =IF(('3 climate date'!B78=1),(D101-$D$31)+E100,"") -> 1477.976524 | F101: =IF(('3 climate date'!B78=1),($D$23+($D$25-$D$23)/(1+EXP(($D$27-E101)/$D$29))),"") -> 4.798986079 | G101: =IF(('3 climate date'!$BA$41=1),$H$23*((1-EXP(-$H$25*F101))*C101/2.45)+$H$27,'3 climate date'!F78) -> 4.068868512 | H101: =IF(('3 climate date'!B78=1),G101+H100, "") -> 246.9115832
A102: =IF('3 climate date'!B79=1, '3 climate date'!D79, "") -> 65 | B102: =IF('3 climate date'!$B79=1, '3 climate date'!E79, "") -> 2006-07-09 | C102: =IF('3 climate date'!B79=1, '3 climate date'!G79, "") -> 14.198475 | D102: =IF('3 climate date'!B79=1, '3 climate date'!H79, "") -> 26.120625 | E102: =IF(('3 climate date'!B79=1),(D102-$D$31)+E101,"") -> 1496.097149 | F102: =IF(('3 climate date'!B79=1),($D$23+($D$25-$D$23)/(1+EXP(($D$27-E102)/$D$29))),"") -> 4.801996396 | G102: =IF(('3 climate date'!$BA$41=1),$H$23*((1-EXP(-$H$25*F102))*C102/2.45)+$H$27,'3 climate date'!F79) -> 5.469155198 | H102: =IF(('3 climate date'!B79=1),G102+H101, "") -> 252.3807384
A103: =IF('3 climate date'!B80=1, '3 climate date'!D80, "") -> 66 | B103: =IF('3 climate date'!$B80=1, '3 climate date'!E80, "") -> 2006-07-10 | C103: =IF('3 climate date'!B80=1, '3 climate date'!G80, "") -> 12.0791625 | D103: =IF('3 climate date'!B80=1, '3 climate date'!H80, "") -> 25.30208333 | E103: =IF(('3 climate date'!B80=1),(D103-$D$31)+E102,"") -> 1513.399233 | F103: =IF(('3 climate date'!B80=1),($D$23+($D$25-$D$23)/(1+EXP(($D$27-E103)/$D$29))),"") -> 4.804519133 | G103: =IF(('3 climate date'!$BA$41=1),$H$23*((1-EXP(-$H$25*F103))*C103/2.45)+$H$27,'3 climate date'!F80) -> 4.681167186 | H103: =IF(('3 climate date'!B80=1),G103+H102, "") -> 257.0619056
A104: =IF('3 climate date'!B81=1, '3 climate date'!D81, "") -> 67 | B104: =IF('3 climate date'!$B81=1, '3 climate date'!E81, "") -> 2006-07-11 | C104: =IF('3 climate date'!B81=1, '3 climate date'!G81, "") -> 12.330375 | D104: =IF('3 climate date'!B81=1, '3 climate date'!H81, "") -> 25.46472222 | E104: =IF(('3 climate date'!B81=1),(D104-$D$31)+E103,"") -> 1530.863955 | F104: =IF(('3 climate date'!B81=1),($D$23+($D$25-$D$23)/(1+EXP(($D$27-E104)/$D$29))),"") -> 4.806759384 | G104: =IF(('3 climate date'!$BA$41=1),$H$23*((1-EXP(-$H$25*F104))*C104/2.45)+$H$27,'3 climate date'!F81) -> 4.774879463 | H104: =IF(('3 climate date'!B81=1),G104+H103, "") -> 261.836785
A105: =IF('3 climate date'!B82=1, '3 climate date'!D82, "") -> 68 | B105: =IF('3 climate date'!$B82=1, '3 climate date'!E82, "") -> 2006-07-12 | C105: =IF('3 climate date'!B82=1, '3 climate date'!G82, "") -> 14.3609625 | D105: =IF('3 climate date'!B82=1, '3 climate date'!H82, "") -> 26.12486111 | E105: =IF(('3 climate date'!B82=1),(D105-$D$31)+E104,"") -> 1548.988816 | F105: =IF(('3 climate date'!B82=1),($D$23+($D$25-$D$23)/(1+EXP(($D$27-E105)/$D$29))),"") -> 4.808798402 | G105: =IF(('3 climate date'!$BA$41=1),$H$23*((1-EXP(-$H$25*F105))*C105/2.45)+$H$27,'3 climate date'!F82) -> 5.530537414 | H105: =IF(('3 climate date'!B82=1),G105+H104, "") -> 267.3673224
A106: =IF('3 climate date'!B83=1, '3 climate date'!D83, "") -> 69 | B106: =IF('3 climate date'!$B83=1, '3 climate date'!E83, "") -> 2006-07-13 | C106: =IF('3 climate date'!B83=1, '3 climate date'!G83, "") -> 5.906775 | D106: =IF('3 climate date'!B83=1, '3 climate date'!H83, "") -> 24.81680556 | E106: =IF(('3 climate date'!B83=1),(D106-$D$31)+E105,"") -> 1565.805621 | F106: =IF(('3 climate date'!B83=1),($D$23+($D$25-$D$23)/(1+EXP(($D$27-E106)/$D$29))),"") -> 4.810461157 | G106: =IF(('3 climate date'!$BA$41=1),$H$23*((1-EXP(-$H$25*F106))*C106/2.45)+$H$27,'3 climate date'!F83) -> 2.385521678 | H106: =IF(('3 climate date'!B83=1),G106+H105, "") -> 269.7528441
A107: =IF('3 climate date'!B84=1, '3 climate date'!D84, "") -> 70 | B107: =IF('3 climate date'!$B84=1, '3 climate date'!E84, "") -> 2006-07-14 | C107: =IF('3 climate date'!B84=1, '3 climate date'!G84, "") -> 14.4447375 | D107: =IF('3 climate date'!B84=1, '3 climate date'!H84, "") -> 26.97173611 | E107: =IF(('3 climate date'!B84=1),(D107-$D$31)+E106,"") -> 1584.777358 | F107: =IF(('3 climate date'!B84=1),($D$23+($D$25-$D$23)/(1+EXP(($D$27-E107)/$D$29))),"") -> 4.812104974 | G107: =IF(('3 climate date'!$BA$41=1),$H$23*((1-EXP(-$H$25*F107))*C107/2.45)+$H$27,'3 climate date'!F84) -> 5.562163493 | H107: =IF(('3 climate date'!B84=1),G107+H106, "") -> 275.3150076
A108: =IF('3 climate date'!B85=1, '3 climate date'!D85, "") -> 71 | B108: =IF('3 climate date'!$B85=1, '3 climate date'!E85, "") -> 2006-07-15 | C108: =IF('3 climate date'!B85=1, '3 climate date'!G85, "") -> 14.345925 | D108: =IF('3 climate date'!B85=1, '3 climate date'!H85, "") -> 27.37409722 | E108: =IF(('3 climate date'!B85=1),(D108-$D$31)+E107,"") -> 1604.151455 | F108: =IF(('3 climate date'!B85=1),($D$23+($D$25-$D$23)/(1+EXP(($D$27-E108)/$D$29))),"") -> 4.81356187 | G108: =IF(('3 climate date'!$BA$41=1),$H$23*((1-EXP(-$H$25*F108))*C108/2.45)+$H$27,'3 climate date'!F85) -> 5.525601388 | H108: =IF(('3 climate date'!B85=1),G108+H107, "") -> 280.840609
A109: =IF('3 climate date'!B86=1, '3 climate date'!D86, "") -> 72 | B109: =IF('3 climate date'!$B86=1, '3 climate date'!E86, "") -> 2006-07-16 | C109: =IF('3 climate date'!B86=1, '3 climate date'!G86, "") -> 13.5775875 | D109: =IF('3 climate date'!B86=1, '3 climate date'!H86, "") -> 27.62083333 | E109: =IF(('3 climate date'!B86=1),(D109-$D$31)+E108,"") -> 1623.772288 | F109: =IF(('3 climate date'!B86=1),($D$23+($D$25-$D$23)/(1+EXP(($D$27-E109)/$D$29))),"") -> 4.814839196 | G109: =IF(('3 climate date'!$BA$41=1),$H$23*((1-EXP(-$H$25*F109))*C109/2.45)+$H$27,'3 climate date'!F86) -> 5.239897405 | H109: =IF(('3 climate date'!B86=1),G109+H108, "") -> 286.0805064
A110: =IF('3 climate date'!B87=1, '3 climate date'!D87, "") -> 73 | B110: =IF('3 climate date'!$B87=1, '3 climate date'!E87, "") -> 2006-07-17 | C110: =IF('3 climate date'!B87=1, '3 climate date'!G87, "") -> 14.0848875 | D110: =IF('3 climate date'!B87=1, '3 climate date'!H87, "") -> 28.05694444 | E110: =IF(('3 climate date'!B87=1),(D110-$D$31)+E109,"") -> 1643.829233 | F110: =IF(('3 climate date'!B87=1),($D$23+($D$25-$D$23)/(1+EXP(($D$27-E110)/$D$29))),"") -> 4.815966667 | G110: =IF(('3 climate date'!$BA$41=1),$H$23*((1-EXP(-$H$25*F110))*C110/2.45)+$H$27,'3 climate date'!F87) -> 5.428804179 | H110: =IF(('3 climate date'!B87=1),G110+H109, "") -> 291.5093106
A111: =IF('3 climate date'!B88=1, '3 climate date'!D88, "") -> 74 | B111: =IF('3 climate date'!$B88=1, '3 climate date'!E88, "") -> 2006-07-18 | C111: =IF('3 climate date'!B88=1, '3 climate date'!G88, "") -> 6.7673625 | D111: =IF('3 climate date'!B88=1, '3 climate date'!H88, "") -> 26.90527778 | E111: =IF(('3 climate date'!B88=1),(D111-$D$31)+E110,"") -> 1662.73451 | F111: =IF(('3 climate date'!B88=1),($D$23+($D$25-$D$23)/(1+EXP(($D$27-E111)/$D$29))),"") -> 4.816886568 | G111: =IF(('3 climate date'!$BA$41=1),$H$23*((1-EXP(-$H$25*F111))*C111/2.45)+$H$27,'3 climate date'!F88) -> 2.706107663 | H111: =IF(('3 climate date'!B88=1),G111+H110, "") -> 294.2154183
A112: =IF('3 climate date'!B89=1, '3 climate date'!D89, "") -> 75 | B112: =IF('3 climate date'!$B89=1, '3 climate date'!E89, "") -> 2006-07-19 | C112: =IF('3 climate date'!B89=1, '3 climate date'!G89, "") -> 11.1184125 | D112: =IF('3 climate date'!B89=1, '3 climate date'!H89, "") -> 27.74666667 | E112: =IF(('3 climate date'!B89=1),(D112-$D$31)+E111,"") -> 1682.481177 | F112: =IF(('3 climate date'!B89=1),($D$23+($D$25-$D$23)/(1+EXP(($D$27-E112)/$D$29))),"") -> 4.817719332 | G112: =IF(('3 climate date'!$BA$41=1),$H$23*((1-EXP(-$H$25*F112))*C112/2.45)+$H$27,'3 climate date'!F89) -> 4.32520422 | H112: =IF(('3 climate date'!B89=1),G112+H111, "") -> 298.5406225
A113: =IF('3 climate date'!B90=1, '3 climate date'!D90, "") -> 76 | B113: =IF('3 climate date'!$B90=1, '3 climate date'!E90, "") -> 2006-07-20 | C113: =IF('3 climate date'!B90=1, '3 climate date'!G90, "") -> 13.94175 | D113: =IF('3 climate date'!B90=1, '3 climate date'!H90, "") -> 27.93319444 | E113: =IF(('3 climate date'!B90=1),(D113-$D$31)+E112,"") -> 1702.414371 | F113: =IF(('3 climate date'!B90=1),($D$23+($D$25-$D$23)/(1+EXP(($D$27-E113)/$D$29))),"") -> 4.818445065 | G113: =IF(('3 climate date'!$BA$41=1),$H$23*((1-EXP(-$H$25*F113))*C113/2.45)+$H$27,'3 climate date'!F90) -> 5.375875995 | H113: =IF(('3 climate date'!B90=1),G113+H112, "") -> 303.9164985
A114: =IF('3 climate date'!B91=1, '3 climate date'!D91, "") -> 77 | B114: =IF('3 climate date'!$B91=1, '3 climate date'!E91, "") -> 2006-07-21 | C114: =IF('3 climate date'!B91=1, '3 climate date'!G91, "") -> 13.952475 | D114: =IF('3 climate date'!B91=1, '3 climate date'!H91, "") -> 27.76888889 | E114: =IF(('3 climate date'!B91=1),(D114-$D$31)+E113,"") -> 1722.18326 | F114: =IF(('3 climate date'!B91=1),($D$23+($D$25-$D$23)/(1+EXP(($D$27-E114)/$D$29))),"") -> 4.819066343 | G114: =IF(('3 climate date'!$BA$41=1),$H$23*((1-EXP(-$H$25*F114))*C114/2.45)+$H$27,'3 climate date'!F91) -> 5.379949939 | H114: =IF(('3 climate date'!B91=1),G114+H113, "") -> 309.2964484
A115: =IF('3 climate date'!B92=1, '3 climate date'!D92, "") -> 78 | B115: =IF('3 climate date'!$B92=1, '3 climate date'!E92, "") -> 2006-07-22 | C115: =IF('3 climate date'!B92=1, '3 climate date'!G92, "") -> 12.5090625 | D115: =IF('3 climate date'!B92=1, '3 climate date'!H92, "") -> 27.46715278 | E115: =IF(('3 climate date'!B92=1),(D115-$D$31)+E114,"") -> 1741.650413 | F115: =IF(('3 climate date'!B92=1),($D$23+($D$25-$D$23)/(1+EXP(($D$27-E115)/$D$29))),"") -> 4.819595324 | G115: =IF(('3 climate date'!$BA$41=1),$H$23*((1-EXP(-$H$25*F115))*C115/2.45)+$H$27,'3 climate date'!F92) -> 4.842895317 | H115: =IF(('3 climate date'!B92=1),G115+H114, "") -> 314.1393437
A116: =IF('3 climate date'!B93=1, '3 climate date'!D93, "") -> 79 | B116: =IF('3 climate date'!$B93=1, '3 climate date'!E93, "") -> 2006-07-23 | C116: =IF('3 climate date'!B93=1, '3 climate date'!G93, "") -> 10.5775875 | D116: =IF('3 climate date'!B93=1, '3 climate date'!H93, "") -> 27.46638889 | E116: =IF(('3 climate date'!B93=1),(D116-$D$31)+E115,"") -> 1761.116802 | F116: =IF(('3 climate date'!B93=1),($D$23+($D$25-$D$23)/(1+EXP(($D$27-E116)/$D$29))),"") -> 4.820053194 | G116: =IF(('3 climate date'!$BA$41=1),$H$23*((1-EXP(-$H$25*F116))*C116/2.45)+$H$27,'3 climate date'!F93) -> 4.124197662 | H116: =IF(('3 climate date'!B93=1),G116+H115, "") -> 318.2635414
A117: =IF('3 climate date'!B94=1, '3 climate date'!D94, "") -> 80 | B117: =IF('3 climate date'!$B94=1, '3 climate date'!E94, "") -> 2006-07-24 | C117: =IF('3 climate date'!B94=1, '3 climate date'!G94, "") -> 10.1560875 | D117: =IF('3 climate date'!B94=1, '3 climate date'!H94, "") -> 27.35652778 | E117: =IF(('3 climate date'!B94=1),(D117-$D$31)+E116,"") -> 1780.47333 | F117: =IF(('3 climate date'!B94=1),($D$23+($D$25-$D$23)/(1+EXP(($D$27-E117)/$D$29))),"") -> 4.820447438 | G117: =IF(('3 climate date'!$BA$41=1),$H$23*((1-EXP(-$H$25*F117))*C117/2.45)+$H$27,'3 climate date'!F94) -> 3.967384785 | H117: =IF(('3 climate date'!B94=1),G117+H116, "") -> 322.2309262
A118: =IF('3 climate date'!B95=1, '3 climate date'!D95, "") -> 81 | B118: =IF('3 climate date'!$B95=1, '3 climate date'!E95, "") -> 2006-07-25 | C118: =IF('3 climate date'!B95=1, '3 climate date'!G95, "") -> 12.3167625 | D118: =IF('3 climate date'!B95=1, '3 climate date'!H95, "") -> 27.82479167 | E118: =IF(('3 climate date'!B95=1),(D118-$D$31)+E117,"") -> 1800.298121 | F118: =IF(('3 climate date'!B95=1),($D$23+($D$25-$D$23)/(1+EXP(($D$27-E118)/$D$29))),"") -> 4.820796631 | G118: =IF(('3 climate date'!$BA$41=1),$H$23*((1-EXP(-$H$25*F118))*C118/2.45)+$H$27,'3 climate date'!F95) -> 4.771477916 | H118: =IF(('3 climate date'!B95=1),G118+H117, "") -> 327.0024041
A119: =IF('3 climate date'!B96=1, '3 climate date'!D96, "") -> 82 | B119: =IF('3 climate date'!$B96=1, '3 climate date'!E96, "") -> 2006-07-26 | C119: =IF('3 climate date'!B96=1, '3 climate date'!G96, "") -> 12.636 | D119: =IF('3 climate date'!B96=1, '3 climate date'!H96, "") -> 28.03395833 | E119: =IF(('3 climate date'!B96=1),(D119-$D$31)+E118,"") -> 1820.33208 | F119: =IF(('3 climate date'!B96=1),($D$23+($D$25-$D$23)/(1+EXP(($D$27-E119)/$D$29))),"") -> 4.821101021 | G119: =IF(('3 climate date'!$BA$41=1),$H$23*((1-EXP(-$H$25*F119))*C119/2.45)+$H$27,'3 climate date'!F96) -> 4.89031363 | H119: =IF(('3 climate date'!B96=1),G119+H118, "") -> 331.8927177
A120: =IF('3 climate date'!B97=1, '3 climate date'!D97, "") -> 83 | B120: =IF('3 climate date'!$B97=1, '3 climate date'!E97, "") -> 2006-07-27 | C120: =IF('3 climate date'!B97=1, '3 climate date'!G97, "") -> 12.690975 | D120: =IF('3 climate date'!B97=1, '3 climate date'!H97, "") -> 28.52222222 | E120: =IF(('3 climate date'!B97=1),(D120-$D$31)+E119,"") -> 1840.854302 | F120: =IF(('3 climate date'!B97=1),($D$23+($D$25-$D$23)/(1+EXP(($D$27-E120)/$D$29))),"") -> 4.821369293 | G120: =IF(('3 climate date'!$BA$41=1),$H$23*((1-EXP(-$H$25*F120))*C120/2.45)+$H$27,'3 climate date'!F97) -> 4.910804386 | H120: =IF(('3 climate date'!B97=1),G120+H119, "") -> 336.8035221
A121: =IF('3 climate date'!B98=1, '3 climate date'!D98, "") -> 84 | B121: =IF('3 climate date'!$B98=1, '3 climate date'!E98, "") -> 2006-07-28 | C121: =IF('3 climate date'!B98=1, '3 climate date'!G98, "") -> 12.1245 | D121: =IF('3 climate date'!B98=1, '3 climate date'!H98, "") -> 29.25611111 | E121: =IF(('3 climate date'!B98=1),(D121-$D$31)+E120,"") -> 1862.110413 | F121: =IF(('3 climate date'!B98=1),($D$23+($D$25-$D$23)/(1+EXP(($D$27-E121)/$D$29))),"") -> 4.821607283 | G121: =IF(('3 climate date'!$BA$41=1),$H$23*((1-EXP(-$H$25*F121))*C121/2.45)+$H$27,'3 climate date'!F98) -> 4.700024646 | H121: =IF(('3 climate date'!B98=1),G121+H120, "") -> 341.5035467
AA2676: 1

Sheet 9 STRAT A
AZ6: Table 3. mean values of Ion concentration in the recirculating nutrient solution or substarte
AK7: Results | BB7: Mean | BC7: er.st | BD7: n
AK8: Table 4 (Total) | AZ8: Mean ECNS (dS m-1) | BB8: =AVERAGE(AI38:AI135) -> 3.665178806 | BC8: =STDEV(AI38:AI135)/(COUNT(AI38:AI135)^0.5) -> 0.05514144159 | BD8: =COUNT(AI38:AI135) -> 94
AK9: WU (L m-2) | AM9: =SUM(J38:J140) -> 341.5035467 | AZ9: Mean NNS (mol m-3) | BB9: =AVERAGE(X38:X135) -> 10.09451544 | BC9: =STDEV(X38:X135)/(COUNT(X38:X135)^0.5) -> 0.009623720823 | BD9: =COUNT(X38:X135) -> 94
AK10: WL for each flushing (L m-2) | AM10: =J29 -> 18 | AZ10: Mean PNS (mol m-3) | BB10: =AVERAGE(Y38:Y135) -> 1.009451544 | BC10: =STDEV(Y38:Y135)/(COUNT(Y38:Y135)^0.5) -> 0.0009623720823 | BD10: =COUNT(Y38:Y135) -> 94
AK11: Number of flushing | AM11: =$AJ$36 -> 10 | AZ11: Mean KNS (mol m-3) | BB11: =AVERAGE(AB38:AB135) -> 6.767987147 | BC11: =STDEV(AB38:AB135)/(COUNT(AB38:AB135)^0.5) -> 0.006569072199 | BD11: =COUNT(AB38:AB135) -> 94
AK12: WL (L m-2) | AM12: =$AK$36 -> 180 | AZ12: Mean CaNS (mol m-3) | BB12: =(AVERAGE(AC38:AC135))/2 -> 4.640921213 | BC12: =STDEV(AC38:AC135)/(COUNT(AC38:AC135)^0.5) -> 0.07055511074 | BD12: =COUNT(AC38:AC135) -> 94
AK13: WL + WL end (L m-2) | AM13: =AM12+J26 -> 196 | AZ13: Mean MgNS (mol m-3) | BB13: =(AVERAGE(AD38:AD135))/2 -> 1.151555479 | BC13: =STDEV(AD38:AD135)/(COUNT(AD38:AD135)^0.5) -> 0.04634027718 | BD13: =COUNT(AD38:AD135) -> 94
AK14: WUSE (L m-2) | AM14: =AM9+AM13 -> 537.5035467 | AZ14: Mean NaNS (mol m-3) | BB14: =(AVERAGE(AE38:AE135)) -> 18.22788901 | BC14: =STDEV(AE38:AE135)/(COUNT(AE38:AE135)^0.5) -> 0.4679467076 | BD14: =COUNT(AE38:AE135) -> 94
AK15: LRTOT | AM15: =AM13/AM9 -> 0.5739325458
AK16: LFTOT | AM16: =AM13/(AM9+AM13) -> 0.3646487566
AK17: Table 6 Balance for N,P,K,Ca, Mg, Na
AM18: N | AO18: P | AQ18: K | AS18: Na | AU18: Ca | AW18: Mg
B19: Input simulazione ETE | AK19: Supply from water, (IUSE) (g/m2) | AM19: =($BU$36*$U$23+$CY$36*$V$23)*14.007/1000 -> 0 | AO19: =($BU$36*$U$24+$CY$36*$V$24)*30.957/1000 -> 0 | AQ19: =($BU$36*$X$23+$CY$36*$Y$23)*39.1/1000 -> 0 | AS19: =($BU$36*$X$26+$CY$36*$Y$26)*22.9898/1000 -> 117.3924409 | AU19: =($BU$36*$X$24+$CY$36*$Y$24)*20.04/1000 -> 32.31471323 | AW19: =($BU$36*$X$25+$CY$36*$Y$25)*12.156/1000 -> 10.45422898
I20: Input tecnologici | J20: J | K20: K | L20: L | M20: M | N20: N | O20: O | P20: P | Q20: Q | R20: R | S20: S | T20: T | U20: U | V20: V | W20: W | X20: X | Y20: Y | Z20: Z | AA20: AA | AB20: AB | AC20: AC | AD20: AD | AE20: AE | AF20: AF | AK20: Supply from stock NS, (IUSE) (g/m2) | AM20: =AR36*$AB$23*$AC$29*14.007/1000+BV36*$AC$23*$AC$29*14.007/1000 -> 60.28537913 | AO20: =$AR$36*$AB$24*$AC$29*30.957/1000+$BV$36*$AC$24*$AC$29*30.957/1000 -> 13.32372729 | AQ20: =$AR$36*$AE$23*$AC$29*39.1/1000+$BV$36*$AF$23*$AC$29*39.1/1000 -> 112.8390043 | AS20: =$AR$36*$AE$26*$AC$29*22.9898/1000+$BV$36*$AF$26*$AC$29*22.9898/1000 -> 0 | AU20: =$AR$36*$AE$24*$AC$29*20.04/1000+$BV$36*$AF$24*$AC$29*20.04/1000 -> 43.12554429 | AW20: =$AR$36*$AE$25*$AC$29*12.156/1000+$BV$36*$AF$25*$AC$29*12.156/1000 -> 0 | AZ20: Table 3,4,5. Range of nutrient concentrations | BK20: Mean
E21: B | F21: -0.3354 | I21: Input tecnologici | L21: Input fisiologici (mEq) | T21: Input acqua irrigua (mEq) | AA21: Input soluzione nutritiva | AK21: Total supply, (IUSE) (g/m2) | AM21: =AM19+AM20 -> 60.28537913 | AO21: =AO19+AO20 -> 13.32372729 | AQ21: =AQ19+AQ20 -> 112.8390043 | AS21: =AS19+AS20 -> 117.3924409 | AU21: =AU19+AU20 -> 75.44025752 | AW21: =AW19+AW20 -> 10.45422898 | BB21: Mean | BK21: I stage | BN21: II stage
B22: A | C22: 0.386 | E22: T | F22: 4.823 | M22: I Stage | N22: II Stage | P22: I Stage | Q22: II Stage | U22: I Stage | V22: II Stage | X22: I Stage | Y22: II Stage | AB22: I Stage | AC22: II Stage | AE22: I Stage | AF22: II Stage | AK22: Leached (IL) (g/m2) | AM22: =AL36 -> 18.3885601 | AO22: =AM36 -> 4.064072643 | AQ22: =AN36 -> 34.41939026 | AS22: =AO36 -> 85.935588 | AU22: =AP36 -> 29.99945178 | AW22: =AQ36 -> 5.649354727 | BB22: After Flushing | BE22: After EC adjustment | BH22: Before Flushing | BK22: After Fl | BL22: After EC ad | BM22: Bef FL | BN22: After Fl | BO22: After EC ad | BP22: Bef Fl
B23: k | C23: 0.69 | E23: V50 | F23: 755.3 | I23: Vt (mm) | J23: ='7 TOT Input '!E42 -> 6 | L23: CNup | M23: ='7 TOT Input '!E72+'7 TOT Input '!F72 -> 10 | N23: ='7 TOT Input '!E74+'7 TOT Input '!F74 -> 7 | O23: CKup | P23: ='7 TOT Input '!H72 -> 6.7 | Q23: ='7 TOT Input '!H74 -> 4.7 | T23: CNi | U23: ='7 TOT Input '!E58+'7 TOT Input '!F58 -> 0 | V23: ='7 TOT Input '!E60+'7 TOT Input '!F60 -> 0 | W23: CKi | X23: ='7 TOT Input '!H58 -> 0 | Y23: ='7 TOT Input '!H60 -> 0 | AA23: CNns | AB23: ='7 TOT Input '!E66+'7 TOT Input '!F66 -> 10 | AC23: ='7 TOT Input '!E68+'7 TOT Input '!F68 -> 7 | AD23: CKns | AE23: ='7 TOT Input '!H66 -> 6.7 | AF23: ='7 TOT Input '!H68 -> 4.7 | AK23: Ion at the end of cycle (g/m2) | AM23: =(INDIRECT(ADDRESS((D33+36),24)))*$J$26*14/1000 -> 2.245145827 | AO23: =(INDIRECT(ADDRESS(($D$33+37),25)))*$J$26*30.957/1000 -> 0.5015574809 | AQ23: =(INDIRECT(ADDRESS(($D$33+37),28)))*$J$26*39.1/1000 -> 4.253419341 | AS23: =(INDIRECT(ADDRESS(($D$33+37),31)))*$J$26*22.9898/1000 -> 4.547801995 | AU23: =(INDIRECT(ADDRESS(($D$33+37),29)))*$J$26*20.04/1000 -> 2.721219206 | AW23: =(INDIRECT(ADDRESS(($D$33+37),30)))*$J$26*12.156/1000 -> 0.3752851789 | AZ23: Mean ECNS (dS m-1) | BB23: =IF(COUNT(BL38:BL135,CP38:CP135)=0,0,AVERAGE(BL38:BL135,CP38:CP135)) -> 2.086047016 | BC23: =IF(COUNT(BL38:BL1135,CP38:CP1135)=0,0,STDEV(BL38:BL1135,CP38:CP1135)) -> 0.01031208376 | BD23: =(COUNT(BL38:BL1135,CP38:CP1135)) -> 10 | BE23: =IF(COUNT(BS38:BS1135,CW38:CW1135)=0,0,AVERAGE(BS38:BS1135,CW38:CW1135)) -> 3 | BF23: =IF(COUNT(BS38:BS135,CW38:CW135)=0,0,STDEV(BS38:BS135,CW38:CW135)) -> 0 | BG23: =COUNT(BS38:BS135,CW38:CW135) -> 10 | BH23: =IF(COUNT(BE38:BE135,CI38:CI135)=0,0,AVERAGE(BE38:BE135,CI38:CI135)) -> 4.485981868 | BI23: =IF(COUNT(BE38:BE135,CI38:CI135)=0,0,STDEV(BE38:BE135,CI38:CI135)) -> 0.05477971806 | BJ23: =COUNT(BE38:BE135,CI38:CI135) -> 10 | BK23: =BL36 -> 2.086010844 | BL23: =BS36 -> 3 | BM23: =BE36 -> 4.485789711 | BN23: =CP36 -> 2.086083189 | BO23: =CW36 -> 3 | BP23: =CI36 -> 4.486174025
B24: C | C24: 0.188 | E24: SLOPE | F24: 134.7 | I24: Vs (mm) | J24: ='7 TOT Input '!L42 -> 10 | L24: CPup | M24: ='7 TOT Input '!G72 -> 1 | N24: ='7 TOT Input '!G74 -> 0.7 | O24: CCaup | P24: ='7 TOT Input '!I72*2 -> 7.1 | Q24: ='7 TOT Input '!I74*2 -> 5.6 | T24: CPi | U24: ='7 TOT Input '!G58 -> 0 | V24: ='7 TOT Input '!G60 -> 0 | W24: CCai | X24: ='7 TOT Input '!I58*2 -> 3 | Y24: ='7 TOT Input '!I60*2 -> 3 | AA24: CPns | AB24: ='7 TOT Input '!G66 -> 1 | AC24: ='7 TOT Input '!G68 -> 0.7 | AD24: CCans | AE24: ='7 TOT Input '!I66*2 -> 5 | AF24: ='7 TOT Input '!I68*2 -> 3.5 | AK24: Total ion leached (IL) (g/m2) | AM24: =AM22+AM23 -> 20.63370593 | AO24: =AO23+AO22 -> 4.565630124 | AQ24: =AQ23+AQ22 -> 38.6728096 | AS24: =AS23+AS22 -> 90.48339 | AU24: =AU23+AU22 -> 32.72067099 | AW24: =AW23+AW22 -> 6.024639906 | AZ24: Mean N (mol m-3) | BB24: =IF(COUNT(BF38:BF135,CJ38:CJ135)=0,0,AVERAGE(BF38:BF135,CJ38:CJ135)) -> 1.902764406 | BC24: =IF(COUNT(BF38:BF1135,CJ38:CJ1135)=0,0,STDEV(BF38:BF135,CJ38:CJ135)) -> 0.01848808761 | BD24: =(COUNT(BF38:BF135,CJ38:CJ135)) -> 10 | BE24: =IF(COUNT(BM38:BM135,CQ38:CQ135)=0,0,AVERAGE(BM38:BM135,CQ38:CQ135)) -> 10.12044967 | BF24: =IF(COUNT(BM38:BM135,CQ38:CQ135)=0,0,STDEV(BM38:BM135,CQ38:CQ135)) -> 0.09063008904 | BG24: =COUNT(BM38:BM135,CQ38:CQ135) -> 10 | BH24: =IF(COUNT(AY38:AY135,CC38:CC135)=0,0,AVERAGE(AY38:AY135,CC38:CC135)) -> 10.10784049 | BI24: =IF(COUNT(AY38:AY135,CC38:CC135)=0,0,STDEV(AY38:AY135,CC38:CC135)) -> 0.09821218009 | BJ24: =COUNT(AY38:AY135,CC38:CC135) -> 10 | BK24: =BF36 -> 1.899658391 | BL24: =BM36 -> 10.12268274 | BM24: =AY36 -> 10.09134075 | BN24: =CJ36 -> 1.905870421 | BO24: =CQ36 -> 10.1182166 | BP24: =CC36 -> 10.12434022
I25: area coltivata (m2) | J25: ='7 TOT Input '!E48 -> 10 | L25: CSup | M25: ='7 TOT Input '!K72*2 -> 3 | N25: ='7 TOT Input '!K74*2 -> 3 | O25: CMgup | P25: ='7 TOT Input '!J72*2 -> 1.2 | Q25: ='7 TOT Input '!J74*2 -> 0.9 | T25: CSi | U25: ='7 TOT Input '!K58*2 -> 1.2 | V25: ='7 TOT Input '!K60*2 -> 1.2 | W25: CMgi | X25: ='7 TOT Input '!J58*2 -> 1.6 | Y25: ='7 TOT Input '!J60*2 -> 1.6 | AA25: CSns | AB25: ='7 TOT Input '!K66*2 -> 3.84 | AC25: ='7 TOT Input '!K68*2 -> 3.64 | AD25: CMgns | AE25: ='7 TOT Input '!J66*2 -> 0 | AF25: ='7 TOT Input '!J68*2 -> 0 | AK25: Ion Uptake (IU) (g/m2) | AM25: =AM20-AM22-AM23 -> 39.65167319 | AO25: =AO20-AO22-AO23 -> 8.758097166 | AQ25: =AQ20-AQ22-AQ23 -> 74.16619469 | AS25: =AS21-AS22-AS23 -> 26.90905087 | AU25: =AU21-AU22-AU23 -> 42.71958653 | AW25: =AW21-AW22-AW23 -> 4.429589077 | AZ25: Mean P (mol m-3) | BB25: =IF(COUNT(BG38:BG135,CK38:CK135)=0,0,(AVERAGE(BG38:BG135,CK38:CK135))) -> 0.1902764406 | BC25: =IF(COUNT(BG38:BG135,CK38:CK135)=0,0,STDEV(BG38:BG135,CK38:CK135)) -> 0.001848808761 | BD25: =COUNT(BG38:BG1135,CK38:CK1135) -> 10 | BE25: =IF(COUNT(BN38:BN135,CR38:CR135)=0,0,AVERAGE(BN38:BN135,CR38:CR135)) -> 1.012044967 | BF25: =IF(COUNT(BN38:BN135,CR38:CR135)=0,0,STDEV(BN38:BN135,CR38:CR135)) -> 0.009063008904 | BG25: =COUNT(BN38:BN135,CR38:CR135) -> 10 | BH25: =IF(COUNT(AZ38:AZ135,CD38:CD135)=0,0,AVERAGE(AZ38:AZ135,CD38:CD135)) -> 1.010784049 | BI25: =IF(COUNT(AZ38:AZ135,CD38:CD135)=0,0,STDEV(AZ38:AZ135,CD38:CD135)) -> 0.009821218009 | BJ25: =COUNT(AZ38:AZ135,CD38:CD135) -> 10 | BK25: =BG36 -> 0.1899658391 | BL25: =BN36 -> 1.012268274 | BM25: =AZ36 -> 1.009134075 | BN25: =CK36 -> 0.1905870421 | BO25: =CR36 -> 1.01182166 | BP25: =CD36 -> 1.012434022
I26: V (mm) | J26: =J24+J23 -> 16 | L26: CClup | M26: =IF('7 TOT Input '!M72=0,0.0001,'7 TOT Input '!M72) -> 0.18 | N26: =IF('7 TOT Input '!M74=0,0.0001,'7 TOT Input '!M74) -> 0.18 | O26: CNaup | P26: =IF('7 TOT Input '!L72=0,0.0001,'7 TOT Input '!L72) -> 0.18 | Q26: =IF('7 TOT Input '!L74=0,0.0001,'7 TOT Input '!L74) -> 0.18 | T26: CCli | U26: ='7 TOT Input '!M58 -> 9.2 | V26: ='7 TOT Input '!M60 -> 9.2 | W26: CNai | X26: ='7 TOT Input '!L58 -> 9.5 | Y26: ='7 TOT Input '!L60 -> 9.5 | AA26: CClns | AB26: ='7 TOT Input '!M66 -> 0 | AC26: ='7 TOT Input '!M68 -> 0 | AD26: CNans | AE26: ='7 TOT Input '!L66 -> 0 | AF26: ='7 TOT Input '!L68 -> 0 | AM26: mean | AN26: dev.st | AO26: mean | AP26: dev.st | AQ26: mean | AR26: dev.st | AS26: mean | AT26: dev.st | AU26: mean | AV26: dev.st | AW26: mean | AX26: dev.st | AZ26: Mean K (mol m-3) | BB26: =IF(COUNT(BH38:BH135,CL38:CL135)=0,0,(AVERAGE(BH38:BH135,CL38:CL135))) -> 1.275877089 | BC26: =IF(COUNT(BH38:BH135,CL38:CL135)=0,0,STDEV(BH38:BH135,CL38:CL135)) -> 0.01251570007 | BD26: =COUNT(BH38:BH135,CL38:CL135) -> 10 | BE26: =IF(COUNT(BO38:BO135,CS38:CS135)=0,0,AVERAGE(BO38:BO135,CS38:CS135)) -> 6.787592178 | BF26: =IF(COUNT(BO38:BO135,CS38:CS135)=0,0,STDEV(BO38:BO135,CS38:CS135)) -> 0.06075327766 | BG26: =COUNT(BO38:BO135,CS38:CS135) -> 10 | BH26: =IF(COUNT((BA38:BA135,CE38:CE135))=0,0,AVERAGE(BA38:BA135,CE38:CE135)) -> 6.777697783 | BI26: =IF(COUNT(BA38:BA135,CE38:CE135)=0,0,STDEV(BA38:BA135,CE38:CE135)) -> 0.06648574017 | BJ26: =COUNT(BA38:BA135,CE38:CE135) -> 10 | BK26: =BH36 -> 1.272771122 | BL26: =BO36 -> 6.782197436 | BM26: =BA36 -> 6.761198304 | BN26: =CL36 -> 1.278983056 | BO26: =CS36 -> 6.792986921 | BP26: =CE36 -> 6.794197261
I27: V (litri) | J27: =J26*J25 -> 160 | L27: Somma A- | M27: =SUM(M23:M26) -> 14.18 | N27: =SUM(N23:N26) -> 10.88 | O27: Somma C+ | P27: =SUM(P23:P26) -> 15.18 | Q27: =SUM(Q23:Q26) -> 11.38 | T27: Somma A- | U27: =SUM(U23:U26) -> 10.4 | V27: =SUM(V23:V26) -> 10.4 | W27: Somma C+ | X27: =SUM(X23:X26) -> 14.1 | Y27: =SUM(Y23:Y26) -> 14.1 | AA27: Somma A- | AB27: =SUM(AB23:AB26) -> 14.84 | AC27: =SUM(AC23:AC26) -> 11.34 | AD27: Somma C+ | AE27: =SUM(AE23:AE26) -> 11.7 | AF27: =SUM(AF23:AF26) -> 8.2 | AK27: Mean CI Lea I (mol m-3) | AM27: =AS36 -> 7.281495432 | AN27: =AS37 -> 0.09440737521 | AO27: =AT36 -> 0.7281495432 | AP27: =AT37 -> 0.009440737521 | AQ27: =AU36 -> 4.878601939 | AR27: =AU37 -> 0.06325294139 | AS27: =AV36 -> 20.97603179 | AT27: =AV37 -> 0.4190871144 | AU27: =AW36/2 -> 0.4171458797 | AV27: =AW37/2 -> 0.005324846308 | AW27: =AX36/2 -> 0.1178259973 | AX27: =AX37/2 -> 0.002033784777 | AZ27: Mean Ca (mol m-3) | BB27: =IF(COUNT(BJ38:BJ135,CN38:CN135)=0,0,(AVERAGE(BJ38:BJ135,CN38:CN135))/2) -> 2.193513099 | BC27: =IF(COUNT(BJ38:BJ135,CN38:CN135)=0,0,STDEV(BJ38:BJ135,CN38:CN135)) -> 0.02083035536 | BD27: =(COUNT(BJ38:BJ135,CN38:CN135)) -> 10 | BE27: =IF(COUNT(BQ38:BQ135,CU38:CU135)=0,0,((AVERAGE(BQ38:BQ135,CU38:CU135))/2)) -> 4.247934416 | BF27: =IF(COUNT(BQ38:BQ135,CU38:CU135)=0,0,(STDEV(BQ38:BQ135,CU38:CU135)/2)) -> 0.01583138359 | BG27: =COUNT(BQ38:BQ135,CU38:CU135) -> 10 | BH27: =IF(COUNT(BC38:BC135,CG38:CG135)=0,0,(AVERAGE(BC38:BC135,CG38:CG135)/2)) -> 5.184071324 | BI27: =IF(COUNT(BC38:BC135,CG38:CG135)=0,0,(STDEV(BC38:BC135,CG38:CG135)/2)) -> 0.05532737227 | BJ27: =COUNT(BC38:BC135,CG38:CG135) -> 10 | BK27: =BJ36/2 -> 2.196952867 | BL27: =BQ36/2 -> 4.252708955 | BM27: =BC36/2 -> 5.202344014 | BN27: =CN36/2 -> 2.190073332 | BO27: =CU36/2 -> 4.243159877 | BP27: =CG36/2 -> 5.165798634
I28: Vs/V | J28: =J24/J26 -> 0.625 | AK28: Mean CILea II (mol m-3) | AM28: =BW36 -> 7.305306488 | AN28: =BW37 -> 0.0450813294 | AO28: =BX36 -> 0.7305306488 | AP28: =BX37 -> 0.00450813294 | AQ28: =BY36 -> 4.902412627 | AR28: =BY37 -> 0.02868748289 | AS28: =BZ36 -> 20.55716409 | AT28: =BZ37 -> 0.1552939417 | AU28: =CA36/2 -> 4.145089157 | AV28: =CA37/2 -> 0.01777547018 | AW28: =CB36/2 -> 1.403617622 | AX28: =CB37/2 -> 0.06165849704 | AZ28: Mean Mg (mol m-3) | BB28: =IF(COUNT(BK38:BK135,CO38:CO135)=0,0,(AVERAGE(BK38:BK135,CO38:CO135))/2) -> 0.9280802844 | BC28: =IF(COUNT(BK38:BK135,CO38:CO135)=0,0,STDEV(BK38:BK135,CO38:CO135)) -> 0.06596043796 | BD28: =COUNT(BK38:BK135,CO38:CO135) -> 10 | BE28: =IF(COUNT(BR38:BR135,CV38:CV135)=0,0,(AVERAGE(BR38:BR135,CV38:CV135)/2)) -> 0.9280802844 | BF28: =IF(COUNT(BR38:BR135,CV38:CV135)=0,0,(STDEV(BR38:BR135,CV38:CV135)/2)) -> 0.03298021898 | BG28: =COUNT(BR38:BR135,CV38:CV135) -> 10 | BH28: =IF(COUNT(BD38:BD135,CH38:CH135)=0,0,(AVERAGE(BD38:BD135,CH38:CH135)/2)) -> 1.480386431 | BI28: =IF(COUNT(BD38:BD135,CH38:CH135)=0,0,(STDEV(BD38:BD135,CH38:CH135)/2)) -> 0.175197093 | BJ28: =COUNT(BD38:BD135,CH38:CH135) -> 10 | BK28: =BK36/2 -> 0.8986836753 | BL28: =BR36/2 -> 0.8986836753 | BM28: =BD36/2 -> 1.324226145 | BN28: =CO36/2 -> 0.9574768934 | BO28: =CV36/2 -> 0.9574768934 | BP28: =CH36/2 -> 1.636546718
I29: mm lavaggio dopo scarico | J29: ='7 TOT Input '!L44+'7 TOT Input '!E42 -> 18 | L29: ECMax (mS/cm) | N29: ='7 TOT Input '!E81 -> 4.5 | O29: Day to Change I to II | Q29: ='7 TOT Input '!L46 -> 54 | T29: Day to Change I to II | W29: =$Q$29 -> 54 | AA29: Fattore diluizione 1: | AC29: ='7 TOT Input '!L50 -> 100 | AD29: Day to Change I to II | AF29: =$Q$29 -> 54 | AK29: Mean CILea average (mol m-3) | AM29: =IF(COUNT(AS38:AS135,BW38:BW135)=0,0,AVERAGE(AS38:AS135,BW38:BW135)) -> 7.29340096 | AN29: =IF(COUNT(AS38:AS135,BW38:BW135)=0,0,STDEV(AS38:AS135,BW38:BW135)) -> 0.07086585998 | AO29: =IF(COUNT(AT38:AT135,BX38:BX135)=0,0,AVERAGE(AT38:AT135,BX38:BX135)) -> 0.729340096 | AP29: =IF(COUNT(AT38:AT135,BX38:BX135)=0,0,STDEV(AT38:AT135,BX38:BX135)) -> 0.007086585998 | AQ29: =IF(COUNT(AU38:AU135,BY38:BY135)=0,0,AVERAGE(AU38:AU135,BY38:BY135)) -> 4.890507283 | AR29: =IF(COUNT(AU38:AU135,BY38:BY135)=0,0,STDEV(AU38:AU135,BY38:BY135)) -> 0.04797336898 | AS29: =IF(COUNT(AV38:AV135,BZ38:BZ135)=0,0,AVERAGE(AV38:AV135,BZ38:BZ135)) -> 20.76659794 | AT29: =IF(COUNT(AV38:AV135,BZ38:BZ135)=0,0,STDEV(AV38:AV135,BZ38:BZ135)) -> 0.3708288399 | AU29: =IF(COUNT(AW38:AW135,CA38:CA135)=0,0,(AVERAGE(AW38:AW135,CA38:CA135)/2)) -> 2.281117519 | AV29: =IF(COUNT(AW38:AW135,CA38:CA135)=0,0,(STDEV(AW38:AW135,CA38:CA135)/2)) -> 1.964837567 | AW29: =IF(COUNT(AX38:AX135,CB38:CB135)=0,0,(AVERAGE(AX38:AX135,CB38:CB135)/2)) -> 0.7607218096 | AX29: =IF(COUNT(AX38:AX135,CB38:CB135)=0,0,(STDEV(AX38:AX135,CB38:CB135)/2)) -> 0.6789185748 | AZ29: Mean Na (mol m-3) | BB29: =IF(COUNT(BI38:BI135,CM38:CM135)=0,0,AVERAGE(BI38:BI135,CM38:CM135)) -> 12.43932579 | BC29: =IF(COUNT(BI38:BI135,CM38:CM135)=0,0,STDEV(BI38:BI135,CM38:CM135)) -> 0.09674497823 | BD29: =COUNT(BI38:BI135,CM38:CM135) -> 10 | BE29: =IF(COUNT(BP38:BP135,CT38:CT135)=0,0,AVERAGE(BP38:BP135,CT38:CT135)) -> 12.43932579 | BF29: =IF(COUNT(BP38:BP135,CT38:CT135)=0,0,STDEV(BP38:BP135,CT38:CT135)) -> 0.09674497823 | BG29: =COUNT(BP38:BP135,CT38:CT135) -> 10 | BH29: =IF(COUNT(BB38:BB135,CF38:CF135)=0,0,(AVERAGE(BB38:BB135,CF38:CF135))) -> 25.11424847 | BI29: =IF(COUNT(BB38:BB135,CF38:CF135)=0,0,STDEV(BB38:BB135,CF38:CF135)) -> 0.5139274231 | BJ29: =COUNT(BB38:BB135,CF38:CF135) -> 10 | BK29: =BI36 -> 12.49396467 | BL29: =BP36 -> 12.49396467 | BM29: =BB36 -> 25.40450044 | BN29: =CM36 -> 12.38468691 | BO29: =CT36 -> 12.38468691 | BP29: =CF36 -> 24.82399651
A30: Numero giorni da simulare | D30: =W30+1 -> 85 | E30: Delta EC | G30: ='7 TOT Input '!E85 -> 0.08 | I30: Portata irrigatori (mm/min) | J30: 1.5 | T30: Number of days simulated | W30: ='2 date in_end'!H19 -> 84 | AK30: Mean Time for flushing (day) | AM30: =DA36 -> 7 | AN30: =DA37 -> 1 | AP30: Time for the first flushing (day) | AR30: =DA35 -> 21 | AZ30: First WUMAX | BB30: =BT35 -> 39.7952233 | BE30: Aver. WUMAX | BF30: =(SUM(BT38:BT132,CX38:CX132)-BT35-CX36)/(COUNT(BT38:BT132,CX38:CX132)-2) -> 33.66888019 | BG30: =STDEV((INDIRECT(ADDRESS((CX35+39),74)):BT138),(INDIRECT(ADDRESS((CX35+39),103)):CX138))/((COUNT(BT38:BT138:CX38:CX138)-2)^0.5) -> 0.5986507408 | BK30: =BT36 -> 34.5744387 | BL30: =BT37 -> 2.969882338 | BM30: =COUNT(BT38:BT135) -> 5 | BN30: =CX36 -> 32.35728196 | BO30: =CX37 -> 0.7462280308 | BP30: =COUNT(CX38:CX135) -> 5 | BT30: 74 | BV30: 75 | BW30: 76 | BX30: 77 | BY30: 78 | BZ30: 79 | CA30: 80 | CB30: 81 | CC30: 82 | CD30: 83 | CE30: 84 | CF30: 85 | CG30: 86 | CH30: 87 | CI30: 88 | CJ30: 89 | CK30: 90 | CL30: 91 | CM30: 92 | CN30: 93 | CO30: 94 | CP30: 95 | CQ30: 96 | CR30: 97 | CS30: 98 | CT30: 99 | CU30: 100 | CV30: 101 | CW30: 102 | CX30: 103
A31: Numero righe da cancellare | D31: 3 | E31: delta nutrienti (N) | G31: ='7 TOT Input '!E89 -> - | L31: ECset point | N31: ='7 TOT Input '!E83 -> 3
L32: Soglia Nutrienti (N) | N32: ='7 TOT Input '!E87 -> 0 | AR32: Data relative to the I stage | BV32: Data relatrive of the II stage | CZ32: Time for FL
A33: Total simulation rows | D33: =COUNT(I38:I138)-1 -> 94 | AJ33: NS Runoff | AL33: Daily nutrient run-off | AR33: Supply I | AS33: Runoff concentration (I stage) | AY33: Nutrient concentration before flushing (I stage) | BF33: Nutrient concentration after flushing (I stage) | BM33: Nutrient concen. after flushing and EC adjustment (I stage) | BT33: VfmaxI | BU33: WUSE I | BV33: Supply II | BW33: Runoff concentration (I stage) | CC33: Nutrient concentration before flushing (II stage) | CJ33: Nutrient concentration after flushing (II stage) | CQ33: Nutrient concen. after flushing and EC adjustment (II stage) | CX33: VfmaxII | CY33: WUSE II | DC33: lavaggio
AJ34: N° discharge | AK34: Volume | AL34: N | AM34: P | AN34: K | AO34: Na | AP34: Ca | AQ34: Mg | AR34: L Stock | AS34: N | AT34: P | AU34: K | AV34: Na | AW34: Ca | AX34: Mg | AY34: N | AZ34: P | BA34: K | BB34: Na | BC34: Ca | BD34: Mg | BE34: EC | BF34: N | BG34: P | BH34: K | BI34: Na | BJ34: Ca | BK34: Mg | BL34: EC | BM34: N | BN34: P | BO34: K | BP34: Na | BQ34: Ca | BR34: Mg | BS34: EC | BU34: WUSE I | BV34: L Stock | BW34: N | BX34: P | BY34: K | BZ34: Na | CA34: Ca | CB34: Mg | CC34: N | CD34: P | CE34: K | CF34: Na | CG34: Ca | CH34: Mg | CI34: EC | CJ34: N | CK34: P | CL34: K | CM34: Na | CN34: Ca | CO34: Mg | CP34: EC | CQ34: N | CR34: P | CS34: K | CT34: Na | CU34: Ca | CV34: Mg | CW34: EC | CX34: mm | CY34: WUSE I | CZ34: day | DA34: day | DC34: CNn-1 | DD34: CPn-1 | DE34: CSn-1 | DF34: CCln-1 | DG34: CKn-1 | DH34: CCan-1 | DI34: CMgn-1 | DJ34: CNan-1 | DK34: A-n-1 | DL34: C+n-1 | DM34: ECn-1
AK35: Sum (mm) | AL35: Sum (g/m2) | AM35: Sum (g/m2) | AN35: Sum (g/m2) | AO35: Sum (g/m2) | AP35: Sum (g/m2) | AQ35: Sum (g/m2) | AR35: L/m2 | AS35: mE | AT35: mE | AU35: mE | AV35: mE | AW35: mE | AX35: mE | AY35: mE | AZ35: mE | BA35: mE | BB35: mE | BC35: mE | BD35: mE | BE35: dS m-1 | BF35: mE | BG35: mE | BH35: mE | BI35: mE | BJ35: mE | BK35: mE | BL35: dS m-1 | BM35: mE | BN35: mE | BO35: mE | BP35: mE | BQ35: mE | BR35: mE | BS35: dS m-1 | BT35: =MAX(BT38:BT138) -> 39.7952233 | BU35: L/m2 | BV35: L/m2 | BW35: mE | BX35: mE | BY35: mE | BZ35: mE | CA35: mE | CB35: mE | CC35: mE | CD35: mE | CE35: mE | CF35: mE | CG35: mE | CH35: mE | CI35: dS m-1 | CJ35: mE | CK35: mE | CL35: mE | CM35: mE | CN35: mE | CO35: mE | CP35: dS m-1 | CQ35: mE | CR35: mE | CS35: mE | CT35: mE | CU35: mE | CV35: mE | CW35: dS m-1 | CX35: =MAX(CX39:CX166) -> 33.98144079 | CY35: L/m2 | CZ35: Max | DA35: =MAX(DA38:DA137) -> 21
A36: Day | C36: RG | D36: T | E36: GDD | G36: E | H36: E cum. | I36: Day | J36: Ete daily | K36: ETE cum. | L36: Sol. Nutritiva | M36: CNn-1 | N36: CPn-1 | O36: CSn-1 | P36: CCln-1 | Q36: CKn-1 | R36: CCan-1 | S36: CMgn-1 | T36: CNan-1 | U36: A-n-1 | V36: C+n-1 | W36: ECn-1 | X36: CNn | Y36: CPn | Z36: CSn | AA36: CCln | AB36: CKn | AC36: CCan | AD36: CMgn | AE36: CNan | AF36: A-n | AG36: C+n | AH36: Cnut | AI36: ECn | AJ36: =COUNT(AK38:AK135) -> 10 | AK36: =SUM(AK38:AK135) -> 180 | AL36: =SUM(AL38:AL135) -> 18.3885601 | AM36: =SUM(AM38:AM135) -> 4.064072643 | AN36: =SUM(AN38:AN135) -> 34.41939026 | AO36: =SUM(AO38:AO135) -> 85.935588 | AP36: =SUM(AP38:AP135) -> 29.99945178 | AQ36: =SUM(AQ38:AQ135) -> 5.649354727 | AR36: =SUM(AR38:AR135) -> 2.719245024 | AS36: =IF(COUNT(AS38:AS135)=0,0,AVERAGE(AS38:AS135)) -> 7.281495432 | AT36: =IF(COUNT(AT38:AT135)=0,0,AVERAGE(AT38:AT135)) -> 0.7281495432 | AU36: =IF(COUNT(AU38:AU135)=0,0,AVERAGE(AU38:AU135)) -> 4.878601939 | AV36: =IF(COUNT(AV38:AV135)=0,0,AVERAGE(AV38:AV135)) -> 20.97603179 | AW36: =IF(COUNT(AW38:AW135)=0,0,AVERAGE(AW38:AW135)) -> 0.8342917594 | AX36: =IF(COUNT(AX38:AX135)=0,0,AVERAGE(AX38:AX135)) -> 0.2356519946 | AY36: =IF(COUNT(AY38:AY135)=0,0,AVERAGE(AY38:AY135)) -> 10.09134075 | AZ36: =IF(COUNT(AZ38:AZ135)=0,0,AVERAGE(AZ38:AZ135)) -> 1.009134075 | BA36: =IF(COUNT(BA38:BA135)=0,0,AVERAGE(BA38:BA135)) -> 6.761198304 | BB36: =IF(COUNT(BB38:BB135)=0,0,AVERAGE(BB38:BB135)) -> 25.40450044 | BC36: =IF(COUNT(BC38:BC135)=0,0,AVERAGE(BC38:BC135)) -> 10.40468803 | BD36: =IF(COUNT(BD38:BD135)=0,0,AVERAGE(BD38:BD135)) -> 2.64845229 | BE36: =IF(COUNT(BE38:BE135)=0,0,AVERAGE(BE38:BE135)) -> 4.485789711 | BF36: =IF(COUNT(BF38:BF135)=0,0,AVERAGE(BF38:BF135)) -> 1.899658391 | BG36: =IF(COUNT(BG38:BG135)=0,0,AVERAGE(BG38:BG135)) -> 0.1899658391 | BH36: =IF(COUNT(BH38:BH135)=0,0,AVERAGE(BH38:BH135)) -> 1.272771122 | BI36: =IF(COUNT(BI38:BI135)=0,0,AVERAGE(BI38:BI135)) -> 12.49396467 | BJ36: =IF(COUNT(BJ38:BJ135)=0,0,AVERAGE(BJ38:BJ135)) -> 4.393905734 | BK36: =IF(COUNT(BK38:BK135)=0,0,AVERAGE(BK38:BK135)) -> 1.797367351 | BL36: =IF(COUNT(BL38:BL135)=0,0,AVERAGE(BL38:BL135)) -> 2.086010844 | BM36: =IF(COUNT(BM38:BM135)=0,0,AVERAGE(BM38:BM135)) -> 10.12268274 | BN36: =IF(COUNT(BN38:BN135)=0,0,AVERAGE(BN38:BN135)) -> 1.012268274 | BO36: =IF(COUNT(BO38:BO135)=0,0,AVERAGE(BO38:BO135)) -> 6.782197436 | BP36: =IF(COUNT(BP38:BP135)=0,0,AVERAGE(BP38:BP135)) -> 12.49396467 | BQ36: =IF(COUNT(BQ38:BQ135)=0,0,AVERAGE(BQ38:BQ135)) -> 8.505417909 | BR36: =IF(COUNT(BR38:BR135)=0,0,AVERAGE(BR38:BR135)) -> 1.797367351 | BS36: =IF(COUNT(BS38:BS135)=0,0,AVERAGE(BS38:BS135)) -> 3 | BT36: =(SUM(BT38:BT135)-BT35)/(COUNT(BT38:BT135)-1) -> 34.5744387 | BU36: =SUM(BU38:BU137)+J26 -> 296.1403076 | BV36: =SUM(BV38:BV135) -> 2.263859303 | BW36: =IF(COUNT(BW38:BW135)=0,0,AVERAGE(BW38:BW135)) -> 7.305306488 | BX36: =IF(COUNT(BX38:BX135)=0,0,AVERAGE(BX38:BX135)) -> 0.7305306488 | BY36: =IF(COUNT(BY38:BY135)=0,0,AVERAGE(BY38:BY135)) -> 4.902412627 | BZ36: =IF(COUNT(BZ38:BZ135)=0,0,AVERAGE(BZ38:BZ135)) -> 20.55716409 | CA36: =IF(COUNT(CA38:CA135)=0,0,AVERAGE(CA38:CA135)) -> 8.290178315 | CB36: =IF(COUNT(CB38:CB135)=0,0,AVERAGE(CB38:CB135)) -> 2.807235244 | CC36: =IF(COUNT(CC38:CC135)=0,0,AVERAGE(CC38:CC135)) -> 10.12434022 | CD36: =IF(COUNT(CD38:CD135)=0,0,AVERAGE(CD38:CD135)) -> 1.012434022 | CE36: =IF(COUNT(CE38:CE135)=0,0,AVERAGE(CE38:CE135)) -> 6.794197261 | CF36: =IF(COUNT(CF38:CF135)=0,0,AVERAGE(CF38:CF135)) -> 24.82399651 | CG36: =IF(COUNT(CG38:CG135)=0,0,AVERAGE(CG38:CG135)) -> 10.33159727 | CH36: =IF(COUNT(CH38:CH135)=0,0,AVERAGE(CH38:CH135)) -> 3.273093436 | CI36: =IF(COUNT(CI38:CI135)=0,0,AVERAGE(CI38:CI135)) -> 4.486174025 | CJ36: =IF(COUNT(CJ38:CJ135)=0,0,AVERAGE(CJ38:CJ135)) -> 1.905870421 | CK36: =IF(COUNT(CK38:CK135)=0,0,AVERAGE(CK38:CK135)) -> 0.1905870421 | CL36: =IF(COUNT(CL38:CL135)=0,0,AVERAGE(CL38:CL135)) -> 1.278983056 | CM36: =IF(COUNT(CM38:CM135)=0,0,AVERAGE(CM38:CM135)) -> 12.38468691 | CN36: =IF(COUNT(CN38:CN135)=0,0,AVERAGE(CN38:CN135)) -> 4.380146663 | CO36: =IF(COUNT(CO38:CO135)=0,0,AVERAGE(CO38:CO135)) -> 1.914953787 | CP36: =IF(COUNT(CP38:CP135)=0,0,AVERAGE(CP38:CP135)) -> 2.086083189 | CQ36: =IF(COUNT(CQ38:CQ135)=0,0,AVERAGE(CQ38:CQ135)) -> 10.1182166 | CR36: =IF(COUNT(CR38:CR135)=0,0,AVERAGE(CR38:CR135)) -> 1.01182166 | CS36: =IF(COUNT(CS38:CS135)=0,0,AVERAGE(CS38:CS135)) -> 6.792986921 | CT36: =IF(COUNT(CT38:CT135)=0,0,AVERAGE(CT38:CT135)) -> 12.38468691 | CU36: =IF(COUNT(CU38:CU135)=0,0,AVERAGE(CU38:CU135)) -> 8.486319754 | CV36: =IF(COUNT(CV38:CV135)=0,0,AVERAGE(CV38:CV135)) -> 1.914953787 | CW36: =IF(COUNT(CW38:CW135)=0,0,AVERAGE(CW38:CW135)) -> 3 | CX36: =(SUM(CX38:CX135)-CX35)/(COUNT(CX38:CX135)-1) -> 32.35728196 | CY36: =SUM(CY38:CY137) -> 241.3632392 | CZ36: Average | DA36: =(SUM(DA38:DA137)-DA35)/(COUNT(DA38:DA137)-1) -> 7
C37: MJ/m2 day | D37: °C | E37: ='8 ETE'!E37 -> 420 | F37: LAI | G37: mm | H37: mm | J37: (mm/day) | K37: (mm) | L37: (l) | AJ37: Somma | AS37: =IF(COUNT(AS38:AS135)=0,0,STDEV(AS38:AS135)) -> 0.09440737521 | AT37: =IF(COUNT(AT38:AT135)=0,0,STDEV(AT38:AT135)) -> 0.009440737521 | AU37: =IF(COUNT(AU38:AU135)=0,0,STDEV(AU38:AU135)) -> 0.06325294139 | AV37: =IF(COUNT(AV38:AV135)=0,0,STDEV(AV38:AV135)) -> 0.4190871144 | AW37: =IF(COUNT(AW38:AW135)=0,0,STDEV(AW38:AW135)) -> 0.01064969262 | AX37: =IF(COUNT(AX38:AX135)=0,0,STDEV(AX38:AX135)) -> 0.004067569554 | AY37: =IF(COUNT(AY38:AY135)=0,0,STDEV(AY38:AY135)) -> 0.1308380952 | AZ37: =IF(COUNT(AZ38:AZ135)=0,0,STDEV(AZ38:AZ135)) -> 0.01308380952 | BA37: =IF(COUNT(BA38:BA135)=0,0,STDEV(BA38:BA135)) -> 0.0876615238 | BB37: =IF(COUNT(BB38:BB135)=0,0,STDEV(BB38:BB135)) -> 0.5808080106 | BC37: =IF(COUNT(BC38:BC135)=0,0,STDEV(BC38:BC135)) -> 0.1475928648 | BD37: =IF(COUNT(BD38:BD135)=0,0,STDEV(BD38:BD135)) -> 0.05637197851 | BE37: =IF(COUNT(BE38:BE135)=0,0,STDEV(BE38:BE135)) -> 0.07429507583 | BF37: =IF(COUNT(BF38:BF135)=0,0,STDEV(BF38:BF135)) -> 0.02462979811 | BG37: =IF(COUNT(BG38:BG135)=0,0,STDEV(BG38:BG135)) -> 0.002462979811 | BH37: =IF(COUNT(BH38:BH135)=0,0,STDEV(BH38:BH135)) -> 0.01650196474 | BI37: =IF(COUNT(BI38:BI135)=0,0,STDEV(BI38:BI135)) -> 0.1093350069 | BJ37: =IF(COUNT(BJ38:BJ135)=0,0,STDEV(BJ38:BJ135)) -> 0.02778382287 | BK37: =IF(COUNT(BK38:BK135)=0,0,STDEV(BK38:BK135)) -> 0.01061182103 | BL37: =IF(COUNT(BL38:BL135)=0,0,STDEV(BL38:BL135)) -> 0.01398577926 | BM37: =IF(COUNT(BM38:BM135)=0,0,STDEV(BM38:BM135)) -> 0.1219557561 | BN37: =IF(COUNT(BN38:BN135)=0,0,STDEV(BN38:BN135)) -> 0.01219557561 | BO37: =IF(COUNT(BO38:BO135)=0,0,STDEV(BO38:BO135)) -> 0.08171035657 | BP37: =IF(COUNT(BP38:BP135)=0,0,STDEV(BP38:BP135)) -> 0.1093350069 | BQ37: =IF(COUNT(BQ38:BQ135)=0,0,STDEV(BQ38:BQ135)) -> 0.03807315638 | BR37: =IF(COUNT(BR38:BR135)=0,0,STDEV(BR38:BR135)) -> 0.01061182103 | BS37: =IF(COUNT(BS38:BS135)=0,0,STDEV(BS38:BS135)) -> 0 | BT37: =IF(COUNT(BT38:BT135)=0,0,STDEV(BT38:BT135)) -> 2.969882338 | BW37: =IF(COUNT(BW38:BW135)=0,0,STDEV(BW38:BW135)) -> 0.0450813294 | BX37: =IF(COUNT(BX38:BX135)=0,0,STDEV(BX38:BX135)) -> 0.00450813294 | BY37: =IF(COUNT(BY38:BY135)=0,0,STDEV(BY38:BY135)) -> 0.02868748289 | BZ37: =IF(COUNT(BZ38:BZ135)=0,0,STDEV(BZ38:BZ135)) -> 0.1552939417 | CA37: =IF(COUNT(CA38:CA135)=0,0,STDEV(CA38:CA135)) -> 0.03555094037 | CB37: =IF(COUNT(CB38:CB135)=0,0,STDEV(CB38:CB135)) -> 0.1233169941 | CC37: =IF(COUNT(CC38:CC135)=0,0,STDEV(CC38:CC135)) -> 0.06247769579 | CD37: =IF(COUNT(CD38:CD135)=0,0,STDEV(CD38:CD135)) -> 0.006247769579 | CE37: =IF(COUNT(CE38:CE135)=0,0,STDEV(CE38:CE135)) -> 0.03975765252 | CF37: =IF(COUNT(CF38:CF135)=0,0,STDEV(CF38:CF135)) -> 0.2152200872 | CG37: =IF(COUNT(CG38:CG135)=0,0,STDEV(CG38:CG135)) -> 0.04926963927 | CH37: =IF(COUNT(CH38:CH135)=0,0,STDEV(CH38:CH135)) -> 0.1709036034 | CI37: =IF(COUNT(CI38:CI135)=0,0,STDEV(CI38:CI135)) -> 0.03509969793 | CJ37: =IF(COUNT(CJ38:CJ135)=0,0,STDEV(CJ38:CJ135)) -> 0.01176120022 | CK37: =IF(COUNT(CK38:CK135)=0,0,STDEV(CK38:CK135)) -> 0.001176120022 | CL37: =IF(COUNT(CL38:CL135)=0,0,STDEV(CL38:CL135)) -> 0.007484234261 | CM37: =IF(COUNT(CM38:CM135)=0,0,STDEV(CM38:CM135)) -> 0.04051440285 | CN37: =IF(COUNT(CN38:CN135)=0,0,STDEV(CN38:CN135)) -> 0.009274831357 | CO37: =IF(COUNT(CO38:CO135)=0,0,STDEV(CO38:CO135)) -> 0.03217198509 | CP37: =IF(COUNT(CP38:CP135)=0,0,STDEV(CP38:CP135)) -> 0.00660739116 | CQ37: =IF(COUNT(CQ38:CQ135)=0,0,STDEV(CQ38:CQ135)) -> 0.05996170783 | CR37: =IF(COUNT(CR38:CR135)=0,0,STDEV(CR38:CR135)) -> 0.005996170783 | CS37: =IF(COUNT(CS38:CS135)=0,0,STDEV(CS38:CS135)) -> 0.03943756072 | CT37: =IF(COUNT(CT38:CT135)=0,0,STDEV(CT38:CT135)) -> 0.04051440285 | CU37: =IF(COUNT(CU38:CU135)=0,0,STDEV(CU38:CU135)) -> 0.02404510154 | CV37: =IF(COUNT(CV38:CV135)=0,0,STDEV(CV38:CV135)) -> 0.03217198509 | CW37: =IF(COUNT(CW38:CW135)=0,0,STDEV(CW38:CW135)) -> 0 | CX37: =IF(COUNT(CX38:CX135)=0,0,STDEV(CX38:CX135)) -> 0.7462280308 | CZ37: dev.st | DA37: =IF(DA36=0,0,STDEV((INDIRECT(ADDRESS((DA35+39),105))):DA138)) -> 1
A38: =IF('3 climate date'!B15=1, '3 climate date'!D15, "") -> 1 | B38: =IF('3 climate date'!$B15=1, '3 climate date'!E15, "") -> 2006-05-06 | C38: =IF('3 climate date'!B15=1, '3 climate date'!G15, "") -> 13.703475 | D38: =IF('3 climate date'!B15=1, '3 climate date'!H15, "") -> 20.75722222 | E38: =IF(('3 climate date'!$B15=1),('8 ETE'!E38)," ") -> 432.7572222 | F38: =IF(('3 climate date'!$B15=1),('8 ETE'!F38)," ") -> 0.09579580669 | G38: =IF(('3 climate date'!$B15=1),('8 ETE'!G38)," ") -> 0.5263291565 | H38: =IF(('3 climate date'!$B15=1),('8 ETE'!H38)," ") -> 0.5263291565 | I38: 1 | J38: =$G$38 -> 0.5263291565 | K38: =J38 -> 0.5263291565 | L38: =$J$27/$AC$29+K38*$J$25/$AC$29 -> 1.652632916 | M38: =$U$23+$L38*$AB$23/$J$27*$AC$29 -> 10.32895572 | N38: =$U$24+$L38*$AB$24/$J$27*$AC$29 -> 1.032895572 | O38: =$U$25+$L38*$AB$25/$J$27*$AC$29 -> 5.166318998 | P38: =$U$26+$L38*$AB$26/$J$27*$AC$29 -> 9.2 | Q38: =$X$23+$L38*$AE$23/$J$27*$AC$29 -> 6.920400334 | R38: =$X$24+$L38*$AE$24/$J$27*$AC$29 -> 8.164477861 | S38: =$X$25+$L38*$AE$25/$J$27*$AC$29 -> 1.6 | T38: =$X$26+$L38*$AE$26/$J$27*$AC$29 -> 9.5 | U38: =SUM(M38:P38) -> 25.72817029 | V38: =SUM(Q38:T38) -> 26.1848782 | W38: =SUM(Q38:T38)*0.095+0.19 -> 2.677563429 | X38: =IF((M38+($U$23-$M$23)*$J38/$J$26)>=0,(M38+($U$23-$M$23)*$J38/$J$26),0) -> 10 | Y38: =IF((N38+($U$24-$M$24)*$J38/$J$26)>=0,(N38+($U$24-$M$24)*$J38/$J$26),0) -> 1 | Z38: =IF((O38+($U$25-$M$25)*$J38/$J$26)>=0,(O38+($U$25-$M$25)*$J38/$J$26),0) -> 5.107106967 | AA38: =(P38-$U$26/$M$26)*EXP(-$M$26*$J38/$J$26)+$U$26/$M$26 -> 9.44743093 | AB38: =IF((Q38+($X$23-$P$23)*$J38/$J$26)>=0,(Q38+($X$23-$P$23)*$J38/$J$26),0) -> 6.7 | AC38: =IF((R38+($X$24-$P$24)*$J38/$J$26)>=0,(R38+($X$24-$P$24)*$J38/$J$26),0) -> 8.029606015 | AD38: =IF((S38+($X$25-$P$25)*$J38/$J$26)>=0,(S38+($X$25-$P$25)*$J38/$J$26),0) -> 1.613158229 | AE38: =(T38-$X$26/$P$26)*EXP(-$P$26*$J38/$J$26)+$X$26/$P$26 -> 9.75549933 | AF38: =SUM(X38:AA38) -> 25.5545379 | AG38: =SUM(AB38:AE38) -> 26.09826357 | AH38: =X38 -> 10 | AI38: =SUM(AB38:AE38)*0.095+0.19 -> 2.66933504 | AJ38: =IF(J38>0,-10,1) -> -10 | AK38: =IF($J38=0,$J$29,"") ->  | AL38: =IF($I38<$Q$29,IF($J38=0,((X37-M38)*$J$26+$J$29*$U$23)*14.007/1000,""),IF($J38=0,((X37-M38)*$J$26+$J$29*$V$23)*14.007/1000,"")) ->  | AM38: =IF($I38<$Q$29,IF($J38=0,((Y37-N38)*$J$26+$J$29*$U$24)*30.957/1000,""),IF($J38=0,((Y37-N38)*$J$26+$J$29*$V$24)*30.957/1000,"")) ->  | AN38: =IF($I38<$Q$29,IF($J38=0,((AB37-Q38)*$J$26+$J$29*$X$23)*39.1/1000,""),IF($J38=0,((AB37-Q38)*$J$26+$J$29*$Y$23)*39.1/1000,"")) ->  | AO38: =IF($I38<$Q$29,IF($J38=0,((AE37-T38)*$J$26+$J$29*$X$26)*22.9898/1000,""),IF($J38=0,((AE37-T38)*$J$26+$J$29*$Y$26)*22.9898/1000,"")) ->  | AP38: =IF($I38<$Q$29,IF($J38=0,((AC37-R38)*$J$26+$J$29*$X$24)*20.04/1000,""),IF($J38=0,((AC37-R38)*$J$26+$J$29*$Y$24)*20.04/1000,"")) ->  | AQ38: =IF($I38<$Q$29,IF($J38=0,((AD37-S38)*$J$26+$J$29*$X$25)*12.156/1000,""),IF($J38=0,((AD37-S38)*$J$26+$J$29*$Y$25)*12.156/1000,"")) ->  | AR38: =IF($I38<$Q$29,L38/$J$25,"") -> 0.1652632916 | AS38: =IF($I38<$Q$29,IF($J38=0,AL38*1000/14.007/($AK38),""),"") ->  | AT38: =IF($I38<$Q$29,IF($J38=0,AM38*1000/30.957/($AK38),""),"") ->  | AU38: =IF($I38<$Q$29,IF($J38=0,AN38*1000/39.1/($AK38),""),"") ->  | AV38: =IF($I38<$Q$29,IF($J38=0,AO38*1000/22.9898/($AK38),""),"") ->  | AW38: =IF($I38<$Q$29,IF($J38=0,AP38*1000/20.04/($AK38*$J$25),""),"") ->  | AX38: =IF($I38<$Q$29,IF($J38=0,AQ38*1000/12.156/($AK38*$J$25),""),"") ->  | AY38: =IF($I38<$Q$29,IF($J38=0,X37,""),"") ->  | BA38: =IF($I38<$Q$29,IF($J38=0,AB37,""),"") ->  | BB38: =IF($I38<$Q$29,IF($J38=0,AE37,""),"") ->  | BC38: =IF($I38<$Q$29,IF($J38=0,AC37,""),"") ->  | BE38: =IF($I38<$Q$29,IF($J38=0,AI37,""),"") ->  | BF38: =IF($I38<$Q$29,IF($J38=0,M38,""),"") ->  | BH38: =IF($I38<$Q$29,IF($J38=0,Q38,""),"") ->  | BI38: =IF($I38<$Q$29,IF($J38=0,T38,""),"") ->  | BJ38: =IF($I38<$Q$29,IF($J38=0,R38,""),"") ->  | BL38: =IF($I38<$Q$29,IF($J38=0,W38,""),"") ->  | BO38: =IF($I38<$Q$29,IF($J38=0,AB38,""),"") ->  | BP38: =IF($I38<$Q$29,IF($J38=0,AE38,""),"") ->  | BQ38: =IF($I38<$Q$29,IF($J38=0,AC38,""),"") ->  | BS38: =IF($I38<$Q$29,IF($J38=0,AI38,""),"") ->  | BT38: =IF($I38<$Q$29,IF($J38=0,K37,""),"") ->  | BU38: =IF($I38<$Q$29,IF($J38=0,($AK38),J38),"") -> 0.5263291565 | BV38: =IF($I38<$Q$29,"",(IF($J38=0,(IF($I38=$W$30,"",L38/$J$25)),L38/$J$25))) ->  | BW38: =IF($I38<$Q$29,"",IF($J38=0,AL38*1000/14.007/($AK38),"")) ->  | BX38: =IF($I38<$Q$29,"",IF($J38=0,AM38*1000/30.957/($AK38),"")) ->  | BY38: =IF($I38<$Q$29,"",IF($J38=0,AN38*1000/39.1/($AK38),"")) ->  | BZ38: =IF($I38<$Q$29,"",IF($J38=0,AO38*1000/22.9898/($AK38),"")) ->  | CA38: =IF($I38<$Q$29,"",IF($J38=0,AP38*1000/20.04/($AK38),"")) ->  | CB38: =IF($I38<$Q$29,"",IF($J38=0,AQ38*1000/12.156/($AK38),"")) ->  | CC38: =IF($I38<$Q$29,"",IF($J38=0,X37,"")) ->  | CE38: =IF($I38<$Q$29,"",IF($J38=0,AB37,"")) ->  | CF38: =IF($I38<$Q$29,"",IF($J38=0,AE37,"")) ->  | CG38: =IF($I38<$Q$29,"",IF($J38=0,AC37,"")) ->  | CI38: =IF($I38<$Q$29,"",IF($J38=0,AI37,"")) ->  | CJ38: =IF($I38<$Q$29,"",IF($J38=0,M38,"")) ->  | CL38: =IF($I38<$Q$29,"",IF($J38=0,Q38,"")) ->  | CM38: =IF($I38<$Q$29,"",IF($J38=0,T38,"")) ->  | CN38: =IF($I38<$Q$29,"",IF($J38=0,R38,"")) ->  | CP38: =IF($I38<$Q$29,"",IF($J38=0,W38,"")) ->  | CS38: =IF($I38<$Q$29,"",IF($J38=0,AB38,"")) ->  | CT38: =IF($I38<$Q$29,"",IF($J38=0,AE38,"")) ->  | CU38: =IF($I38<$Q$29,"",IF($J38=0,AC38,"")) ->  | CW38: =IF($I38<$Q$29,"",IF($J38=0,AI38,"")) ->  | CX38: =IF($I38<$Q$29,"",IF($J38=0,K37,"")) ->  | CY38: =IF($I38<$Q$29,"",IF($J38=0,($AK38),J38)) ->  | CZ38: =IF(J38=0,0,1) -> 1 | DA38: =IF(CZ38=0,CZ37,"") -> 
A39: =IF('3 climate date'!B16=1, '3 climate date'!D16, "") -> 2 | B39: =IF('3 climate date'!$B16=1, '3 climate date'!E16, "") -> 2006-05-07 | C39: =IF('3 climate date'!B16=1, '3 climate date'!G16, "") -> 13.2840375 | D39: =IF('3 climate date'!B16=1, '3 climate date'!H16, "") -> 20.31277778 | E39: =IF(('3 climate date'!$B16=1),('8 ETE'!E39)," ") -> 445.07 | F39: =IF(('3 climate date'!$B16=1),('8 ETE'!F39)," ") -> 0.1333183012 | G39: =IF(('3 climate date'!$B16=1),('8 ETE'!G39)," ") -> 0.6386445067 | H39: =IF(('3 climate date'!$B16=1),('8 ETE'!H39)," ") -> 1.164973663 | I39: =IF(AI38<=$N$29-$G$30,I38+1,I38) -> 2 | J39: =IF(AI38<=$N$29-$G$30,INDIRECT(ADDRESS((I39+37),7)),0) -> 0.6386445067 | K39: =IF(J39=0,0,K38+J39) -> 1.164973663 | L39: =IF($I39<$Q$29,IF(J39=0,(IF($N$31-($W39+$AE$27*0.095*$J$23/$J$26)>=0,($N$31-$W39)/($AE$27*0.095)*$J$27/$AC$29,($J$23*$J$25/$AC$29))),$J39*$J$25/$AC$29),IF(J39=0,(IF($N$31-($W39+$AF$27*0.095*$J$23/$J$26)>=0,($N$31-$W39)/($AF$27*0.095)*$J$27/$AC$29,($J$23*$J$25/$AC$29))),$J39*$J$25/$AC$29)) -> 0.06386445067 | M39: =IF($I39<$Q$29,IF($AI38<=$N$29-$G$30,$X38+$L39*$AB$23*$AC$29/$J$27,DC39),IF($AI38<=$N$29-$G$30,$X38+$L39*$AC$23*$AC$29/$J$27,DC39)) -> 10.39915282 | N39: =IF($I39<$Q$29,IF($AI38<=$N$29-$G$30,$Y38+$L39*$AB$24*$AC$29/$J$27,DD39),IF($AI38<=$N$29-$G$30,$Y38+$L39*$AC$24*$AC$29/$J$27,DD39)) -> 1.039915282 | O39: =IF($I39<$Q$29,IF($AI38<=$N$29-$G$30,$Z38+$L39*$AB$25*$AC$29/$J$27,DE39),IF($AI38<=$N$29-$G$30,$Z38+$L39*$AC$25*$AC$29/$J$27,DE39)) -> 5.260381649 | P39: =IF($I39<$Q$29,IF($AI38<=$N$29-$G$30,$AA38+$L39*$AB$26*$AC$29/$J$27,DF39),IF($AI38<=$N$29-$G$30,$AA38+$L39*$AC$26*$AC$29/$J$27,DF39)) -> 9.44743093 | Q39: =IF($I39<$Q$29,IF($AI38<=$N$29-$G$30,$AB38+$L39*$AE$23*$AC$29/$J$27,DG39),IF($AI38<=$N$29-$G$30,$AB38+$L39*$AF$23*$AC$29/$J$27,DG39)) -> 6.967432387 | R39: =IF($I39<$Q$29,IF($AI38<=$N$29-$G$30,$AC38+$L39*$AE$24*$AC$29/$J$27,DH39),IF($AI38<=$N$29-$G$30,$AC38+$L39*$AF$24*$AC$29/$J$27,DH39)) -> 8.229182423 | S39: =IF($I39<$Q$29,IF($AI38<=$N$29-$G$30,$AD38+$L39*$AE$25*$AC$29/$J$27,DI39),IF($AI38<=$N$29-$G$30,$AD38+$L39*$AF$25*$AC$29/$J$27,DI39)) -> 1.613158229 | T39: =IF($I39<$Q$29,IF($AI38<=$N$29-$G$30,$AE38+$L39*$AE$26*$AC$29/$J$27,DJ39),IF($AI38<=$N$29-$G$30,$AE38+$L39*$AF$26*$AC$29/$J$27,DJ39)) -> 9.75549933 | U39: 26.14688068 | V39: 26.56527237 | W39: 2.713700875 | X39: =IF($I39<$Q$29,IF($J39=0,(M39+$L39*$AB$23*$AC$29/$J$27),(IF((M39+($U$23-$M$23)*$J39/$J$26)>=0,(M39+($U$23-$M$23)*$J39/$J$26),0))),IF($J39=0,(M39+$L39*$AC$23*$AC$29/$J$27),(IF((M39+($V$23-$N$23)*$J39/$J$26)>=0,(M39+($V$23-$N$23)*$J39/$J$26),0)))) -> 10 | Y39: =IF($I39<$Q$29,IF($J39=0,(N39+$L39*$AB$24*$AC$29/$J$27),(IF((N39+($U$24-$M$24)*$J39/$J$26)>=0,(N39+($U$24-$M$24)*$J39/$J$26),0))),IF($J39=0,(N39+$L39*$AC$24*$AC$29/$J$27),(IF((N39+($V$24-$N$24)*$J39/$J$26)>=0,(N39+($V$24-$N$24)*$J39/$J$26),0)))) -> 1 | Z39: =IF($I39<$Q$29,IF($J39=0,(O39+$L39*$AB$25*$AC$29/$J$27),(IF((O39+($U$25-$M$25)*$J39/$J$26)>=0,(O39+($U$25-$M$25)*$J39/$J$26),0))),IF($J39=0,(O39+$L39*$AC$25*$AC$29/$J$27),(IF((O39+($V$25-$N$25)*$J39/$J$26)>=0,(O39+($V$25-$N$25)*$J39/$J$26),0)))) -> 5.188534142 | AA39: =IF($I39<$Q$29,IF($J39=0,(P39+$L39*$AB$26*$AC$29/$J$27),(IF((P39-$U$26/$M$26)*EXP(-$M$26*$J39/$J$26)+$U$26/$M$26>=0,(P39-$U$26/$M$26)*EXP(-$M$26*$J39/$J$26)+$U$26/$M$26,0))),IF($J39=0,(P39+$L39*$AC$26*$AC$29/$J$27),(IF((P39-$V$26/$N$26)*EXP(-$N$26*$J39/$J$26)+$V$26/$N$26>=0,(P39-$V$26/$N$26)*EXP(-$N$26*$J39/$J$26)+$V$26/$N$26,0)))) -> 9.745701303 | AB39: =IF($I39<$Q$29,IF($J39=0,(Q39+$L39*$AE$23*$AC$29/$J$27),(IF((Q39+($X$23-$P$23)*$J39/$J$26)>=0,(Q39+($X$23-$P$23)*$J39/$J$26),0))),IF($J39=0,(Q39+$L39*$AF$23*$AC$29/$J$27),(IF((Q39+($Y$23-$Q$23)*$J39/$J$26)>=0,(Q39+($Y$23-$Q$23)*$J39/$J$26),0)))) -> 6.7 | AC39: =IF($I39<$Q$29,IF($J39=0,(R39+$L39*$AE$24*$AC$29/$J$27),(IF((R39+($X$24-$P$24)*$J39/$J$26)>=0,(R39+($X$24-$P$24)*$J39/$J$26),0))),IF($J39=0,(R39+$L39*$AF$24*$AC$29/$J$27),(IF((R39+($Y$24-$Q$24)*$J39/$J$26)>=0,(R39+($Y$24-$Q$24)*$J39/$J$26),0)))) -> 8.065529769 | AD39: =IF($I39<$Q$29,IF($J39=0,(S39+$L39*$AE$25*$AC$29/$J$27),(IF((S39+($X$25-$P$25)*$J39/$J$26)>=0,(S39+($X$25-$P$25)*$J39/$J$26),0))),IF($J39=0,(S39+$L39*$AF$25*$AC$29/$J$27),(IF((S39+($Y$25-$Q$25)*$J39/$J$26)>=0,(S39+($Y$25-$Q$25)*$J39/$J$26),0)))) -> 1.629124342 | AE39: =IF($I39<$Q$29,IF($J39=0,(T39+$L39*$AE$26*$AC$29/$J$27),(IF((T39-$X$26/$P$26)*EXP(-$P$26*$J39/$J$26)+$X$26/$P$26>=0,(T39-$X$26/$P$26)*EXP(-$P$26*$J39/$J$26)+$X$26/$P$26,0))),IF($J39=0,(T39+$L39*$AF$26*$AC$29/$J$27),(IF((T39-$Y$26/$Q$26)*EXP(-$Q$26*$J39/$J$26)+$Y$26/$Q$26>=0,(T39-$Y$26/$Q$26)*EXP(-$Q$26*$J39/$J$26)+$Y$26/$Q$26,0)))) -> 10.06349591 | AF39: 25.93423545 | AG39: 26.45815002 | AH39: =IF(AH38<=$N$32,1000,X39) -> 10 | AI39: 2.703524252 | AJ39: -10 | AR39: 0.006386445067 | BU39: 0.6386445067 | CZ39: =IF(J39=0,0,CZ38+1) -> 2 | DC39: =IF($J39=0,IF($I39<$Q$29,(($U$23*$J$23/$J$26)+($U$23+($X38-$U$23)*EXP(-($J$29-$J$23)/$J$24))*$J$24/$J$26),(($V$23*$J$23/$J$26)+($V$23+($X38-$V$23)*EXP(-($J$29-$J$23)/$J$24))*$J$24/$J$26)),"") ->  | DD39: =IF($J39=0,IF($I39<$Q$29,(($U$24*$J$23/$J$26)+($U$24+($Y38-$U$24)*EXP(-($J$29-$J$23)/$J$24))*$J$24/$J$26),(($V$24*$J$23/$J$26)+($V$24+($Y38-$V$24)*EXP(-($J$29-$J$23)/$J$24))*$J$24/$J$26)),"") ->  | DE39: =IF($J39=0,IF($I39<$Q$29,(($U$25*$J$23/$J$26)+($U$25+($Z38-$U$25)*EXP(-($J$29-$J$23)/$J$24))*$J$24/$J$26),(($V$25*$J$23/$J$26)+($V$25+($Z38-$V$25)*EXP(-($J$29-$J$23)/$J$24))*$J$24/$J$26)),"") ->  | DF39: =IF($J39=0,IF($I39<$Q$29,(($U$26*$J$23/$J$26)+($U$26+($AA38-$U$26)*EXP(-($J$29-$J$23)/$J$24))*$J$24/$J$26),(($V$26*$J$23/$J$26)+($V$26+($AA38-$V$26)*EXP(-($J$29-$J$23)/$J$24))*$J$24/$J$26)),"") ->  | DG39: =IF($J39=0,IF($I39<$Q$29,(($X$23*$J$23/$J$26)+($X$23+($AB38-$X$23)*EXP(-($J$29-$J$23)/$J$24))*$J$24/$J$26),(($Y$23*$J$23/$J$26)+($Y$23+($AB38-$Y$23)*EXP(-($J$29-$J$23)/$J$24))*$J$24/$J$26)),"") ->  | DH39: =IF($J39=0,IF($I39<$Q$29,(($X$24*$J$23/$J$26)+($X$24+($AC38-$X$24)*EXP(-($J$29-$J$23)/$J$24))*$J$24/$J$26),(($Y$24*$J$23/$J$26)+($Y$24+($AC38-$Y$24)*EXP(-($J$29-$J$23)/$J$24))*$J$24/$J$26)),"") ->  | DI39: =IF($J39=0,IF($I39<$Q$29,(($X$25*$J$23/$J$26)+($X$25+($AD38-$X$25)*EXP(-($J$29-$J$23)/$J$24))*$J$24/$J$26),(($Y$25*$J$23/$J$26)+($Y$25+($AD38-$Y$25)*EXP(-($J$29-$J$23)/$J$24))*$J$24/$J$26)),"") ->  | DJ39: =IF($J39=0,IF($I39<$Q$29,(($X$26*$J$23/$J$26)+($X$26+($AE38-$X$26)*EXP(-($J$29-$J$23)/$J$24))*$J$24/$J$26),(($Y$26*$J$23/$J$26)+($Y$26+($AE38-$Y$26)*EXP(-($J$29-$J$23)/$J$24))*$J$24/$J$26)),"") ->  | DK39: =IF($J39=0,SUM(DC39:DF39),"") ->  | DL39: =IF($J39=0,SUM(DG39:DJ39),"") ->  | DM39: =IF($J39=0,SUM(DG39:DJ39)*0.095+0.19,"") -> 
A40: =IF('3 climate date'!B17=1, '3 climate date'!D17, "") -> 3 | B40: =IF('3 climate date'!$B17=1, '3 climate date'!E17, "") -> 2006-05-08 | C40: =IF('3 climate date'!B17=1, '3 climate date'!G17, "") -> 11.9845875 | D40: =IF('3 climate date'!B17=1, '3 climate date'!H17, "") -> 20.27180556 | E40: =IF(('3 climate date'!$B17=1),('8 ETE'!E40)," ") -> 457.3418056 | F40: =IF(('3 climate date'!$B17=1),('8 ETE'!F40)," ") -> 0.1736147359 | G40: =IF(('3 climate date'!$B17=1),('8 ETE'!G40)," ") -> 0.7102671973 | H40: =IF(('3 climate date'!$B17=1),('8 ETE'!H40)," ") -> 1.875240861 | I40: 3 | J40: 0.7102671973 | K40: 1.875240861 | L40: 0.07102671973 | M40: 10.443917 | N40: 1.0443917 | O40: 5.358998269 | P40: 9.745701303 | Q40: 6.997424389 | R40: 8.287488268 | S40: 1.629124342 | T40: 10.06349591 | U40: 26.59300827 | V40: 26.97753291 | W40: 2.752865626 | X40: 10 | Y40: 1 | Z40: 5.27909321 | AA40: 10.07491481 | AB40: 6.7 | AC40: 8.105482298 | AD40: 1.646881022 | AE40: 10.40344465 | AF40: 26.35400802 | AG40: 26.85580797 | AH40: 10 | AI40: 2.741301757 | AJ40: -10 | AR40: 0.007102671973 | BL40: =IF($I40<$Q$29,IF($J40=0,W40,""),"") ->  | BM40: =IF($I40<$Q$29,IF($J40=0,X40,""),"") ->  | BN40: =IF($I40<$Q$29,IF($J40=0,Y40,""),"") ->  | BU40: 0.7102671973 | CP40: =IF($I40<$Q$29,"",IF($J40=0,W40,"")) ->  | CQ40: =IF($I40<$Q$29,"",IF($J40=0,X40,"")) ->  | CR40: =IF($I40<$Q$29,"",IF($J40=0,Y40,"")) ->  | CZ40: 3
A41: =IF('3 climate date'!B18=1, '3 climate date'!D18, "") -> 4 | B41: =IF('3 climate date'!$B18=1, '3 climate date'!E18, "") -> 2006-05-09 | C41: =IF('3 climate date'!B18=1, '3 climate date'!G18, "") -> 10.676325 | D41: =IF('3 climate date'!B18=1, '3 climate date'!H18, "") -> 19.58430556 | E41: =IF(('3 climate date'!$B18=1),('8 ETE'!E41)," ") -> 468.9261111 | F41: =IF(('3 climate date'!$B18=1),('8 ETE'!F41)," ") -> 0.2144551585 | G41: =IF(('3 climate date'!$B18=1),('8 ETE'!G41)," ") -> 0.7548376314 | H41: =IF(('3 climate date'!$B18=1),('8 ETE'!H41)," ") -> 2.630078492 | I41: =IF(AI40<=$N$29-$G$30,I40+1,I40) -> 4 | J41: =IF(AI40<=$N$29-$G$30,INDIRECT(ADDRESS((I41+37),7)),0) -> 0.7548376314 | K41: =IF(J41=0,0,K40+J41) -> 2.630078492 | L41: =IF($I41<$Q$29,IF(J41=0,(IF($N$31-($W41+$AE$27*0.095*$J$23/$J$26)>=0,($N$31-$W41)/($AE$27*0.095)*$J$27/$AC$29,($J$23*$J$25/$AC$29))),$J41*$J$25/$AC$29),IF(J41=0,(IF($N$31-($W41+$AF$27*0.095*$J$23/$J$26)>=0,($N$31-$W41)/($AF$27*0.095)*$J$27/$AC$29,($J$23*$J$25/$AC$29))),$J41*$J$25/$AC$29)) -> 0.07548376314 | M41: =IF($I41<$Q$29,IF($AI40<=$N$29-$G$30,$X40+$L41*$AB$23*$AC$29/$J$27,DC41),IF($AI40<=$N$29-$G$30,$X40+$L41*$AC$23*$AC$29/$J$27,DC41)) -> 10.47177352 | N41: =IF($I41<$Q$29,IF($AI40<=$N$29-$G$30,$Y40+$L41*$AB$24*$AC$29/$J$27,DD41),IF($AI40<=$N$29-$G$30,$Y40+$L41*$AC$24*$AC$29/$J$27,DD41)) -> 1.047177352 | O41: =IF($I41<$Q$29,IF($AI40<=$N$29-$G$30,$Z40+$L41*$AB$25*$AC$29/$J$27,DE41),IF($AI40<=$N$29-$G$30,$Z40+$L41*$AC$25*$AC$29/$J$27,DE41)) -> 5.460254241 | P41: =IF($I41<$Q$29,IF($AI40<=$N$29-$G$30,$AA40+$L41*$AB$26*$AC$29/$J$27,DF41),IF($AI40<=$N$29-$G$30,$AA40+$L41*$AC$26*$AC$29/$J$27,DF41)) -> 10.07491481 | Q41: =IF($I41<$Q$29,IF($AI40<=$N$29-$G$30,$AB40+$L41*$AE$23*$AC$29/$J$27,DG41),IF($AI40<=$N$29-$G$30,$AB40+$L41*$AF$23*$AC$29/$J$27,DG41)) -> 7.016088258 | R41: =IF($I41<$Q$29,IF($AI40<=$N$29-$G$30,$AC40+$L41*$AE$24*$AC$29/$J$27,DH41),IF($AI40<=$N$29-$G$30,$AC40+$L41*$AF$24*$AC$29/$J$27,DH41)) -> 8.341369058 | S41: =IF($I41<$Q$29,IF($AI40<=$N$29-$G$30,$AD40+$L41*$AE$25*$AC$29/$J$27,DI41),IF($AI40<=$N$29-$G$30,$AD40+$L41*$AF$25*$AC$29/$J$27,DI41)) -> 1.646881022 | T41: =IF($I41<$Q$29,IF($AI40<=$N$29-$G$30,$AE40+$L41*$AE$26*$AC$29/$J$27,DJ41),IF($AI40<=$N$29-$G$30,$AE40+$L41*$AF$26*$AC$29/$J$27,DJ41)) -> 10.40344465 | U41: =SUM(M41:P41) -> 27.05411993 | V41: =SUM(Q41:T41) -> 27.40778298 | W41: =SUM(Q41:T41)*0.095+0.19 -> 2.793739383 | X41: =IF($I41<$Q$29,IF($J41=0,(M41+$L41*$AB$23*$AC$29/$J$27),(IF((M41+($U$23-$M$23)*$J41/$J$26)>=0,(M41+($U$23-$M$23)*$J41/$J$26),0))),IF($J41=0,(M41+$L41*$AC$23*$AC$29/$J$27),(IF((M41+($V$23-$N$23)*$J41/$J$26)>=0,(M41+($V$23-$N$23)*$J41/$J$26),0)))) -> 10 | Y41: =IF($I41<$Q$29,IF($J41=0,(N41+$L41*$AB$24*$AC$29/$J$27),(IF((N41+($U$24-$M$24)*$J41/$J$26)>=0,(N41+($U$24-$M$24)*$J41/$J$26),0))),IF($J41=0,(N41+$L41*$AC$24*$AC$29/$J$27),(IF((N41+($V$24-$N$24)*$J41/$J$26)>=0,(N41+($V$24-$N$24)*$J41/$J$26),0)))) -> 1 | Z41: =IF($I41<$Q$29,IF($J41=0,(O41+$L41*$AB$25*$AC$29/$J$27),(IF((O41+($U$25-$M$25)*$J41/$J$26)>=0,(O41+($U$25-$M$25)*$J41/$J$26),0))),IF($J41=0,(O41+$L41*$AC$25*$AC$29/$J$27),(IF((O41+($V$25-$N$25)*$J41/$J$26)>=0,(O41+($V$25-$N$25)*$J41/$J$26),0)))) -> 5.375335008 | AA41: =IF($I41<$Q$29,IF($J41=0,(P41+$L41*$AB$26*$AC$29/$J$27),(IF((P41-$U$26/$M$26)*EXP(-$M$26*$J41/$J$26)+$U$26/$M$26>=0,(P41-$U$26/$M$26)*EXP(-$M$26*$J41/$J$26)+$U$26/$M$26,0))),IF($J41=0,(P41+$L41*$AC$26*$AC$29/$J$27),(IF((P41-$V$26/$N$26)*EXP(-$N$26*$J41/$J$26)+$V$26/$N$26>=0,(P41-$V$26/$N$26)*EXP(-$N$26*$J41/$J$26)+$V$26/$N$26,0)))) -> 10.42191561 | AB41: =IF($I41<$Q$29,IF($J41=0,(Q41+$L41*$AE$23*$AC$29/$J$27),(IF((Q41+($X$23-$P$23)*$J41/$J$26)>=0,(Q41+($X$23-$P$23)*$J41/$J$26),0))),IF($J41=0,(Q41+$L41*$AF$23*$AC$29/$J$27),(IF((Q41+($Y$23-$Q$23)*$J41/$J$26)>=0,(Q41+($Y$23-$Q$23)*$J41/$J$26),0)))) -> 6.7 | AC41: =IF($I41<$Q$29,IF($J41=0,(R41+$L41*$AE$24*$AC$29/$J$27),(IF((R41+($X$24-$P$24)*$J41/$J$26)>=0,(R41+($X$24-$P$24)*$J41/$J$26),0))),IF($J41=0,(R41+$L41*$AF$24*$AC$29/$J$27),(IF((R41+($Y$24-$Q$24)*$J41/$J$26)>=0,(R41+($Y$24-$Q$24)*$J41/$J$26),0)))) -> 8.147941915 | AD41: =IF($I41<$Q$29,IF($J41=0,(S41+$L41*$AE$25*$AC$29/$J$27),(IF((S41+($X$25-$P$25)*$J41/$J$26)>=0,(S41+($X$25-$P$25)*$J41/$J$26),0))),IF($J41=0,(S41+$L41*$AF$25*$AC$29/$J$27),(IF((S41+($Y$25-$Q$25)*$J41/$J$26)>=0,(S41+($Y$25-$Q$25)*$J41/$J$26),0)))) -> 1.665751962 | AE41: =IF($I41<$Q$29,IF($J41=0,(T41+$L41*$AE$26*$AC$29/$J$27),(IF((T41-$X$26/$P$26)*EXP(-$P$26*$J41/$J$26)+$X$26/$P$26>=0,(T41-$X$26/$P$26)*EXP(-$P$26*$J41/$J$26)+$X$26/$P$26,0))),IF($J41=0,(T41+$L41*$AF$26*$AC$29/$J$27),(IF((T41-$Y$26/$Q$26)*EXP(-$Q$26*$J41/$J$26)+$Y$26/$Q$26>=0,(T41-$Y$26/$Q$26)*EXP(-$Q$26*$J41/$J$26)+$Y$26/$Q$26,0)))) -> 10.76176068 | AF41: =SUM(X41:AA41) -> 26.79725062 | AG41: =SUM(AB41:AE41) -> 27.27545456 | AH41: =IF(AH40<=$N$32,1000,X41) -> 10 | AI41: =SUM(AB41:AE41)*0.095+0.19 -> 2.781168183 | AJ41: =IF(J41>0,-10,1) -> -10 | AL41: =IF($I41<$Q$29,IF($J41=0,((X40-M41)*$J$26+$J$29*$U$23)*14.007/1000,""),IF($J41=0,((X40-M41)*$J$26+$J$29*$V$23)*14.007/1000,"")) ->  | AM41: =IF($I41<$Q$29,IF($J41=0,((Y40-N41)*$J$26+$J$29*$U$24)*30.957/1000,""),IF($J41=0,((Y40-N41)*$J$26+$J$29*$V$24)*30.957/1000,"")) ->  | AN41: =IF($I41<$Q$29,IF($J41=0,((AB40-Q41)*$J$26+$J$29*$X$23)*39.1/1000,""),IF($J41=0,((AB40-Q41)*$J$26+$J$29*$Y$23)*39.1/1000,"")) ->  | AO41: =IF($I41<$Q$29,IF($J41=0,((AE40-T41)*$J$26+$J$29*$X$26)*22.9898/1000,""),IF($J41=0,((AE40-T41)*$J$26+$J$29*$Y$26)*22.9898/1000,"")) ->  | AP41: =IF($I41<$Q$29,IF($J41=0,((AC40-R41)*$J$26+$J$29*$X$24)*20.04/1000,""),IF($J41=0,((AC40-R41)*$J$26+$J$29*$Y$24)*20.04/1000,"")) ->  | AQ41: =IF($I41<$Q$29,IF($J41=0,((AD40-S41)*$J$26+$J$29*$X$25)*12.156/1000,""),IF($J41=0,((AD40-S41)*$J$26+$J$29*$Y$25)*12.156/1000,"")) ->  | AR41: =IF($I41<$Q$29,L41/$J$25,"") -> 0.007548376314 | AS41: =IF($I41<$Q$29,IF($J41=0,AL41*1000/14.007/($AK41),""),"") ->  | AT41: =IF($I41<$Q$29,IF($J41=0,AM41*1000/30.957/($AK41),""),"") ->  | AU41: =IF($I41<$Q$29,IF($J41=0,AN41*1000/39.1/($AK41),""),"") ->  | AV41: =IF($I41<$Q$29,IF($J41=0,AO41*1000/22.9898/($AK41),""),"") ->  | AW41: =IF($I41<$Q$29,IF($J41=0,AP41*1000/20.04/($AK41*$J$25),""),"") ->  | AX41: =IF($I41<$Q$29,IF($J41=0,AQ41*1000/12.156/($AK41*$J$25),""),"") ->  | AY41: =IF($I41<$Q$29,IF($J41=0,X40,""),"") ->  | AZ41: =IF($I41<$Q$29,IF($J41=0,Y40,""),"") ->  | BA41: =IF($I41<$Q$29,IF($J41=0,AB40,""),"") ->  | BB41: =IF($I41<$Q$29,IF($J41=0,AE40,""),"") ->  | BC41: =IF($I41<$Q$29,IF($J41=0,AC40,""),"") ->  | BD41: =IF($I41<$Q$29,IF($J41=0,AD40,""),"") ->  | BE41: =IF($I41<$Q$29,IF($J41=0,AI40,""),"") ->  | BF41: =IF($I41<$Q$29,IF($J41=0,M41,""),"") ->  | BG41: =IF($I41<$Q$29,IF($J41=0,N41,""),"") ->  | BH41: =IF($I41<$Q$29,IF($J41=0,Q41,""),"") ->  | BI41: =IF($I41<$Q$29,IF($J41=0,T41,""),"") ->  | BJ41: =IF($I41<$Q$29,IF($J41=0,R41,""),"") ->  | BK41: =IF($I41<$Q$29,IF($J41=0,S41,""),"") ->  | BL41: =IF($I41<$Q$29,IF($J41=0,W41,""),"") ->  | BM41: =IF($I41<$Q$29,IF($J41=0,X41,""),"") ->  | BN41: =IF($I41<$Q$29,IF($J41=0,Y41,""),"") ->  | BO41: =IF($I41<$Q$29,IF($J41=0,AB41,""),"") ->  | BP41: =IF($I41<$Q$29,IF($J41=0,AE41,""),"") ->  | BQ41: =IF($I41<$Q$29,IF($J41=0,AC41,""),"") ->  | BR41: =IF($I41<$Q$29,IF($J41=0,AD41,""),"") ->  | BS41: =IF($I41<$Q$29,IF($J41=0,AI41,""),"") ->  | BT41: =IF($I41<$Q$29,IF($J41=0,K40,""),"") ->  | BU41: =IF($I41<$Q$29,IF($J41=0,($AK41),J41),"") -> 0.7548376314 | BV41: =IF($I41<$Q$29,"",(IF($J41=0,(IF($I41=$W$30,"",L41/$J$25)),L41/$J$25))) ->  | BW41: =IF($I41<$Q$29,"",IF($J41=0,AL41*1000/14.007/($AK41),"")) ->  | BX41: =IF($I41<$Q$29,"",IF($J41=0,AM41*1000/30.957/($AK41),"")) ->  | BY41: =IF($I41<$Q$29,"",IF($J41=0,AN41*1000/39.1/($AK41),"")) ->  | BZ41: =IF($I41<$Q$29,"",IF($J41=0,AO41*1000/22.9898/($AK41),"")) ->  | CA41: =IF($I41<$Q$29,"",IF($J41=0,AP41*1000/20.04/($AK41),"")) ->  | CB41: =IF($I41<$Q$29,"",IF($J41=0,AQ41*1000/12.156/($AK41),"")) ->  | CC41: =IF($I41<$Q$29,"",IF($J41=0,X40,"")) ->  | CD41: =IF($I41<$Q$29,"",IF($J41=0,Y40,"")) ->  | CE41: =IF($I41<$Q$29,"",IF($J41=0,AB40,"")) ->  | CF41: =IF($I41<$Q$29,"",IF($J41=0,AE40,"")) ->  | CG41: =IF($I41<$Q$29,"",IF($J41=0,AC40,"")) ->  | CH41: =IF($I41<$Q$29,"",IF($J41=0,AD40,"")) ->  | CI41: =IF($I41<$Q$29,"",IF($J41=0,AI40,"")) ->  | CJ41: =IF($I41<$Q$29,"",IF($J41=0,M41,"")) ->  | CK41: =IF($I41<$Q$29,"",IF($J41=0,N41,"")) ->  | CL41: =IF($I41<$Q$29,"",IF($J41=0,Q41,"")) ->  | CM41: =IF($I41<$Q$29,"",IF($J41=0,T41,"")) ->  | CN41: =IF($I41<$Q$29,"",IF($J41=0,R41,"")) ->  | CO41: =IF($I41<$Q$29,"",IF($J41=0,S41,"")) ->  | CP41: =IF($I41<$Q$29,"",IF($J41=0,W41,"")) ->  | CQ41: =IF($I41<$Q$29,"",IF($J41=0,X41,"")) ->  | CR41: =IF($I41<$Q$29,"",IF($J41=0,Y41,"")) ->  | CS41: =IF($I41<$Q$29,"",IF($J41=0,AB41,"")) ->  | CT41: =IF($I41<$Q$29,"",IF($J41=0,AE41,"")) ->  | CU41: =IF($I41<$Q$29,"",IF($J41=0,AC41,"")) ->  | CV41: =IF($I41<$Q$29,"",IF($J41=0,AD41,"")) ->  | CW41: =IF($I41<$Q$29,"",IF($J41=0,AI41,"")) ->  | CX41: =IF($I41<$Q$29,"",IF($J41=0,K40,"")) ->  | CY41: =IF($I41<$Q$29,"",IF($J41=0,($AK41),J41)) ->  | CZ41: =IF(J41=0,0,CZ40+1) -> 4 | DA41: =IF(CZ41=0,CZ40,"") ->  | DK41: =IF($J41=0,SUM(DC41:DF41),"") ->  | DL41: =IF($J41=0,SUM(DG41:DJ41),"") ->  | DM41: =IF($J41=0,SUM(DG41:DJ41)*0.095+0.19,"") -> 
A42: =IF('3 climate date'!B19=1, '3 climate date'!D19, "") -> 5 | B42: =IF('3 climate date'!$B19=1, '3 climate date'!E19, "") -> 2006-05-10 | C42: =IF('3 climate date'!B19=1, '3 climate date'!G19, "") -> 6.024 | D42: =IF('3 climate date'!B19=1, '3 climate date'!H19, "") -> 19.55868056 | E42: =IF(('3 climate date'!$B19=1),('8 ETE'!E42)," ") -> 480.4847917 | F42: =IF(('3 climate date'!$B19=1),('8 ETE'!F42)," ") -> 0.2580541402 | G42: =IF(('3 climate date'!$B19=1),('8 ETE'!G42)," ") -> 0.5672635321 | H42: =IF(('3 climate date'!$B19=1),('8 ETE'!H42)," ") -> 3.197342024 | I42: =IF(AI41<=$N$29-$G$30,I41+1,I41) -> 5 | J42: =IF(AI41<=$N$29-$G$30,INDIRECT(ADDRESS((I42+37),7)),0) -> 0.5672635321 | K42: =IF(J42=0,0,K41+J42) -> 3.197342024 | L42: =IF($I42<$Q$29,IF(J42=0,(IF($N$31-($W42+$AE$27*0.095*$J$23/$J$26)>=0,($N$31-$W42)/($AE$27*0.095)*$J$27/$AC$29,($J$23*$J$25/$AC$29))),$J42*$J$25/$AC$29),IF(J42=0,(IF($N$31-($W42+$AF$27*0.095*$J$23/$J$26)>=0,($N$31-$W42)/($AF$27*0.095)*$J$27/$AC$29,($J$23*$J$25/$AC$29))),$J42*$J$25/$AC$29)) -> 0.05672635321 | M42: =IF($I42<$Q$29,IF($AI41<=$N$29-$G$30,$X41+$L42*$AB$23*$AC$29/$J$27,DC42),IF($AI41<=$N$29-$G$30,$X41+$L42*$AC$23*$AC$29/$J$27,DC42)) -> 10.35453971 | N42: =IF($I42<$Q$29,IF($AI41<=$N$29-$G$30,$Y41+$L42*$AB$24*$AC$29/$J$27,DD42),IF($AI41<=$N$29-$G$30,$Y41+$L42*$AC$24*$AC$29/$J$27,DD42)) -> 1.035453971 | O42: =IF($I42<$Q$29,IF($AI41<=$N$29-$G$30,$Z41+$L42*$AB$25*$AC$29/$J$27,DE42),IF($AI41<=$N$29-$G$30,$Z41+$L42*$AC$25*$AC$29/$J$27,DE42)) -> 5.511478255 | P42: =IF($I42<$Q$29,IF($AI41<=$N$29-$G$30,$AA41+$L42*$AB$26*$AC$29/$J$27,DF42),IF($AI41<=$N$29-$G$30,$AA41+$L42*$AC$26*$AC$29/$J$27,DF42)) -> 10.42191561 | Q42: =IF($I42<$Q$29,IF($AI41<=$N$29-$G$30,$AB41+$L42*$AE$23*$AC$29/$J$27,DG42),IF($AI41<=$N$29-$G$30,$AB41+$L42*$AF$23*$AC$29/$J$27,DG42)) -> 6.937541604 | R42: =IF($I42<$Q$29,IF($AI41<=$N$29-$G$30,$AC41+$L42*$AE$24*$AC$29/$J$27,DH42),IF($AI41<=$N$29-$G$30,$AC41+$L42*$AF$24*$AC$29/$J$27,DH42)) -> 8.325211769 | S42: =IF($I42<$Q$29,IF($AI41<=$N$29-$G$30,$AD41+$L42*$AE$25*$AC$29/$J$27,DI42),IF($AI41<=$N$29-$G$30,$AD41+$L42*$AF$25*$AC$29/$J$27,DI42)) -> 1.665751962 | T42: =IF($I42<$Q$29,IF($AI41<=$N$29-$G$30,$AE41+$L42*$AE$26*$AC$29/$J$27,DJ42),IF($AI41<=$N$29-$G$30,$AE41+$L42*$AF$26*$AC$29/$J$27,DJ42)) -> 10.76176068 | U42: =SUM(M42:P42) -> 27.32338754 | V42: =SUM(Q42:T42) -> 27.69026602 | W42: =SUM(Q42:T42)*0.095+0.19 -> 2.820575272 | X42: =IF($I42<$Q$29,IF($J42=0,(M42+$L42*$AB$23*$AC$29/$J$27),(IF((M42+($U$23-$M$23)*$J42/$J$26)>=0,(M42+($U$23-$M$23)*$J42/$J$26),0))),IF($J42=0,(M42+$L42*$AC$23*$AC$29/$J$27),(IF((M42+($V$23-$N$23)*$J42/$J$26)>=0,(M42+($V$23-$N$23)*$J42/$J$26),0)))) -> 10 | Y42: =IF($I42<$Q$29,IF($J42=0,(N42+$L42*$AB$24*$AC$29/$J$27),(IF((N42+($U$24-$M$24)*$J42/$J$26)>=0,(N42+($U$24-$M$24)*$J42/$J$26),0))),IF($J42=0,(N42+$L42*$AC$24*$AC$29/$J$27),(IF((N42+($V$24-$N$24)*$J42/$J$26)>=0,(N42+($V$24-$N$24)*$J42/$J$26),0)))) -> 1 | Z42: =IF($I42<$Q$29,IF($J42=0,(O42+$L42*$AB$25*$AC$29/$J$27),(IF((O42+($U$25-$M$25)*$J42/$J$26)>=0,(O42+($U$25-$M$25)*$J42/$J$26),0))),IF($J42=0,(O42+$L42*$AC$25*$AC$29/$J$27),(IF((O42+($V$25-$N$25)*$J42/$J$26)>=0,(O42+($V$25-$N$25)*$J42/$J$26),0)))) -> 5.447661108 | AA42: =IF($I42<$Q$29,IF($J42=0,(P42+$L42*$AB$26*$AC$29/$J$27),(IF((P42-$U$26/$M$26)*EXP(-$M$26*$J42/$J$26)+$U$26/$M$26>=0,(P42-$U$26/$M$26)*EXP(-$M$26*$J42/$J$26)+$U$26/$M$26,0))),IF($J42=0,(P42+$L42*$AC$26*$AC$29/$J$27),(IF((P42-$V$26/$N$26)*EXP(-$N$26*$J42/$J$26)+$V$26/$N$26>=0,(P42-$V$26/$N$26)*EXP(-$N$26*$J42/$J$26)+$V$26/$N$26,0)))) -> 10.68075565 | AB42: =IF($I42<$Q$29,IF($J42=0,(Q42+$L42*$AE$23*$AC$29/$J$27),(IF((Q42+($X$23-$P$23)*$J42/$J$26)>=0,(Q42+($X$23-$P$23)*$J42/$J$26),0))),IF($J42=0,(Q42+$L42*$AF$23*$AC$29/$J$27),(IF((Q42+($Y$23-$Q$23)*$J42/$J$26)>=0,(Q42+($Y$23-$Q$23)*$J42/$J$26),0)))) -> 6.7 | AC42: =IF($I42<$Q$29,IF($J42=0,(R42+$L42*$AE$24*$AC$29/$J$27),(IF((R42+($X$24-$P$24)*$J42/$J$26)>=0,(R42+($X$24-$P$24)*$J42/$J$26),0))),IF($J42=0,(R42+$L42*$AF$24*$AC$29/$J$27),(IF((R42+($Y$24-$Q$24)*$J42/$J$26)>=0,(R42+($Y$24-$Q$24)*$J42/$J$26),0)))) -> 8.179850489 | AD42: =IF($I42<$Q$29,IF($J42=0,(S42+$L42*$AE$25*$AC$29/$J$27),(IF((S42+($X$25-$P$25)*$J42/$J$26)>=0,(S42+($X$25-$P$25)*$J42/$J$26),0))),IF($J42=0,(S42+$L42*$AF$25*$AC$29/$J$27),(IF((S42+($Y$25-$Q$25)*$J42/$J$26)>=0,(S42+($Y$25-$Q$25)*$J42/$J$26),0)))) -> 1.679933551 | AE42: =IF($I42<$Q$29,IF($J42=0,(T42+$L42*$AE$26*$AC$29/$J$27),(IF((T42-$X$26/$P$26)*EXP(-$P$26*$J42/$J$26)+$X$26/$P$26>=0,(T42-$X$26/$P$26)*EXP(-$P$26*$J42/$J$26)+$X$26/$P$26,0))),IF($J42=0,(T42+$L42*$AF$26*$AC$29/$J$27),(IF((T42-$Y$26/$Q$26)*EXP(-$Q$26*$J42/$J$26)+$Y$26/$Q$26>=0,(T42-$Y$26/$Q$26)*EXP(-$Q$26*$J42/$J$26)+$Y$26/$Q$26,0)))) -> 11.02904116 | AF42: =SUM(X42:AA42) -> 27.12841676 | AG42: =SUM(AB42:AE42) -> 27.5888252 | AH42: =IF(AH41<=$N$32,1000,X42) -> 10 | AI42: =SUM(AB42:AE42)*0.095+0.19 -> 2.810938394 | AJ42: =IF(J42>0,-10,1) -> -10 | AL42: =IF($I42<$Q$29,IF($J42=0,((X41-M42)*$J$26+$J$29*$U$23)*14.007/1000,""),IF($J42=0,((X41-M42)*$J$26+$J$29*$V$23)*14.007/1000,"")) ->  | AM42: =IF($I42<$Q$29,IF($J42=0,((Y41-N42)*$J$26+$J$29*$U$24)*30.957/1000,""),IF($J42=0,((Y41-N42)*$J$26+$J$29*$V$24)*30.957/1000,"")) ->  | AN42: =IF($I42<$Q$29,IF($J42=0,((AB41-Q42)*$J$26+$J$29*$X$23)*39.1/1000,""),IF($J42=0,((AB41-Q42)*$J$26+$J$29*$Y$23)*39.1/1000,"")) ->  | AO42: =IF($I42<$Q$29,IF($J42=0,((AE41-T42)*$J$26+$J$29*$X$26)*22.9898/1000,""),IF($J42=0,((AE41-T42)*$J$26+$J$29*$Y$26)*22.9898/1000,"")) ->  | AP42: =IF($I42<$Q$29,IF($J42=0,((AC41-R42)*$J$26+$J$29*$X$24)*20.04/1000,""),IF($J42=0,((AC41-R42)*$J$26+$J$29*$Y$24)*20.04/1000,"")) ->  | AQ42: =IF($I42<$Q$29,IF($J42=0,((AD41-S42)*$J$26+$J$29*$X$25)*12.156/1000,""),IF($J42=0,((AD41-S42)*$J$26+$J$29*$Y$25)*12.156/1000,"")) ->  | AR42: =IF($I42<$Q$29,L42/$J$25,"") -> 0.005672635321 | AS42: =IF($I42<$Q$29,IF($J42=0,AL42*1000/14.007/($AK42),""),"") ->  | AT42: =IF($I42<$Q$29,IF($J42=0,AM42*1000/30.957/($AK42),""),"") ->  | AU42: =IF($I42<$Q$29,IF($J42=0,AN42*1000/39.1/($AK42),""),"") ->  | AV42: =IF($I42<$Q$29,IF($J42=0,AO42*1000/22.9898/($AK42),""),"") ->  | AW42: =IF($I42<$Q$29,IF($J42=0,AP42*1000/20.04/($AK42*$J$25),""),"") ->  | AX42: =IF($I42<$Q$29,IF($J42=0,AQ42*1000/12.156/($AK42*$J$25),""),"") ->  | AY42: =IF($I42<$Q$29,IF($J42=0,X41,""),"") ->  | AZ42: =IF($I42<$Q$29,IF($J42=0,Y41,""),"") ->  | BA42: =IF($I42<$Q$29,IF($J42=0,AB41,""),"") ->  | BB42: =IF($I42<$Q$29,IF($J42=0,AE41,""),"") ->  | BC42: =IF($I42<$Q$29,IF($J42=0,AC41,""),"") ->  | BD42: =IF($I42<$Q$29,IF($J42=0,AD41,""),"") ->  | BE42: =IF($I42<$Q$29,IF($J42=0,AI41,""),"") ->  | BF42: =IF($I42<$Q$29,IF($J42=0,M42,""),"") ->  | BG42: =IF($I42<$Q$29,IF($J42=0,N42,""),"") ->  | BH42: =IF($I42<$Q$29,IF($J42=0,Q42,""),"") ->  | BI42: =IF($I42<$Q$29,IF($J42=0,T42,""),"") ->  | BJ42: =IF($I42<$Q$29,IF($J42=0,R42,""),"") ->  | BK42: =IF($I42<$Q$29,IF($J42=0,S42,""),"") ->  | BL42: =IF($I42<$Q$29,IF($J42=0,W42,""),"") ->  | BM42: =IF($I42<$Q$29,IF($J42=0,X42,""),"") ->  | BN42: =IF($I42<$Q$29,IF($J42=0,Y42,""),"") ->  | BO42: =IF($I42<$Q$29,IF($J42=0,AB42,""),"") ->  | BP42: =IF($I42<$Q$29,IF($J42=0,AE42,""),"") ->  | BQ42: =IF($I42<$Q$29,IF($J42=0,AC42,""),"") ->  | BR42: =IF($I42<$Q$29,IF($J42=0,AD42,""),"") ->  | BS42: =IF($I42<$Q$29,IF($J42=0,AI42,""),"") ->  | BT42: =IF($I42<$Q$29,IF($J42=0,K41,""),"") ->  | BU42: =IF($I42<$Q$29,IF($J42=0,($AK42),J42),"") -> 0.5672635321 | BV42: =IF($I42<$Q$29,"",(IF($J42=0,(IF($I42=$W$30,"",L42/$J$25)),L42/$J$25))) ->  | BW42: =IF($I42<$Q$29,"",IF($J42=0,AL42*1000/14.007/($AK42),"")) ->  | BX42: =IF($I42<$Q$29,"",IF($J42=0,AM42*1000/30.957/($AK42),"")) ->  | BY42: =IF($I42<$Q$29,"",IF($J42=0,AN42*1000/39.1/($AK42),"")) ->  | BZ42: =IF($I42<$Q$29,"",IF($J42=0,AO42*1000/22.9898/($AK42),"")) ->  | CA42: =IF($I42<$Q$29,"",IF($J42=0,AP42*1000/20.04/($AK42),"")) ->  | CB42: =IF($I42<$Q$29,"",IF($J42=0,AQ42*1000/12.156/($AK42),"")) ->  | CC42: =IF($I42<$Q$29,"",IF($J42=0,X41,"")) ->  | CD42: =IF($I42<$Q$29,"",IF($J42=0,Y41,"")) ->  | CE42: =IF($I42<$Q$29,"",IF($J42=0,AB41,"")) ->  | CF42: =IF($I42<$Q$29,"",IF($J42=0,AE41,"")) ->  | CG42: =IF($I42<$Q$29,"",IF($J42=0,AC41,"")) ->  | CH42: =IF($I42<$Q$29,"",IF($J42=0,AD41,"")) ->  | CI42: =IF($I42<$Q$29,"",IF($J42=0,AI41,"")) ->  | CJ42: =IF($I42<$Q$29,"",IF($J42=0,M42,"")) ->  | CK42: =IF($I42<$Q$29,"",IF($J42=0,N42,"")) ->  | CL42: =IF($I42<$Q$29,"",IF($J42=0,Q42,"")) ->  | CM42: =IF($I42<$Q$29,"",IF($J42=0,T42,"")) ->  | CN42: =IF($I42<$Q$29,"",IF($J42=0,R42,"")) ->  | CO42: =IF($I42<$Q$29,"",IF($J42=0,S42,"")) ->  | CP42: =IF($I42<$Q$29,"",IF($J42=0,W42,"")) ->  | CQ42: =IF($I42<$Q$29,"",IF($J42=0,X42,"")) ->  | CR42: =IF($I42<$Q$29,"",IF($J42=0,Y42,"")) ->  | CS42: =IF($I42<$Q$29,"",IF($J42=0,AB42,"")) ->  | CT42: =IF($I42<$Q$29,"",IF($J42=0,AE42,"")) ->  | CU42: =IF($I42<$Q$29,"",IF($J42=0,AC42,"")) ->  | CV42: =IF($I42<$Q$29,"",IF($J42=0,AD42,"")) ->  | CW42: =IF($I42<$Q$29,"",IF($J42=0,AI42,"")) ->  | CX42: =IF($I42<$Q$29,"",IF($J42=0,K41,"")) ->  | CY42: =IF($I42<$Q$29,"",IF($J42=0,($AK42),J42)) ->  | CZ42: =IF(J42=0,0,CZ41+1) -> 5 | DA42: =IF(CZ42=0,CZ41,"") ->  | DK42: =IF($J42=0,SUM(DC42:DF42),"") ->  | DL42: =IF($J42=0,SUM(DG42:DJ42),"") ->  | DM42: =IF($J42=0,SUM(DG42:DJ42)*0.095+0.19,"") -> 
A43: =IF('3 climate date'!B20=1, '3 climate date'!D20, "") -> 6 | B43: =IF('3 climate date'!$B20=1, '3 climate date'!E20, "") -> 2006-05-11 | C43: =IF('3 climate date'!B20=1, '3 climate date'!G20, "") -> 8.896725 | D43: =IF('3 climate date'!B20=1, '3 climate date'!H20, "") -> 20.739375 | E43: =IF(('3 climate date'!$B20=1),('8 ETE'!E43)," ") -> 493.2241667 | F43: =IF(('3 climate date'!$B20=1),('8 ETE'!F43)," ") -> 0.3095602873 | G43: =IF(('3 climate date'!$B20=1),('8 ETE'!G43)," ") -> 0.8484731429 | H43: =IF(('3 climate date'!$B20=1),('8 ETE'!H43)," ") -> 4.045815167 | I43: =IF(AI42<=$N$29-$G$30,I42+1,I42) -> 6 | J43: =IF(AI42<=$N$29-$G$30,INDIRECT(ADDRESS((I43+37),7)),0) -> 0.8484731429 | K43: =IF(J43=0,0,K42+J43) -> 4.045815167 | L43: =IF($I43<$Q$29,IF(J43=0,(IF($N$31-($W43+$AE$27*0.095*$J$23/$J$26)>=0,($N$31-$W43)/($AE$27*0.095)*$J$27/$AC$29,($J$23*$J$25/$AC$29))),$J43*$J$25/$AC$29),IF(J43=0,(IF($N$31-($W43+$AF$27*0.095*$J$23/$J$26)>=0,($N$31-$W43)/($AF$27*0.095)*$J$27/$AC$29,($J$23*$J$25/$AC$29))),$J43*$J$25/$AC$29)) -> 0.08484731429 | M43: =IF($I43<$Q$29,IF($AI42<=$N$29-$G$30,$X42+$L43*$AB$23*$AC$29/$J$27,DC43),IF($AI42<=$N$29-$G$30,$X42+$L43*$AC$23*$AC$29/$J$27,DC43)) -> 10.53029571 | N43: =IF($I43<$Q$29,IF($AI42<=$N$29-$G$30,$Y42+$L43*$AB$24*$AC$29/$J$27,DD43),IF($AI42<=$N$29-$G$30,$Y42+$L43*$AC$24*$AC$29/$J$27,DD43)) -> 1.053029571 | O43: =IF($I43<$Q$29,IF($AI42<=$N$29-$G$30,$Z42+$L43*$AB$25*$AC$29/$J$27,DE43),IF($AI42<=$N$29-$G$30,$Z42+$L43*$AC$25*$AC$29/$J$27,DE43)) -> 5.651294662 | P43: =IF($I43<$Q$29,IF($AI42<=$N$29-$G$30,$AA42+$L43*$AB$26*$AC$29/$J$27,DF43),IF($AI42<=$N$29-$G$30,$AA42+$L43*$AC$26*$AC$29/$J$27,DF43)) -> 10.68075565 | Q43: =IF($I43<$Q$29,IF($AI42<=$N$29-$G$30,$AB42+$L43*$AE$23*$AC$29/$J$27,DG43),IF($AI42<=$N$29-$G$30,$AB42+$L43*$AF$23*$AC$29/$J$27,DG43)) -> 7.055298129 | R43: =IF($I43<$Q$29,IF($AI42<=$N$29-$G$30,$AC42+$L43*$AE$24*$AC$29/$J$27,DH43),IF($AI42<=$N$29-$G$30,$AC42+$L43*$AF$24*$AC$29/$J$27,DH43)) -> 8.444998346 | S43: =IF($I43<$Q$29,IF($AI42<=$N$29-$G$30,$AD42+$L43*$AE$25*$AC$29/$J$27,DI43),IF($AI42<=$N$29-$G$30,$AD42+$L43*$AF$25*$AC$29/$J$27,DI43)) -> 1.679933551 | T43: =IF($I43<$Q$29,IF($AI42<=$N$29-$G$30,$AE42+$L43*$AE$26*$AC$29/$J$27,DJ43),IF($AI42<=$N$29-$G$30,$AE42+$L43*$AF$26*$AC$29/$J$27,DJ43)) -> 11.02904116 | U43: =SUM(M43:P43) -> 27.9153756 | V43: =SUM(Q43:T43) -> 28.20927118 | W43: =SUM(Q43:T43)*0.095+0.19 -> 2.869880763 | X43: =IF($I43<$Q$29,IF($J43=0,(M43+$L43*$AB$23*$AC$29/$J$27),(IF((M43+($U$23-$M$23)*$J43/$J$26)>=0,(M43+($U$23-$M$23)*$J43/$J$26),0))),IF($J43=0,(M43+$L43*$AC$23*$AC$29/$J$27),(IF((M43+($V$23-$N$23)*$J43/$J$26)>=0,(M43+($V$23-$N$23)*$J43/$J$26),0)))) -> 10 | Y43: =IF($I43<$Q$29,IF($J43=0,(N43+$L43*$AB$24*$AC$29/$J$27),(IF((N43+($U$24-$M$24)*$J43/$J$26)>=0,(N43+($U$24-$M$24)*$J43/$J$26),0))),IF($J43=0,(N43+$L43*$AC$24*$AC$29/$J$27),(IF((N43+($V$24-$N$24)*$J43/$J$26)>=0,(N43+($V$24-$N$24)*$J43/$J$26),0)))) -> 1 | Z43: =IF($I43<$Q$29,IF($J43=0,(O43+$L43*$AB$25*$AC$29/$J$27),(IF((O43+($U$25-$M$25)*$J43/$J$26)>=0,(O43+($U$25-$M$25)*$J43/$J$26),0))),IF($J43=0,(O43+$L43*$AC$25*$AC$29/$J$27),(IF((O43+($V$25-$N$25)*$J43/$J$26)>=0,(O43+($V$25-$N$25)*$J43/$J$26),0)))) -> 5.555841434 | AA43: =IF($I43<$Q$29,IF($J43=0,(P43+$L43*$AB$26*$AC$29/$J$27),(IF((P43-$U$26/$M$26)*EXP(-$M$26*$J43/$J$26)+$U$26/$M$26>=0,(P43-$U$26/$M$26)*EXP(-$M$26*$J43/$J$26)+$U$26/$M$26,0))),IF($J43=0,(P43+$L43*$AC$26*$AC$29/$J$27),(IF((P43-$V$26/$N$26)*EXP(-$N$26*$J43/$J$26)+$V$26/$N$26>=0,(P43-$V$26/$N$26)*EXP(-$N$26*$J43/$J$26)+$V$26/$N$26,0)))) -> 11.06484042 | AB43: =IF($I43<$Q$29,IF($J43=0,(Q43+$L43*$AE$23*$AC$29/$J$27),(IF((Q43+($X$23-$P$23)*$J43/$J$26)>=0,(Q43+($X$23-$P$23)*$J43/$J$26),0))),IF($J43=0,(Q43+$L43*$AF$23*$AC$29/$J$27),(IF((Q43+($Y$23-$Q$23)*$J43/$J$26)>=0,(Q43+($Y$23-$Q$23)*$J43/$J$26),0)))) -> 6.7 | AC43: =IF($I43<$Q$29,IF($J43=0,(R43+$L43*$AE$24*$AC$29/$J$27),(IF((R43+($X$24-$P$24)*$J43/$J$26)>=0,(R43+($X$24-$P$24)*$J43/$J$26),0))),IF($J43=0,(R43+$L43*$AF$24*$AC$29/$J$27),(IF((R43+($Y$24-$Q$24)*$J43/$J$26)>=0,(R43+($Y$24-$Q$24)*$J43/$J$26),0)))) -> 8.227577103 | AD43: =IF($I43<$Q$29,IF($J43=0,(S43+$L43*$AE$25*$AC$29/$J$27),(IF((S43+($X$25-$P$25)*$J43/$J$26)>=0,(S43+($X$25-$P$25)*$J43/$J$26),0))),IF($J43=0,(S43+$L43*$AF$25*$AC$29/$J$27),(IF((S43+($Y$25-$Q$25)*$J43/$J$26)>=0,(S43+($Y$25-$Q$25)*$J43/$J$26),0)))) -> 1.701145379 | AE43: =IF($I43<$Q$29,IF($J43=0,(T43+$L43*$AE$26*$AC$29/$J$27),(IF((T43-$X$26/$P$26)*EXP(-$P$26*$J43/$J$26)+$X$26/$P$26>=0,(T43-$X$26/$P$26)*EXP(-$P$26*$J43/$J$26)+$X$26/$P$26,0))),IF($J43=0,(T43+$L43*$AF$26*$AC$29/$J$27),(IF((T43-$Y$26/$Q$26)*EXP(-$Q$26*$J43/$J$26)+$Y$26/$Q$26>=0,(T43-$Y$26/$Q$26)*EXP(-$Q$26*$J43/$J$26)+$Y$26/$Q$26,0)))) -> 11.42565044 | AF43: =SUM(X43:AA43) -> 27.62068186 | AG43: =SUM(AB43:AE43) -> 28.05437292 | AH43: =IF(AH42<=$N$32,1000,X43) -> 10 | AI43: =SUM(AB43:AE43)*0.095+0.19 -> 2.855165427 | AJ43: =IF(J43>0,-10,1) -> -10 | AL43: =IF($I43<$Q$29,IF($J43=0,((X42-M43)*$J$26+$J$29*$U$23)*14.007/1000,""),IF($J43=0,((X42-M43)*$J$26+$J$29*$V$23)*14.007/1000,"")) ->  | AM43: =IF($I43<$Q$29,IF($J43=0,((Y42-N43)*$J$26+$J$29*$U$24)*30.957/1000,""),IF($J43=0,((Y42-N43)*$J$26+$J$29*$V$24)*30.957/1000,"")) ->  | AN43: =IF($I43<$Q$29,IF($J43=0,((AB42-Q43)*$J$26+$J$29*$X$23)*39.1/1000,""),IF($J43=0,((AB42-Q43)*$J$26+$J$29*$Y$23)*39.1/1000,"")) ->  | AO43: =IF($I43<$Q$29,IF($J43=0,((AE42-T43)*$J$26+$J$29*$X$26)*22.9898/1000,""),IF($J43=0,((AE42-T43)*$J$26+$J$29*$Y$26)*22.9898/1000,"")) ->  | AP43: =IF($I43<$Q$29,IF($J43=0,((AC42-R43)*$J$26+$J$29*$X$24)*20.04/1000,""),IF($J43=0,((AC42-R43)*$J$26+$J$29*$Y$24)*20.04/1000,"")) ->  | AQ43: =IF($I43<$Q$29,IF($J43=0,((AD42-S43)*$J$26+$J$29*$X$25)*12.156/1000,""),IF($J43=0,((AD42-S43)*$J$26+$J$29*$Y$25)*12.156/1000,"")) ->  | AR43: =IF($I43<$Q$29,L43/$J$25,"") -> 0.008484731429 | AS43: =IF($I43<$Q$29,IF($J43=0,AL43*1000/14.007/($AK43),""),"") ->  | AT43: =IF($I43<$Q$29,IF($J43=0,AM43*1000/30.957/($AK43),""),"") ->  | AU43: =IF($I43<$Q$29,IF($J43=0,AN43*1000/39.1/($AK43),""),"") ->  | AV43: =IF($I43<$Q$29,IF($J43=0,AO43*1000/22.9898/($AK43),""),"") ->  | AW43: =IF($I43<$Q$29,IF($J43=0,AP43*1000/20.04/($AK43*$J$25),""),"") ->  | AX43: =IF($I43<$Q$29,IF($J43=0,AQ43*1000/12.156/($AK43*$J$25),""),"") ->  | AY43: =IF($I43<$Q$29,IF($J43=0,X42,""),"") ->  | AZ43: =IF($I43<$Q$29,IF($J43=0,Y42,""),"") ->  | BA43: =IF($I43<$Q$29,IF($J43=0,AB42,""),"") ->  | BB43: =IF($I43<$Q$29,IF($J43=0,AE42,""),"") ->  | BC43: =IF($I43<$Q$29,IF($J43=0,AC42,""),"") ->  | BD43: =IF($I43<$Q$29,IF($J43=0,AD42,""),"") ->  | BE43: =IF($I43<$Q$29,IF($J43=0,AI42,""),"") ->  | BF43: =IF($I43<$Q$29,IF($J43=0,M43,""),"") ->  | BG43: =IF($I43<$Q$29,IF($J43=0,N43,""),"") ->  | BH43: =IF($I43<$Q$29,IF($J43=0,Q43,""),"") ->  | BI43: =IF($I43<$Q$29,IF($J43=0,T43,""),"") ->  | BJ43: =IF($I43<$Q$29,IF($J43=0,R43,""),"") ->  | BK43: =IF($I43<$Q$29,IF($J43=0,S43,""),"") ->  | BL43: =IF($I43<$Q$29,IF($J43=0,W43,""),"") ->  | BM43: =IF($I43<$Q$29,IF($J43=0,X43,""),"") ->  | BN43: =IF($I43<$Q$29,IF($J43=0,Y43,""),"") ->  | BO43: =IF($I43<$Q$29,IF($J43=0,AB43,""),"") ->  | BP43: =IF($I43<$Q$29,IF($J43=0,AE43,""),"") ->  | BQ43: =IF($I43<$Q$29,IF($J43=0,AC43,""),"") ->  | BR43: =IF($I43<$Q$29,IF($J43=0,AD43,""),"") ->  | BS43: =IF($I43<$Q$29,IF($J43=0,AI43,""),"") ->  | BT43: =IF($I43<$Q$29,IF($J43=0,K42,""),"") ->  | BU43: =IF($I43<$Q$29,IF($J43=0,($AK43),J43),"") -> 0.8484731429 | BV43: =IF($I43<$Q$29,"",(IF($J43=0,(IF($I43=$W$30,"",L43/$J$25)),L43/$J$25))) ->  | BW43: =IF($I43<$Q$29,"",IF($J43=0,AL43*1000/14.007/($AK43),"")) ->  | BX43: =IF($I43<$Q$29,"",IF($J43=0,AM43*1000/30.957/($AK43),"")) ->  | BY43: =IF($I43<$Q$29,"",IF($J43=0,AN43*1000/39.1/($AK43),"")) ->  | BZ43: =IF($I43<$Q$29,"",IF($J43=0,AO43*1000/22.9898/($AK43),"")) ->  | CA43: =IF($I43<$Q$29,"",IF($J43=0,AP43*1000/20.04/($AK43),"")) ->  | CB43: =IF($I43<$Q$29,"",IF($J43=0,AQ43*1000/12.156/($AK43),"")) ->  | CC43: =IF($I43<$Q$29,"",IF($J43=0,X42,"")) ->  | CD43: =IF($I43<$Q$29,"",IF($J43=0,Y42,"")) ->  | CE43: =IF($I43<$Q$29,"",IF($J43=0,AB42,"")) ->  | CF43: =IF($I43<$Q$29,"",IF($J43=0,AE42,"")) ->  | CG43: =IF($I43<$Q$29,"",IF($J43=0,AC42,"")) ->  | CH43: =IF($I43<$Q$29,"",IF($J43=0,AD42,"")) ->  | CI43: =IF($I43<$Q$29,"",IF($J43=0,AI42,"")) ->  | CJ43: =IF($I43<$Q$29,"",IF($J43=0,M43,"")) ->  | CK43: =IF($I43<$Q$29,"",IF($J43=0,N43,"")) ->  | CL43: =IF($I43<$Q$29,"",IF($J43=0,Q43,"")) ->  | CM43: =IF($I43<$Q$29,"",IF($J43=0,T43,"")) ->  | CN43: =IF($I43<$Q$29,"",IF($J43=0,R43,"")) ->  | CO43: =IF($I43<$Q$29,"",IF($J43=0,S43,"")) ->  | CP43: =IF($I43<$Q$29,"",IF($J43=0,W43,"")) ->  | CQ43: =IF($I43<$Q$29,"",IF($J43=0,X43,"")) ->  | CR43: =IF($I43<$Q$29,"",IF($J43=0,Y43,"")) ->  | CS43: =IF($I43<$Q$29,"",IF($J43=0,AB43,"")) ->  | CT43: =IF($I43<$Q$29,"",IF($J43=0,AE43,"")) ->  | CU43: =IF($I43<$Q$29,"",IF($J43=0,AC43,"")) ->  | CV43: =IF($I43<$Q$29,"",IF($J43=0,AD43,"")) ->  | CW43: =IF($I43<$Q$29,"",IF($J43=0,AI43,"")) ->  | CX43: =IF($I43<$Q$29,"",IF($J43=0,K42,"")) ->  | CY43: =IF($I43<$Q$29,"",IF($J43=0,($AK43),J43)) ->  | CZ43: =IF(J43=0,0,CZ42+1) -> 6 | DA43: =IF(CZ43=0,CZ42,"") ->  | DK43: =IF($J43=0,SUM(DC43:DF43),"") ->  | DL43: =IF($J43=0,SUM(DG43:DJ43),"") ->  | DM43: =IF($J43=0,SUM(DG43:DJ43)*0.095+0.19,"") -> 
A44: =IF('3 climate date'!B21=1, '3 climate date'!D21, "") -> 7 | B44: =IF('3 climate date'!$B21=1, '3 climate date'!E21, "") -> 2006-05-12 | C44: =IF('3 climate date'!B21=1, '3 climate date'!G21, "") -> 15.00405 | D44: =IF('3 climate date'!B21=1, '3 climate date'!H21, "") -> 22.26868056 | E44: =IF(('3 climate date'!$B21=1),('8 ETE'!E44)," ") -> 507.4928472 | F44: =IF(('3 climate date'!$B21=1),('8 ETE'!F44)," ") -> 0.3717504107 | G44: =IF(('3 climate date'!$B21=1),('8 ETE'!G44)," ") -> 1.498347149 | H44: =IF(('3 climate date'!$B21=1),('8 ETE'!H44)," ") -> 5.544162316 | I44: =IF(AI43<=$N$29-$G$30,I43+1,I43) -> 7 | J44: =IF(AI43<=$N$29-$G$30,INDIRECT(ADDRESS((I44+37),7)),0) -> 1.498347149 | K44: =IF(J44=0,0,K43+J44) -> 5.544162316 | L44: =IF($I44<$Q$29,IF(J44=0,(IF($N$31-($W44+$AE$27*0.095*$J$23/$J$26)>=0,($N$31-$W44)/($AE$27*0.095)*$J$27/$AC$29,($J$23*$J$25/$AC$29))),$J44*$J$25/$AC$29),IF(J44=0,(IF($N$31-($W44+$AF$27*0.095*$J$23/$J$26)>=0,($N$31-$W44)/($AF$27*0.095)*$J$27/$AC$29,($J$23*$J$25/$AC$29))),$J44*$J$25/$AC$29)) -> 0.1498347149 | M44: =IF($I44<$Q$29,IF($AI43<=$N$29-$G$30,$X43+$L44*$AB$23*$AC$29/$J$27,DC44),IF($AI43<=$N$29-$G$30,$X43+$L44*$AC$23*$AC$29/$J$27,DC44)) -> 10.93646697 | N44: =IF($I44<$Q$29,IF($AI43<=$N$29-$G$30,$Y43+$L44*$AB$24*$AC$29/$J$27,DD44),IF($AI43<=$N$29-$G$30,$Y43+$L44*$AC$24*$AC$29/$J$27,DD44)) -> 1.093646697 | O44: =IF($I44<$Q$29,IF($AI43<=$N$29-$G$30,$Z43+$L44*$AB$25*$AC$29/$J$27,DE44),IF($AI43<=$N$29-$G$30,$Z43+$L44*$AC$25*$AC$29/$J$27,DE44)) -> 5.91544475 | P44: =IF($I44<$Q$29,IF($AI43<=$N$29-$G$30,$AA43+$L44*$AB$26*$AC$29/$J$27,DF44),IF($AI43<=$N$29-$G$30,$AA43+$L44*$AC$26*$AC$29/$J$27,DF44)) -> 11.06484042 | Q44: =IF($I44<$Q$29,IF($AI43<=$N$29-$G$30,$AB43+$L44*$AE$23*$AC$29/$J$27,DG44),IF($AI43<=$N$29-$G$30,$AB43+$L44*$AF$23*$AC$29/$J$27,DG44)) -> 7.327432869 | R44: =IF($I44<$Q$29,IF($AI43<=$N$29-$G$30,$AC43+$L44*$AE$24*$AC$29/$J$27,DH44),IF($AI43<=$N$29-$G$30,$AC43+$L44*$AF$24*$AC$29/$J$27,DH44)) -> 8.695810587 | S44: =IF($I44<$Q$29,IF($AI43<=$N$29-$G$30,$AD43+$L44*$AE$25*$AC$29/$J$27,DI44),IF($AI43<=$N$29-$G$30,$AD43+$L44*$AF$25*$AC$29/$J$27,DI44)) -> 1.701145379 | T44: =IF($I44<$Q$29,IF($AI43<=$N$29-$G$30,$AE43+$L44*$AE$26*$AC$29/$J$27,DJ44),IF($AI43<=$N$29-$G$30,$AE43+$L44*$AF$26*$AC$29/$J$27,DJ44)) -> 11.42565044 | U44: =SUM(M44:P44) -> 29.01039884 | V44: =SUM(Q44:T44) -> 29.15003927 | W44: =SUM(Q44:T44)*0.095+0.19 -> 2.959253731 | X44: =IF($I44<$Q$29,IF($J44=0,(M44+$L44*$AB$23*$AC$29/$J$27),(IF((M44+($U$23-$M$23)*$J44/$J$26)>=0,(M44+($U$23-$M$23)*$J44/$J$26),0))),IF($J44=0,(M44+$L44*$AC$23*$AC$29/$J$27),(IF((M44+($V$23-$N$23)*$J44/$J$26)>=0,(M44+($V$23-$N$23)*$J44/$J$26),0)))) -> 10 | Y44: =IF($I44<$Q$29,IF($J44=0,(N44+$L44*$AB$24*$AC$29/$J$27),(IF((N44+($U$24-$M$24)*$J44/$J$26)>=0,(N44+($U$24-$M$24)*$J44/$J$26),0))),IF($J44=0,(N44+$L44*$AC$24*$AC$29/$J$27),(IF((N44+($V$24-$N$24)*$J44/$J$26)>=0,(N44+($V$24-$N$24)*$J44/$J$26),0)))) -> 1 | Z44: =IF($I44<$Q$29,IF($J44=0,(O44+$L44*$AB$25*$AC$29/$J$27),(IF((O44+($U$25-$M$25)*$J44/$J$26)>=0,(O44+($U$25-$M$25)*$J44/$J$26),0))),IF($J44=0,(O44+$L44*$AC$25*$AC$29/$J$27),(IF((O44+($V$25-$N$25)*$J44/$J$26)>=0,(O44+($V$25-$N$25)*$J44/$J$26),0)))) -> 5.746880695 | AA44: =IF($I44<$Q$29,IF($J44=0,(P44+$L44*$AB$26*$AC$29/$J$27),(IF((P44-$U$26/$M$26)*EXP(-$M$26*$J44/$J$26)+$U$26/$M$26>=0,(P44-$U$26/$M$26)*EXP(-$M$26*$J44/$J$26)+$U$26/$M$26,0))),IF($J44=0,(P44+$L44*$AC$26*$AC$29/$J$27),(IF((P44-$V$26/$N$26)*EXP(-$N$26*$J44/$J$26)+$V$26/$N$26>=0,(P44-$V$26/$N$26)*EXP(-$N$26*$J44/$J$26)+$V$26/$N$26,0)))) -> 11.73421909 | AB44: =IF($I44<$Q$29,IF($J44=0,(Q44+$L44*$AE$23*$AC$29/$J$27),(IF((Q44+($X$23-$P$23)*$J44/$J$26)>=0,(Q44+($X$23-$P$23)*$J44/$J$26),0))),IF($J44=0,(Q44+$L44*$AF$23*$AC$29/$J$27),(IF((Q44+($Y$23-$Q$23)*$J44/$J$26)>=0,(Q44+($Y$23-$Q$23)*$J44/$J$26),0)))) -> 6.7 | AC44: =IF($I44<$Q$29,IF($J44=0,(R44+$L44*$AE$24*$AC$29/$J$27),(IF((R44+($X$24-$P$24)*$J44/$J$26)>=0,(R44+($X$24-$P$24)*$J44/$J$26),0))),IF($J44=0,(R44+$L44*$AF$24*$AC$29/$J$27),(IF((R44+($Y$24-$Q$24)*$J44/$J$26)>=0,(R44+($Y$24-$Q$24)*$J44/$J$26),0)))) -> 8.31185913 | AD44: =IF($I44<$Q$29,IF($J44=0,(S44+$L44*$AE$25*$AC$29/$J$27),(IF((S44+($X$25-$P$25)*$J44/$J$26)>=0,(S44+($X$25-$P$25)*$J44/$J$26),0))),IF($J44=0,(S44+$L44*$AF$25*$AC$29/$J$27),(IF((S44+($Y$25-$Q$25)*$J44/$J$26)>=0,(S44+($Y$25-$Q$25)*$J44/$J$26),0)))) -> 1.738604058 | AE44: =IF($I44<$Q$29,IF($J44=0,(T44+$L44*$AE$26*$AC$29/$J$27),(IF((T44-$X$26/$P$26)*EXP(-$P$26*$J44/$J$26)+$X$26/$P$26>=0,(T44-$X$26/$P$26)*EXP(-$P$26*$J44/$J$26)+$X$26/$P$26,0))),IF($J44=0,(T44+$L44*$AF$26*$AC$29/$J$27),(IF((T44-$Y$26/$Q$26)*EXP(-$Q$26*$J44/$J$26)+$Y$26/$Q$26>=0,(T44-$Y$26/$Q$26)*EXP(-$Q$26*$J44/$J$26)+$Y$26/$Q$26,0)))) -> 12.11685667 | AF44: =SUM(X44:AA44) -> 28.48109978 | AG44: =SUM(AB44:AE44) -> 28.86731986 | AH44: =IF(AH43<=$N$32,1000,X44) -> 10 | AI44: =SUM(AB44:AE44)*0.095+0.19 -> 2.932395386 | AJ44: =IF(J44>0,-10,1) -> -10 | AL44: =IF($I44<$Q$29,IF($J44=0,((X43-M44)*$J$26+$J$29*$U$23)*14.007/1000,""),IF($J44=0,((X43-M44)*$J$26+$J$29*$V$23)*14.007/1000,"")) ->  | AM44: =IF($I44<$Q$29,IF($J44=0,((Y43-N44)*$J$26+$J$29*$U$24)*30.957/1000,""),IF($J44=0,((Y43-N44)*$J$26+$J$29*$V$24)*30.957/1000,"")) ->  | AN44: =IF($I44<$Q$29,IF($J44=0,((AB43-Q44)*$J$26+$J$29*$X$23)*39.1/1000,""),IF($J44=0,((AB43-Q44)*$J$26+$J$29*$Y$23)*39.1/1000,"")) ->  | AO44: =IF($I44<$Q$29,IF($J44=0,((AE43-T44)*$J$26+$J$29*$X$26)*22.9898/1000,""),IF($J44=0,((AE43-T44)*$J$26+$J$29*$Y$26)*22.9898/1000,"")) ->  | AP44: =IF($I44<$Q$29,IF($J44=0,((AC43-R44)*$J$26+$J$29*$X$24)*20.04/1000,""),IF($J44=0,((AC43-R44)*$J$26+$J$29*$Y$24)*20.04/1000,"")) ->  | AQ44: =IF($I44<$Q$29,IF($J44=0,((AD43-S44)*$J$26+$J$29*$X$25)*12.156/1000,""),IF($J44=0,((AD43-S44)*$J$26+$J$29*$Y$25)*12.156/1000,"")) ->  | AR44: =IF($I44<$Q$29,L44/$J$25,"") -> 0.01498347149 | AS44: =IF($I44<$Q$29,IF($J44=0,AL44*1000/14.007/($AK44),""),"") ->  | AT44: =IF($I44<$Q$29,IF($J44=0,AM44*1000/30.957/($AK44),""),"") ->  | AU44: =IF($I44<$Q$29,IF($J44=0,AN44*1000/39.1/($AK44),""),"") ->  | AV44: =IF($I44<$Q$29,IF($J44=0,AO44*1000/22.9898/($AK44),""),"") ->  | AW44: =IF($I44<$Q$29,IF($J44=0,AP44*1000/20.04/($AK44*$J$25),""),"") ->  | AX44: =IF($I44<$Q$29,IF($J44=0,AQ44*1000/12.156/($AK44*$J$25),""),"") ->  | AY44: =IF($I44<$Q$29,IF($J44=0,X43,""),"") ->  | AZ44: =IF($I44<$Q$29,IF($J44=0,Y43,""),"") ->  | BA44: =IF($I44<$Q$29,IF($J44=0,AB43,""),"") ->  | BB44: =IF($I44<$Q$29,IF($J44=0,AE43,""),"") ->  | BC44: =IF($I44<$Q$29,IF($J44=0,AC43,""),"") ->  | BD44: =IF($I44<$Q$29,IF($J44=0,AD43,""),"") ->  | BE44: =IF($I44<$Q$29,IF($J44=0,AI43,""),"") ->  | BF44: =IF($I44<$Q$29,IF($J44=0,M44,""),"") ->  | BG44: =IF($I44<$Q$29,IF($J44=0,N44,""),"") ->  | BH44: =IF($I44<$Q$29,IF($J44=0,Q44,""),"") ->  | BI44: =IF($I44<$Q$29,IF($J44=0,T44,""),"") ->  | BJ44: =IF($I44<$Q$29,IF($J44=0,R44,""),"") ->  | BK44: =IF($I44<$Q$29,IF($J44=0,S44,""),"") ->  | BL44: =IF($I44<$Q$29,IF($J44=0,W44,""),"") ->  | BM44: =IF($I44<$Q$29,IF($J44=0,X44,""),"") ->  | BN44: =IF($I44<$Q$29,IF($J44=0,Y44,""),"") ->  | BO44: =IF($I44<$Q$29,IF($J44=0,AB44,""),"") ->  | BP44: =IF($I44<$Q$29,IF($J44=0,AE44,""),"") ->  | BQ44: =IF($I44<$Q$29,IF($J44=0,AC44,""),"") ->  | BR44: =IF($I44<$Q$29,IF($J44=0,AD44,""),"") ->  | BS44: =IF($I44<$Q$29,IF($J44=0,AI44,""),"") ->  | BT44: =IF($I44<$Q$29,IF($J44=0,K43,""),"") ->  | BU44: =IF($I44<$Q$29,IF($J44=0,($AK44),J44),"") -> 1.498347149 | BV44: =IF($I44<$Q$29,"",(IF($J44=0,(IF($I44=$W$30,"",L44/$J$25)),L44/$J$25))) ->  | BW44: =IF($I44<$Q$29,"",IF($J44=0,AL44*1000/14.007/($AK44),"")) ->  | BX44: =IF($I44<$Q$29,"",IF($J44=0,AM44*1000/30.957/($AK44),"")) ->  | BY44: =IF($I44<$Q$29,"",IF($J44=0,AN44*1000/39.1/($AK44),"")) ->  | BZ44: =IF($I44<$Q$29,"",IF($J44=0,AO44*1000/22.9898/($AK44),"")) ->  | CA44: =IF($I44<$Q$29,"",IF($J44=0,AP44*1000/20.04/($AK44),"")) ->  | CB44: =IF($I44<$Q$29,"",IF($J44=0,AQ44*1000/12.156/($AK44),"")) ->  | CC44: =IF($I44<$Q$29,"",IF($J44=0,X43,"")) ->  | CD44: =IF($I44<$Q$29,"",IF($J44=0,Y43,"")) ->  | CE44: =IF($I44<$Q$29,"",IF($J44=0,AB43,"")) ->  | CF44: =IF($I44<$Q$29,"",IF($J44=0,AE43,"")) ->  | CG44: =IF($I44<$Q$29,"",IF($J44=0,AC43,"")) ->  | CH44: =IF($I44<$Q$29,"",IF($J44=0,AD43,"")) ->  | CI44: =IF($I44<$Q$29,"",IF($J44=0,AI43,"")) ->  | CJ44: =IF($I44<$Q$29,"",IF($J44=0,M44,"")) ->  | CK44: =IF($I44<$Q$29,"",IF($J44=0,N44,"")) ->  | CL44: =IF($I44<$Q$29,"",IF($J44=0,Q44,"")) ->  | CM44: =IF($I44<$Q$29,"",IF($J44=0,T44,"")) ->  | CN44: =IF($I44<$Q$29,"",IF($J44=0,R44,"")) ->  | CO44: =IF($I44<$Q$29,"",IF($J44=0,S44,"")) ->  | CP44: =IF($I44<$Q$29,"",IF($J44=0,W44,"")) ->  | CQ44: =IF($I44<$Q$29,"",IF($J44=0,X44,"")) ->  | CR44: =IF($I44<$Q$29,"",IF($J44=0,Y44,"")) ->  | CS44: =IF($I44<$Q$29,"",IF($J44=0,AB44,"")) ->  | CT44: =IF($I44<$Q$29,"",IF($J44=0,AE44,"")) ->  | CU44: =IF($I44<$Q$29,"",IF($J44=0,AC44,"")) ->  | CV44: =IF($I44<$Q$29,"",IF($J44=0,AD44,"")) ->  | CW44: =IF($I44<$Q$29,"",IF($J44=0,AI44,"")) ->  | CX44: =IF($I44<$Q$29,"",IF($J44=0,K43,"")) ->  | CY44: =IF($I44<$Q$29,"",IF($J44=0,($AK44),J44)) ->  | CZ44: =IF(J44=0,0,CZ43+1) -> 7 | DA44: =IF(CZ44=0,CZ43,"") ->  | DK44: =IF($J44=0,SUM(DC44:DF44),"") ->  | DL44: =IF($J44=0,SUM(DG44:DJ44),"") ->  | DM44: =IF($J44=0,SUM(DG44:DJ44)*0.095+0.19,"") -> 
A45: =IF('3 climate date'!B22=1, '3 climate date'!D22, "") -> 8 | B45: =IF('3 climate date'!$B22=1, '3 climate date'!E22, "") -> 2006-05-13 | C45: =IF('3 climate date'!B22=1, '3 climate date'!G22, "") -> 14.0882625 | D45: =IF('3 climate date'!B22=1, '3 climate date'!H22, "") -> 22.19680556 | E45: =IF(('3 climate date'!$B22=1),('8 ETE'!E45)," ") -> 521.6896528 | F45: =IF(('3 climate date'!$B22=1),('8 ETE'!F45)," ") -> 0.4385573536 | G45: =IF(('3 climate date'!$B22=1),('8 ETE'!G45)," ") -> 1.607927672 | H45: =IF(('3 climate date'!$B22=1),('8 ETE'!H45)," ") -> 7.152089988 | I45: =IF(AI44<=$N$29-$G$30,I44+1,I44) -> 8 | J45: =IF(AI44<=$N$29-$G$30,INDIRECT(ADDRESS((I45+37),7)),0) -> 1.607927672 | K45: =IF(J45=0,0,K44+J45) -> 7.152089988 | L45: =IF($I45<$Q$29,IF(J45=0,(IF($N$31-($W45+$AE$27*0.095*$J$23/$J$26)>=0,($N$31-$W45)/($AE$27*0.095)*$J$27/$AC$29,($J$23*$J$25/$AC$29))),$J45*$J$25/$AC$29),IF(J45=0,(IF($N$31-($W45+$AF$27*0.095*$J$23/$J$26)>=0,($N$31-$W45)/($AF$27*0.095)*$J$27/$AC$29,($J$23*$J$25/$AC$29))),$J45*$J$25/$AC$29)) -> 0.1607927672 | M45: =IF($I45<$Q$29,IF($AI44<=$N$29-$G$30,$X44+$L45*$AB$23*$AC$29/$J$27,DC45),IF($AI44<=$N$29-$G$30,$X44+$L45*$AC$23*$AC$29/$J$27,DC45)) -> 11.0049548 | N45: =IF($I45<$Q$29,IF($AI44<=$N$29-$G$30,$Y44+$L45*$AB$24*$AC$29/$J$27,DD45),IF($AI44<=$N$29-$G$30,$Y44+$L45*$AC$24*$AC$29/$J$27,DD45)) -> 1.10049548 | O45: =IF($I45<$Q$29,IF($AI44<=$N$29-$G$30,$Z44+$L45*$AB$25*$AC$29/$J$27,DE45),IF($AI44<=$N$29-$G$30,$Z44+$L45*$AC$25*$AC$29/$J$27,DE45)) -> 6.132783337 | P45: =IF($I45<$Q$29,IF($AI44<=$N$29-$G$30,$AA44+$L45*$AB$26*$AC$29/$J$27,DF45),IF($AI44<=$N$29-$G$30,$AA44+$L45*$AC$26*$AC$29/$J$27,DF45)) -> 11.73421909 | Q45: =IF($I45<$Q$29,IF($AI44<=$N$29-$G$30,$AB44+$L45*$AE$23*$AC$29/$J$27,DG45),IF($AI44<=$N$29-$G$30,$AB44+$L45*$AF$23*$AC$29/$J$27,DG45)) -> 7.373319713 | R45: =IF($I45<$Q$29,IF($AI44<=$N$29-$G$30,$AC44+$L45*$AE$24*$AC$29/$J$27,DH45),IF($AI44<=$N$29-$G$30,$AC44+$L45*$AF$24*$AC$29/$J$27,DH45)) -> 8.814336528 | S45: =IF($I45<$Q$29,IF($AI44<=$N$29-$G$30,$AD44+$L45*$AE$25*$AC$29/$J$27,DI45),IF($AI44<=$N$29-$G$30,$AD44+$L45*$AF$25*$AC$29/$J$27,DI45)) -> 1.738604058 | T45: =IF($I45<$Q$29,IF($AI44<=$N$29-$G$30,$AE44+$L45*$AE$26*$AC$29/$J$27,DJ45),IF($AI44<=$N$29-$G$30,$AE44+$L45*$AF$26*$AC$29/$J$27,DJ45)) -> 12.11685667 | U45: =SUM(M45:P45) -> 29.9724527 | V45: =SUM(Q45:T45) -> 30.04311697 | W45: =SUM(Q45:T45)*0.095+0.19 -> 3.044096112 | X45: =IF($I45<$Q$29,IF($J45=0,(M45+$L45*$AB$23*$AC$29/$J$27),(IF((M45+($U$23-$M$23)*$J45/$J$26)>=0,(M45+($U$23-$M$23)*$J45/$J$26),0))),IF($J45=0,(M45+$L45*$AC$23*$AC$29/$J$27),(IF((M45+($V$23-$N$23)*$J45/$J$26)>=0,(M45+($V$23-$N$23)*$J45/$J$26),0)))) -> 10 | Y45: =IF($I45<$Q$29,IF($J45=0,(N45+$L45*$AB$24*$AC$29/$J$27),(IF((N45+($U$24-$M$24)*$J45/$J$26)>=0,(N45+($U$24-$M$24)*$J45/$J$26),0))),IF($J45=0,(N45+$L45*$AC$24*$AC$29/$J$27),(IF((N45+($V$24-$N$24)*$J45/$J$26)>=0,(N45+($V$24-$N$24)*$J45/$J$26),0)))) -> 1 | Z45: =IF($I45<$Q$29,IF($J45=0,(O45+$L45*$AB$25*$AC$29/$J$27),(IF((O45+($U$25-$M$25)*$J45/$J$26)>=0,(O45+($U$25-$M$25)*$J45/$J$26),0))),IF($J45=0,(O45+$L45*$AC$25*$AC$29/$J$27),(IF((O45+($V$25-$N$25)*$J45/$J$26)>=0,(O45+($V$25-$N$25)*$J45/$J$26),0)))) -> 5.951891474 | AA45: =IF($I45<$Q$29,IF($J45=0,(P45+$L45*$AB$26*$AC$29/$J$27),(IF((P45-$U$26/$M$26)*EXP(-$M$26*$J45/$J$26)+$U$26/$M$26>=0,(P45-$U$26/$M$26)*EXP(-$M$26*$J45/$J$26)+$U$26/$M$26,0))),IF($J45=0,(P45+$L45*$AC$26*$AC$29/$J$27),(IF((P45-$V$26/$N$26)*EXP(-$N$26*$J45/$J$26)+$V$26/$N$26>=0,(P45-$V$26/$N$26)*EXP(-$N$26*$J45/$J$26)+$V$26/$N$26,0)))) -> 12.44011127 | AB45: =IF($I45<$Q$29,IF($J45=0,(Q45+$L45*$AE$23*$AC$29/$J$27),(IF((Q45+($X$23-$P$23)*$J45/$J$26)>=0,(Q45+($X$23-$P$23)*$J45/$J$26),0))),IF($J45=0,(Q45+$L45*$AF$23*$AC$29/$J$27),(IF((Q45+($Y$23-$Q$23)*$J45/$J$26)>=0,(Q45+($Y$23-$Q$23)*$J45/$J$26),0)))) -> 6.7 | AC45: =IF($I45<$Q$29,IF($J45=0,(R45+$L45*$AE$24*$AC$29/$J$27),(IF((R45+($X$24-$P$24)*$J45/$J$26)>=0,(R45+($X$24-$P$24)*$J45/$J$26),0))),IF($J45=0,(R45+$L45*$AF$24*$AC$29/$J$27),(IF((R45+($Y$24-$Q$24)*$J45/$J$26)>=0,(R45+($Y$24-$Q$24)*$J45/$J$26),0)))) -> 8.402305062 | AD45: =IF($I45<$Q$29,IF($J45=0,(S45+$L45*$AE$25*$AC$29/$J$27),(IF((S45+($X$25-$P$25)*$J45/$J$26)>=0,(S45+($X$25-$P$25)*$J45/$J$26),0))),IF($J45=0,(S45+$L45*$AF$25*$AC$29/$J$27),(IF((S45+($Y$25-$Q$25)*$J45/$J$26)>=0,(S45+($Y$25-$Q$25)*$J45/$J$26),0)))) -> 1.77880225 | AE45: =IF($I45<$Q$29,IF($J45=0,(T45+$L45*$AE$26*$AC$29/$J$27),(IF((T45-$X$26/$P$26)*EXP(-$P$26*$J45/$J$26)+$X$26/$P$26>=0,(T45-$X$26/$P$26)*EXP(-$P$26*$J45/$J$26)+$X$26/$P$26,0))),IF($J45=0,(T45+$L45*$AF$26*$AC$29/$J$27),(IF((T45-$Y$26/$Q$26)*EXP(-$Q$26*$J45/$J$26)+$Y$26/$Q$26>=0,(T45-$Y$26/$Q$26)*EXP(-$Q$26*$J45/$J$26)+$Y$26/$Q$26,0)))) -> 12.84576707 | AF45: =SUM(X45:AA45) -> 29.39200274 | AG45: =SUM(AB45:AE45) -> 29.72687438 | AH45: =IF(AH44<=$N$32,1000,X45) -> 10 | AI45: =SUM(AB45:AE45)*0.095+0.19 -> 3.014053066 | AJ45: =IF(J45>0,-10,1) -> -10 | AL45: =IF($I45<$Q$29,IF($J45=0,((X44-M45)*$J$26+$J$29*$U$23)*14.007/1000,""),IF($J45=0,((X44-M45)*$J$26+$J$29*$V$23)*14.007/1000,"")) ->  | AM45: =IF($I45<$Q$29,IF($J45=0,((Y44-N45)*$J$26+$J$29*$U$24)*30.957/1000,""),IF($J45=0,((Y44-N45)*$J$26+$J$29*$V$24)*30.957/1000,"")) ->  | AN45: =IF($I45<$Q$29,IF($J45=0,((AB44-Q45)*$J$26+$J$29*$X$23)*39.1/1000,""),IF($J45=0,((AB44-Q45)*$J$26+$J$29*$Y$23)*39.1/1000,"")) ->  | AO45: =IF($I45<$Q$29,IF($J45=0,((AE44-T45)*$J$26+$J$29*$X$26)*22.9898/1000,""),IF($J45=0,((AE44-T45)*$J$26+$J$29*$Y$26)*22.9898/1000,"")) ->  | AP45: =IF($I45<$Q$29,IF($J45=0,((AC44-R45)*$J$26+$J$29*$X$24)*20.04/1000,""),IF($J45=0,((AC44-R45)*$J$26+$J$29*$Y$24)*20.04/1000,"")) ->  | AQ45: =IF($I45<$Q$29,IF($J45=0,((AD44-S45)*$J$26+$J$29*$X$25)*12.156/1000,""),IF($J45=0,((AD44-S45)*$J$26+$J$29*$Y$25)*12.156/1000,"")) ->  | AR45: =IF($I45<$Q$29,L45/$J$25,"") -> 0.01607927672 | AS45: =IF($I45<$Q$29,IF($J45=0,AL45*1000/14.007/($AK45),""),"") ->  | AT45: =IF($I45<$Q$29,IF($J45=0,AM45*1000/30.957/($AK45),""),"") ->  | AU45: =IF($I45<$Q$29,IF($J45=0,AN45*1000/39.1/($AK45),""),"") ->  | AV45: =IF($I45<$Q$29,IF($J45=0,AO45*1000/22.9898/($AK45),""),"") ->  | AW45: =IF($I45<$Q$29,IF($J45=0,AP45*1000/20.04/($AK45*$J$25),""),"") ->  | AX45: =IF($I45<$Q$29,IF($J45=0,AQ45*1000/12.156/($AK45*$J$25),""),"") ->  | AY45: =IF($I45<$Q$29,IF($J45=0,X44,""),"") ->  | AZ45: =IF($I45<$Q$29,IF($J45=0,Y44,""),"") ->  | BA45: =IF($I45<$Q$29,IF($J45=0,AB44,""),"") ->  | BB45: =IF($I45<$Q$29,IF($J45=0,AE44,""),"") ->  | BC45: =IF($I45<$Q$29,IF($J45=0,AC44,""),"") ->  | BD45: =IF($I45<$Q$29,IF($J45=0,AD44,""),"") ->  | BE45: =IF($I45<$Q$29,IF($J45=0,AI44,""),"") ->  | BF45: =IF($I45<$Q$29,IF($J45=0,M45,""),"") ->  | BG45: =IF($I45<$Q$29,IF($J45=0,N45,""),"") ->  | BH45: =IF($I45<$Q$29,IF($J45=0,Q45,""),"") ->  | BI45: =IF($I45<$Q$29,IF($J45=0,T45,""),"") ->  | BJ45: =IF($I45<$Q$29,IF($J45=0,R45,""),"") ->  | BK45: =IF($I45<$Q$29,IF($J45=0,S45,""),"") ->  | BL45: =IF($I45<$Q$29,IF($J45=0,W45,""),"") ->  | BM45: =IF($I45<$Q$29,IF($J45=0,X45,""),"") ->  | BN45: =IF($I45<$Q$29,IF($J45=0,Y45,""),"") ->  | BO45: =IF($I45<$Q$29,IF($J45=0,AB45,""),"") ->  | BP45: =IF($I45<$Q$29,IF($J45=0,AE45,""),"") ->  | BQ45: =IF($I45<$Q$29,IF($J45=0,AC45,""),"") ->  | BR45: =IF($I45<$Q$29,IF($J45=0,AD45,""),"") ->  | BS45: =IF($I45<$Q$29,IF($J45=0,AI45,""),"") ->  | BT45: =IF($I45<$Q$29,IF($J45=0,K44,""),"") ->  | BU45: =IF($I45<$Q$29,IF($J45=0,($AK45),J45),"") -> 1.607927672 | BV45: =IF($I45<$Q$29,"",(IF($J45=0,(IF($I45=$W$30,"",L45/$J$25)),L45/$J$25))) ->  | BW45: =IF($I45<$Q$29,"",IF($J45=0,AL45*1000/14.007/($AK45),"")) ->  | BX45: =IF($I45<$Q$29,"",IF($J45=0,AM45*1000/30.957/($AK45),"")) ->  | BY45: =IF($I45<$Q$29,"",IF($J45=0,AN45*1000/39.1/($AK45),"")) ->  | BZ45: =IF($I45<$Q$29,"",IF($J45=0,AO45*1000/22.9898/($AK45),"")) ->  | CA45: =IF($I45<$Q$29,"",IF($J45=0,AP45*1000/20.04/($AK45),"")) ->  | CB45: =IF($I45<$Q$29,"",IF($J45=0,AQ45*1000/12.156/($AK45),"")) ->  | CC45: =IF($I45<$Q$29,"",IF($J45=0,X44,"")) ->  | CD45: =IF($I45<$Q$29,"",IF($J45=0,Y44,"")) ->  | CE45: =IF($I45<$Q$29,"",IF($J45=0,AB44,"")) ->  | CF45: =IF($I45<$Q$29,"",IF($J45=0,AE44,"")) ->  | CG45: =IF($I45<$Q$29,"",IF($J45=0,AC44,"")) ->  | CH45: =IF($I45<$Q$29,"",IF($J45=0,AD44,"")) ->  | CI45: =IF($I45<$Q$29,"",IF($J45=0,AI44,"")) ->  | CJ45: =IF($I45<$Q$29,"",IF($J45=0,M45,"")) ->  | CK45: =IF($I45<$Q$29,"",IF($J45=0,N45,"")) ->  | CL45: =IF($I45<$Q$29,"",IF($J45=0,Q45,"")) ->  | CM45: =IF($I45<$Q$29,"",IF($J45=0,T45,"")) ->  | CN45: =IF($I45<$Q$29,"",IF($J45=0,R45,"")) ->  | CO45: =IF($I45<$Q$29,"",IF($J45=0,S45,"")) ->  | CP45: =IF($I45<$Q$29,"",IF($J45=0,W45,"")) ->  | CQ45: =IF($I45<$Q$29,"",IF($J45=0,X45,"")) ->  | CR45: =IF($I45<$Q$29,"",IF($J45=0,Y45,"")) ->  | CS45: =IF($I45<$Q$29,"",IF($J45=0,AB45,"")) ->  | CT45: =IF($I45<$Q$29,"",IF($J45=0,AE45,"")) ->  | CU45: =IF($I45<$Q$29,"",IF($J45=0,AC45,"")) ->  | CV45: =IF($I45<$Q$29,"",IF($J45=0,AD45,"")) ->  | CW45: =IF($I45<$Q$29,"",IF($J45=0,AI45,"")) ->  | CX45: =IF($I45<$Q$29,"",IF($J45=0,K44,"")) ->  | CY45: =IF($I45<$Q$29,"",IF($J45=0,($AK45),J45)) ->  | CZ45: =IF(J45=0,0,CZ44+1) -> 8 | DA45: =IF(CZ45=0,CZ44,"") ->  | DK45: =IF($J45=0,SUM(DC45:DF45),"") ->  | DL45: =IF($J45=0,SUM(DG45:DJ45),"") ->  | DM45: =IF($J45=0,SUM(DG45:DJ45)*0.095+0.19,"") -> 
A46: =IF('3 climate date'!B23=1, '3 climate date'!D23, "") -> 9 | B46: =IF('3 climate date'!$B23=1, '3 climate date'!E23, "") -> 2006-05-14 | C46: =IF('3 climate date'!B23=1, '3 climate date'!G23, "") -> 6.965175 | D46: =IF('3 climate date'!B23=1, '3 climate date'!H23, "") -> 20.79395833 | E46: =IF(('3 climate date'!$B23=1),('8 ETE'!E46)," ") -> 534.4836111 | F46: =IF(('3 climate date'!$B23=1),('8 ETE'!F46)," ") -> 0.5031372621 | G46: =IF(('3 climate date'!$B23=1),('8 ETE'!G46)," ") -> 0.9765837204 | H46: =IF(('3 climate date'!$B23=1),('8 ETE'!H46)," ") -> 8.128673709 | I46: =IF(AI45<=$N$29-$G$30,I45+1,I45) -> 9 | J46: =IF(AI45<=$N$29-$G$30,INDIRECT(ADDRESS((I46+37),7)),0) -> 0.9765837204 | K46: =IF(J46=0,0,K45+J46) -> 8.128673709 | L46: =IF($I46<$Q$29,IF(J46=0,(IF($N$31-($W46+$AE$27*0.095*$J$23/$J$26)>=0,($N$31-$W46)/($AE$27*0.095)*$J$27/$AC$29,($J$23*$J$25/$AC$29))),$J46*$J$25/$AC$29),IF(J46=0,(IF($N$31-($W46+$AF$27*0.095*$J$23/$J$26)>=0,($N$31-$W46)/($AF$27*0.095)*$J$27/$AC$29,($J$23*$J$25/$AC$29))),$J46*$J$25/$AC$29)) -> 0.09765837204 | M46: =IF($I46<$Q$29,IF($AI45<=$N$29-$G$30,$X45+$L46*$AB$23*$AC$29/$J$27,DC46),IF($AI45<=$N$29-$G$30,$X45+$L46*$AC$23*$AC$29/$J$27,DC46)) -> 10.61036483 | N46: =IF($I46<$Q$29,IF($AI45<=$N$29-$G$30,$Y45+$L46*$AB$24*$AC$29/$J$27,DD46),IF($AI45<=$N$29-$G$30,$Y45+$L46*$AC$24*$AC$29/$J$27,DD46)) -> 1.061036483 | O46: =IF($I46<$Q$29,IF($AI45<=$N$29-$G$30,$Z45+$L46*$AB$25*$AC$29/$J$27,DE46),IF($AI45<=$N$29-$G$30,$Z45+$L46*$AC$25*$AC$29/$J$27,DE46)) -> 6.186271566 | P46: =IF($I46<$Q$29,IF($AI45<=$N$29-$G$30,$AA45+$L46*$AB$26*$AC$29/$J$27,DF46),IF($AI45<=$N$29-$G$30,$AA45+$L46*$AC$26*$AC$29/$J$27,DF46)) -> 12.44011127 | Q46: =IF($I46<$Q$29,IF($AI45<=$N$29-$G$30,$AB45+$L46*$AE$23*$AC$29/$J$27,DG46),IF($AI45<=$N$29-$G$30,$AB45+$L46*$AF$23*$AC$29/$J$27,DG46)) -> 7.108944433 | R46: =IF($I46<$Q$29,IF($AI45<=$N$29-$G$30,$AC45+$L46*$AE$24*$AC$29/$J$27,DH46),IF($AI45<=$N$29-$G$30,$AC45+$L46*$AF$24*$AC$29/$J$27,DH46)) -> 8.707487474 | S46: =IF($I46<$Q$29,IF($AI45<=$N$29-$G$30,$AD45+$L46*$AE$25*$AC$29/$J$27,DI46),IF($AI45<=$N$29-$G$30,$AD45+$L46*$AF$25*$AC$29/$J$27,DI46)) -> 1.77880225 | T46: =IF($I46<$Q$29,IF($AI45<=$N$29-$G$30,$AE45+$L46*$AE$26*$AC$29/$J$27,DJ46),IF($AI45<=$N$29-$G$30,$AE45+$L46*$AF$26*$AC$29/$J$27,DJ46)) -> 12.84576707 | U46: =SUM(M46:P46) -> 30.29778414 | V46: =SUM(Q46:T46) -> 30.44100123 | W46: =SUM(Q46:T46)*0.095+0.19 -> 3.081895117 | X46: =IF($I46<$Q$29,IF($J46=0,(M46+$L46*$AB$23*$AC$29/$J$27),(IF((M46+($U$23-$M$23)*$J46/$J$26)>=0,(M46+($U$23-$M$23)*$J46/$J$26),0))),IF($J46=0,(M46+$L46*$AC$23*$AC$29/$J$27),(IF((M46+($V$23-$N$23)*$J46/$J$26)>=0,(M46+($V$23-$N$23)*$J46/$J$26),0)))) -> 10 | Y46: =IF($I46<$Q$29,IF($J46=0,(N46+$L46*$AB$24*$AC$29/$J$27),(IF((N46+($U$24-$M$24)*$J46/$J$26)>=0,(N46+($U$24-$M$24)*$J46/$J$26),0))),IF($J46=0,(N46+$L46*$AC$24*$AC$29/$J$27),(IF((N46+($V$24-$N$24)*$J46/$J$26)>=0,(N46+($V$24-$N$24)*$J46/$J$26),0)))) -> 1 | Z46: =IF($I46<$Q$29,IF($J46=0,(O46+$L46*$AB$25*$AC$29/$J$27),(IF((O46+($U$25-$M$25)*$J46/$J$26)>=0,(O46+($U$25-$M$25)*$J46/$J$26),0))),IF($J46=0,(O46+$L46*$AC$25*$AC$29/$J$27),(IF((O46+($V$25-$N$25)*$J46/$J$26)>=0,(O46+($V$25-$N$25)*$J46/$J$26),0)))) -> 6.076405898 | AA46: =IF($I46<$Q$29,IF($J46=0,(P46+$L46*$AB$26*$AC$29/$J$27),(IF((P46-$U$26/$M$26)*EXP(-$M$26*$J46/$J$26)+$U$26/$M$26>=0,(P46-$U$26/$M$26)*EXP(-$M$26*$J46/$J$26)+$U$26/$M$26,0))),IF($J46=0,(P46+$L46*$AC$26*$AC$29/$J$27),(IF((P46-$V$26/$N$26)*EXP(-$N$26*$J46/$J$26)+$V$26/$N$26>=0,(P46-$V$26/$N$26)*EXP(-$N$26*$J46/$J$26)+$V$26/$N$26,0)))) -> 12.86264743 | AB46: =IF($I46<$Q$29,IF($J46=0,(Q46+$L46*$AE$23*$AC$29/$J$27),(IF((Q46+($X$23-$P$23)*$J46/$J$26)>=0,(Q46+($X$23-$P$23)*$J46/$J$26),0))),IF($J46=0,(Q46+$L46*$AF$23*$AC$29/$J$27),(IF((Q46+($Y$23-$Q$23)*$J46/$J$26)>=0,(Q46+($Y$23-$Q$23)*$J46/$J$26),0)))) -> 6.7 | AC46: =IF($I46<$Q$29,IF($J46=0,(R46+$L46*$AE$24*$AC$29/$J$27),(IF((R46+($X$24-$P$24)*$J46/$J$26)>=0,(R46+($X$24-$P$24)*$J46/$J$26),0))),IF($J46=0,(R46+$L46*$AF$24*$AC$29/$J$27),(IF((R46+($Y$24-$Q$24)*$J46/$J$26)>=0,(R46+($Y$24-$Q$24)*$J46/$J$26),0)))) -> 8.457237896 | AD46: =IF($I46<$Q$29,IF($J46=0,(S46+$L46*$AE$25*$AC$29/$J$27),(IF((S46+($X$25-$P$25)*$J46/$J$26)>=0,(S46+($X$25-$P$25)*$J46/$J$26),0))),IF($J46=0,(S46+$L46*$AF$25*$AC$29/$J$27),(IF((S46+($Y$25-$Q$25)*$J46/$J$26)>=0,(S46+($Y$25-$Q$25)*$J46/$J$26),0)))) -> 1.803216843 | AE46: =IF($I46<$Q$29,IF($J46=0,(T46+$L46*$AE$26*$AC$29/$J$27),(IF((T46-$X$26/$P$26)*EXP(-$P$26*$J46/$J$26)+$X$26/$P$26>=0,(T46-$X$26/$P$26)*EXP(-$P$26*$J46/$J$26)+$X$26/$P$26,0))),IF($J46=0,(T46+$L46*$AF$26*$AC$29/$J$27),(IF((T46-$Y$26/$Q$26)*EXP(-$Q$26*$J46/$J$26)+$Y$26/$Q$26>=0,(T46-$Y$26/$Q$26)*EXP(-$Q$26*$J46/$J$26)+$Y$26/$Q$26,0)))) -> 13.28208159 | AF46: =SUM(X46:AA46) -> 29.93905333 | AG46: =SUM(AB46:AE46) -> 30.24253633 | AH46: =IF(AH45<=$N$32,1000,X46) -> 10 | AI46: =SUM(AB46:AE46)*0.095+0.19 -> 3.063040951 | AJ46: =IF(J46>0,-10,1) -> -10 | AL46: =IF($I46<$Q$29,IF($J46=0,((X45-M46)*$J$26+$J$29*$U$23)*14.007/1000,""),IF($J46=0,((X45-M46)*$J$26+$J$29*$V$23)*14.007/1000,"")) ->  | AM46: =IF($I46<$Q$29,IF($J46=0,((Y45-N46)*$J$26+$J$29*$U$24)*30.957/1000,""),IF($J46=0,((Y45-N46)*$J$26+$J$29*$V$24)*30.957/1000,"")) ->  | AN46: =IF($I46<$Q$29,IF($J46=0,((AB45-Q46)*$J$26+$J$29*$X$23)*39.1/1000,""),IF($J46=0,((AB45-Q46)*$J$26+$J$29*$Y$23)*39.1/1000,"")) ->  | AO46: =IF($I46<$Q$29,IF($J46=0,((AE45-T46)*$J$26+$J$29*$X$26)*22.9898/1000,""),IF($J46=0,((AE45-T46)*$J$26+$J$29*$Y$26)*22.9898/1000,"")) ->  | AP46: =IF($I46<$Q$29,IF($J46=0,((AC45-R46)*$J$26+$J$29*$X$24)*20.04/1000,""),IF($J46=0,((AC45-R46)*$J$26+$J$29*$Y$24)*20.04/1000,"")) ->  | AQ46: =IF($I46<$Q$29,IF($J46=0,((AD45-S46)*$J$26+$J$29*$X$25)*12.156/1000,""),IF($J46=0,((AD45-S46)*$J$26+$J$29*$Y$25)*12.156/1000,"")) ->  | AR46: =IF($I46<$Q$29,L46/$J$25,"") -> 0.009765837204 | AS46: =IF($I46<$Q$29,IF($J46=0,AL46*1000/14.007/($AK46),""),"") ->  | AT46: =IF($I46<$Q$29,IF($J46=0,AM46*1000/30.957/($AK46),""),"") ->  | AU46: =IF($I46<$Q$29,IF($J46=0,AN46*1000/39.1/($AK46),""),"") ->  | AV46: =IF($I46<$Q$29,IF($J46=0,AO46*1000/22.9898/($AK46),""),"") ->  | AW46: =IF($I46<$Q$29,IF($J46=0,AP46*1000/20.04/($AK46*$J$25),""),"") ->  | AX46: =IF($I46<$Q$29,IF($J46=0,AQ46*1000/12.156/($AK46*$J$25),""),"") ->  | AY46: =IF($I46<$Q$29,IF($J46=0,X45,""),"") ->  | AZ46: =IF($I46<$Q$29,IF($J46=0,Y45,""),"") ->  | BA46: =IF($I46<$Q$29,IF($J46=0,AB45,""),"") ->  | BB46: =IF($I46<$Q$29,IF($J46=0,AE45,""),"") ->  | BC46: =IF($I46<$Q$29,IF($J46=0,AC45,""),"") ->  | BD46: =IF($I46<$Q$29,IF($J46=0,AD45,""),"") ->  | BE46: =IF($I46<$Q$29,IF($J46=0,AI45,""),"") ->  | BF46: =IF($I46<$Q$29,IF($J46=0,M46,""),"") ->  | BG46: =IF($I46<$Q$29,IF($J46=0,N46,""),"") ->  | BH46: =IF($I46<$Q$29,IF($J46=0,Q46,""),"") ->  | BI46: =IF($I46<$Q$29,IF($J46=0,T46,""),"") ->  | BJ46: =IF($I46<$Q$29,IF($J46=0,R46,""),"") ->  | BK46: =IF($I46<$Q$29,IF($J46=0,S46,""),"") ->  | BL46: =IF($I46<$Q$29,IF($J46=0,W46,""),"") ->  | BM46: =IF($I46<$Q$29,IF($J46=0,X46,""),"") ->  | BN46: =IF($I46<$Q$29,IF($J46=0,Y46,""),"") ->  | BO46: =IF($I46<$Q$29,IF($J46=0,AB46,""),"") ->  | BP46: =IF($I46<$Q$29,IF($J46=0,AE46,""),"") ->  | BQ46: =IF($I46<$Q$29,IF($J46=0,AC46,""),"") ->  | BR46: =IF($I46<$Q$29,IF($J46=0,AD46,""),"") ->  | BS46: =IF($I46<$Q$29,IF($J46=0,AI46,""),"") ->  | BT46: =IF($I46<$Q$29,IF($J46=0,K45,""),"") ->  | BU46: =IF($I46<$Q$29,IF($J46=0,($AK46),J46),"") -> 0.9765837204 | BV46: =IF($I46<$Q$29,"",(IF($J46=0,(IF($I46=$W$30,"",L46/$J$25)),L46/$J$25))) ->  | BW46: =IF($I46<$Q$29,"",IF($J46=0,AL46*1000/14.007/($AK46),"")) ->  | BX46: =IF($I46<$Q$29,"",IF($J46=0,AM46*1000/30.957/($AK46),"")) ->  | BY46: =IF($I46<$Q$29,"",IF($J46=0,AN46*1000/39.1/($AK46),"")) ->  | BZ46: =IF($I46<$Q$29,"",IF($J46=0,AO46*1000/22.9898/($AK46),"")) ->  | CA46: =IF($I46<$Q$29,"",IF($J46=0,AP46*1000/20.04/($AK46),"")) ->  | CB46: =IF($I46<$Q$29,"",IF($J46=0,AQ46*1000/12.156/($AK46),"")) ->  | CC46: =IF($I46<$Q$29,"",IF($J46=0,X45,"")) ->  | CD46: =IF($I46<$Q$29,"",IF($J46=0,Y45,"")) ->  | CE46: =IF($I46<$Q$29,"",IF($J46=0,AB45,"")) ->  | CF46: =IF($I46<$Q$29,"",IF($J46=0,AE45,"")) ->  | CG46: =IF($I46<$Q$29,"",IF($J46=0,AC45,"")) ->  | CH46: =IF($I46<$Q$29,"",IF($J46=0,AD45,"")) ->  | CI46: =IF($I46<$Q$29,"",IF($J46=0,AI45,"")) ->  | CJ46: =IF($I46<$Q$29,"",IF($J46=0,M46,"")) ->  | CK46: =IF($I46<$Q$29,"",IF($J46=0,N46,"")) ->  | CL46: =IF($I46<$Q$29,"",IF($J46=0,Q46,"")) ->  | CM46: =IF($I46<$Q$29,"",IF($J46=0,T46,"")) ->  | CN46: =IF($I46<$Q$29,"",IF($J46=0,R46,"")) ->  | CO46: =IF($I46<$Q$29,"",IF($J46=0,S46,"")) ->  | CP46: =IF($I46<$Q$29,"",IF($J46=0,W46,"")) ->  | CQ46: =IF($I46<$Q$29,"",IF($J46=0,X46,"")) ->  | CR46: =IF($I46<$Q$29,"",IF($J46=0,Y46,"")) ->  | CS46: =IF($I46<$Q$29,"",IF($J46=0,AB46,"")) ->  | CT46: =IF($I46<$Q$29,"",IF($J46=0,AE46,"")) ->  | CU46: =IF($I46<$Q$29,"",IF($J46=0,AC46,"")) ->  | CV46: =IF($I46<$Q$29,"",IF($J46=0,AD46,"")) ->  | CW46: =IF($I46<$Q$29,"",IF($J46=0,AI46,"")) ->  | CX46: =IF($I46<$Q$29,"",IF($J46=0,K45,"")) ->  | CY46: =IF($I46<$Q$29,"",IF($J46=0,($AK46),J46)) ->  | CZ46: =IF(J46=0,0,CZ45+1) -> 9 | DA46: =IF(CZ46=0,CZ45,"") ->  | DK46: =IF($J46=0,SUM(DC46:DF46),"") ->  | DL46: =IF($J46=0,SUM(DG46:DJ46),"") ->  | DM46: =IF($J46=0,SUM(DG46:DJ46)*0.095+0.19,"") -> 
A47: =IF('3 climate date'!B24=1, '3 climate date'!D24, "") -> 10 | B47: =IF('3 climate date'!$B24=1, '3 climate date'!E24, "") -> 2006-05-15 | C47: =IF('3 climate date'!B24=1, '3 climate date'!G24, "") -> 11.593125 | D47: =IF('3 climate date'!B24=1, '3 climate date'!H24, "") -> 20.87208333 | E47: =IF(('3 climate date'!$B24=1),('8 ETE'!E47)," ") -> 547.3556944 | F47: =IF(('3 climate date'!$B24=1),('8 ETE'!F47)," ") -> 0.572424367 | G47: =IF(('3 climate date'!$B24=1),('8 ETE'!G47)," ") -> 1.648182324 | H47: =IF(('3 climate date'!$B24=1),('8 ETE'!H47)," ") -> 9.776856033 | I47: =IF(AI46<=$N$29-$G$30,I46+1,I46) -> 10 | J47: =IF(AI46<=$N$29-$G$30,INDIRECT(ADDRESS((I47+37),7)),0) -> 1.648182324 | K47: =IF(J47=0,0,K46+J47) -> 9.776856033 | L47: =IF($I47<$Q$29,IF(J47=0,(IF($N$31-($W47+$AE$27*0.095*$J$23/$J$26)>=0,($N$31-$W47)/($AE$27*0.095)*$J$27/$AC$29,($J$23*$J$25/$AC$29))),$J47*$J$25/$AC$29),IF(J47=0,(IF($N$31-($W47+$AF$27*0.095*$J$23/$J$26)>=0,($N$31-$W47)/($AF$27*0.095)*$J$27/$AC$29,($J$23*$J$25/$AC$29))),$J47*$J$25/$AC$29)) -> 0.1648182324 | M47: =IF($I47<$Q$29,IF($AI46<=$N$29-$G$30,$X46+$L47*$AB$23*$AC$29/$J$27,DC47),IF($AI46<=$N$29-$G$30,$X46+$L47*$AC$23*$AC$29/$J$27,DC47)) -> 11.03011395 | N47: =IF($I47<$Q$29,IF($AI46<=$N$29-$G$30,$Y46+$L47*$AB$24*$AC$29/$J$27,DD47),IF($AI46<=$N$29-$G$30,$Y46+$L47*$AC$24*$AC$29/$J$27,DD47)) -> 1.103011395 | O47: =IF($I47<$Q$29,IF($AI46<=$N$29-$G$30,$Z46+$L47*$AB$25*$AC$29/$J$27,DE47),IF($AI46<=$N$29-$G$30,$Z46+$L47*$AC$25*$AC$29/$J$27,DE47)) -> 6.471969656 | P47: =IF($I47<$Q$29,IF($AI46<=$N$29-$G$30,$AA46+$L47*$AB$26*$AC$29/$J$27,DF47),IF($AI46<=$N$29-$G$30,$AA46+$L47*$AC$26*$AC$29/$J$27,DF47)) -> 12.86264743 | Q47: =IF($I47<$Q$29,IF($AI46<=$N$29-$G$30,$AB46+$L47*$AE$23*$AC$29/$J$27,DG47),IF($AI46<=$N$29-$G$30,$AB46+$L47*$AF$23*$AC$29/$J$27,DG47)) -> 7.390176348 | R47: =IF($I47<$Q$29,IF($AI46<=$N$29-$G$30,$AC46+$L47*$AE$24*$AC$29/$J$27,DH47),IF($AI46<=$N$29-$G$30,$AC46+$L47*$AF$24*$AC$29/$J$27,DH47)) -> 8.972294872 | S47: =IF($I47<$Q$29,IF($AI46<=$N$29-$G$30,$AD46+$L47*$AE$25*$AC$29/$J$27,DI47),IF($AI46<=$N$29-$G$30,$AD46+$L47*$AF$25*$AC$29/$J$27,DI47)) -> 1.803216843 | T47: =IF($I47<$Q$29,IF($AI46<=$N$29-$G$30,$AE46+$L47*$AE$26*$AC$29/$J$27,DJ47),IF($AI46<=$N$29-$G$30,$AE46+$L47*$AF$26*$AC$29/$J$27,DJ47)) -> 13.28208159 | U47: =SUM(M47:P47) -> 31.46774244 | V47: =SUM(Q47:T47) -> 31.44776965 | W47: =SUM(Q47:T47)*0.095+0.19 -> 3.177538117 | X47: =IF($I47<$Q$29,IF($J47=0,(M47+$L47*$AB$23*$AC$29/$J$27),(IF((M47+($U$23-$M$23)*$J47/$J$26)>=0,(M47+($U$23-$M$23)*$J47/$J$26),0))),IF($J47=0,(M47+$L47*$AC$23*$AC$29/$J$27),(IF((M47+($V$23-$N$23)*$J47/$J$26)>=0,(M47+($V$23-$N$23)*$J47/$J$26),0)))) -> 10 | Y47: =IF($I47<$Q$29,IF($J47=0,(N47+$L47*$AB$24*$AC$29/$J$27),(IF((N47+($U$24-$M$24)*$J47/$J$26)>=0,(N47+($U$24-$M$24)*$J47/$J$26),0))),IF($J47=0,(N47+$L47*$AC$24*$AC$29/$J$27),(IF((N47+($V$24-$N$24)*$J47/$J$26)>=0,(N47+($V$24-$N$24)*$J47/$J$26),0)))) -> 1 | Z47: =IF($I47<$Q$29,IF($J47=0,(O47+$L47*$AB$25*$AC$29/$J$27),(IF((O47+($U$25-$M$25)*$J47/$J$26)>=0,(O47+($U$25-$M$25)*$J47/$J$26),0))),IF($J47=0,(O47+$L47*$AC$25*$AC$29/$J$27),(IF((O47+($V$25-$N$25)*$J47/$J$26)>=0,(O47+($V$25-$N$25)*$J47/$J$26),0)))) -> 6.286549144 | AA47: =IF($I47<$Q$29,IF($J47=0,(P47+$L47*$AB$26*$AC$29/$J$27),(IF((P47-$U$26/$M$26)*EXP(-$M$26*$J47/$J$26)+$U$26/$M$26>=0,(P47-$U$26/$M$26)*EXP(-$M$26*$J47/$J$26)+$U$26/$M$26,0))),IF($J47=0,(P47+$L47*$AC$26*$AC$29/$J$27),(IF((P47-$V$26/$N$26)*EXP(-$N$26*$J47/$J$26)+$V$26/$N$26>=0,(P47-$V$26/$N$26)*EXP(-$N$26*$J47/$J$26)+$V$26/$N$26,0)))) -> 13.5653178 | AB47: =IF($I47<$Q$29,IF($J47=0,(Q47+$L47*$AE$23*$AC$29/$J$27),(IF((Q47+($X$23-$P$23)*$J47/$J$26)>=0,(Q47+($X$23-$P$23)*$J47/$J$26),0))),IF($J47=0,(Q47+$L47*$AF$23*$AC$29/$J$27),(IF((Q47+($Y$23-$Q$23)*$J47/$J$26)>=0,(Q47+($Y$23-$Q$23)*$J47/$J$26),0)))) -> 6.7 | AC47: =IF($I47<$Q$29,IF($J47=0,(R47+$L47*$AE$24*$AC$29/$J$27),(IF((R47+($X$24-$P$24)*$J47/$J$26)>=0,(R47+($X$24-$P$24)*$J47/$J$26),0))),IF($J47=0,(R47+$L47*$AF$24*$AC$29/$J$27),(IF((R47+($Y$24-$Q$24)*$J47/$J$26)>=0,(R47+($Y$24-$Q$24)*$J47/$J$26),0)))) -> 8.549948152 | AD47: =IF($I47<$Q$29,IF($J47=0,(S47+$L47*$AE$25*$AC$29/$J$27),(IF((S47+($X$25-$P$25)*$J47/$J$26)>=0,(S47+($X$25-$P$25)*$J47/$J$26),0))),IF($J47=0,(S47+$L47*$AF$25*$AC$29/$J$27),(IF((S47+($Y$25-$Q$25)*$J47/$J$26)>=0,(S47+($Y$25-$Q$25)*$J47/$J$26),0)))) -> 1.844421401 | AE47: =IF($I47<$Q$29,IF($J47=0,(T47+$L47*$AE$26*$AC$29/$J$27),(IF((T47-$X$26/$P$26)*EXP(-$P$26*$J47/$J$26)+$X$26/$P$26>=0,(T47-$X$26/$P$26)*EXP(-$P$26*$J47/$J$26)+$X$26/$P$26,0))),IF($J47=0,(T47+$L47*$AF$26*$AC$29/$J$27),(IF((T47-$Y$26/$Q$26)*EXP(-$Q$26*$J47/$J$26)+$Y$26/$Q$26>=0,(T47-$Y$26/$Q$26)*EXP(-$Q$26*$J47/$J$26)+$Y$26/$Q$26,0)))) -> 14.00766511 | AF47: =SUM(X47:AA47) -> 30.85186694 | AG47: =SUM(AB47:AE47) -> 31.10203467 | AH47: =IF(AH46<=$N$32,1000,X47) -> 10 | AI47: =SUM(AB47:AE47)*0.095+0.19 -> 3.144693293 | AJ47: =IF(J47>0,-10,1) -> -10 | AL47: =IF($I47<$Q$29,IF($J47=0,((X46-M47)*$J$26+$J$29*$U$23)*14.007/1000,""),IF($J47=0,((X46-M47)*$J$26+$J$29*$V$23)*14.007/1000,"")) ->  | AM47: =IF($I47<$Q$29,IF($J47=0,((Y46-N47)*$J$26+$J$29*$U$24)*30.957/1000,""),IF($J47=0,((Y46-N47)*$J$26+$J$29*$V$24)*30.957/1000,"")) ->  | AN47: =IF($I47<$Q$29,IF($J47=0,((AB46-Q47)*$J$26+$J$29*$X$23)*39.1/1000,""),IF($J47=0,((AB46-Q47)*$J$26+$J$29*$Y$23)*39.1/1000,"")) ->  | AO47: =IF($I47<$Q$29,IF($J47=0,((AE46-T47)*$J$26+$J$29*$X$26)*22.9898/1000,""),IF($J47=0,((AE46-T47)*$J$26+$J$29*$Y$26)*22.9898/1000,"")) ->  | AP47: =IF($I47<$Q$29,IF($J47=0,((AC46-R47)*$J$26+$J$29*$X$24)*20.04/1000,""),IF($J47=0,((AC46-R47)*$J$26+$J$29*$Y$24)*20.04/1000,"")) ->  | AQ47: =IF($I47<$Q$29,IF($J47=0,((AD46-S47)*$J$26+$J$29*$X$25)*12.156/1000,""),IF($J47=0,((AD46-S47)*$J$26+$J$29*$Y$25)*12.156/1000,"")) ->  | AR47: =IF($I47<$Q$29,L47/$J$25,"") -> 0.01648182324 | AS47: =IF($I47<$Q$29,IF($J47=0,AL47*1000/14.007/($AK47),""),"") ->  | AT47: =IF($I47<$Q$29,IF($J47=0,AM47*1000/30.957/($AK47),""),"") ->  | AU47: =IF($I47<$Q$29,IF($J47=0,AN47*1000/39.1/($AK47),""),"") ->  | AV47: =IF($I47<$Q$29,IF($J47=0,AO47*1000/22.9898/($AK47),""),"") ->  | AW47: =IF($I47<$Q$29,IF($J47=0,AP47*1000/20.04/($AK47*$J$25),""),"") ->  | AX47: =IF($I47<$Q$29,IF($J47=0,AQ47*1000/12.156/($AK47*$J$25),""),"") ->  | AY47: =IF($I47<$Q$29,IF($J47=0,X46,""),"") ->  | AZ47: =IF($I47<$Q$29,IF($J47=0,Y46,""),"") ->  | BA47: =IF($I47<$Q$29,IF($J47=0,AB46,""),"") ->  | BB47: =IF($I47<$Q$29,IF($J47=0,AE46,""),"") ->  | BC47: =IF($I47<$Q$29,IF($J47=0,AC46,""),"") ->  | BD47: =IF($I47<$Q$29,IF($J47=0,AD46,""),"") ->  | BE47: =IF($I47<$Q$29,IF($J47=0,AI46,""),"") ->  | BF47: =IF($I47<$Q$29,IF($J47=0,M47,""),"") ->  | BG47: =IF($I47<$Q$29,IF($J47=0,N47,""),"") ->  | BH47: =IF($I47<$Q$29,IF($J47=0,Q47,""),"") ->  | BI47: =IF($I47<$Q$29,IF($J47=0,T47,""),"") ->  | BJ47: =IF($I47<$Q$29,IF($J47=0,R47,""),"") ->  | BK47: =IF($I47<$Q$29,IF($J47=0,S47,""),"") ->  | BL47: =IF($I47<$Q$29,IF($J47=0,W47,""),"") ->  | BM47: =IF($I47<$Q$29,IF($J47=0,X47,""),"") ->  | BN47: =IF($I47<$Q$29,IF($J47=0,Y47,""),"") ->  | BO47: =IF($I47<$Q$29,IF($J47=0,AB47,""),"") ->  | BP47: =IF($I47<$Q$29,IF($J47=0,AE47,""),"") ->  | BQ47: =IF($I47<$Q$29,IF($J47=0,AC47,""),"") ->  | BR47: =IF($I47<$Q$29,IF($J47=0,AD47,""),"") ->  | BS47: =IF($I47<$Q$29,IF($J47=0,AI47,""),"") ->  | BT47: =IF($I47<$Q$29,IF($J47=0,K46,""),"") ->  | BU47: =IF($I47<$Q$29,IF($J47=0,($AK47),J47),"") -> 1.648182324 | BV47: =IF($I47<$Q$29,"",(IF($J47=0,(IF($I47=$W$30,"",L47/$J$25)),L47/$J$25))) ->  | BW47: =IF($I47<$Q$29,"",IF($J47=0,AL47*1000/14.007/($AK47),"")) ->  | BX47: =IF($I47<$Q$29,"",IF($J47=0,AM47*1000/30.957/($AK47),"")) ->  | BY47: =IF($I47<$Q$29,"",IF($J47=0,AN47*1000/39.1/($AK47),"")) ->  | BZ47: =IF($I47<$Q$29,"",IF($J47=0,AO47*1000/22.9898/($AK47),"")) ->  | CA47: =IF($I47<$Q$29,"",IF($J47=0,AP47*1000/20.04/($AK47),"")) ->  | CB47: =IF($I47<$Q$29,"",IF($J47=0,AQ47*1000/12.156/($AK47),"")) ->  | CC47: =IF($I47<$Q$29,"",IF($J47=0,X46,"")) ->  | CD47: =IF($I47<$Q$29,"",IF($J47=0,Y46,"")) ->  | CE47: =IF($I47<$Q$29,"",IF($J47=0,AB46,"")) ->  | CF47: =IF($I47<$Q$29,"",IF($J47=0,AE46,"")) ->  | CG47: =IF($I47<$Q$29,"",IF($J47=0,AC46,"")) ->  | CH47: =IF($I47<$Q$29,"",IF($J47=0,AD46,"")) ->  | CI47: =IF($I47<$Q$29,"",IF($J47=0,AI46,"")) ->  | CJ47: =IF($I47<$Q$29,"",IF($J47=0,M47,"")) ->  | CK47: =IF($I47<$Q$29,"",IF($J47=0,N47,"")) ->  | CL47: =IF($I47<$Q$29,"",IF($J47=0,Q47,"")) ->  | CM47: =IF($I47<$Q$29,"",IF($J47=0,T47,"")) ->  | CN47: =IF($I47<$Q$29,"",IF($J47=0,R47,"")) ->  | CO47: =IF($I47<$Q$29,"",IF($J47=0,S47,"")) ->  | CP47: =IF($I47<$Q$29,"",IF($J47=0,W47,"")) ->  | CQ47: =IF($I47<$Q$29,"",IF($J47=0,X47,"")) ->  | CR47: =IF($I47<$Q$29,"",IF($J47=0,Y47,"")) ->  | CS47: =IF($I47<$Q$29,"",IF($J47=0,AB47,"")) ->  | CT47: =IF($I47<$Q$29,"",IF($J47=0,AE47,"")) ->  | CU47: =IF($I47<$Q$29,"",IF($J47=0,AC47,"")) ->  | CV47: =IF($I47<$Q$29,"",IF($J47=0,AD47,"")) ->  | CW47: =IF($I47<$Q$29,"",IF($J47=0,AI47,"")) ->  | CX47: =IF($I47<$Q$29,"",IF($J47=0,K46,"")) ->  | CY47: =IF($I47<$Q$29,"",IF($J47=0,($AK47),J47)) ->  | CZ47: =IF(J47=0,0,CZ46+1) -> 10 | DA47: =IF(CZ47=0,CZ46,"") ->  | DK47: =IF($J47=0,SUM(DC47:DF47),"") ->  | DL47: =IF($J47=0,SUM(DG47:DJ47),"") ->  | DM47: =IF($J47=0,SUM(DG47:DJ47)*0.095+0.19,"") -> 
A48: =IF('3 climate date'!B25=1, '3 climate date'!D25, "") -> 11 | B48: =IF('3 climate date'!$B25=1, '3 climate date'!E25, "") -> 2006-05-16 | C48: =IF('3 climate date'!B25=1, '3 climate date'!G25, "") -> 12.120375 | D48: =IF('3 climate date'!B25=1, '3 climate date'!H25, "") -> 20.59673611 | E48: =IF(('3 climate date'!$B25=1),('8 ETE'!E48)," ") -> 559.9524306 | F48: =IF(('3 climate date'!$B25=1),('8 ETE'!F48)," ") -> 0.6445121377 | G48: =IF(('3 climate date'!$B25=1),('8 ETE'!G48)," ") -> 1.867531518 | H48: =IF(('3 climate date'!$B25=1),('8 ETE'!H48)," ") -> 11.64438755 | I48: =IF(AI47<=$N$29-$G$30,I47+1,I47) -> 11 | J48: =IF(AI47<=$N$29-$G$30,INDIRECT(ADDRESS((I48+37),7)),0) -> 1.867531518 | K48: =IF(J48=0,0,K47+J48) -> 11.64438755 | L48: =IF($I48<$Q$29,IF(J48=0,(IF($N$31-($W48+$AE$27*0.095*$J$23/$J$26)>=0,($N$31-$W48)/($AE$27*0.095)*$J$27/$AC$29,($J$23*$J$25/$AC$29))),$J48*$J$25/$AC$29),IF(J48=0,(IF($N$31-($W48+$AF$27*0.095*$J$23/$J$26)>=0,($N$31-$W48)/($AF$27*0.095)*$J$27/$AC$29,($J$23*$J$25/$AC$29))),$J48*$J$25/$AC$29)) -> 0.1867531518 | M48: =IF($I48<$Q$29,IF($AI47<=$N$29-$G$30,$X47+$L48*$AB$23*$AC$29/$J$27,DC48),IF($AI47<=$N$29-$G$30,$X47+$L48*$AC$23*$AC$29/$J$27,DC48)) -> 11.1672072 | N48: =IF($I48<$Q$29,IF($AI47<=$N$29-$G$30,$Y47+$L48*$AB$24*$AC$29/$J$27,DD48),IF($AI47<=$N$29-$G$30,$Y47+$L48*$AC$24*$AC$29/$J$27,DD48)) -> 1.11672072 | O48: =IF($I48<$Q$29,IF($AI47<=$N$29-$G$30,$Z47+$L48*$AB$25*$AC$29/$J$27,DE48),IF($AI47<=$N$29-$G$30,$Z47+$L48*$AC$25*$AC$29/$J$27,DE48)) -> 6.734756708 | P48: =IF($I48<$Q$29,IF($AI47<=$N$29-$G$30,$AA47+$L48*$AB$26*$AC$29/$J$27,DF48),IF($AI47<=$N$29-$G$30,$AA47+$L48*$AC$26*$AC$29/$J$27,DF48)) -> 13.5653178 | Q48: =IF($I48<$Q$29,IF($AI47<=$N$29-$G$30,$AB47+$L48*$AE$23*$AC$29/$J$27,DG48),IF($AI47<=$N$29-$G$30,$AB47+$L48*$AF$23*$AC$29/$J$27,DG48)) -> 7.482028823 | R48: =IF($I48<$Q$29,IF($AI47<=$N$29-$G$30,$AC47+$L48*$AE$24*$AC$29/$J$27,DH48),IF($AI47<=$N$29-$G$30,$AC47+$L48*$AF$24*$AC$29/$J$27,DH48)) -> 9.133551751 | S48: =IF($I48<$Q$29,IF($AI47<=$N$29-$G$30,$AD47+$L48*$AE$25*$AC$29/$J$27,DI48),IF($AI47<=$N$29-$G$30,$AD47+$L48*$AF$25*$AC$29/$J$27,DI48)) -> 1.844421401 | T48: =IF($I48<$Q$29,IF($AI47<=$N$29-$G$30,$AE47+$L48*$AE$26*$AC$29/$J$27,DJ48),IF($AI47<=$N$29-$G$30,$AE47+$L48*$AF$26*$AC$29/$J$27,DJ48)) -> 14.00766511 | U48: =SUM(M48:P48) -> 32.58400242 | V48: =SUM(Q48:T48) -> 32.46766709 | W48: =SUM(Q48:T48)*0.095+0.19 -> 3.274428374 | X48: =IF($I48<$Q$29,IF($J48=0,(M48+$L48*$AB$23*$AC$29/$J$27),(IF((M48+($U$23-$M$23)*$J48/$J$26)>=0,(M48+($U$23-$M$23)*$J48/$J$26),0))),IF($J48=0,(M48+$L48*$AC$23*$AC$29/$J$27),(IF((M48+($V$23-$N$23)*$J48/$J$26)>=0,(M48+($V$23-$N$23)*$J48/$J$26),0)))) -> 10 | Y48: =IF($I48<$Q$29,IF($J48=0,(N48+$L48*$AB$24*$AC$29/$J$27),(IF((N48+($U$24-$M$24)*$J48/$J$26)>=0,(N48+($U$24-$M$24)*$J48/$J$26),0))),IF($J48=0,(N48+$L48*$AC$24*$AC$29/$J$27),(IF((N48+($V$24-$N$24)*$J48/$J$26)>=0,(N48+($V$24-$N$24)*$J48/$J$26),0)))) -> 1 | Z48: =IF($I48<$Q$29,IF($J48=0,(O48+$L48*$AB$25*$AC$29/$J$27),(IF((O48+($U$25-$M$25)*$J48/$J$26)>=0,(O48+($U$25-$M$25)*$J48/$J$26),0))),IF($J48=0,(O48+$L48*$AC$25*$AC$29/$J$27),(IF((O48+($V$25-$N$25)*$J48/$J$26)>=0,(O48+($V$25-$N$25)*$J48/$J$26),0)))) -> 6.524659413 | AA48: =IF($I48<$Q$29,IF($J48=0,(P48+$L48*$AB$26*$AC$29/$J$27),(IF((P48-$U$26/$M$26)*EXP(-$M$26*$J48/$J$26)+$U$26/$M$26>=0,(P48-$U$26/$M$26)*EXP(-$M$26*$J48/$J$26)+$U$26/$M$26,0))),IF($J48=0,(P48+$L48*$AC$26*$AC$29/$J$27),(IF((P48-$V$26/$N$26)*EXP(-$N$26*$J48/$J$26)+$V$26/$N$26>=0,(P48-$V$26/$N$26)*EXP(-$N$26*$J48/$J$26)+$V$26/$N$26,0)))) -> 14.34591597 | AB48: =IF($I48<$Q$29,IF($J48=0,(Q48+$L48*$AE$23*$AC$29/$J$27),(IF((Q48+($X$23-$P$23)*$J48/$J$26)>=0,(Q48+($X$23-$P$23)*$J48/$J$26),0))),IF($J48=0,(Q48+$L48*$AF$23*$AC$29/$J$27),(IF((Q48+($Y$23-$Q$23)*$J48/$J$26)>=0,(Q48+($Y$23-$Q$23)*$J48/$J$26),0)))) -> 6.7 | AC48: =IF($I48<$Q$29,IF($J48=0,(R48+$L48*$AE$24*$AC$29/$J$27),(IF((R48+($X$24-$P$24)*$J48/$J$26)>=0,(R48+($X$24-$P$24)*$J48/$J$26),0))),IF($J48=0,(R48+$L48*$AF$24*$AC$29/$J$27),(IF((R48+($Y$24-$Q$24)*$J48/$J$26)>=0,(R48+($Y$24-$Q$24)*$J48/$J$26),0)))) -> 8.6549968 | AD48: =IF($I48<$Q$29,IF($J48=0,(S48+$L48*$AE$25*$AC$29/$J$27),(IF((S48+($X$25-$P$25)*$J48/$J$26)>=0,(S48+($X$25-$P$25)*$J48/$J$26),0))),IF($J48=0,(S48+$L48*$AF$25*$AC$29/$J$27),(IF((S48+($Y$25-$Q$25)*$J48/$J$26)>=0,(S48+($Y$25-$Q$25)*$J48/$J$26),0)))) -> 1.891109689 | AE48: =IF($I48<$Q$29,IF($J48=0,(T48+$L48*$AE$26*$AC$29/$J$27),(IF((T48-$X$26/$P$26)*EXP(-$P$26*$J48/$J$26)+$X$26/$P$26>=0,(T48-$X$26/$P$26)*EXP(-$P$26*$J48/$J$26)+$X$26/$P$26,0))),IF($J48=0,(T48+$L48*$AF$26*$AC$29/$J$27),(IF((T48-$Y$26/$Q$26)*EXP(-$Q$26*$J48/$J$26)+$Y$26/$Q$26>=0,(T48-$Y$26/$Q$26)*EXP(-$Q$26*$J48/$J$26)+$Y$26/$Q$26,0)))) -> 14.81371758 | AF48: =SUM(X48:AA48) -> 31.87057538 | AG48: =SUM(AB48:AE48) -> 32.05982406 | AH48: =IF(AH47<=$N$32,1000,X48) -> 10 | AI48: =SUM(AB48:AE48)*0.095+0.19 -> 3.235683286 | AJ48: =IF(J48>0,-10,1) -> -10 | AL48: =IF($I48<$Q$29,IF($J48=0,((X47-M48)*$J$26+$J$29*$U$23)*14.007/1000,""),IF($J48=0,((X47-M48)*$J$26+$J$29*$V$23)*14.007/1000,"")) ->  | AM48: =IF($I48<$Q$29,IF($J48=0,((Y47-N48)*$J$26+$J$29*$U$24)*30.957/1000,""),IF($J48=0,((Y47-N48)*$J$26+$J$29*$V$24)*30.957/1000,"")) ->  | AN48: =IF($I48<$Q$29,IF($J48=0,((AB47-Q48)*$J$26+$J$29*$X$23)*39.1/1000,""),IF($J48=0,((AB47-Q48)*$J$26+$J$29*$Y$23)*39.1/1000,"")) ->  | AO48: =IF($I48<$Q$29,IF($J48=0,((AE47-T48)*$J$26+$J$29*$X$26)*22.9898/1000,""),IF($J48=0,((AE47-T48)*$J$26+$J$29*$Y$26)*22.9898/1000,"")) ->  | AP48: =IF($I48<$Q$29,IF($J48=0,((AC47-R48)*$J$26+$J$29*$X$24)*20.04/1000,""),IF($J48=0,((AC47-R48)*$J$26+$J$29*$Y$24)*20.04/1000,"")) ->  | AQ48: =IF($I48<$Q$29,IF($J48=0,((AD47-S48)*$J$26+$J$29*$X$25)*12.156/1000,""),IF($J48=0,((AD47-S48)*$J$26+$J$29*$Y$25)*12.156/1000,"")) ->  | AR48: =IF($I48<$Q$29,L48/$J$25,"") -> 0.01867531518 | AS48: =IF($I48<$Q$29,IF($J48=0,AL48*1000/14.007/($AK48),""),"") ->  | AT48: =IF($I48<$Q$29,IF($J48=0,AM48*1000/30.957/($AK48),""),"") ->  | AU48: =IF($I48<$Q$29,IF($J48=0,AN48*1000/39.1/($AK48),""),"") ->  | AV48: =IF($I48<$Q$29,IF($J48=0,AO48*1000/22.9898/($AK48),""),"") ->  | AW48: =IF($I48<$Q$29,IF($J48=0,AP48*1000/20.04/($AK48*$J$25),""),"") ->  | AX48: =IF($I48<$Q$29,IF($J48=0,AQ48*1000/12.156/($AK48*$J$25),""),"") ->  | AY48: =IF($I48<$Q$29,IF($J48=0,X47,""),"") ->  | AZ48: =IF($I48<$Q$29,IF($J48=0,Y47,""),"") ->  | BA48: =IF($I48<$Q$29,IF($J48=0,AB47,""),"") ->  | BB48: =IF($I48<$Q$29,IF($J48=0,AE47,""),"") ->  | BC48: =IF($I48<$Q$29,IF($J48=0,AC47,""),"") ->  | BD48: =IF($I48<$Q$29,IF($J48=0,AD47,""),"") ->  | BE48: =IF($I48<$Q$29,IF($J48=0,AI47,""),"") ->  | BF48: =IF($I48<$Q$29,IF($J48=0,M48,""),"") ->  | BG48: =IF($I48<$Q$29,IF($J48=0,N48,""),"") ->  | BH48: =IF($I48<$Q$29,IF($J48=0,Q48,""),"") ->  | BI48: =IF($I48<$Q$29,IF($J48=0,T48,""),"") ->  | BJ48: =IF($I48<$Q$29,IF($J48=0,R48,""),"") ->  | BK48: =IF($I48<$Q$29,IF($J48=0,S48,""),"") ->  | BL48: =IF($I48<$Q$29,IF($J48=0,W48,""),"") ->  | BM48: =IF($I48<$Q$29,IF($J48=0,X48,""),"") ->  | BN48: =IF($I48<$Q$29,IF($J48=0,Y48,""),"") ->  | BO48: =IF($I48<$Q$29,IF($J48=0,AB48,""),"") ->  | BP48: =IF($I48<$Q$29,IF($J48=0,AE48,""),"") ->  | BQ48: =IF($I48<$Q$29,IF($J48=0,AC48,""),"") ->  | BR48: =IF($I48<$Q$29,IF($J48=0,AD48,""),"") ->  | BS48: =IF($I48<$Q$29,IF($J48=0,AI48,""),"") ->  | BT48: =IF($I48<$Q$29,IF($J48=0,K47,""),"") ->  | BU48: =IF($I48<$Q$29,IF($J48=0,($AK48),J48),"") -> 1.867531518 | BV48: =IF($I48<$Q$29,"",(IF($J48=0,(IF($I48=$W$30,"",L48/$J$25)),L48/$J$25))) ->  | BW48: =IF($I48<$Q$29,"",IF($J48=0,AL48*1000/14.007/($AK48),"")) ->  | BX48: =IF($I48<$Q$29,"",IF($J48=0,AM48*1000/30.957/($AK48),"")) ->  | BY48: =IF($I48<$Q$29,"",IF($J48=0,AN48*1000/39.1/($AK48),"")) ->  | BZ48: =IF($I48<$Q$29,"",IF($J48=0,AO48*1000/22.9898/($AK48),"")) ->  | CA48: =IF($I48<$Q$29,"",IF($J48=0,AP48*1000/20.04/($AK48),"")) ->  | CB48: =IF($I48<$Q$29,"",IF($J48=0,AQ48*1000/12.156/($AK48),"")) ->  | CC48: =IF($I48<$Q$29,"",IF($J48=0,X47,"")) ->  | CD48: =IF($I48<$Q$29,"",IF($J48=0,Y47,"")) ->  | CE48: =IF($I48<$Q$29,"",IF($J48=0,AB47,"")) ->  | CF48: =IF($I48<$Q$29,"",IF($J48=0,AE47,"")) ->  | CG48: =IF($I48<$Q$29,"",IF($J48=0,AC47,"")) ->  | CH48: =IF($I48<$Q$29,"",IF($J48=0,AD47,"")) ->  | CI48: =IF($I48<$Q$29,"",IF($J48=0,AI47,"")) ->  | CJ48: =IF($I48<$Q$29,"",IF($J48=0,M48,"")) ->  | CK48: =IF($I48<$Q$29,"",IF($J48=0,N48,"")) ->  | CL48: =IF($I48<$Q$29,"",IF($J48=0,Q48,"")) ->  | CM48: =IF($I48<$Q$29,"",IF($J48=0,T48,"")) ->  | CN48: =IF($I48<$Q$29,"",IF($J48=0,R48,"")) ->  | CO48: =IF($I48<$Q$29,"",IF($J48=0,S48,"")) ->  | CP48: =IF($I48<$Q$29,"",IF($J48=0,W48,"")) ->  | CQ48: =IF($I48<$Q$29,"",IF($J48=0,X48,"")) ->  | CR48: =IF($I48<$Q$29,"",IF($J48=0,Y48,"")) ->  | CS48: =IF($I48<$Q$29,"",IF($J48=0,AB48,"")) ->  | CT48: =IF($I48<$Q$29,"",IF($J48=0,AE48,"")) ->  | CU48: =IF($I48<$Q$29,"",IF($J48=0,AC48,"")) ->  | CV48: =IF($I48<$Q$29,"",IF($J48=0,AD48,"")) ->  | CW48: =IF($I48<$Q$29,"",IF($J48=0,AI48,"")) ->  | CX48: =IF($I48<$Q$29,"",IF($J48=0,K47,"")) ->  | CY48: =IF($I48<$Q$29,"",IF($J48=0,($AK48),J48)) ->  | CZ48: =IF(J48=0,0,CZ47+1) -> 11 | DA48: =IF(CZ48=0,CZ47,"") ->  | DK48: =IF($J48=0,SUM(DC48:DF48),"") ->  | DL48: =IF($J48=0,SUM(DG48:DJ48),"") ->  | DM48: =IF($J48=0,SUM(DG48:DJ48)*0.095+0.19,"") -> 
A49: =IF('3 climate date'!B26=1, '3 climate date'!D26, "") -> 12 | B49: =IF('3 climate date'!$B26=1, '3 climate date'!E26, "") -> 2006-05-17 | C49: =IF('3 climate date'!B26=1, '3 climate date'!G26, "") -> 4.8707625 | D49: =IF('3 climate date'!B26=1, '3 climate date'!H26, "") -> 19.43652778 | E49: =IF(('3 climate date'!$B26=1),('8 ETE'!E49)," ") -> 571.3889583 | F49: =IF(('3 climate date'!$B26=1),('8 ETE'!F49)," ") -> 0.7136849125 | G49: =IF(('3 climate date'!$B26=1),('8 ETE'!G49)," ") -> 0.9191166256 | H49: =IF(('3 climate date'!$B26=1),('8 ETE'!H49)," ") -> 12.56350418 | I49: =IF(AI48<=$N$29-$G$30,I48+1,I48) -> 12 | J49: =IF(AI48<=$N$29-$G$30,INDIRECT(ADDRESS((I49+37),7)),0) -> 0.9191166256 | K49: =IF(J49=0,0,K48+J49) -> 12.56350418 | L49: =IF($I49<$Q$29,IF(J49=0,(IF($N$31-($W49+$AE$27*0.095*$J$23/$J$26)>=0,($N$31-$W49)/($AE$27*0.095)*$J$27/$AC$29,($J$23*$J$25/$AC$29))),$J49*$J$25/$AC$29),IF(J49=0,(IF($N$31-($W49+$AF$27*0.095*$J$23/$J$26)>=0,($N$31-$W49)/($AF$27*0.095)*$J$27/$AC$29,($J$23*$J$25/$AC$29))),$J49*$J$25/$AC$29)) -> 0.09191166256 | M49: =IF($I49<$Q$29,IF($AI48<=$N$29-$G$30,$X48+$L49*$AB$23*$AC$29/$J$27,DC49),IF($AI48<=$N$29-$G$30,$X48+$L49*$AC$23*$AC$29/$J$27,DC49)) -> 10.57444789 | N49: =IF($I49<$Q$29,IF($AI48<=$N$29-$G$30,$Y48+$L49*$AB$24*$AC$29/$J$27,DD49),IF($AI48<=$N$29-$G$30,$Y48+$L49*$AC$24*$AC$29/$J$27,DD49)) -> 1.057444789 | O49: =IF($I49<$Q$29,IF($AI48<=$N$29-$G$30,$Z48+$L49*$AB$25*$AC$29/$J$27,DE49),IF($AI48<=$N$29-$G$30,$Z48+$L49*$AC$25*$AC$29/$J$27,DE49)) -> 6.745247403 | P49: =IF($I49<$Q$29,IF($AI48<=$N$29-$G$30,$AA48+$L49*$AB$26*$AC$29/$J$27,DF49),IF($AI48<=$N$29-$G$30,$AA48+$L49*$AC$26*$AC$29/$J$27,DF49)) -> 14.34591597 | Q49: =IF($I49<$Q$29,IF($AI48<=$N$29-$G$30,$AB48+$L49*$AE$23*$AC$29/$J$27,DG49),IF($AI48<=$N$29-$G$30,$AB48+$L49*$AF$23*$AC$29/$J$27,DG49)) -> 7.084880087 | R49: =IF($I49<$Q$29,IF($AI48<=$N$29-$G$30,$AC48+$L49*$AE$24*$AC$29/$J$27,DH49),IF($AI48<=$N$29-$G$30,$AC48+$L49*$AF$24*$AC$29/$J$27,DH49)) -> 8.942220745 | S49: =IF($I49<$Q$29,IF($AI48<=$N$29-$G$30,$AD48+$L49*$AE$25*$AC$29/$J$27,DI49),IF($AI48<=$N$29-$G$30,$AD48+$L49*$AF$25*$AC$29/$J$27,DI49)) -> 1.891109689 | T49: =IF($I49<$Q$29,IF($AI48<=$N$29-$G$30,$AE48+$L49*$AE$26*$AC$29/$J$27,DJ49),IF($AI48<=$N$29-$G$30,$AE48+$L49*$AF$26*$AC$29/$J$27,DJ49)) -> 14.81371758 | U49: =SUM(M49:P49) -> 32.72305605 | V49: =SUM(Q49:T49) -> 32.7319281 | W49: =SUM(Q49:T49)*0.095+0.19 -> 3.299533169 | X49: =IF($I49<$Q$29,IF($J49=0,(M49+$L49*$AB$23*$AC$29/$J$27),(IF((M49+($U$23-$M$23)*$J49/$J$26)>=0,(M49+($U$23-$M$23)*$J49/$J$26),0))),IF($J49=0,(M49+$L49*$AC$23*$AC$29/$J$27),(IF((M49+($V$23-$N$23)*$J49/$J$26)>=0,(M49+($V$23-$N$23)*$J49/$J$26),0)))) -> 10 | Y49: =IF($I49<$Q$29,IF($J49=0,(N49+$L49*$AB$24*$AC$29/$J$27),(IF((N49+($U$24-$M$24)*$J49/$J$26)>=0,(N49+($U$24-$M$24)*$J49/$J$26),0))),IF($J49=0,(N49+$L49*$AC$24*$AC$29/$J$27),(IF((N49+($V$24-$N$24)*$J49/$J$26)>=0,(N49+($V$24-$N$24)*$J49/$J$26),0)))) -> 1 | Z49: =IF($I49<$Q$29,IF($J49=0,(O49+$L49*$AB$25*$AC$29/$J$27),(IF((O49+($U$25-$M$25)*$J49/$J$26)>=0,(O49+($U$25-$M$25)*$J49/$J$26),0))),IF($J49=0,(O49+$L49*$AC$25*$AC$29/$J$27),(IF((O49+($V$25-$N$25)*$J49/$J$26)>=0,(O49+($V$25-$N$25)*$J49/$J$26),0)))) -> 6.641846782 | AA49: =IF($I49<$Q$29,IF($J49=0,(P49+$L49*$AB$26*$AC$29/$J$27),(IF((P49-$U$26/$M$26)*EXP(-$M$26*$J49/$J$26)+$U$26/$M$26>=0,(P49-$U$26/$M$26)*EXP(-$M$26*$J49/$J$26)+$U$26/$M$26,0))),IF($J49=0,(P49+$L49*$AC$26*$AC$29/$J$27),(IF((P49-$V$26/$N$26)*EXP(-$N$26*$J49/$J$26)+$V$26/$N$26>=0,(P49-$V$26/$N$26)*EXP(-$N$26*$J49/$J$26)+$V$26/$N$26,0)))) -> 14.72411171 | AB49: =IF($I49<$Q$29,IF($J49=0,(Q49+$L49*$AE$23*$AC$29/$J$27),(IF((Q49+($X$23-$P$23)*$J49/$J$26)>=0,(Q49+($X$23-$P$23)*$J49/$J$26),0))),IF($J49=0,(Q49+$L49*$AF$23*$AC$29/$J$27),(IF((Q49+($Y$23-$Q$23)*$J49/$J$26)>=0,(Q49+($Y$23-$Q$23)*$J49/$J$26),0)))) -> 6.7 | AC49: =IF($I49<$Q$29,IF($J49=0,(R49+$L49*$AE$24*$AC$29/$J$27),(IF((R49+($X$24-$P$24)*$J49/$J$26)>=0,(R49+($X$24-$P$24)*$J49/$J$26),0))),IF($J49=0,(R49+$L49*$AF$24*$AC$29/$J$27),(IF((R49+($Y$24-$Q$24)*$J49/$J$26)>=0,(R49+($Y$24-$Q$24)*$J49/$J$26),0)))) -> 8.70669711 | AD49: =IF($I49<$Q$29,IF($J49=0,(S49+$L49*$AE$25*$AC$29/$J$27),(IF((S49+($X$25-$P$25)*$J49/$J$26)>=0,(S49+($X$25-$P$25)*$J49/$J$26),0))),IF($J49=0,(S49+$L49*$AF$25*$AC$29/$J$27),(IF((S49+($Y$25-$Q$25)*$J49/$J$26)>=0,(S49+($Y$25-$Q$25)*$J49/$J$26),0)))) -> 1.914087604 | AE49: =IF($I49<$Q$29,IF($J49=0,(T49+$L49*$AE$26*$AC$29/$J$27),(IF((T49-$X$26/$P$26)*EXP(-$P$26*$J49/$J$26)+$X$26/$P$26>=0,(T49-$X$26/$P$26)*EXP(-$P$26*$J49/$J$26)+$X$26/$P$26,0))),IF($J49=0,(T49+$L49*$AF$26*$AC$29/$J$27),(IF((T49-$Y$26/$Q$26)*EXP(-$Q$26*$J49/$J$26)+$Y$26/$Q$26>=0,(T49-$Y$26/$Q$26)*EXP(-$Q$26*$J49/$J$26)+$Y$26/$Q$26,0)))) -> 15.20424579 | AF49: =SUM(X49:AA49) -> 32.3659585 | AG49: =SUM(AB49:AE49) -> 32.52503051 | AH49: =IF(AH48<=$N$32,1000,X49) -> 10 | AI49: =SUM(AB49:AE49)*0.095+0.19 -> 3.279877898 | AJ49: =IF(J49>0,-10,1) -> -10 | AL49: =IF($I49<$Q$29,IF($J49=0,((X48-M49)*$J$26+$J$29*$U$23)*14.007/1000,""),IF($J49=0,((X48-M49)*$J$26+$J$29*$V$23)*14.007/1000,"")) ->  | AM49: =IF($I49<$Q$29,IF($J49=0,((Y48-N49)*$J$26+$J$29*$U$24)*30.957/1000,""),IF($J49=0,((Y48-N49)*$J$26+$J$29*$V$24)*30.957/1000,"")) ->  | AN49: =IF($I49<$Q$29,IF($J49=0,((AB48-Q49)*$J$26+$J$29*$X$23)*39.1/1000,""),IF($J49=0,((AB48-Q49)*$J$26+$J$29*$Y$23)*39.1/1000,"")) ->  | AO49: =IF($I49<$Q$29,IF($J49=0,((AE48-T49)*$J$26+$J$29*$X$26)*22.9898/1000,""),IF($J49=0,((AE48-T49)*$J$26+$J$29*$Y$26)*22.9898/1000,"")) ->  | AP49: =IF($I49<$Q$29,IF($J49=0,((AC48-R49)*$J$26+$J$29*$X$24)*20.04/1000,""),IF($J49=0,((AC48-R49)*$J$26+$J$29*$Y$24)*20.04/1000,"")) ->  | AQ49: =IF($I49<$Q$29,IF($J49=0,((AD48-S49)*$J$26+$J$29*$X$25)*12.156/1000,""),IF($J49=0,((AD48-S49)*$J$26+$J$29*$Y$25)*12.156/1000,"")) ->  | AR49: =IF($I49<$Q$29,L49/$J$25,"") -> 0.009191166256 | AS49: =IF($I49<$Q$29,IF($J49=0,AL49*1000/14.007/($AK49),""),"") ->  | AT49: =IF($I49<$Q$29,IF($J49=0,AM49*1000/30.957/($AK49),""),"") ->  | AU49: =IF($I49<$Q$29,IF($J49=0,AN49*1000/39.1/($AK49),""),"") ->  | AV49: =IF($I49<$Q$29,IF($J49=0,AO49*1000/22.9898/($AK49),""),"") ->  | AW49: =IF($I49<$Q$29,IF($J49=0,AP49*1000/20.04/($AK49*$J$25),""),"") ->  | AX49: =IF($I49<$Q$29,IF($J49=0,AQ49*1000/12.156/($AK49*$J$25),""),"") ->  | AY49: =IF($I49<$Q$29,IF($J49=0,X48,""),"") ->  | AZ49: =IF($I49<$Q$29,IF($J49=0,Y48,""),"") ->  | BA49: =IF($I49<$Q$29,IF($J49=0,AB48,""),"") ->  | BB49: =IF($I49<$Q$29,IF($J49=0,AE48,""),"") ->  | BC49: =IF($I49<$Q$29,IF($J49=0,AC48,""),"") ->  | BD49: =IF($I49<$Q$29,IF($J49=0,AD48,""),"") ->  | BE49: =IF($I49<$Q$29,IF($J49=0,AI48,""),"") ->  | BF49: =IF($I49<$Q$29,IF($J49=0,M49,""),"") ->  | BG49: =IF($I49<$Q$29,IF($J49=0,N49,""),"") ->  | BH49: =IF($I49<$Q$29,IF($J49=0,Q49,""),"") ->  | BI49: =IF($I49<$Q$29,IF($J49=0,T49,""),"") ->  | BJ49: =IF($I49<$Q$29,IF($J49=0,R49,""),"") ->  | BK49: =IF($I49<$Q$29,IF($J49=0,S49,""),"") ->  | BL49: =IF($I49<$Q$29,IF($J49=0,W49,""),"") ->  | BM49: =IF($I49<$Q$29,IF($J49=0,X49,""),"") ->  | BN49: =IF($I49<$Q$29,IF($J49=0,Y49,""),"") ->  | BO49: =IF($I49<$Q$29,IF($J49=0,AB49,""),"") ->  | BP49: =IF($I49<$Q$29,IF($J49=0,AE49,""),"") ->  | BQ49: =IF($I49<$Q$29,IF($J49=0,AC49,""),"") ->  | BR49: =IF($I49<$Q$29,IF($J49=0,AD49,""),"") ->  | BS49: =IF($I49<$Q$29,IF($J49=0,AI49,""),"") ->  | BT49: =IF($I49<$Q$29,IF($J49=0,K48,""),"") ->  | BU49: =IF($I49<$Q$29,IF($J49=0,($AK49),J49),"") -> 0.9191166256 | BV49: =IF($I49<$Q$29,"",(IF($J49=0,(IF($I49=$W$30,"",L49/$J$25)),L49/$J$25))) ->  | BW49: =IF($I49<$Q$29,"",IF($J49=0,AL49*1000/14.007/($AK49),"")) ->  | BX49: =IF($I49<$Q$29,"",IF($J49=0,AM49*1000/30.957/($AK49),"")) ->  | BY49: =IF($I49<$Q$29,"",IF($J49=0,AN49*1000/39.1/($AK49),"")) ->  | BZ49: =IF($I49<$Q$29,"",IF($J49=0,AO49*1000/22.9898/($AK49),"")) ->  | CA49: =IF($I49<$Q$29,"",IF($J49=0,AP49*1000/20.04/($AK49),"")) ->  | CB49: =IF($I49<$Q$29,"",IF($J49=0,AQ49*1000/12.156/($AK49),"")) ->  | CC49: =IF($I49<$Q$29,"",IF($J49=0,X48,"")) ->  | CD49: =IF($I49<$Q$29,"",IF($J49=0,Y48,"")) ->  | CE49: =IF($I49<$Q$29,"",IF($J49=0,AB48,"")) ->  | CF49: =IF($I49<$Q$29,"",IF($J49=0,AE48,"")) ->  | CG49: =IF($I49<$Q$29,"",IF($J49=0,AC48,"")) ->  | CH49: =IF($I49<$Q$29,"",IF($J49=0,AD48,"")) ->  | CI49: =IF($I49<$Q$29,"",IF($J49=0,AI48,"")) ->  | CJ49: =IF($I49<$Q$29,"",IF($J49=0,M49,"")) ->  | CK49: =IF($I49<$Q$29,"",IF($J49=0,N49,"")) ->  | CL49: =IF($I49<$Q$29,"",IF($J49=0,Q49,"")) ->  | CM49: =IF($I49<$Q$29,"",IF($J49=0,T49,"")) ->  | CN49: =IF($I49<$Q$29,"",IF($J49=0,R49,"")) ->  | CO49: =IF($I49<$Q$29,"",IF($J49=0,S49,"")) ->  | CP49: =IF($I49<$Q$29,"",IF($J49=0,W49,"")) ->  | CQ49: =IF($I49<$Q$29,"",IF($J49=0,X49,"")) ->  | CR49: =IF($I49<$Q$29,"",IF($J49=0,Y49,"")) ->  | CS49: =IF($I49<$Q$29,"",IF($J49=0,AB49,"")) ->  | CT49: =IF($I49<$Q$29,"",IF($J49=0,AE49,"")) ->  | CU49: =IF($I49<$Q$29,"",IF($J49=0,AC49,"")) ->  | CV49: =IF($I49<$Q$29,"",IF($J49=0,AD49,"")) ->  | CW49: =IF($I49<$Q$29,"",IF($J49=0,AI49,"")) ->  | CX49: =IF($I49<$Q$29,"",IF($J49=0,K48,"")) ->  | CY49: =IF($I49<$Q$29,"",IF($J49=0,($AK49),J49)) ->  | CZ49: =IF(J49=0,0,CZ48+1) -> 12 | DA49: =IF(CZ49=0,CZ48,"") ->  | DK49: =IF($J49=0,SUM(DC49:DF49),"") ->  | DL49: =IF($J49=0,SUM(DG49:DJ49),"") ->  | DM49: =IF($J49=0,SUM(DG49:DJ49)*0.095+0.19,"") -> 
A50: =IF('3 climate date'!B27=1, '3 climate date'!D27, "") -> 13 | B50: =IF('3 climate date'!$B27=1, '3 climate date'!E27, "") -> 2006-05-18 | C50: =IF('3 climate date'!B27=1, '3 climate date'!G27, "") -> 10.6268625 | D50: =IF('3 climate date'!B27=1, '3 climate date'!H27, "") -> 19.24375 | E50: =IF(('3 climate date'!$B27=1),('8 ETE'!E50)," ") -> 582.6327083 | F50: =IF(('3 climate date'!$B27=1),('8 ETE'!F50)," ") -> 0.7851738323 | G50: =IF(('3 climate date'!$B27=1),('8 ETE'!G50)," ") -> 1.903780862 | H50: =IF(('3 climate date'!$B27=1),('8 ETE'!H50)," ") -> 14.46728504 | I50: =IF(AI49<=$N$29-$G$30,I49+1,I49) -> 13 | J50: =IF(AI49<=$N$29-$G$30,INDIRECT(ADDRESS((I50+37),7)),0) -> 1.903780862 | K50: =IF(J50=0,0,K49+J50) -> 14.46728504 | L50: =IF($I50<$Q$29,IF(J50=0,(IF($N$31-($W50+$AE$27*0.095*$J$23/$J$26)>=0,($N$31-$W50)/($AE$27*0.095)*$J$27/$AC$29,($J$23*$J$25/$AC$29))),$J50*$J$25/$AC$29),IF(J50=0,(IF($N$31-($W50+$AF$27*0.095*$J$23/$J$26)>=0,($N$31-$W50)/($AF$27*0.095)*$J$27/$AC$29,($J$23*$J$25/$AC$29))),$J50*$J$25/$AC$29)) -> 0.1903780862 | M50: =IF($I50<$Q$29,IF($AI49<=$N$29-$G$30,$X49+$L50*$AB$23*$AC$29/$J$27,DC50),IF($AI49<=$N$29-$G$30,$X49+$L50*$AC$23*$AC$29/$J$27,DC50)) -> 11.18986304 | N50: =IF($I50<$Q$29,IF($AI49<=$N$29-$G$30,$Y49+$L50*$AB$24*$AC$29/$J$27,DD50),IF($AI49<=$N$29-$G$30,$Y49+$L50*$AC$24*$AC$29/$J$27,DD50)) -> 1.118986304 | O50: =IF($I50<$Q$29,IF($AI49<=$N$29-$G$30,$Z49+$L50*$AB$25*$AC$29/$J$27,DE50),IF($AI49<=$N$29-$G$30,$Z49+$L50*$AC$25*$AC$29/$J$27,DE50)) -> 7.098754189 | P50: =IF($I50<$Q$29,IF($AI49<=$N$29-$G$30,$AA49+$L50*$AB$26*$AC$29/$J$27,DF50),IF($AI49<=$N$29-$G$30,$AA49+$L50*$AC$26*$AC$29/$J$27,DF50)) -> 14.72411171 | Q50: =IF($I50<$Q$29,IF($AI49<=$N$29-$G$30,$AB49+$L50*$AE$23*$AC$29/$J$27,DG50),IF($AI49<=$N$29-$G$30,$AB49+$L50*$AF$23*$AC$29/$J$27,DG50)) -> 7.497208236 | R50: =IF($I50<$Q$29,IF($AI49<=$N$29-$G$30,$AC49+$L50*$AE$24*$AC$29/$J$27,DH50),IF($AI49<=$N$29-$G$30,$AC49+$L50*$AF$24*$AC$29/$J$27,DH50)) -> 9.301628629 | S50: =IF($I50<$Q$29,IF($AI49<=$N$29-$G$30,$AD49+$L50*$AE$25*$AC$29/$J$27,DI50),IF($AI49<=$N$29-$G$30,$AD49+$L50*$AF$25*$AC$29/$J$27,DI50)) -> 1.914087604 | T50: =IF($I50<$Q$29,IF($AI49<=$N$29-$G$30,$AE49+$L50*$AE$26*$AC$29/$J$27,DJ50),IF($AI49<=$N$29-$G$30,$AE49+$L50*$AF$26*$AC$29/$J$27,DJ50)) -> 15.20424579 | U50: =SUM(M50:P50) -> 34.13171525 | V50: =SUM(Q50:T50) -> 33.91717026 | W50: =SUM(Q50:T50)*0.095+0.19 -> 3.412131175 | X50: =IF($I50<$Q$29,IF($J50=0,(M50+$L50*$AB$23*$AC$29/$J$27),(IF((M50+($U$23-$M$23)*$J50/$J$26)>=0,(M50+($U$23-$M$23)*$J50/$J$26),0))),IF($J50=0,(M50+$L50*$AC$23*$AC$29/$J$27),(IF((M50+($V$23-$N$23)*$J50/$J$26)>=0,(M50+($V$23-$N$23)*$J50/$J$26),0)))) -> 10 | Y50: =IF($I50<$Q$29,IF($J50=0,(N50+$L50*$AB$24*$AC$29/$J$27),(IF((N50+($U$24-$M$24)*$J50/$J$26)>=0,(N50+($U$24-$M$24)*$J50/$J$26),0))),IF($J50=0,(N50+$L50*$AC$24*$AC$29/$J$27),(IF((N50+($V$24-$N$24)*$J50/$J$26)>=0,(N50+($V$24-$N$24)*$J50/$J$26),0)))) -> 1 | Z50: =IF($I50<$Q$29,IF($J50=0,(O50+$L50*$AB$25*$AC$29/$J$27),(IF((O50+($U$25-$M$25)*$J50/$J$26)>=0,(O50+($U$25-$M$25)*$J50/$J$26),0))),IF($J50=0,(O50+$L50*$AC$25*$AC$29/$J$27),(IF((O50+($V$25-$N$25)*$J50/$J$26)>=0,(O50+($V$25-$N$25)*$J50/$J$26),0)))) -> 6.884578842 | AA50: =IF($I50<$Q$29,IF($J50=0,(P50+$L50*$AB$26*$AC$29/$J$27),(IF((P50-$U$26/$M$26)*EXP(-$M$26*$J50/$J$26)+$U$26/$M$26>=0,(P50-$U$26/$M$26)*EXP(-$M$26*$J50/$J$26)+$U$26/$M$26,0))),IF($J50=0,(P50+$L50*$AC$26*$AC$29/$J$27),(IF((P50-$V$26/$N$26)*EXP(-$N$26*$J50/$J$26)+$V$26/$N$26>=0,(P50-$V$26/$N$26)*EXP(-$N$26*$J50/$J$26)+$V$26/$N$26,0)))) -> 15.49514524 | AB50: =IF($I50<$Q$29,IF($J50=0,(Q50+$L50*$AE$23*$AC$29/$J$27),(IF((Q50+($X$23-$P$23)*$J50/$J$26)>=0,(Q50+($X$23-$P$23)*$J50/$J$26),0))),IF($J50=0,(Q50+$L50*$AF$23*$AC$29/$J$27),(IF((Q50+($Y$23-$Q$23)*$J50/$J$26)>=0,(Q50+($Y$23-$Q$23)*$J50/$J$26),0)))) -> 6.7 | AC50: =IF($I50<$Q$29,IF($J50=0,(R50+$L50*$AE$24*$AC$29/$J$27),(IF((R50+($X$24-$P$24)*$J50/$J$26)>=0,(R50+($X$24-$P$24)*$J50/$J$26),0))),IF($J50=0,(R50+$L50*$AF$24*$AC$29/$J$27),(IF((R50+($Y$24-$Q$24)*$J50/$J$26)>=0,(R50+($Y$24-$Q$24)*$J50/$J$26),0)))) -> 8.813784783 | AD50: =IF($I50<$Q$29,IF($J50=0,(S50+$L50*$AE$25*$AC$29/$J$27),(IF((S50+($X$25-$P$25)*$J50/$J$26)>=0,(S50+($X$25-$P$25)*$J50/$J$26),0))),IF($J50=0,(S50+$L50*$AF$25*$AC$29/$J$27),(IF((S50+($Y$25-$Q$25)*$J50/$J$26)>=0,(S50+($Y$25-$Q$25)*$J50/$J$26),0)))) -> 1.961682126 | AE50: =IF($I50<$Q$29,IF($J50=0,(T50+$L50*$AE$26*$AC$29/$J$27),(IF((T50-$X$26/$P$26)*EXP(-$P$26*$J50/$J$26)+$X$26/$P$26>=0,(T50-$X$26/$P$26)*EXP(-$P$26*$J50/$J$26)+$X$26/$P$26,0))),IF($J50=0,(T50+$L50*$AF$26*$AC$29/$J$27),(IF((T50-$Y$26/$Q$26)*EXP(-$Q$26*$J50/$J$26)+$Y$26/$Q$26>=0,(T50-$Y$26/$Q$26)*EXP(-$Q$26*$J50/$J$26)+$Y$26/$Q$26,0)))) -> 16.00042172 | AF50: =SUM(X50:AA50) -> 33.37972409 | AG50: =SUM(AB50:AE50) -> 33.47588863 | AH50: =IF(AH49<=$N$32,1000,X50) -> 10 | AI50: =SUM(AB50:AE50)*0.095+0.19 -> 3.37020942 | AJ50: =IF(J50>0,-10,1) -> -10 | AL50: =IF($I50<$Q$29,IF($J50=0,((X49-M50)*$J$26+$J$29*$U$23)*14.007/1000,""),IF($J50=0,((X49-M50)*$J$26+$J$29*$V$23)*14.007/1000,"")) ->  | AM50: =IF($I50<$Q$29,IF($J50=0,((Y49-N50)*$J$26+$J$29*$U$24)*30.957/1000,""),IF($J50=0,((Y49-N50)*$J$26+$J$29*$V$24)*30.957/1000,"")) ->  | AN50: =IF($I50<$Q$29,IF($J50=0,((AB49-Q50)*$J$26+$J$29*$X$23)*39.1/1000,""),IF($J50=0,((AB49-Q50)*$J$26+$J$29*$Y$23)*39.1/1000,"")) ->  | AO50: =IF($I50<$Q$29,IF($J50=0,((AE49-T50)*$J$26+$J$29*$X$26)*22.9898/1000,""),IF($J50=0,((AE49-T50)*$J$26+$J$29*$Y$26)*22.9898/1000,"")) ->  | AP50: =IF($I50<$Q$29,IF($J50=0,((AC49-R50)*$J$26+$J$29*$X$24)*20.04/1000,""),IF($J50=0,((AC49-R50)*$J$26+$J$29*$Y$24)*20.04/1000,"")) ->  | AQ50: =IF($I50<$Q$29,IF($J50=0,((AD49-S50)*$J$26+$J$29*$X$25)*12.156/1000,""),IF($J50=0,((AD49-S50)*$J$26+$J$29*$Y$25)*12.156/1000,"")) ->  | AR50: =IF($I50<$Q$29,L50/$J$25,"") -> 0.01903780862 | AS50: =IF($I50<$Q$29,IF($J50=0,AL50*1000/14.007/($AK50),""),"") ->  | AT50: =IF($I50<$Q$29,IF($J50=0,AM50*1000/30.957/($AK50),""),"") ->  | AU50: =IF($I50<$Q$29,IF($J50=0,AN50*1000/39.1/($AK50),""),"") ->  | AV50: =IF($I50<$Q$29,IF($J50=0,AO50*1000/22.9898/($AK50),""),"") ->  | AW50: =IF($I50<$Q$29,IF($J50=0,AP50*1000/20.04/($AK50*$J$25),""),"") ->  | AX50: =IF($I50<$Q$29,IF($J50=0,AQ50*1000/12.156/($AK50*$J$25),""),"") ->  | AY50: =IF($I50<$Q$29,IF($J50=0,X49,""),"") ->  | AZ50: =IF($I50<$Q$29,IF($J50=0,Y49,""),"") ->  | BA50: =IF($I50<$Q$29,IF($J50=0,AB49,""),"") ->  | BB50: =IF($I50<$Q$29,IF($J50=0,AE49,""),"") ->  | BC50: =IF($I50<$Q$29,IF($J50=0,AC49,""),"") ->  | BD50: =IF($I50<$Q$29,IF($J50=0,AD49,""),"") ->  | BE50: =IF($I50<$Q$29,IF($J50=0,AI49,""),"") ->  | BF50: =IF($I50<$Q$29,IF($J50=0,M50,""),"") ->  | BG50: =IF($I50<$Q$29,IF($J50=0,N50,""),"") ->  | BH50: =IF($I50<$Q$29,IF($J50=0,Q50,""),"") ->  | BI50: =IF($I50<$Q$29,IF($J50=0,T50,""),"") ->  | BJ50: =IF($I50<$Q$29,IF($J50=0,R50,""),"") ->  | BK50: =IF($I50<$Q$29,IF($J50=0,S50,""),"") ->  | BL50: =IF($I50<$Q$29,IF($J50=0,W50,""),"") ->  | BM50: =IF($I50<$Q$29,IF($J50=0,X50,""),"") ->  | BN50: =IF($I50<$Q$29,IF($J50=0,Y50,""),"") ->  | BO50: =IF($I50<$Q$29,IF($J50=0,AB50,""),"") ->  | BP50: =IF($I50<$Q$29,IF($J50=0,AE50,""),"") ->  | BQ50: =IF($I50<$Q$29,IF($J50=0,AC50,""),"") ->  | BR50: =IF($I50<$Q$29,IF($J50=0,AD50,""),"") ->  | BS50: =IF($I50<$Q$29,IF($J50=0,AI50,""),"") ->  | BT50: =IF($I50<$Q$29,IF($J50=0,K49,""),"") ->  | BU50: =IF($I50<$Q$29,IF($J50=0,($AK50),J50),"") -> 1.903780862 | BV50: =IF($I50<$Q$29,"",(IF($J50=0,(IF($I50=$W$30,"",L50/$J$25)),L50/$J$25))) ->  | BW50: =IF($I50<$Q$29,"",IF($J50=0,AL50*1000/14.007/($AK50),"")) ->  | BX50: =IF($I50<$Q$29,"",IF($J50=0,AM50*1000/30.957/($AK50),"")) ->  | BY50: =IF($I50<$Q$29,"",IF($J50=0,AN50*1000/39.1/($AK50),"")) ->  | BZ50: =IF($I50<$Q$29,"",IF($J50=0,AO50*1000/22.9898/($AK50),"")) ->  | CA50: =IF($I50<$Q$29,"",IF($J50=0,AP50*1000/20.04/($AK50),"")) ->  | CB50: =IF($I50<$Q$29,"",IF($J50=0,AQ50*1000/12.156/($AK50),"")) ->  | CC50: =IF($I50<$Q$29,"",IF($J50=0,X49,"")) ->  | CD50: =IF($I50<$Q$29,"",IF($J50=0,Y49,"")) ->  | CE50: =IF($I50<$Q$29,"",IF($J50=0,AB49,"")) ->  | CF50: =IF($I50<$Q$29,"",IF($J50=0,AE49,"")) ->  | CG50: =IF($I50<$Q$29,"",IF($J50=0,AC49,"")) ->  | CH50: =IF($I50<$Q$29,"",IF($J50=0,AD49,"")) ->  | CI50: =IF($I50<$Q$29,"",IF($J50=0,AI49,"")) ->  | CJ50: =IF($I50<$Q$29,"",IF($J50=0,M50,"")) ->  | CK50: =IF($I50<$Q$29,"",IF($J50=0,N50,"")) ->  | CL50: =IF($I50<$Q$29,"",IF($J50=0,Q50,"")) ->  | CM50: =IF($I50<$Q$29,"",IF($J50=0,T50,"")) ->  | CN50: =IF($I50<$Q$29,"",IF($J50=0,R50,"")) ->  | CO50: =IF($I50<$Q$29,"",IF($J50=0,S50,"")) ->  | CP50: =IF($I50<$Q$29,"",IF($J50=0,W50,"")) ->  | CQ50: =IF($I50<$Q$29,"",IF($J50=0,X50,"")) ->  | CR50: =IF($I50<$Q$29,"",IF($J50=0,Y50,"")) ->  | CS50: =IF($I50<$Q$29,"",IF($J50=0,AB50,"")) ->  | CT50: =IF($I50<$Q$29,"",IF($J50=0,AE50,"")) ->  | CU50: =IF($I50<$Q$29,"",IF($J50=0,AC50,"")) ->  | CV50: =IF($I50<$Q$29,"",IF($J50=0,AD50,"")) ->  | CW50: =IF($I50<$Q$29,"",IF($J50=0,AI50,"")) ->  | CX50: =IF($I50<$Q$29,"",IF($J50=0,K49,"")) ->  | CY50: =IF($I50<$Q$29,"",IF($J50=0,($AK50),J50)) ->  | CZ50: =IF(J50=0,0,CZ49+1) -> 13 | DA50: =IF(CZ50=0,CZ49,"") ->  | DK50: =IF($J50=0,SUM(DC50:DF50),"") ->  | DL50: =IF($J50=0,SUM(DG50:DJ50),"") ->  | DM50: =IF($J50=0,SUM(DG50:DJ50)*0.095+0.19,"") -> 
A51: =IF('3 climate date'!B28=1, '3 climate date'!D28, "") -> 14 | B51: =IF('3 climate date'!$B28=1, '3 climate date'!E28, "") -> 2006-05-19 | C51: =IF('3 climate date'!B28=1, '3 climate date'!G28, "") -> 15.4516125 | D51: =IF('3 climate date'!B28=1, '3 climate date'!H28, "") -> 20.67847222 | E51: =IF(('3 climate date'!$B28=1),('8 ETE'!E51)," ") -> 595.3111806 | F51: =IF(('3 climate date'!$B28=1),('8 ETE'!F51)," ") -> 0.8699275166 | G51: =IF(('3 climate date'!$B28=1),('8 ETE'!G51)," ") -> 2.879851052 | H51: =IF(('3 climate date'!$B28=1),('8 ETE'!H51)," ") -> 17.34713609 | I51: =IF(AI50<=$N$29-$G$30,I50+1,I50) -> 14 | J51: =IF(AI50<=$N$29-$G$30,INDIRECT(ADDRESS((I51+37),7)),0) -> 2.879851052 | K51: =IF(J51=0,0,K50+J51) -> 17.34713609 | L51: =IF($I51<$Q$29,IF(J51=0,(IF($N$31-($W51+$AE$27*0.095*$J$23/$J$26)>=0,($N$31-$W51)/($AE$27*0.095)*$J$27/$AC$29,($J$23*$J$25/$AC$29))),$J51*$J$25/$AC$29),IF(J51=0,(IF($N$31-($W51+$AF$27*0.095*$J$23/$J$26)>=0,($N$31-$W51)/($AF$27*0.095)*$J$27/$AC$29,($J$23*$J$25/$AC$29))),$J51*$J$25/$AC$29)) -> 0.2879851052 | M51: =IF($I51<$Q$29,IF($AI50<=$N$29-$G$30,$X50+$L51*$AB$23*$AC$29/$J$27,DC51),IF($AI50<=$N$29-$G$30,$X50+$L51*$AC$23*$AC$29/$J$27,DC51)) -> 11.79990691 | N51: =IF($I51<$Q$29,IF($AI50<=$N$29-$G$30,$Y50+$L51*$AB$24*$AC$29/$J$27,DD51),IF($AI50<=$N$29-$G$30,$Y50+$L51*$AC$24*$AC$29/$J$27,DD51)) -> 1.179990691 | O51: =IF($I51<$Q$29,IF($AI50<=$N$29-$G$30,$Z50+$L51*$AB$25*$AC$29/$J$27,DE51),IF($AI50<=$N$29-$G$30,$Z50+$L51*$AC$25*$AC$29/$J$27,DE51)) -> 7.575743095 | P51: =IF($I51<$Q$29,IF($AI50<=$N$29-$G$30,$AA50+$L51*$AB$26*$AC$29/$J$27,DF51),IF($AI50<=$N$29-$G$30,$AA50+$L51*$AC$26*$AC$29/$J$27,DF51)) -> 15.49514524 | Q51: =IF($I51<$Q$29,IF($AI50<=$N$29-$G$30,$AB50+$L51*$AE$23*$AC$29/$J$27,DG51),IF($AI50<=$N$29-$G$30,$AB50+$L51*$AF$23*$AC$29/$J$27,DG51)) -> 7.905937628 | R51: =IF($I51<$Q$29,IF($AI50<=$N$29-$G$30,$AC50+$L51*$AE$24*$AC$29/$J$27,DH51),IF($AI50<=$N$29-$G$30,$AC50+$L51*$AF$24*$AC$29/$J$27,DH51)) -> 9.713738237 | S51: =IF($I51<$Q$29,IF($AI50<=$N$29-$G$30,$AD50+$L51*$AE$25*$AC$29/$J$27,DI51),IF($AI50<=$N$29-$G$30,$AD50+$L51*$AF$25*$AC$29/$J$27,DI51)) -> 1.961682126 | T51: =IF($I51<$Q$29,IF($AI50<=$N$29-$G$30,$AE50+$L51*$AE$26*$AC$29/$J$27,DJ51),IF($AI50<=$N$29-$G$30,$AE50+$L51*$AF$26*$AC$29/$J$27,DJ51)) -> 16.00042172 | U51: =SUM(M51:P51) -> 36.05078594 | V51: =SUM(Q51:T51) -> 35.58177971 | W51: =SUM(Q51:T51)*0.095+0.19 -> 3.570269073 | X51: =IF($I51<$Q$29,IF($J51=0,(M51+$L51*$AB$23*$AC$29/$J$27),(IF((M51+($U$23-$M$23)*$J51/$J$26)>=0,(M51+($U$23-$M$23)*$J51/$J$26),0))),IF($J51=0,(M51+$L51*$AC$23*$AC$29/$J$27),(IF((M51+($V$23-$N$23)*$J51/$J$26)>=0,(M51+($V$23-$N$23)*$J51/$J$26),0)))) -> 10 | Y51: =IF($I51<$Q$29,IF($J51=0,(N51+$L51*$AB$24*$AC$29/$J$27),(IF((N51+($U$24-$M$24)*$J51/$J$26)>=0,(N51+($U$24-$M$24)*$J51/$J$26),0))),IF($J51=0,(N51+$L51*$AC$24*$AC$29/$J$27),(IF((N51+($V$24-$N$24)*$J51/$J$26)>=0,(N51+($V$24-$N$24)*$J51/$J$26),0)))) -> 1 | Z51: =IF($I51<$Q$29,IF($J51=0,(O51+$L51*$AB$25*$AC$29/$J$27),(IF((O51+($U$25-$M$25)*$J51/$J$26)>=0,(O51+($U$25-$M$25)*$J51/$J$26),0))),IF($J51=0,(O51+$L51*$AC$25*$AC$29/$J$27),(IF((O51+($V$25-$N$25)*$J51/$J$26)>=0,(O51+($V$25-$N$25)*$J51/$J$26),0)))) -> 7.251759852 | AA51: =IF($I51<$Q$29,IF($J51=0,(P51+$L51*$AB$26*$AC$29/$J$27),(IF((P51-$U$26/$M$26)*EXP(-$M$26*$J51/$J$26)+$U$26/$M$26>=0,(P51-$U$26/$M$26)*EXP(-$M$26*$J51/$J$26)+$U$26/$M$26,0))),IF($J51=0,(P51+$L51*$AC$26*$AC$29/$J$27),(IF((P51-$V$26/$N$26)*EXP(-$N$26*$J51/$J$26)+$V$26/$N$26>=0,(P51-$V$26/$N$26)*EXP(-$N$26*$J51/$J$26)+$V$26/$N$26,0)))) -> 16.63055092 | AB51: =IF($I51<$Q$29,IF($J51=0,(Q51+$L51*$AE$23*$AC$29/$J$27),(IF((Q51+($X$23-$P$23)*$J51/$J$26)>=0,(Q51+($X$23-$P$23)*$J51/$J$26),0))),IF($J51=0,(Q51+$L51*$AF$23*$AC$29/$J$27),(IF((Q51+($Y$23-$Q$23)*$J51/$J$26)>=0,(Q51+($Y$23-$Q$23)*$J51/$J$26),0)))) -> 6.7 | AC51: =IF($I51<$Q$29,IF($J51=0,(R51+$L51*$AE$24*$AC$29/$J$27),(IF((R51+($X$24-$P$24)*$J51/$J$26)>=0,(R51+($X$24-$P$24)*$J51/$J$26),0))),IF($J51=0,(R51+$L51*$AF$24*$AC$29/$J$27),(IF((R51+($Y$24-$Q$24)*$J51/$J$26)>=0,(R51+($Y$24-$Q$24)*$J51/$J$26),0)))) -> 8.975776405 | AD51: =IF($I51<$Q$29,IF($J51=0,(S51+$L51*$AE$25*$AC$29/$J$27),(IF((S51+($X$25-$P$25)*$J51/$J$26)>=0,(S51+($X$25-$P$25)*$J51/$J$26),0))),IF($J51=0,(S51+$L51*$AF$25*$AC$29/$J$27),(IF((S51+($Y$25-$Q$25)*$J51/$J$26)>=0,(S51+($Y$25-$Q$25)*$J51/$J$26),0)))) -> 2.033678402 | AE51: =IF($I51<$Q$29,IF($J51=0,(T51+$L51*$AE$26*$AC$29/$J$27),(IF((T51-$X$26/$P$26)*EXP(-$P$26*$J51/$J$26)+$X$26/$P$26>=0,(T51-$X$26/$P$26)*EXP(-$P$26*$J51/$J$26)+$X$26/$P$26,0))),IF($J51=0,(T51+$L51*$AF$26*$AC$29/$J$27),(IF((T51-$Y$26/$Q$26)*EXP(-$Q$26*$J51/$J$26)+$Y$26/$Q$26>=0,(T51-$Y$26/$Q$26)*EXP(-$Q$26*$J51/$J$26)+$Y$26/$Q$26,0)))) -> 17.1728515 | AF51: =SUM(X51:AA51) -> 34.88231078 | AG51: =SUM(AB51:AE51) -> 34.8823063 | AH51: =IF(AH50<=$N$32,1000,X51) -> 10 | AI51: =SUM(AB51:AE51)*0.095+0.19 -> 3.503819099 | AJ51: =IF(J51>0,-10,1) -> -10 | AL51: =IF($I51<$Q$29,IF($J51=0,((X50-M51)*$J$26+$J$29*$U$23)*14.007/1000,""),IF($J51=0,((X50-M51)*$J$26+$J$29*$V$23)*14.007/1000,"")) ->  | AM51: =IF($I51<$Q$29,IF($J51=0,((Y50-N51)*$J$26+$J$29*$U$24)*30.957/1000,""),IF($J51=0,((Y50-N51)*$J$26+$J$29*$V$24)*30.957/1000,"")) ->  | AN51: =IF($I51<$Q$29,IF($J51=0,((AB50-Q51)*$J$26+$J$29*$X$23)*39.1/1000,""),IF($J51=0,((AB50-Q51)*$J$26+$J$29*$Y$23)*39.1/1000,"")) ->  | AO51: =IF($I51<$Q$29,IF($J51=0,((AE50-T51)*$J$26+$J$29*$X$26)*22.9898/1000,""),IF($J51=0,((AE50-T51)*$J$26+$J$29*$Y$26)*22.9898/1000,"")) ->  | AP51: =IF($I51<$Q$29,IF($J51=0,((AC50-R51)*$J$26+$J$29*$X$24)*20.04/1000,""),IF($J51=0,((AC50-R51)*$J$26+$J$29*$Y$24)*20.04/1000,"")) ->  | AQ51: =IF($I51<$Q$29,IF($J51=0,((AD50-S51)*$J$26+$J$29*$X$25)*12.156/1000,""),IF($J51=0,((AD50-S51)*$J$26+$J$29*$Y$25)*12.156/1000,"")) ->  | AR51: =IF($I51<$Q$29,L51/$J$25,"") -> 0.02879851052 | AS51: =IF($I51<$Q$29,IF($J51=0,AL51*1000/14.007/($AK51),""),"") ->  | AT51: =IF($I51<$Q$29,IF($J51=0,AM51*1000/30.957/($AK51),""),"") ->  | AU51: =IF($I51<$Q$29,IF($J51=0,AN51*1000/39.1/($AK51),""),"") ->  | AV51: =IF($I51<$Q$29,IF($J51=0,AO51*1000/22.9898/($AK51),""),"") ->  | AW51: =IF($I51<$Q$29,IF($J51=0,AP51*1000/20.04/($AK51*$J$25),""),"") ->  | AX51: =IF($I51<$Q$29,IF($J51=0,AQ51*1000/12.156/($AK51*$J$25),""),"") ->  | AY51: =IF($I51<$Q$29,IF($J51=0,X50,""),"") ->  | AZ51: =IF($I51<$Q$29,IF($J51=0,Y50,""),"") ->  | BA51: =IF($I51<$Q$29,IF($J51=0,AB50,""),"") ->  | BB51: =IF($I51<$Q$29,IF($J51=0,AE50,""),"") ->  | BC51: =IF($I51<$Q$29,IF($J51=0,AC50,""),"") ->  | BD51: =IF($I51<$Q$29,IF($J51=0,AD50,""),"") ->  | BE51: =IF($I51<$Q$29,IF($J51=0,AI50,""),"") ->  | BF51: =IF($I51<$Q$29,IF($J51=0,M51,""),"") ->  | BG51: =IF($I51<$Q$29,IF($J51=0,N51,""),"") ->  | BH51: =IF($I51<$Q$29,IF($J51=0,Q51,""),"") ->  | BI51: =IF($I51<$Q$29,IF($J51=0,T51,""),"") ->  | BJ51: =IF($I51<$Q$29,IF($J51=0,R51,""),"") ->  | BK51: =IF($I51<$Q$29,IF($J51=0,S51,""),"") ->  | BL51: =IF($I51<$Q$29,IF($J51=0,W51,""),"") ->  | BM51: =IF($I51<$Q$29,IF($J51=0,X51,""),"") ->  | BN51: =IF($I51<$Q$29,IF($J51=0,Y51,""),"") ->  | BO51: =IF($I51<$Q$29,IF($J51=0,AB51,""),"") ->  | BP51: =IF($I51<$Q$29,IF($J51=0,AE51,""),"") ->  | BQ51: =IF($I51<$Q$29,IF($J51=0,AC51,""),"") ->  | BR51: =IF($I51<$Q$29,IF($J51=0,AD51,""),"") ->  | BS51: =IF($I51<$Q$29,IF($J51=0,AI51,""),"") ->  | BT51: =IF($I51<$Q$29,IF($J51=0,K50,""),"") ->  | BU51: =IF($I51<$Q$29,IF($J51=0,($AK51),J51),"") -> 2.879851052 | BV51: =IF($I51<$Q$29,"",(IF($J51=0,(IF($I51=$W$30,"",L51/$J$25)),L51/$J$25))) ->  | BW51: =IF($I51<$Q$29,"",IF($J51=0,AL51*1000/14.007/($AK51),"")) ->  | BX51: =IF($I51<$Q$29,"",IF($J51=0,AM51*1000/30.957/($AK51),"")) ->  | BY51: =IF($I51<$Q$29,"",IF($J51=0,AN51*1000/39.1/($AK51),"")) ->  | BZ51: =IF($I51<$Q$29,"",IF($J51=0,AO51*1000/22.9898/($AK51),"")) ->  | CA51: =IF($I51<$Q$29,"",IF($J51=0,AP51*1000/20.04/($AK51),"")) ->  | CB51: =IF($I51<$Q$29,"",IF($J51=0,AQ51*1000/12.156/($AK51),"")) ->  | CC51: =IF($I51<$Q$29,"",IF($J51=0,X50,"")) ->  | CD51: =IF($I51<$Q$29,"",IF($J51=0,Y50,"")) ->  | CE51: =IF($I51<$Q$29,"",IF($J51=0,AB50,"")) ->  | CF51: =IF($I51<$Q$29,"",IF($J51=0,AE50,"")) ->  | CG51: =IF($I51<$Q$29,"",IF($J51=0,AC50,"")) ->  | CH51: =IF($I51<$Q$29,"",IF($J51=0,AD50,"")) ->  | CI51: =IF($I51<$Q$29,"",IF($J51=0,AI50,"")) ->  | CJ51: =IF($I51<$Q$29,"",IF($J51=0,M51,"")) ->  | CK51: =IF($I51<$Q$29,"",IF($J51=0,N51,"")) ->  | CL51: =IF($I51<$Q$29,"",IF($J51=0,Q51,"")) ->  | CM51: =IF($I51<$Q$29,"",IF($J51=0,T51,"")) ->  | CN51: =IF($I51<$Q$29,"",IF($J51=0,R51,"")) ->  | CO51: =IF($I51<$Q$29,"",IF($J51=0,S51,"")) ->  | CP51: =IF($I51<$Q$29,"",IF($J51=0,W51,"")) ->  | CQ51: =IF($I51<$Q$29,"",IF($J51=0,X51,"")) ->  | CR51: =IF($I51<$Q$29,"",IF($J51=0,Y51,"")) ->  | CS51: =IF($I51<$Q$29,"",IF($J51=0,AB51,"")) ->  | CT51: =IF($I51<$Q$29,"",IF($J51=0,AE51,"")) ->  | CU51: =IF($I51<$Q$29,"",IF($J51=0,AC51,"")) ->  | CV51: =IF($I51<$Q$29,"",IF($J51=0,AD51,"")) ->  | CW51: =IF($I51<$Q$29,"",IF($J51=0,AI51,"")) ->  | CX51: =IF($I51<$Q$29,"",IF($J51=0,K50,"")) ->  | CY51: =IF($I51<$Q$29,"",IF($J51=0,($AK51),J51)) ->  | CZ51: =IF(J51=0,0,CZ50+1) -> 14 | DA51: =IF(CZ51=0,CZ50,"") ->  | DK51: =IF($J51=0,SUM(DC51:DF51),"") ->  | DL51: =IF($J51=0,SUM(DG51:DJ51),"") ->  | DM51: =IF($J51=0,SUM(DG51:DJ51)*0.095+0.19,"") -> 
A52: =IF('3 climate date'!B29=1, '3 climate date'!D29, "") -> 15 | B52: =IF('3 climate date'!$B29=1, '3 climate date'!E29, "") -> 2006-05-20 | C52: =IF('3 climate date'!B29=1, '3 climate date'!G29, "") -> 15.0187125 | D52: =IF('3 climate date'!B29=1, '3 climate date'!H29, "") -> 21.28326389 | E52: =IF(('3 climate date'!$B29=1),('8 ETE'!E52)," ") -> 608.5944444 | F52: =IF(('3 climate date'!$B29=1),('8 ETE'!F52)," ") -> 0.9633948363 | G52: =IF(('3 climate date'!$B29=1),('8 ETE'!G52)," ") -> 3.003096703 | H52: =IF(('3 climate date'!$B29=1),('8 ETE'!H52)," ") -> 20.35023279 | I52: =IF(AI51<=$N$29-$G$30,I51+1,I51) -> 15 | J52: =IF(AI51<=$N$29-$G$30,INDIRECT(ADDRESS((I52+37),7)),0) -> 3.003096703 | K52: =IF(J52=0,0,K51+J52) -> 20.35023279 | L52: =IF($I52<$Q$29,IF(J52=0,(IF($N$31-($W52+$AE$27*0.095*$J$23/$J$26)>=0,($N$31-$W52)/($AE$27*0.095)*$J$27/$AC$29,($J$23*$J$25/$AC$29))),$J52*$J$25/$AC$29),IF(J52=0,(IF($N$31-($W52+$AF$27*0.095*$J$23/$J$26)>=0,($N$31-$W52)/($AF$27*0.095)*$J$27/$AC$29,($J$23*$J$25/$AC$29))),$J52*$J$25/$AC$29)) -> 0.3003096703 | M52: =IF($I52<$Q$29,IF($AI51<=$N$29-$G$30,$X51+$L52*$AB$23*$AC$29/$J$27,DC52),IF($AI51<=$N$29-$G$30,$X51+$L52*$AC$23*$AC$29/$J$27,DC52)) -> 11.87693544 | N52: =IF($I52<$Q$29,IF($AI51<=$N$29-$G$30,$Y51+$L52*$AB$24*$AC$29/$J$27,DD52),IF($AI51<=$N$29-$G$30,$Y51+$L52*$AC$24*$AC$29/$J$27,DD52)) -> 1.187693544 | O52: =IF($I52<$Q$29,IF($AI51<=$N$29-$G$30,$Z51+$L52*$AB$25*$AC$29/$J$27,DE52),IF($AI51<=$N$29-$G$30,$Z51+$L52*$AC$25*$AC$29/$J$27,DE52)) -> 7.97250306 | P52: =IF($I52<$Q$29,IF($AI51<=$N$29-$G$30,$AA51+$L52*$AB$26*$AC$29/$J$27,DF52),IF($AI51<=$N$29-$G$30,$AA51+$L52*$AC$26*$AC$29/$J$27,DF52)) -> 16.63055092 | Q52: =IF($I52<$Q$29,IF($AI51<=$N$29-$G$30,$AB51+$L52*$AE$23*$AC$29/$J$27,DG52),IF($AI51<=$N$29-$G$30,$AB51+$L52*$AF$23*$AC$29/$J$27,DG52)) -> 7.957546744 | R52: =IF($I52<$Q$29,IF($AI51<=$N$29-$G$30,$AC51+$L52*$AE$24*$AC$29/$J$27,DH52),IF($AI51<=$N$29-$G$30,$AC51+$L52*$AF$24*$AC$29/$J$27,DH52)) -> 9.914244125 | S52: =IF($I52<$Q$29,IF($AI51<=$N$29-$G$30,$AD51+$L52*$AE$25*$AC$29/$J$27,DI52),IF($AI51<=$N$29-$G$30,$AD51+$L52*$AF$25*$AC$29/$J$27,DI52)) -> 2.033678402 | T52: =IF($I52<$Q$29,IF($AI51<=$N$29-$G$30,$AE51+$L52*$AE$26*$AC$29/$J$27,DJ52),IF($AI51<=$N$29-$G$30,$AE51+$L52*$AF$26*$AC$29/$J$27,DJ52)) -> 17.1728515 | U52: =SUM(M52:P52) -> 37.66768297 | V52: =SUM(Q52:T52) -> 37.07832077 | W52: =SUM(Q52:T52)*0.095+0.19 -> 3.712440473 | X52: =IF($I52<$Q$29,IF($J52=0,(M52+$L52*$AB$23*$AC$29/$J$27),(IF((M52+($U$23-$M$23)*$J52/$J$26)>=0,(M52+($U$23-$M$23)*$J52/$J$26),0))),IF($J52=0,(M52+$L52*$AC$23*$AC$29/$J$27),(IF((M52+($V$23-$N$23)*$J52/$J$26)>=0,(M52+($V$23-$N$23)*$J52/$J$26),0)))) -> 10 | Y52: =IF($I52<$Q$29,IF($J52=0,(N52+$L52*$AB$24*$AC$29/$J$27),(IF((N52+($U$24-$M$24)*$J52/$J$26)>=0,(N52+($U$24-$M$24)*$J52/$J$26),0))),IF($J52=0,(N52+$L52*$AC$24*$AC$29/$J$27),(IF((N52+($V$24-$N$24)*$J52/$J$26)>=0,(N52+($V$24-$N$24)*$J52/$J$26),0)))) -> 1 | Z52: =IF($I52<$Q$29,IF($J52=0,(O52+$L52*$AB$25*$AC$29/$J$27),(IF((O52+($U$25-$M$25)*$J52/$J$26)>=0,(O52+($U$25-$M$25)*$J52/$J$26),0))),IF($J52=0,(O52+$L52*$AC$25*$AC$29/$J$27),(IF((O52+($V$25-$N$25)*$J52/$J$26)>=0,(O52+($V$25-$N$25)*$J52/$J$26),0)))) -> 7.634654681 | AA52: =IF($I52<$Q$29,IF($J52=0,(P52+$L52*$AB$26*$AC$29/$J$27),(IF((P52-$U$26/$M$26)*EXP(-$M$26*$J52/$J$26)+$U$26/$M$26>=0,(P52-$U$26/$M$26)*EXP(-$M$26*$J52/$J$26)+$U$26/$M$26,0))),IF($J52=0,(P52+$L52*$AC$26*$AC$29/$J$27),(IF((P52-$V$26/$N$26)*EXP(-$N$26*$J52/$J$26)+$V$26/$N$26>=0,(P52-$V$26/$N$26)*EXP(-$N$26*$J52/$J$26)+$V$26/$N$26,0)))) -> 17.77601249 | AB52: =IF($I52<$Q$29,IF($J52=0,(Q52+$L52*$AE$23*$AC$29/$J$27),(IF((Q52+($X$23-$P$23)*$J52/$J$26)>=0,(Q52+($X$23-$P$23)*$J52/$J$26),0))),IF($J52=0,(Q52+$L52*$AF$23*$AC$29/$J$27),(IF((Q52+($Y$23-$Q$23)*$J52/$J$26)>=0,(Q52+($Y$23-$Q$23)*$J52/$J$26),0)))) -> 6.7 | AC52: =IF($I52<$Q$29,IF($J52=0,(R52+$L52*$AE$24*$AC$29/$J$27),(IF((R52+($X$24-$P$24)*$J52/$J$26)>=0,(R52+($X$24-$P$24)*$J52/$J$26),0))),IF($J52=0,(R52+$L52*$AF$24*$AC$29/$J$27),(IF((R52+($Y$24-$Q$24)*$J52/$J$26)>=0,(R52+($Y$24-$Q$24)*$J52/$J$26),0)))) -> 9.144700595 | AD52: =IF($I52<$Q$29,IF($J52=0,(S52+$L52*$AE$25*$AC$29/$J$27),(IF((S52+($X$25-$P$25)*$J52/$J$26)>=0,(S52+($X$25-$P$25)*$J52/$J$26),0))),IF($J52=0,(S52+$L52*$AF$25*$AC$29/$J$27),(IF((S52+($Y$25-$Q$25)*$J52/$J$26)>=0,(S52+($Y$25-$Q$25)*$J52/$J$26),0)))) -> 2.10875582 | AE52: =IF($I52<$Q$29,IF($J52=0,(T52+$L52*$AE$26*$AC$29/$J$27),(IF((T52-$X$26/$P$26)*EXP(-$P$26*$J52/$J$26)+$X$26/$P$26>=0,(T52-$X$26/$P$26)*EXP(-$P$26*$J52/$J$26)+$X$26/$P$26,0))),IF($J52=0,(T52+$L52*$AF$26*$AC$29/$J$27),(IF((T52-$Y$26/$Q$26)*EXP(-$Q$26*$J52/$J$26)+$Y$26/$Q$26>=0,(T52-$Y$26/$Q$26)*EXP(-$Q$26*$J52/$J$26)+$Y$26/$Q$26,0)))) -> 18.35566507 | AF52: =SUM(X52:AA52) -> 36.41066717 | AG52: =SUM(AB52:AE52) -> 36.30912149 | AH52: =IF(AH51<=$N$32,1000,X52) -> 10 | AI52: =SUM(AB52:AE52)*0.095+0.19 -> 3.639366541 | AJ52: =IF(J52>0,-10,1) -> -10 | AL52: =IF($I52<$Q$29,IF($J52=0,((X51-M52)*$J$26+$J$29*$U$23)*14.007/1000,""),IF($J52=0,((X51-M52)*$J$26+$J$29*$V$23)*14.007/1000,"")) ->  | AM52: =IF($I52<$Q$29,IF($J52=0,((Y51-N52)*$J$26+$J$29*$U$24)*30.957/1000,""),IF($J52=0,((Y51-N52)*$J$26+$J$29*$V$24)*30.957/1000,"")) ->  | AN52: =IF($I52<$Q$29,IF($J52=0,((AB51-Q52)*$J$26+$J$29*$X$23)*39.1/1000,""),IF($J52=0,((AB51-Q52)*$J$26+$J$29*$Y$23)*39.1/1000,"")) ->  | AO52: =IF($I52<$Q$29,IF($J52=0,((AE51-T52)*$J$26+$J$29*$X$26)*22.9898/1000,""),IF($J52=0,((AE51-T52)*$J$26+$J$29*$Y$26)*22.9898/1000,"")) ->  | AP52: =IF($I52<$Q$29,IF($J52=0,((AC51-R52)*$J$26+$J$29*$X$24)*20.04/1000,""),IF($J52=0,((AC51-R52)*$J$26+$J$29*$Y$24)*20.04/1000,"")) ->  | AQ52: =IF($I52<$Q$29,IF($J52=0,((AD51-S52)*$J$26+$J$29*$X$25)*12.156/1000,""),IF($J52=0,((AD51-S52)*$J$26+$J$29*$Y$25)*12.156/1000,"")) ->  | AR52: =IF($I52<$Q$29,L52/$J$25,"") -> 0.03003096703 | AS52: =IF($I52<$Q$29,IF($J52=0,AL52*1000/14.007/($AK52),""),"") ->  | AT52: =IF($I52<$Q$29,IF($J52=0,AM52*1000/30.957/($AK52),""),"") ->  | AU52: =IF($I52<$Q$29,IF($J52=0,AN52*1000/39.1/($AK52),""),"") ->  | AV52: =IF($I52<$Q$29,IF($J52=0,AO52*1000/22.9898/($AK52),""),"") ->  | AW52: =IF($I52<$Q$29,IF($J52=0,AP52*1000/20.04/($AK52*$J$25),""),"") ->  | AX52: =IF($I52<$Q$29,IF($J52=0,AQ52*1000/12.156/($AK52*$J$25),""),"") ->  | AY52: =IF($I52<$Q$29,IF($J52=0,X51,""),"") ->  | AZ52: =IF($I52<$Q$29,IF($J52=0,Y51,""),"") ->  | BA52: =IF($I52<$Q$29,IF($J52=0,AB51,""),"") ->  | BB52: =IF($I52<$Q$29,IF($J52=0,AE51,""),"") ->  | BC52: =IF($I52<$Q$29,IF($J52=0,AC51,""),"") ->  | BD52: =IF($I52<$Q$29,IF($J52=0,AD51,""),"") ->  | BE52: =IF($I52<$Q$29,IF($J52=0,AI51,""),"") ->  | BF52: =IF($I52<$Q$29,IF($J52=0,M52,""),"") ->  | BG52: =IF($I52<$Q$29,IF($J52=0,N52,""),"") ->  | BH52: =IF($I52<$Q$29,IF($J52=0,Q52,""),"") ->  | BI52: =IF($I52<$Q$29,IF($J52=0,T52,""),"") ->  | BJ52: =IF($I52<$Q$29,IF($J52=0,R52,""),"") ->  | BK52: =IF($I52<$Q$29,IF($J52=0,S52,""),"") ->  | BL52: =IF($I52<$Q$29,IF($J52=0,W52,""),"") ->  | BM52: =IF($I52<$Q$29,IF($J52=0,X52,""),"") ->  | BN52: =IF($I52<$Q$29,IF($J52=0,Y52,""),"") ->  | BO52: =IF($I52<$Q$29,IF($J52=0,AB52,""),"") ->  | BP52: =IF($I52<$Q$29,IF($J52=0,AE52,""),"") ->  | BQ52: =IF($I52<$Q$29,IF($J52=0,AC52,""),"") ->  | BR52: =IF($I52<$Q$29,IF($J52=0,AD52,""),"") ->  | BS52: =IF($I52<$Q$29,IF($J52=0,AI52,""),"") ->  | BT52: =IF($I52<$Q$29,IF($J52=0,K51,""),"") ->  | BU52: =IF($I52<$Q$29,IF($J52=0,($AK52),J52),"") -> 3.003096703 | BV52: =IF($I52<$Q$29,"",(IF($J52=0,(IF($I52=$W$30,"",L52/$J$25)),L52/$J$25))) ->  | BW52: =IF($I52<$Q$29,"",IF($J52=0,AL52*1000/14.007/($AK52),"")) ->  | BX52: =IF($I52<$Q$29,"",IF($J52=0,AM52*1000/30.957/($AK52),"")) ->  | BY52: =IF($I52<$Q$29,"",IF($J52=0,AN52*1000/39.1/($AK52),"")) ->  | BZ52: =IF($I52<$Q$29,"",IF($J52=0,AO52*1000/22.9898/($AK52),"")) ->  | CA52: =IF($I52<$Q$29,"",IF($J52=0,AP52*1000/20.04/($AK52),"")) ->  | CB52: =IF($I52<$Q$29,"",IF($J52=0,AQ52*1000/12.156/($AK52),"")) ->  | CC52: =IF($I52<$Q$29,"",IF($J52=0,X51,"")) ->  | CD52: =IF($I52<$Q$29,"",IF($J52=0,Y51,"")) ->  | CE52: =IF($I52<$Q$29,"",IF($J52=0,AB51,"")) ->  | CF52: =IF($I52<$Q$29,"",IF($J52=0,AE51,"")) ->  | CG52: =IF($I52<$Q$29,"",IF($J52=0,AC51,"")) ->  | CH52: =IF($I52<$Q$29,"",IF($J52=0,AD51,"")) ->  | CI52: =IF($I52<$Q$29,"",IF($J52=0,AI51,"")) ->  | CJ52: =IF($I52<$Q$29,"",IF($J52=0,M52,"")) ->  | CK52: =IF($I52<$Q$29,"",IF($J52=0,N52,"")) ->  | CL52: =IF($I52<$Q$29,"",IF($J52=0,Q52,"")) ->  | CM52: =IF($I52<$Q$29,"",IF($J52=0,T52,"")) ->  | CN52: =IF($I52<$Q$29,"",IF($J52=0,R52,"")) ->  | CO52: =IF($I52<$Q$29,"",IF($J52=0,S52,"")) ->  | CP52: =IF($I52<$Q$29,"",IF($J52=0,W52,"")) ->  | CQ52: =IF($I52<$Q$29,"",IF($J52=0,X52,"")) ->  | CR52: =IF($I52<$Q$29,"",IF($J52=0,Y52,"")) ->  | CS52: =IF($I52<$Q$29,"",IF($J52=0,AB52,"")) ->  | CT52: =IF($I52<$Q$29,"",IF($J52=0,AE52,"")) ->  | CU52: =IF($I52<$Q$29,"",IF($J52=0,AC52,"")) ->  | CV52: =IF($I52<$Q$29,"",IF($J52=0,AD52,"")) ->  | CW52: =IF($I52<$Q$29,"",IF($J52=0,AI52,"")) ->  | CX52: =IF($I52<$Q$29,"",IF($J52=0,K51,"")) ->  | CY52: =IF($I52<$Q$29,"",IF($J52=0,($AK52),J52)) ->  | CZ52: =IF(J52=0,0,CZ51+1) -> 15 | DA52: =IF(CZ52=0,CZ51,"") ->  | DK52: =IF($J52=0,SUM(DC52:DF52),"") ->  | DL52: =IF($J52=0,SUM(DG52:DJ52),"") ->  | DM52: =IF($J52=0,SUM(DG52:DJ52)*0.095+0.19,"") -> 
A53: =IF('3 climate date'!B30=1, '3 climate date'!D30, "") -> 16 | B53: =IF('3 climate date'!$B30=1, '3 climate date'!E30, "") -> 2006-05-21 | C53: =IF('3 climate date'!B30=1, '3 climate date'!G30, "") -> 15.0052125 | D53: =IF('3 climate date'!B30=1, '3 climate date'!H30, "") -> 21.41326389 | E53: =IF(('3 climate date'!$B30=1),('8 ETE'!E53)," ") -> 622.0077083 | F53: =IF(('3 climate date'!$B30=1),('8 ETE'!F53)," ") -> 1.062532111 | G53: =IF(('3 climate date'!$B30=1),('8 ETE'!G53)," ") -> 3.197559966 | H53: =IF(('3 climate date'!$B30=1),('8 ETE'!H53)," ") -> 23.54779276 | I53: =IF(AI52<=$N$29-$G$30,I52+1,I52) -> 16 | J53: =IF(AI52<=$N$29-$G$30,INDIRECT(ADDRESS((I53+37),7)),0) -> 3.197559966 | K53: =IF(J53=0,0,K52+J53) -> 23.54779276 | L53: =IF($I53<$Q$29,IF(J53=0,(IF($N$31-($W53+$AE$27*0.095*$J$23/$J$26)>=0,($N$31-$W53)/($AE$27*0.095)*$J$27/$AC$29,($J$23*$J$25/$AC$29))),$J53*$J$25/$AC$29),IF(J53=0,(IF($N$31-($W53+$AF$27*0.095*$J$23/$J$26)>=0,($N$31-$W53)/($AF$27*0.095)*$J$27/$AC$29,($J$23*$J$25/$AC$29))),$J53*$J$25/$AC$29)) -> 0.3197559966 | M53: =IF($I53<$Q$29,IF($AI52<=$N$29-$G$30,$X52+$L53*$AB$23*$AC$29/$J$27,DC53),IF($AI52<=$N$29-$G$30,$X52+$L53*$AC$23*$AC$29/$J$27,DC53)) -> 11.99847498 | N53: =IF($I53<$Q$29,IF($AI52<=$N$29-$G$30,$Y52+$L53*$AB$24*$AC$29/$J$27,DD53),IF($AI52<=$N$29-$G$30,$Y52+$L53*$AC$24*$AC$29/$J$27,DD53)) -> 1.199847498 | O53: =IF($I53<$Q$29,IF($AI52<=$N$29-$G$30,$Z52+$L53*$AB$25*$AC$29/$J$27,DE53),IF($AI52<=$N$29-$G$30,$Z52+$L53*$AC$25*$AC$29/$J$27,DE53)) -> 8.402069073 | P53: =IF($I53<$Q$29,IF($AI52<=$N$29-$G$30,$AA52+$L53*$AB$26*$AC$29/$J$27,DF53),IF($AI52<=$N$29-$G$30,$AA52+$L53*$AC$26*$AC$29/$J$27,DF53)) -> 17.77601249 | Q53: =IF($I53<$Q$29,IF($AI52<=$N$29-$G$30,$AB52+$L53*$AE$23*$AC$29/$J$27,DG53),IF($AI52<=$N$29-$G$30,$AB52+$L53*$AF$23*$AC$29/$J$27,DG53)) -> 8.038978236 | R53: =IF($I53<$Q$29,IF($AI52<=$N$29-$G$30,$AC52+$L53*$AE$24*$AC$29/$J$27,DH53),IF($AI52<=$N$29-$G$30,$AC52+$L53*$AF$24*$AC$29/$J$27,DH53)) -> 10.14393808 | S53: =IF($I53<$Q$29,IF($AI52<=$N$29-$G$30,$AD52+$L53*$AE$25*$AC$29/$J$27,DI53),IF($AI52<=$N$29-$G$30,$AD52+$L53*$AF$25*$AC$29/$J$27,DI53)) -> 2.10875582 | T53: =IF($I53<$Q$29,IF($AI52<=$N$29-$G$30,$AE52+$L53*$AE$26*$AC$29/$J$27,DJ53),IF($AI52<=$N$29-$G$30,$AE52+$L53*$AF$26*$AC$29/$J$27,DJ53)) -> 18.35566507 | U53: =SUM(M53:P53) -> 39.37640404 | V53: =SUM(Q53:T53) -> 38.64733721 | W53: =SUM(Q53:T53)*0.095+0.19 -> 3.861497035 | X53: =IF($I53<$Q$29,IF($J53=0,(M53+$L53*$AB$23*$AC$29/$J$27),(IF((M53+($U$23-$M$23)*$J53/$J$26)>=0,(M53+($U$23-$M$23)*$J53/$J$26),0))),IF($J53=0,(M53+$L53*$AC$23*$AC$29/$J$27),(IF((M53+($V$23-$N$23)*$J53/$J$26)>=0,(M53+($V$23-$N$23)*$J53/$J$26),0)))) -> 10 | Y53: =IF($I53<$Q$29,IF($J53=0,(N53+$L53*$AB$24*$AC$29/$J$27),(IF((N53+($U$24-$M$24)*$J53/$J$26)>=0,(N53+($U$24-$M$24)*$J53/$J$26),0))),IF($J53=0,(N53+$L53*$AC$24*$AC$29/$J$27),(IF((N53+($V$24-$N$24)*$J53/$J$26)>=0,(N53+($V$24-$N$24)*$J53/$J$26),0)))) -> 1 | Z53: =IF($I53<$Q$29,IF($J53=0,(O53+$L53*$AB$25*$AC$29/$J$27),(IF((O53+($U$25-$M$25)*$J53/$J$26)>=0,(O53+($U$25-$M$25)*$J53/$J$26),0))),IF($J53=0,(O53+$L53*$AC$25*$AC$29/$J$27),(IF((O53+($V$25-$N$25)*$J53/$J$26)>=0,(O53+($V$25-$N$25)*$J53/$J$26),0)))) -> 8.042343577 | AA53: =IF($I53<$Q$29,IF($J53=0,(P53+$L53*$AB$26*$AC$29/$J$27),(IF((P53-$U$26/$M$26)*EXP(-$M$26*$J53/$J$26)+$U$26/$M$26>=0,(P53-$U$26/$M$26)*EXP(-$M$26*$J53/$J$26)+$U$26/$M$26,0))),IF($J53=0,(P53+$L53*$AC$26*$AC$29/$J$27),(IF((P53-$V$26/$N$26)*EXP(-$N$26*$J53/$J$26)+$V$26/$N$26>=0,(P53-$V$26/$N$26)*EXP(-$N$26*$J53/$J$26)+$V$26/$N$26,0)))) -> 18.95384908 | AB53: =IF($I53<$Q$29,IF($J53=0,(Q53+$L53*$AE$23*$AC$29/$J$27),(IF((Q53+($X$23-$P$23)*$J53/$J$26)>=0,(Q53+($X$23-$P$23)*$J53/$J$26),0))),IF($J53=0,(Q53+$L53*$AF$23*$AC$29/$J$27),(IF((Q53+($Y$23-$Q$23)*$J53/$J$26)>=0,(Q53+($Y$23-$Q$23)*$J53/$J$26),0)))) -> 6.7 | AC53: =IF($I53<$Q$29,IF($J53=0,(R53+$L53*$AE$24*$AC$29/$J$27),(IF((R53+($X$24-$P$24)*$J53/$J$26)>=0,(R53+($X$24-$P$24)*$J53/$J$26),0))),IF($J53=0,(R53+$L53*$AF$24*$AC$29/$J$27),(IF((R53+($Y$24-$Q$24)*$J53/$J$26)>=0,(R53+($Y$24-$Q$24)*$J53/$J$26),0)))) -> 9.324563343 | AD53: =IF($I53<$Q$29,IF($J53=0,(S53+$L53*$AE$25*$AC$29/$J$27),(IF((S53+($X$25-$P$25)*$J53/$J$26)>=0,(S53+($X$25-$P$25)*$J53/$J$26),0))),IF($J53=0,(S53+$L53*$AF$25*$AC$29/$J$27),(IF((S53+($Y$25-$Q$25)*$J53/$J$26)>=0,(S53+($Y$25-$Q$25)*$J53/$J$26),0)))) -> 2.188694819 | AE53: =IF($I53<$Q$29,IF($J53=0,(T53+$L53*$AE$26*$AC$29/$J$27),(IF((T53-$X$26/$P$26)*EXP(-$P$26*$J53/$J$26)+$X$26/$P$26>=0,(T53-$X$26/$P$26)*EXP(-$P$26*$J53/$J$26)+$X$26/$P$26,0))),IF($J53=0,(T53+$L53*$AF$26*$AC$29/$J$27),(IF((T53-$Y$26/$Q$26)*EXP(-$Q$26*$J53/$J$26)+$Y$26/$Q$26>=0,(T53-$Y$26/$Q$26)*EXP(-$Q$26*$J53/$J$26)+$Y$26/$Q$26,0)))) -> 19.57190937 | AF53: =SUM(X53:AA53) -> 37.99619266 | AG53: =SUM(AB53:AE53) -> 37.78516754 | AH53: =IF(AH52<=$N$32,1000,X53) -> 10 | AI53: =SUM(AB53:AE53)*0.095+0.19 -> 3.779590916 | AJ53: =IF(J53>0,-10,1) -> -10 | AL53: =IF($I53<$Q$29,IF($J53=0,((X52-M53)*$J$26+$J$29*$U$23)*14.007/1000,""),IF($J53=0,((X52-M53)*$J$26+$J$29*$V$23)*14.007/1000,"")) ->  | AM53: =IF($I53<$Q$29,IF($J53=0,((Y52-N53)*$J$26+$J$29*$U$24)*30.957/1000,""),IF($J53=0,((Y52-N53)*$J$26+$J$29*$V$24)*30.957/1000,"")) ->  | AN53: =IF($I53<$Q$29,IF($J53=0,((AB52-Q53)*$J$26+$J$29*$X$23)*39.1/1000,""),IF($J53=0,((AB52-Q53)*$J$26+$J$29*$Y$23)*39.1/1000,"")) ->  | AO53: =IF($I53<$Q$29,IF($J53=0,((AE52-T53)*$J$26+$J$29*$X$26)*22.9898/1000,""),IF($J53=0,((AE52-T53)*$J$26+$J$29*$Y$26)*22.9898/1000,"")) ->  | AP53: =IF($I53<$Q$29,IF($J53=0,((AC52-R53)*$J$26+$J$29*$X$24)*20.04/1000,""),IF($J53=0,((AC52-R53)*$J$26+$J$29*$Y$24)*20.04/1000,"")) ->  | AQ53: =IF($I53<$Q$29,IF($J53=0,((AD52-S53)*$J$26+$J$29*$X$25)*12.156/1000,""),IF($J53=0,((AD52-S53)*$J$26+$J$29*$Y$25)*12.156/1000,"")) ->  | AR53: =IF($I53<$Q$29,L53/$J$25,"") -> 0.03197559966 | AS53: =IF($I53<$Q$29,IF($J53=0,AL53*1000/14.007/($AK53),""),"") ->  | AT53: =IF($I53<$Q$29,IF($J53=0,AM53*1000/30.957/($AK53),""),"") ->  | AU53: =IF($I53<$Q$29,IF($J53=0,AN53*1000/39.1/($AK53),""),"") ->  | AV53: =IF($I53<$Q$29,IF($J53=0,AO53*1000/22.9898/($AK53),""),"") ->  | AW53: =IF($I53<$Q$29,IF($J53=0,AP53*1000/20.04/($AK53*$J$25),""),"") ->  | AX53: =IF($I53<$Q$29,IF($J53=0,AQ53*1000/12.156/($AK53*$J$25),""),"") ->  | AY53: =IF($I53<$Q$29,IF($J53=0,X52,""),"") ->  | AZ53: =IF($I53<$Q$29,IF($J53=0,Y52,""),"") ->  | BA53: =IF($I53<$Q$29,IF($J53=0,AB52,""),"") ->  | BB53: =IF($I53<$Q$29,IF($J53=0,AE52,""),"") ->  | BC53: =IF($I53<$Q$29,IF($J53=0,AC52,""),"") ->  | BD53: =IF($I53<$Q$29,IF($J53=0,AD52,""),"") ->  | BE53: =IF($I53<$Q$29,IF($J53=0,AI52,""),"") ->  | BF53: =IF($I53<$Q$29,IF($J53=0,M53,""),"") ->  | BG53: =IF($I53<$Q$29,IF($J53=0,N53,""),"") ->  | BH53: =IF($I53<$Q$29,IF($J53=0,Q53,""),"") ->  | BI53: =IF($I53<$Q$29,IF($J53=0,T53,""),"") ->  | BJ53: =IF($I53<$Q$29,IF($J53=0,R53,""),"") ->  | BK53: =IF($I53<$Q$29,IF($J53=0,S53,""),"") ->  | BL53: =IF($I53<$Q$29,IF($J53=0,W53,""),"") ->  | BM53: =IF($I53<$Q$29,IF($J53=0,X53,""),"") ->  | BN53: =IF($I53<$Q$29,IF($J53=0,Y53,""),"") ->  | BO53: =IF($I53<$Q$29,IF($J53=0,AB53,""),"") ->  | BP53: =IF($I53<$Q$29,IF($J53=0,AE53,""),"") ->  | BQ53: =IF($I53<$Q$29,IF($J53=0,AC53,""),"") ->  | BR53: =IF($I53<$Q$29,IF($J53=0,AD53,""),"") ->  | BS53: =IF($I53<$Q$29,IF($J53=0,AI53,""),"") ->  | BT53: =IF($I53<$Q$29,IF($J53=0,K52,""),"") ->  | BU53: =IF($I53<$Q$29,IF($J53=0,($AK53),J53),"") -> 3.197559966 | BV53: =IF($I53<$Q$29,"",(IF($J53=0,(IF($I53=$W$30,"",L53/$J$25)),L53/$J$25))) ->  | BW53: =IF($I53<$Q$29,"",IF($J53=0,AL53*1000/14.007/($AK53),"")) ->  | BX53: =IF($I53<$Q$29,"",IF($J53=0,AM53*1000/30.957/($AK53),"")) ->  | BY53: =IF($I53<$Q$29,"",IF($J53=0,AN53*1000/39.1/($AK53),"")) ->  | BZ53: =IF($I53<$Q$29,"",IF($J53=0,AO53*1000/22.9898/($AK53),"")) ->  | CA53: =IF($I53<$Q$29,"",IF($J53=0,AP53*1000/20.04/($AK53),"")) ->  | CB53: =IF($I53<$Q$29,"",IF($J53=0,AQ53*1000/12.156/($AK53),"")) ->  | CC53: =IF($I53<$Q$29,"",IF($J53=0,X52,"")) ->  | CD53: =IF($I53<$Q$29,"",IF($J53=0,Y52,"")) ->  | CE53: =IF($I53<$Q$29,"",IF($J53=0,AB52,"")) ->  | CF53: =IF($I53<$Q$29,"",IF($J53=0,AE52,"")) ->  | CG53: =IF($I53<$Q$29,"",IF($J53=0,AC52,"")) ->  | CH53: =IF($I53<$Q$29,"",IF($J53=0,AD52,"")) ->  | CI53: =IF($I53<$Q$29,"",IF($J53=0,AI52,"")) ->  | CJ53: =IF($I53<$Q$29,"",IF($J53=0,M53,"")) ->  | CK53: =IF($I53<$Q$29,"",IF($J53=0,N53,"")) ->  | CL53: =IF($I53<$Q$29,"",IF($J53=0,Q53,"")) ->  | CM53: =IF($I53<$Q$29,"",IF($J53=0,T53,"")) ->  | CN53: =IF($I53<$Q$29,"",IF($J53=0,R53,"")) ->  | CO53: =IF($I53<$Q$29,"",IF($J53=0,S53,"")) ->  | CP53: =IF($I53<$Q$29,"",IF($J53=0,W53,"")) ->  | CQ53: =IF($I53<$Q$29,"",IF($J53=0,X53,"")) ->  | CR53: =IF($I53<$Q$29,"",IF($J53=0,Y53,"")) ->  | CS53: =IF($I53<$Q$29,"",IF($J53=0,AB53,"")) ->  | CT53: =IF($I53<$Q$29,"",IF($J53=0,AE53,"")) ->  | CU53: =IF($I53<$Q$29,"",IF($J53=0,AC53,"")) ->  | CV53: =IF($I53<$Q$29,"",IF($J53=0,AD53,"")) ->  | CW53: =IF($I53<$Q$29,"",IF($J53=0,AI53,"")) ->  | CX53: =IF($I53<$Q$29,"",IF($J53=0,K52,"")) ->  | CY53: =IF($I53<$Q$29,"",IF($J53=0,($AK53),J53)) ->  | CZ53: =IF(J53=0,0,CZ52+1) -> 16 | DA53: =IF(CZ53=0,CZ52,"") ->  | DK53: =IF($J53=0,SUM(DC53:DF53),"") ->  | DL53: =IF($J53=0,SUM(DG53:DJ53),"") ->  | DM53: =IF($J53=0,SUM(DG53:DJ53)*0.095+0.19,"") -> 
A54: =IF('3 climate date'!B31=1, '3 climate date'!D31, "") -> 17 | B54: =IF('3 climate date'!$B31=1, '3 climate date'!E31, "") -> 2006-05-22 | C54: =IF('3 climate date'!B31=1, '3 climate date'!G31, "") -> 9.3958125 | D54: =IF('3 climate date'!B31=1, '3 climate date'!H31, "") -> 21.75256944 | E54: =IF(('3 climate date'!$B31=1),('8 ETE'!E54)," ") -> 635.7602778 | F54: =IF(('3 climate date'!$B31=1),('8 ETE'!F54)," ") -> 1.168975247 | G54: =IF(('3 climate date'!$B31=1),('8 ETE'!G54)," ") -> 2.195873304 | H54: =IF(('3 climate date'!$B31=1),('8 ETE'!H54)," ") -> 25.74366606 | I54: =IF(AI53<=$N$29-$G$30,I53+1,I53) -> 17 | J54: =IF(AI53<=$N$29-$G$30,INDIRECT(ADDRESS((I54+37),7)),0) -> 2.195873304 | K54: =IF(J54=0,0,K53+J54) -> 25.74366606 | L54: =IF($I54<$Q$29,IF(J54=0,(IF($N$31-($W54+$AE$27*0.095*$J$23/$J$26)>=0,($N$31-$W54)/($AE$27*0.095)*$J$27/$AC$29,($J$23*$J$25/$AC$29))),$J54*$J$25/$AC$29),IF(J54=0,(IF($N$31-($W54+$AF$27*0.095*$J$23/$J$26)>=0,($N$31-$W54)/($AF$27*0.095)*$J$27/$AC$29,($J$23*$J$25/$AC$29))),$J54*$J$25/$AC$29)) -> 0.2195873304 | M54: =IF($I54<$Q$29,IF($AI53<=$N$29-$G$30,$X53+$L54*$AB$23*$AC$29/$J$27,DC54),IF($AI53<=$N$29-$G$30,$X53+$L54*$AC$23*$AC$29/$J$27,DC54)) -> 11.37242082 | N54: =IF($I54<$Q$29,IF($AI53<=$N$29-$G$30,$Y53+$L54*$AB$24*$AC$29/$J$27,DD54),IF($AI53<=$N$29-$G$30,$Y53+$L54*$AC$24*$AC$29/$J$27,DD54)) -> 1.137242082 | O54: =IF($I54<$Q$29,IF($AI53<=$N$29-$G$30,$Z53+$L54*$AB$25*$AC$29/$J$27,DE54),IF($AI53<=$N$29-$G$30,$Z53+$L54*$AC$25*$AC$29/$J$27,DE54)) -> 8.56935317 | P54: =IF($I54<$Q$29,IF($AI53<=$N$29-$G$30,$AA53+$L54*$AB$26*$AC$29/$J$27,DF54),IF($AI53<=$N$29-$G$30,$AA53+$L54*$AC$26*$AC$29/$J$27,DF54)) -> 18.95384908 | Q54: =IF($I54<$Q$29,IF($AI53<=$N$29-$G$30,$AB53+$L54*$AE$23*$AC$29/$J$27,DG54),IF($AI53<=$N$29-$G$30,$AB53+$L54*$AF$23*$AC$29/$J$27,DG54)) -> 7.619521946 | R54: =IF($I54<$Q$29,IF($AI53<=$N$29-$G$30,$AC53+$L54*$AE$24*$AC$29/$J$27,DH54),IF($AI53<=$N$29-$G$30,$AC53+$L54*$AF$24*$AC$29/$J$27,DH54)) -> 10.01077375 | S54: =IF($I54<$Q$29,IF($AI53<=$N$29-$G$30,$AD53+$L54*$AE$25*$AC$29/$J$27,DI54),IF($AI53<=$N$29-$G$30,$AD53+$L54*$AF$25*$AC$29/$J$27,DI54)) -> 2.188694819 | T54: =IF($I54<$Q$29,IF($AI53<=$N$29-$G$30,$AE53+$L54*$AE$26*$AC$29/$J$27,DJ54),IF($AI53<=$N$29-$G$30,$AE53+$L54*$AF$26*$AC$29/$J$27,DJ54)) -> 19.57190937 | U54: =SUM(M54:P54) -> 40.03286515 | V54: =SUM(Q54:T54) -> 39.39089989 | W54: =SUM(Q54:T54)*0.095+0.19 -> 3.93213549 | X54: =IF($I54<$Q$29,IF($J54=0,(M54+$L54*$AB$23*$AC$29/$J$27),(IF((M54+($U$23-$M$23)*$J54/$J$26)>=0,(M54+($U$23-$M$23)*$J54/$J$26),0))),IF($J54=0,(M54+$L54*$AC$23*$AC$29/$J$27),(IF((M54+($V$23-$N$23)*$J54/$J$26)>=0,(M54+($V$23-$N$23)*$J54/$J$26),0)))) -> 10 | Y54: =IF($I54<$Q$29,IF($J54=0,(N54+$L54*$AB$24*$AC$29/$J$27),(IF((N54+($U$24-$M$24)*$J54/$J$26)>=0,(N54+($U$24-$M$24)*$J54/$J$26),0))),IF($J54=0,(N54+$L54*$AC$24*$AC$29/$J$27),(IF((N54+($V$24-$N$24)*$J54/$J$26)>=0,(N54+($V$24-$N$24)*$J54/$J$26),0)))) -> 1 | Z54: =IF($I54<$Q$29,IF($J54=0,(O54+$L54*$AB$25*$AC$29/$J$27),(IF((O54+($U$25-$M$25)*$J54/$J$26)>=0,(O54+($U$25-$M$25)*$J54/$J$26),0))),IF($J54=0,(O54+$L54*$AC$25*$AC$29/$J$27),(IF((O54+($V$25-$N$25)*$J54/$J$26)>=0,(O54+($V$25-$N$25)*$J54/$J$26),0)))) -> 8.322317423 | AA54: =IF($I54<$Q$29,IF($J54=0,(P54+$L54*$AB$26*$AC$29/$J$27),(IF((P54-$U$26/$M$26)*EXP(-$M$26*$J54/$J$26)+$U$26/$M$26>=0,(P54-$U$26/$M$26)*EXP(-$M$26*$J54/$J$26)+$U$26/$M$26,0))),IF($J54=0,(P54+$L54*$AC$26*$AC$29/$J$27),(IF((P54-$V$26/$N$26)*EXP(-$N$26*$J54/$J$26)+$V$26/$N$26>=0,(P54-$V$26/$N$26)*EXP(-$N$26*$J54/$J$26)+$V$26/$N$26,0)))) -> 19.73851645 | AB54: =IF($I54<$Q$29,IF($J54=0,(Q54+$L54*$AE$23*$AC$29/$J$27),(IF((Q54+($X$23-$P$23)*$J54/$J$26)>=0,(Q54+($X$23-$P$23)*$J54/$J$26),0))),IF($J54=0,(Q54+$L54*$AF$23*$AC$29/$J$27),(IF((Q54+($Y$23-$Q$23)*$J54/$J$26)>=0,(Q54+($Y$23-$Q$23)*$J54/$J$26),0)))) -> 6.7 | AC54: =IF($I54<$Q$29,IF($J54=0,(R54+$L54*$AE$24*$AC$29/$J$27),(IF((R54+($X$24-$P$24)*$J54/$J$26)>=0,(R54+($X$24-$P$24)*$J54/$J$26),0))),IF($J54=0,(R54+$L54*$AF$24*$AC$29/$J$27),(IF((R54+($Y$24-$Q$24)*$J54/$J$26)>=0,(R54+($Y$24-$Q$24)*$J54/$J$26),0)))) -> 9.448081216 | AD54: =IF($I54<$Q$29,IF($J54=0,(S54+$L54*$AE$25*$AC$29/$J$27),(IF((S54+($X$25-$P$25)*$J54/$J$26)>=0,(S54+($X$25-$P$25)*$J54/$J$26),0))),IF($J54=0,(S54+$L54*$AF$25*$AC$29/$J$27),(IF((S54+($Y$25-$Q$25)*$J54/$J$26)>=0,(S54+($Y$25-$Q$25)*$J54/$J$26),0)))) -> 2.243591652 | AE54: =IF($I54<$Q$29,IF($J54=0,(T54+$L54*$AE$26*$AC$29/$J$27),(IF((T54-$X$26/$P$26)*EXP(-$P$26*$J54/$J$26)+$X$26/$P$26>=0,(T54-$X$26/$P$26)*EXP(-$P$26*$J54/$J$26)+$X$26/$P$26,0))),IF($J54=0,(T54+$L54*$AF$26*$AC$29/$J$27),(IF((T54-$Y$26/$Q$26)*EXP(-$Q$26*$J54/$J$26)+$Y$26/$Q$26>=0,(T54-$Y$26/$Q$26)*EXP(-$Q$26*$J54/$J$26)+$Y$26/$Q$26,0)))) -> 20.38216373 | AF54: =SUM(X54:AA54) -> 39.06083388 | AG54: =SUM(AB54:AE54) -> 38.7738366 | AH54: =IF(AH53<=$N$32,1000,X54) -> 10 | AI54: =SUM(AB54:AE54)*0.095+0.19 -> 3.873514477 | AJ54: =IF(J54>0,-10,1) -> -10 | AL54: =IF($I54<$Q$29,IF($J54=0,((X53-M54)*$J$26+$J$29*$U$23)*14.007/1000,""),IF($J54=0,((X53-M54)*$J$26+$J$29*$V$23)*14.007/1000,"")) ->  | AM54: =IF($I54<$Q$29,IF($J54=0,((Y53-N54)*$J$26+$J$29*$U$24)*30.957/1000,""),IF($J54=0,((Y53-N54)*$J$26+$J$29*$V$24)*30.957/1000,"")) ->  | AN54: =IF($I54<$Q$29,IF($J54=0,((AB53-Q54)*$J$26+$J$29*$X$23)*39.1/1000,""),IF($J54=0,((AB53-Q54)*$J$26+$J$29*$Y$23)*39.1/1000,"")) ->  | AO54: =IF($I54<$Q$29,IF($J54=0,((AE53-T54)*$J$26+$J$29*$X$26)*22.9898/1000,""),IF($J54=0,((AE53-T54)*$J$26+$J$29*$Y$26)*22.9898/1000,"")) ->  | AP54: =IF($I54<$Q$29,IF($J54=0,((AC53-R54)*$J$26+$J$29*$X$24)*20.04/1000,""),IF($J54=0,((AC53-R54)*$J$26+$J$29*$Y$24)*20.04/1000,"")) ->  | AQ54: =IF($I54<$Q$29,IF($J54=0,((AD53-S54)*$J$26+$J$29*$X$25)*12.156/1000,""),IF($J54=0,((AD53-S54)*$J$26+$J$29*$Y$25)*12.156/1000,"")) ->  | AR54: =IF($I54<$Q$29,L54/$J$25,"") -> 0.02195873304 | AS54: =IF($I54<$Q$29,IF($J54=0,AL54*1000/14.007/($AK54),""),"") ->  | AT54: =IF($I54<$Q$29,IF($J54=0,AM54*1000/30.957/($AK54),""),"") ->  | AU54: =IF($I54<$Q$29,IF($J54=0,AN54*1000/39.1/($AK54),""),"") ->  | AV54: =IF($I54<$Q$29,IF($J54=0,AO54*1000/22.9898/($AK54),""),"") ->  | AW54: =IF($I54<$Q$29,IF($J54=0,AP54*1000/20.04/($AK54*$J$25),""),"") ->  | AX54: =IF($I54<$Q$29,IF($J54=0,AQ54*1000/12.156/($AK54*$J$25),""),"") ->  | AY54: =IF($I54<$Q$29,IF($J54=0,X53,""),"") ->  | AZ54: =IF($I54<$Q$29,IF($J54=0,Y53,""),"") ->  | BA54: =IF($I54<$Q$29,IF($J54=0,AB53,""),"") ->  | BB54: =IF($I54<$Q$29,IF($J54=0,AE53,""),"") ->  | BC54: =IF($I54<$Q$29,IF($J54=0,AC53,""),"") ->  | BD54: =IF($I54<$Q$29,IF($J54=0,AD53,""),"") ->  | BE54: =IF($I54<$Q$29,IF($J54=0,AI53,""),"") ->  | BF54: =IF($I54<$Q$29,IF($J54=0,M54,""),"") ->  | BG54: =IF($I54<$Q$29,IF($J54=0,N54,""),"") ->  | BH54: =IF($I54<$Q$29,IF($J54=0,Q54,""),"") ->  | BI54: =IF($I54<$Q$29,IF($J54=0,T54,""),"") ->  | BJ54: =IF($I54<$Q$29,IF($J54=0,R54,""),"") ->  | BK54: =IF($I54<$Q$29,IF($J54=0,S54,""),"") ->  | BL54: =IF($I54<$Q$29,IF($J54=0,W54,""),"") ->  | BM54: =IF($I54<$Q$29,IF($J54=0,X54,""),"") ->  | BN54: =IF($I54<$Q$29,IF($J54=0,Y54,""),"") ->  | BO54: =IF($I54<$Q$29,IF($J54=0,AB54,""),"") ->  | BP54: =IF($I54<$Q$29,IF($J54=0,AE54,""),"") ->  | BQ54: =IF($I54<$Q$29,IF($J54=0,AC54,""),"") ->  | BR54: =IF($I54<$Q$29,IF($J54=0,AD54,""),"") ->  | BS54: =IF($I54<$Q$29,IF($J54=0,AI54,""),"") ->  | BT54: =IF($I54<$Q$29,IF($J54=0,K53,""),"") ->  | BU54: =IF($I54<$Q$29,IF($J54=0,($AK54),J54),"") -> 2.195873304 | BV54: =IF($I54<$Q$29,"",(IF($J54=0,(IF($I54=$W$30,"",L54/$J$25)),L54/$J$25))) ->  | BW54: =IF($I54<$Q$29,"",IF($J54=0,AL54*1000/14.007/($AK54),"")) ->  | BX54: =IF($I54<$Q$29,"",IF($J54=0,AM54*1000/30.957/($AK54),"")) ->  | BY54: =IF($I54<$Q$29,"",IF($J54=0,AN54*1000/39.1/($AK54),"")) ->  | BZ54: =IF($I54<$Q$29,"",IF($J54=0,AO54*1000/22.9898/($AK54),"")) ->  | CA54: =IF($I54<$Q$29,"",IF($J54=0,AP54*1000/20.04/($AK54),"")) ->  | CB54: =IF($I54<$Q$29,"",IF($J54=0,AQ54*1000/12.156/($AK54),"")) ->  | CC54: =IF($I54<$Q$29,"",IF($J54=0,X53,"")) ->  | CD54: =IF($I54<$Q$29,"",IF($J54=0,Y53,"")) ->  | CE54: =IF($I54<$Q$29,"",IF($J54=0,AB53,"")) ->  | CF54: =IF($I54<$Q$29,"",IF($J54=0,AE53,"")) ->  | CG54: =IF($I54<$Q$29,"",IF($J54=0,AC53,"")) ->  | CH54: =IF($I54<$Q$29,"",IF($J54=0,AD53,"")) ->  | CI54: =IF($I54<$Q$29,"",IF($J54=0,AI53,"")) ->  | CJ54: =IF($I54<$Q$29,"",IF($J54=0,M54,"")) ->  | CK54: =IF($I54<$Q$29,"",IF($J54=0,N54,"")) ->  | CL54: =IF($I54<$Q$29,"",IF($J54=0,Q54,"")) ->  | CM54: =IF($I54<$Q$29,"",IF($J54=0,T54,"")) ->  | CN54: =IF($I54<$Q$29,"",IF($J54=0,R54,"")) ->  | CO54: =IF($I54<$Q$29,"",IF($J54=0,S54,"")) ->  | CP54: =IF($I54<$Q$29,"",IF($J54=0,W54,"")) ->  | CQ54: =IF($I54<$Q$29,"",IF($J54=0,X54,"")) ->  | CR54: =IF($I54<$Q$29,"",IF($J54=0,Y54,"")) ->  | CS54: =IF($I54<$Q$29,"",IF($J54=0,AB54,"")) ->  | CT54: =IF($I54<$Q$29,"",IF($J54=0,AE54,"")) ->  | CU54: =IF($I54<$Q$29,"",IF($J54=0,AC54,"")) ->  | CV54: =IF($I54<$Q$29,"",IF($J54=0,AD54,"")) ->  | CW54: =IF($I54<$Q$29,"",IF($J54=0,AI54,"")) ->  | CX54: =IF($I54<$Q$29,"",IF($J54=0,K53,"")) ->  | CY54: =IF($I54<$Q$29,"",IF($J54=0,($AK54),J54)) ->  | CZ54: =IF(J54=0,0,CZ53+1) -> 17 | DA54: =IF(CZ54=0,CZ53,"") ->  | DK54: =IF($J54=0,SUM(DC54:DF54),"") ->  | DL54: =IF($J54=0,SUM(DG54:DJ54),"") ->  | DM54: =IF($J54=0,SUM(DG54:DJ54)*0.095+0.19,"") -> 
A55: =IF('3 climate date'!B32=1, '3 climate date'!D32, "") -> 18 | B55: =IF('3 climate date'!$B32=1, '3 climate date'!E32, "") -> 2006-05-23 | C55: =IF('3 climate date'!B32=1, '3 climate date'!G32, "") -> 8.4949125 | D55: =IF('3 climate date'!B32=1, '3 climate date'!H32, "") -> 21.31777778 | E55: =IF(('3 climate date'!$B32=1),('8 ETE'!E55)," ") -> 649.0780556 | F55: =IF(('3 climate date'!$B32=1),('8 ETE'!F55)," ") -> 1.276462291 | G55: =IF(('3 climate date'!$B32=1),('8 ETE'!G55)," ") -> 2.107979921 | H55: =IF(('3 climate date'!$B32=1),('8 ETE'!H55)," ") -> 27.85164598 | I55: =IF(AI54<=$N$29-$G$30,I54+1,I54) -> 18 | J55: =IF(AI54<=$N$29-$G$30,INDIRECT(ADDRESS((I55+37),7)),0) -> 2.107979921 | K55: =IF(J55=0,0,K54+J55) -> 27.85164598 | L55: =IF($I55<$Q$29,IF(J55=0,(IF($N$31-($W55+$AE$27*0.095*$J$23/$J$26)>=0,($N$31-$W55)/($AE$27*0.095)*$J$27/$AC$29,($J$23*$J$25/$AC$29))),$J55*$J$25/$AC$29),IF(J55=0,(IF($N$31-($W55+$AF$27*0.095*$J$23/$J$26)>=0,($N$31-$W55)/($AF$27*0.095)*$J$27/$AC$29,($J$23*$J$25/$AC$29))),$J55*$J$25/$AC$29)) -> 0.2107979921 | M55: =IF($I55<$Q$29,IF($AI54<=$N$29-$G$30,$X54+$L55*$AB$23*$AC$29/$J$27,DC55),IF($AI54<=$N$29-$G$30,$X54+$L55*$AC$23*$AC$29/$J$27,DC55)) -> 11.31748745 | N55: =IF($I55<$Q$29,IF($AI54<=$N$29-$G$30,$Y54+$L55*$AB$24*$AC$29/$J$27,DD55),IF($AI54<=$N$29-$G$30,$Y54+$L55*$AC$24*$AC$29/$J$27,DD55)) -> 1.131748745 | O55: =IF($I55<$Q$29,IF($AI54<=$N$29-$G$30,$Z54+$L55*$AB$25*$AC$29/$J$27,DE55),IF($AI54<=$N$29-$G$30,$Z54+$L55*$AC$25*$AC$29/$J$27,DE55)) -> 8.828232604 | P55: =IF($I55<$Q$29,IF($AI54<=$N$29-$G$30,$AA54+$L55*$AB$26*$AC$29/$J$27,DF55),IF($AI54<=$N$29-$G$30,$AA54+$L55*$AC$26*$AC$29/$J$27,DF55)) -> 19.73851645 | Q55: =IF($I55<$Q$29,IF($AI54<=$N$29-$G$30,$AB54+$L55*$AE$23*$AC$29/$J$27,DG55),IF($AI54<=$N$29-$G$30,$AB54+$L55*$AF$23*$AC$29/$J$27,DG55)) -> 7.582716592 | R55: =IF($I55<$Q$29,IF($AI54<=$N$29-$G$30,$AC54+$L55*$AE$24*$AC$29/$J$27,DH55),IF($AI54<=$N$29-$G$30,$AC54+$L55*$AF$24*$AC$29/$J$27,DH55)) -> 10.10682494 | S55: =IF($I55<$Q$29,IF($AI54<=$N$29-$G$30,$AD54+$L55*$AE$25*$AC$29/$J$27,DI55),IF($AI54<=$N$29-$G$30,$AD54+$L55*$AF$25*$AC$29/$J$27,DI55)) -> 2.243591652 | T55: =IF($I55<$Q$29,IF($AI54<=$N$29-$G$30,$AE54+$L55*$AE$26*$AC$29/$J$27,DJ55),IF($AI54<=$N$29-$G$30,$AE54+$L55*$AF$26*$AC$29/$J$27,DJ55)) -> 20.38216373 | U55: =SUM(M55:P55) -> 41.01598525 | V55: =SUM(Q55:T55) -> 40.31529691 | W55: =SUM(Q55:T55)*0.095+0.19 -> 4.019953207 | X55: =IF($I55<$Q$29,IF($J55=0,(M55+$L55*$AB$23*$AC$29/$J$27),(IF((M55+($U$23-$M$23)*$J55/$J$26)>=0,(M55+($U$23-$M$23)*$J55/$J$26),0))),IF($J55=0,(M55+$L55*$AC$23*$AC$29/$J$27),(IF((M55+($V$23-$N$23)*$J55/$J$26)>=0,(M55+($V$23-$N$23)*$J55/$J$26),0)))) -> 10 | Y55: =IF($I55<$Q$29,IF($J55=0,(N55+$L55*$AB$24*$AC$29/$J$27),(IF((N55+($U$24-$M$24)*$J55/$J$26)>=0,(N55+($U$24-$M$24)*$J55/$J$26),0))),IF($J55=0,(N55+$L55*$AC$24*$AC$29/$J$27),(IF((N55+($V$24-$N$24)*$J55/$J$26)>=0,(N55+($V$24-$N$24)*$J55/$J$26),0)))) -> 1 | Z55: =IF($I55<$Q$29,IF($J55=0,(O55+$L55*$AB$25*$AC$29/$J$27),(IF((O55+($U$25-$M$25)*$J55/$J$26)>=0,(O55+($U$25-$M$25)*$J55/$J$26),0))),IF($J55=0,(O55+$L55*$AC$25*$AC$29/$J$27),(IF((O55+($V$25-$N$25)*$J55/$J$26)>=0,(O55+($V$25-$N$25)*$J55/$J$26),0)))) -> 8.591084863 | AA55: =IF($I55<$Q$29,IF($J55=0,(P55+$L55*$AB$26*$AC$29/$J$27),(IF((P55-$U$26/$M$26)*EXP(-$M$26*$J55/$J$26)+$U$26/$M$26>=0,(P55-$U$26/$M$26)*EXP(-$M$26*$J55/$J$26)+$U$26/$M$26,0))),IF($J55=0,(P55+$L55*$AC$26*$AC$29/$J$27),(IF((P55-$V$26/$N$26)*EXP(-$N$26*$J55/$J$26)+$V$26/$N$26>=0,(P55-$V$26/$N$26)*EXP(-$N$26*$J55/$J$26)+$V$26/$N$26,0)))) -> 20.47375795 | AB55: =IF($I55<$Q$29,IF($J55=0,(Q55+$L55*$AE$23*$AC$29/$J$27),(IF((Q55+($X$23-$P$23)*$J55/$J$26)>=0,(Q55+($X$23-$P$23)*$J55/$J$26),0))),IF($J55=0,(Q55+$L55*$AF$23*$AC$29/$J$27),(IF((Q55+($Y$23-$Q$23)*$J55/$J$26)>=0,(Q55+($Y$23-$Q$23)*$J55/$J$26),0)))) -> 6.7 | AC55: =IF($I55<$Q$29,IF($J55=0,(R55+$L55*$AE$24*$AC$29/$J$27),(IF((R55+($X$24-$P$24)*$J55/$J$26)>=0,(R55+($X$24-$P$24)*$J55/$J$26),0))),IF($J55=0,(R55+$L55*$AF$24*$AC$29/$J$27),(IF((R55+($Y$24-$Q$24)*$J55/$J$26)>=0,(R55+($Y$24-$Q$24)*$J55/$J$26),0)))) -> 9.566655087 | AD55: =IF($I55<$Q$29,IF($J55=0,(S55+$L55*$AE$25*$AC$29/$J$27),(IF((S55+($X$25-$P$25)*$J55/$J$26)>=0,(S55+($X$25-$P$25)*$J55/$J$26),0))),IF($J55=0,(S55+$L55*$AF$25*$AC$29/$J$27),(IF((S55+($Y$25-$Q$25)*$J55/$J$26)>=0,(S55+($Y$25-$Q$25)*$J55/$J$26),0)))) -> 2.29629115 | AE55: =IF($I55<$Q$29,IF($J55=0,(T55+$L55*$AE$26*$AC$29/$J$27),(IF((T55-$X$26/$P$26)*EXP(-$P$26*$J55/$J$26)+$X$26/$P$26>=0,(T55-$X$26/$P$26)*EXP(-$P$26*$J55/$J$26)+$X$26/$P$26,0))),IF($J55=0,(T55+$L55*$AF$26*$AC$29/$J$27),(IF((T55-$Y$26/$Q$26)*EXP(-$Q$26*$J55/$J$26)+$Y$26/$Q$26>=0,(T55-$Y$26/$Q$26)*EXP(-$Q$26*$J55/$J$26)+$Y$26/$Q$26,0)))) -> 21.14138049 | AF55: =SUM(X55:AA55) -> 40.06484281 | AG55: =SUM(AB55:AE55) -> 39.70432673 | AH55: =IF(AH54<=$N$32,1000,X55) -> 10 | AI55: =SUM(AB55:AE55)*0.095+0.19 -> 3.961911039 | AJ55: =IF(J55>0,-10,1) -> -10 | AL55: =IF($I55<$Q$29,IF($J55=0,((X54-M55)*$J$26+$J$29*$U$23)*14.007/1000,""),IF($J55=0,((X54-M55)*$J$26+$J$29*$V$23)*14.007/1000,"")) ->  | AM55: =IF($I55<$Q$29,IF($J55=0,((Y54-N55)*$J$26+$J$29*$U$24)*30.957/1000,""),IF($J55=0,((Y54-N55)*$J$26+$J$29*$V$24)*30.957/1000,"")) ->  | AN55: =IF($I55<$Q$29,IF($J55=0,((AB54-Q55)*$J$26+$J$29*$X$23)*39.1/1000,""),IF($J55=0,((AB54-Q55)*$J$26+$J$29*$Y$23)*39.1/1000,"")) ->  | AO55: =IF($I55<$Q$29,IF($J55=0,((AE54-T55)*$J$26+$J$29*$X$26)*22.9898/1000,""),IF($J55=0,((AE54-T55)*$J$26+$J$29*$Y$26)*22.9898/1000,"")) ->  | AP55: =IF($I55<$Q$29,IF($J55=0,((AC54-R55)*$J$26+$J$29*$X$24)*20.04/1000,""),IF($J55=0,((AC54-R55)*$J$26+$J$29*$Y$24)*20.04/1000,"")) ->  | AQ55: =IF($I55<$Q$29,IF($J55=0,((AD54-S55)*$J$26+$J$29*$X$25)*12.156/1000,""),IF($J55=0,((AD54-S55)*$J$26+$J$29*$Y$25)*12.156/1000,"")) ->  | AR55: =IF($I55<$Q$29,L55/$J$25,"") -> 0.02107979921 | AS55: =IF($I55<$Q$29,IF($J55=0,AL55*1000/14.007/($AK55),""),"") ->  | AT55: =IF($I55<$Q$29,IF($J55=0,AM55*1000/30.957/($AK55),""),"") ->  | AU55: =IF($I55<$Q$29,IF($J55=0,AN55*1000/39.1/($AK55),""),"") ->  | AV55: =IF($I55<$Q$29,IF($J55=0,AO55*1000/22.9898/($AK55),""),"") ->  | AW55: =IF($I55<$Q$29,IF($J55=0,AP55*1000/20.04/($AK55*$J$25),""),"") ->  | AX55: =IF($I55<$Q$29,IF($J55=0,AQ55*1000/12.156/($AK55*$J$25),""),"") ->  | AY55: =IF($I55<$Q$29,IF($J55=0,X54,""),"") ->  | AZ55: =IF($I55<$Q$29,IF($J55=0,Y54,""),"") ->  | BA55: =IF($I55<$Q$29,IF($J55=0,AB54,""),"") ->  | BB55: =IF($I55<$Q$29,IF($J55=0,AE54,""),"") ->  | BC55: =IF($I55<$Q$29,IF($J55=0,AC54,""),"") ->  | BD55: =IF($I55<$Q$29,IF($J55=0,AD54,""),"") ->  | BE55: =IF($I55<$Q$29,IF($J55=0,AI54,""),"") ->  | BF55: =IF($I55<$Q$29,IF($J55=0,M55,""),"") ->  | BG55: =IF($I55<$Q$29,IF($J55=0,N55,""),"") ->  | BH55: =IF($I55<$Q$29,IF($J55=0,Q55,""),"") ->  | BI55: =IF($I55<$Q$29,IF($J55=0,T55,""),"") ->  | BJ55: =IF($I55<$Q$29,IF($J55=0,R55,""),"") ->  | BK55: =IF($I55<$Q$29,IF($J55=0,S55,""),"") ->  | BL55: =IF($I55<$Q$29,IF($J55=0,W55,""),"") ->  | BM55: =IF($I55<$Q$29,IF($J55=0,X55,""),"") ->  | BN55: =IF($I55<$Q$29,IF($J55=0,Y55,""),"") ->  | BO55: =IF($I55<$Q$29,IF($J55=0,AB55,""),"") ->  | BP55: =IF($I55<$Q$29,IF($J55=0,AE55,""),"") ->  | BQ55: =IF($I55<$Q$29,IF($J55=0,AC55,""),"") ->  | BR55: =IF($I55<$Q$29,IF($J55=0,AD55,""),"") ->  | BS55: =IF($I55<$Q$29,IF($J55=0,AI55,""),"") ->  | BT55: =IF($I55<$Q$29,IF($J55=0,K54,""),"") ->  | BU55: =IF($I55<$Q$29,IF($J55=0,($AK55),J55),"") -> 2.107979921 | BV55: =IF($I55<$Q$29,"",(IF($J55=0,(IF($I55=$W$30,"",L55/$J$25)),L55/$J$25))) ->  | BW55: =IF($I55<$Q$29,"",IF($J55=0,AL55*1000/14.007/($AK55),"")) ->  | BX55: =IF($I55<$Q$29,"",IF($J55=0,AM55*1000/30.957/($AK55),"")) ->  | BY55: =IF($I55<$Q$29,"",IF($J55=0,AN55*1000/39.1/($AK55),"")) ->  | BZ55: =IF($I55<$Q$29,"",IF($J55=0,AO55*1000/22.9898/($AK55),"")) ->  | CA55: =IF($I55<$Q$29,"",IF($J55=0,AP55*1000/20.04/($AK55),"")) ->  | CB55: =IF($I55<$Q$29,"",IF($J55=0,AQ55*1000/12.156/($AK55),"")) ->  | CC55: =IF($I55<$Q$29,"",IF($J55=0,X54,"")) ->  | CD55: =IF($I55<$Q$29,"",IF($J55=0,Y54,"")) ->  | CE55: =IF($I55<$Q$29,"",IF($J55=0,AB54,"")) ->  | CF55: =IF($I55<$Q$29,"",IF($J55=0,AE54,"")) ->  | CG55: =IF($I55<$Q$29,"",IF($J55=0,AC54,"")) ->  | CH55: =IF($I55<$Q$29,"",IF($J55=0,AD54,"")) ->  | CI55: =IF($I55<$Q$29,"",IF($J55=0,AI54,"")) ->  | CJ55: =IF($I55<$Q$29,"",IF($J55=0,M55,"")) ->  | CK55: =IF($I55<$Q$29,"",IF($J55=0,N55,"")) ->  | CL55: =IF($I55<$Q$29,"",IF($J55=0,Q55,"")) ->  | CM55: =IF($I55<$Q$29,"",IF($J55=0,T55,"")) ->  | CN55: =IF($I55<$Q$29,"",IF($J55=0,R55,"")) ->  | CO55: =IF($I55<$Q$29,"",IF($J55=0,S55,"")) ->  | CP55: =IF($I55<$Q$29,"",IF($J55=0,W55,"")) ->  | CQ55: =IF($I55<$Q$29,"",IF($J55=0,X55,"")) ->  | CR55: =IF($I55<$Q$29,"",IF($J55=0,Y55,"")) ->  | CS55: =IF($I55<$Q$29,"",IF($J55=0,AB55,"")) ->  | CT55: =IF($I55<$Q$29,"",IF($J55=0,AE55,"")) ->  | CU55: =IF($I55<$Q$29,"",IF($J55=0,AC55,"")) ->  | CV55: =IF($I55<$Q$29,"",IF($J55=0,AD55,"")) ->  | CW55: =IF($I55<$Q$29,"",IF($J55=0,AI55,"")) ->  | CX55: =IF($I55<$Q$29,"",IF($J55=0,K54,"")) ->  | CY55: =IF($I55<$Q$29,"",IF($J55=0,($AK55),J55)) ->  | CZ55: =IF(J55=0,0,CZ54+1) -> 18 | DA55: =IF(CZ55=0,CZ54,"") ->  | DK55: =IF($J55=0,SUM(DC55:DF55),"") ->  | DL55: =IF($J55=0,SUM(DG55:DJ55),"") ->  | DM55: =IF($J55=0,SUM(DG55:DJ55)*0.095+0.19,"") -> 
A56: =IF('3 climate date'!B33=1, '3 climate date'!D33, "") -> 19 | B56: =IF('3 climate date'!$B33=1, '3 climate date'!E33, "") -> 2006-05-24 | C56: =IF('3 climate date'!B33=1, '3 climate date'!G33, "") -> 14.9198625 | D56: =IF('3 climate date'!B33=1, '3 climate date'!H33, "") -> 22.47277778 | E56: =IF(('3 climate date'!$B33=1),('8 ETE'!E56)," ") -> 663.5508333 | F56: =IF(('3 climate date'!$B33=1),('8 ETE'!F56)," ") -> 1.397861408 | G56: =IF(('3 climate date'!$B33=1),('8 ETE'!G56)," ") -> 3.751915353 | H56: =IF(('3 climate date'!$B33=1),('8 ETE'!H56)," ") -> 31.60356134 | I56: =IF(AI55<=$N$29-$G$30,I55+1,I55) -> 19 | J56: =IF(AI55<=$N$29-$G$30,INDIRECT(ADDRESS((I56+37),7)),0) -> 3.751915353 | K56: =IF(J56=0,0,K55+J56) -> 31.60356134 | L56: =IF($I56<$Q$29,IF(J56=0,(IF($N$31-($W56+$AE$27*0.095*$J$23/$J$26)>=0,($N$31-$W56)/($AE$27*0.095)*$J$27/$AC$29,($J$23*$J$25/$AC$29))),$J56*$J$25/$AC$29),IF(J56=0,(IF($N$31-($W56+$AF$27*0.095*$J$23/$J$26)>=0,($N$31-$W56)/($AF$27*0.095)*$J$27/$AC$29,($J$23*$J$25/$AC$29))),$J56*$J$25/$AC$29)) -> 0.3751915353 | M56: =IF($I56<$Q$29,IF($AI55<=$N$29-$G$30,$X55+$L56*$AB$23*$AC$29/$J$27,DC56),IF($AI55<=$N$29-$G$30,$X55+$L56*$AC$23*$AC$29/$J$27,DC56)) -> 12.3449471 | N56: =IF($I56<$Q$29,IF($AI55<=$N$29-$G$30,$Y55+$L56*$AB$24*$AC$29/$J$27,DD56),IF($AI55<=$N$29-$G$30,$Y55+$L56*$AC$24*$AC$29/$J$27,DD56)) -> 1.23449471 | O56: =IF($I56<$Q$29,IF($AI55<=$N$29-$G$30,$Z55+$L56*$AB$25*$AC$29/$J$27,DE56),IF($AI55<=$N$29-$G$30,$Z55+$L56*$AC$25*$AC$29/$J$27,DE56)) -> 9.491544548 | P56: =IF($I56<$Q$29,IF($AI55<=$N$29-$G$30,$AA55+$L56*$AB$26*$AC$29/$J$27,DF56),IF($AI55<=$N$29-$G$30,$AA55+$L56*$AC$26*$AC$29/$J$27,DF56)) -> 20.47375795 | Q56: =IF($I56<$Q$29,IF($AI55<=$N$29-$G$30,$AB55+$L56*$AE$23*$AC$29/$J$27,DG56),IF($AI55<=$N$29-$G$30,$AB55+$L56*$AF$23*$AC$29/$J$27,DG56)) -> 8.271114554 | R56: =IF($I56<$Q$29,IF($AI55<=$N$29-$G$30,$AC55+$L56*$AE$24*$AC$29/$J$27,DH56),IF($AI55<=$N$29-$G$30,$AC55+$L56*$AF$24*$AC$29/$J$27,DH56)) -> 10.73912863 | S56: =IF($I56<$Q$29,IF($AI55<=$N$29-$G$30,$AD55+$L56*$AE$25*$AC$29/$J$27,DI56),IF($AI55<=$N$29-$G$30,$AD55+$L56*$AF$25*$AC$29/$J$27,DI56)) -> 2.29629115 | T56: =IF($I56<$Q$29,IF($AI55<=$N$29-$G$30,$AE55+$L56*$AE$26*$AC$29/$J$27,DJ56),IF($AI55<=$N$29-$G$30,$AE55+$L56*$AF$26*$AC$29/$J$27,DJ56)) -> 21.14138049 | U56: =SUM(M56:P56) -> 43.5447443 | V56: =SUM(Q56:T56) -> 42.44791483 | W56: =SUM(Q56:T56)*0.095+0.19 -> 4.222551909 | X56: =IF($I56<$Q$29,IF($J56=0,(M56+$L56*$AB$23*$AC$29/$J$27),(IF((M56+($U$23-$M$23)*$J56/$J$26)>=0,(M56+($U$23-$M$23)*$J56/$J$26),0))),IF($J56=0,(M56+$L56*$AC$23*$AC$29/$J$27),(IF((M56+($V$23-$N$23)*$J56/$J$26)>=0,(M56+($V$23-$N$23)*$J56/$J$26),0)))) -> 10 | Y56: =IF($I56<$Q$29,IF($J56=0,(N56+$L56*$AB$24*$AC$29/$J$27),(IF((N56+($U$24-$M$24)*$J56/$J$26)>=0,(N56+($U$24-$M$24)*$J56/$J$26),0))),IF($J56=0,(N56+$L56*$AC$24*$AC$29/$J$27),(IF((N56+($V$24-$N$24)*$J56/$J$26)>=0,(N56+($V$24-$N$24)*$J56/$J$26),0)))) -> 1 | Z56: =IF($I56<$Q$29,IF($J56=0,(O56+$L56*$AB$25*$AC$29/$J$27),(IF((O56+($U$25-$M$25)*$J56/$J$26)>=0,(O56+($U$25-$M$25)*$J56/$J$26),0))),IF($J56=0,(O56+$L56*$AC$25*$AC$29/$J$27),(IF((O56+($V$25-$N$25)*$J56/$J$26)>=0,(O56+($V$25-$N$25)*$J56/$J$26),0)))) -> 9.06945407 | AA56: =IF($I56<$Q$29,IF($J56=0,(P56+$L56*$AB$26*$AC$29/$J$27),(IF((P56-$U$26/$M$26)*EXP(-$M$26*$J56/$J$26)+$U$26/$M$26>=0,(P56-$U$26/$M$26)*EXP(-$M$26*$J56/$J$26)+$U$26/$M$26,0))),IF($J56=0,(P56+$L56*$AC$26*$AC$29/$J$27),(IF((P56-$V$26/$N$26)*EXP(-$N$26*$J56/$J$26)+$V$26/$N$26>=0,(P56-$V$26/$N$26)*EXP(-$N$26*$J56/$J$26)+$V$26/$N$26,0)))) -> 21.74001961 | AB56: =IF($I56<$Q$29,IF($J56=0,(Q56+$L56*$AE$23*$AC$29/$J$27),(IF((Q56+($X$23-$P$23)*$J56/$J$26)>=0,(Q56+($X$23-$P$23)*$J56/$J$26),0))),IF($J56=0,(Q56+$L56*$AF$23*$AC$29/$J$27),(IF((Q56+($Y$23-$Q$23)*$J56/$J$26)>=0,(Q56+($Y$23-$Q$23)*$J56/$J$26),0)))) -> 6.7 | AC56: =IF($I56<$Q$29,IF($J56=0,(R56+$L56*$AE$24*$AC$29/$J$27),(IF((R56+($X$24-$P$24)*$J56/$J$26)>=0,(R56+($X$24-$P$24)*$J56/$J$26),0))),IF($J56=0,(R56+$L56*$AF$24*$AC$29/$J$27),(IF((R56+($Y$24-$Q$24)*$J56/$J$26)>=0,(R56+($Y$24-$Q$24)*$J56/$J$26),0)))) -> 9.777700325 | AD56: =IF($I56<$Q$29,IF($J56=0,(S56+$L56*$AE$25*$AC$29/$J$27),(IF((S56+($X$25-$P$25)*$J56/$J$26)>=0,(S56+($X$25-$P$25)*$J56/$J$26),0))),IF($J56=0,(S56+$L56*$AF$25*$AC$29/$J$27),(IF((S56+($Y$25-$Q$25)*$J56/$J$26)>=0,(S56+($Y$25-$Q$25)*$J56/$J$26),0)))) -> 2.390089033 | AE56: =IF($I56<$Q$29,IF($J56=0,(T56+$L56*$AE$26*$AC$29/$J$27),(IF((T56-$X$26/$P$26)*EXP(-$P$26*$J56/$J$26)+$X$26/$P$26>=0,(T56-$X$26/$P$26)*EXP(-$P$26*$J56/$J$26)+$X$26/$P$26,0))),IF($J56=0,(T56+$L56*$AF$26*$AC$29/$J$27),(IF((T56-$Y$26/$Q$26)*EXP(-$Q$26*$J56/$J$26)+$Y$26/$Q$26>=0,(T56-$Y$26/$Q$26)*EXP(-$Q$26*$J56/$J$26)+$Y$26/$Q$26,0)))) -> 22.44893329 | AF56: =SUM(X56:AA56) -> 41.80947368 | AG56: =SUM(AB56:AE56) -> 41.31672265 | AH56: =IF(AH55<=$N$32,1000,X56) -> 10 | AI56: =SUM(AB56:AE56)*0.095+0.19 -> 4.115088652 | AJ56: =IF(J56>0,-10,1) -> -10 | AL56: =IF($I56<$Q$29,IF($J56=0,((X55-M56)*$J$26+$J$29*$U$23)*14.007/1000,""),IF($J56=0,((X55-M56)*$J$26+$J$29*$V$23)*14.007/1000,"")) ->  | AM56: =IF($I56<$Q$29,IF($J56=0,((Y55-N56)*$J$26+$J$29*$U$24)*30.957/1000,""),IF($J56=0,((Y55-N56)*$J$26+$J$29*$V$24)*30.957/1000,"")) ->  | AN56: =IF($I56<$Q$29,IF($J56=0,((AB55-Q56)*$J$26+$J$29*$X$23)*39.1/1000,""),IF($J56=0,((AB55-Q56)*$J$26+$J$29*$Y$23)*39.1/1000,"")) ->  | AO56: =IF($I56<$Q$29,IF($J56=0,((AE55-T56)*$J$26+$J$29*$X$26)*22.9898/1000,""),IF($J56=0,((AE55-T56)*$J$26+$J$29*$Y$26)*22.9898/1000,"")) ->  | AP56: =IF($I56<$Q$29,IF($J56=0,((AC55-R56)*$J$26+$J$29*$X$24)*20.04/1000,""),IF($J56=0,((AC55-R56)*$J$26+$J$29*$Y$24)*20.04/1000,"")) ->  | AQ56: =IF($I56<$Q$29,IF($J56=0,((AD55-S56)*$J$26+$J$29*$X$25)*12.156/1000,""),IF($J56=0,((AD55-S56)*$J$26+$J$29*$Y$25)*12.156/1000,"")) ->  | AR56: =IF($I56<$Q$29,L56/$J$25,"") -> 0.03751915353 | AS56: =IF($I56<$Q$29,IF($J56=0,AL56*1000/14.007/($AK56),""),"") ->  | AT56: =IF($I56<$Q$29,IF($J56=0,AM56*1000/30.957/($AK56),""),"") ->  | AU56: =IF($I56<$Q$29,IF($J56=0,AN56*1000/39.1/($AK56),""),"") ->  | AV56: =IF($I56<$Q$29,IF($J56=0,AO56*1000/22.9898/($AK56),""),"") ->  | AW56: =IF($I56<$Q$29,IF($J56=0,AP56*1000/20.04/($AK56*$J$25),""),"") ->  | AX56: =IF($I56<$Q$29,IF($J56=0,AQ56*1000/12.156/($AK56*$J$25),""),"") ->  | AY56: =IF($I56<$Q$29,IF($J56=0,X55,""),"") ->  | AZ56: =IF($I56<$Q$29,IF($J56=0,Y55,""),"") ->  | BA56: =IF($I56<$Q$29,IF($J56=0,AB55,""),"") ->  | BB56: =IF($I56<$Q$29,IF($J56=0,AE55,""),"") ->  | BC56: =IF($I56<$Q$29,IF($J56=0,AC55,""),"") ->  | BD56: =IF($I56<$Q$29,IF($J56=0,AD55,""),"") ->  | BE56: =IF($I56<$Q$29,IF($J56=0,AI55,""),"") ->  | BF56: =IF($I56<$Q$29,IF($J56=0,M56,""),"") ->  | BG56: =IF($I56<$Q$29,IF($J56=0,N56,""),"") ->  | BH56: =IF($I56<$Q$29,IF($J56=0,Q56,""),"") ->  | BI56: =IF($I56<$Q$29,IF($J56=0,T56,""),"") ->  | BJ56: =IF($I56<$Q$29,IF($J56=0,R56,""),"") ->  | BK56: =IF($I56<$Q$29,IF($J56=0,S56,""),"") ->  | BL56: =IF($I56<$Q$29,IF($J56=0,W56,""),"") ->  | BM56: =IF($I56<$Q$29,IF($J56=0,X56,""),"") ->  | BN56: =IF($I56<$Q$29,IF($J56=0,Y56,""),"") ->  | BO56: =IF($I56<$Q$29,IF($J56=0,AB56,""),"") ->  | BP56: =IF($I56<$Q$29,IF($J56=0,AE56,""),"") ->  | BQ56: =IF($I56<$Q$29,IF($J56=0,AC56,""),"") ->  | BR56: =IF($I56<$Q$29,IF($J56=0,AD56,""),"") ->  | BS56: =IF($I56<$Q$29,IF($J56=0,AI56,""),"") ->  | BT56: =IF($I56<$Q$29,IF($J56=0,K55,""),"") ->  | BU56: =IF($I56<$Q$29,IF($J56=0,($AK56),J56),"") -> 3.751915353 | BV56: =IF($I56<$Q$29,"",(IF($J56=0,(IF($I56=$W$30,"",L56/$J$25)),L56/$J$25))) ->  | BW56: =IF($I56<$Q$29,"",IF($J56=0,AL56*1000/14.007/($AK56),"")) ->  | BX56: =IF($I56<$Q$29,"",IF($J56=0,AM56*1000/30.957/($AK56),"")) ->  | BY56: =IF($I56<$Q$29,"",IF($J56=0,AN56*1000/39.1/($AK56),"")) ->  | BZ56: =IF($I56<$Q$29,"",IF($J56=0,AO56*1000/22.9898/($AK56),"")) ->  | CA56: =IF($I56<$Q$29,"",IF($J56=0,AP56*1000/20.04/($AK56),"")) ->  | CB56: =IF($I56<$Q$29,"",IF($J56=0,AQ56*1000/12.156/($AK56),"")) ->  | CC56: =IF($I56<$Q$29,"",IF($J56=0,X55,"")) ->  | CD56: =IF($I56<$Q$29,"",IF($J56=0,Y55,"")) ->  | CE56: =IF($I56<$Q$29,"",IF($J56=0,AB55,"")) ->  | CF56: =IF($I56<$Q$29,"",IF($J56=0,AE55,"")) ->  | CG56: =IF($I56<$Q$29,"",IF($J56=0,AC55,"")) ->  | CH56: =IF($I56<$Q$29,"",IF($J56=0,AD55,"")) ->  | CI56: =IF($I56<$Q$29,"",IF($J56=0,AI55,"")) ->  | CJ56: =IF($I56<$Q$29,"",IF($J56=0,M56,"")) ->  | CK56: =IF($I56<$Q$29,"",IF($J56=0,N56,"")) ->  | CL56: =IF($I56<$Q$29,"",IF($J56=0,Q56,"")) ->  | CM56: =IF($I56<$Q$29,"",IF($J56=0,T56,"")) ->  | CN56: =IF($I56<$Q$29,"",IF($J56=0,R56,"")) ->  | CO56: =IF($I56<$Q$29,"",IF($J56=0,S56,"")) ->  | CP56: =IF($I56<$Q$29,"",IF($J56=0,W56,"")) ->  | CQ56: =IF($I56<$Q$29,"",IF($J56=0,X56,"")) ->  | CR56: =IF($I56<$Q$29,"",IF($J56=0,Y56,"")) ->  | CS56: =IF($I56<$Q$29,"",IF($J56=0,AB56,"")) ->  | CT56: =IF($I56<$Q$29,"",IF($J56=0,AE56,"")) ->  | CU56: =IF($I56<$Q$29,"",IF($J56=0,AC56,"")) ->  | CV56: =IF($I56<$Q$29,"",IF($J56=0,AD56,"")) ->  | CW56: =IF($I56<$Q$29,"",IF($J56=0,AI56,"")) ->  | CX56: =IF($I56<$Q$29,"",IF($J56=0,K55,"")) ->  | CY56: =IF($I56<$Q$29,"",IF($J56=0,($AK56),J56)) ->  | CZ56: =IF(J56=0,0,CZ55+1) -> 19 | DA56: =IF(CZ56=0,CZ55,"") ->  | DK56: =IF($J56=0,SUM(DC56:DF56),"") ->  | DL56: =IF($J56=0,SUM(DG56:DJ56),"") ->  | DM56: =IF($J56=0,SUM(DG56:DJ56)*0.095+0.19,"") -> 
